{"text_format":"1","workbook":"xlsx","n_sheets":11,"sheets":["00. Introduksjon","01. Prosjektbeskrivelse","02. Inndata steinmasser","03. Mobilt knuseverk","04. Deponi","05. Pukkverk","06. Transport annen bruk","07. Resultater","08. Beregningsfaktorer","09. Utslippsfaktorer","Revisjonslogg"],"not_rendered":{"charts":36,"images":21,"macros":1,"external_links":1,"defined_names":0,"comments":0,"pivot_tables":0},"unopened":[],"bounds":{"document_bytes":16777216,"sheet_cells":100000,"rows_first":2000,"rows_last":500,"rows_between":2000,"halvings":0,"cell_chars":16384,"cell_head_chars":4096},"cells_cut":0,"cells_raw":0,"read":"whole","date_system":"1900"}

{"sheet":"00. Introduksjon","index":0,"n_rows":37,"n_cols":7,"rows_kept":37,"cut":false,"hidden":false,"merged":[[39,1,51,1],[52,1,64,1],[1,0,1,2],[5,1,33,1],[1,3,1,7],[4,3,7,7],[11,6,11,7],[10,6,10,7],[10,3,10,4],[12,6,12,7],[14,6,14,7],[23,6,23,7],[15,6,21,7],[24,6,30,7],[26,3,26,4],[29,3,29,4],[35,3,35,4],[32,3,32,4],[11,3,11,4],[14,3,14,4],[17,3,17,4],[20,3,20,4],[23,3,23,4]]}
[]
[null,null,null,"00. Introduksjon"]
[]
[]
[null,null,null,"SteinLCA v2.2"]
[null,"Beskrivelse"]
[]
[]
[null,null,null,"Utviklet av Multiconsult | I samarbeid med Veidekke og Sintef | Kortreist stein"]
[]
[null,null,null,"Beskrivelse av fanene",null,null,"Informasjon om verktøyet"]
[null,null,null,"01. Prosjektbeskrivelse",null,null,"Beskrivelse av verktøyet"]
[null,null,null,null,"Overordnet informasjon om prosjektet legges inn i denne fanen. ",null,"Klimagassverktøyet gjør en beregning av klimagassutlipp knyttet til bruk av lokale steinmasser fra tunnel. Klimagassutslipp fra to alternativer beregnes: lokal behandling og ekstern behandling. Alternativet for lokal behandling er det som spesifiseres av brukeren, mens alternativet for ekstern behandling beregnes automatisk. Ved ekstern behandling modelleres det at alle uttaksmassene sendes til eksternt deponi, og hele behovet i linja dekkes av masser fra pukkverk. Figurene under beskriver verktøyets prinsipper og oppbygging. Kolonnen til venstre beskriver hver enkelt fane. Data skal kun føres inn i hvite felter, dette kan være i form av å skrive inn verdier eller velge fra nedtrekksmeny. Beregningene utføres til høyre i hver fane. Transportdistanse til linja er definert som midt på linja."]
[]
[null,null,null,"02. Inndata steinmasser",null,null,"Flytdiagram for Alternativ 01 - Lokal behandling"]
[null,null,null,null,"Behov og uttak av steinmasser i prosjektet legges inn i denne fanen. Behovet for steinmasser er delt inn i tre knusetrinn. Hvert knusetrinn har ulik fraksjon og bruksområde. Fordeling av massene som tas ut skal også føres inn her, før videre spesifikasjon gjøres i de respektive prosessfanene. Transportdistanser spesifisert i prosessfanene summeres i denne fanen."]
[]
[null,null,null,"03. Mobilt knuseverk"]
[null,null,null,null,"Hvis det finnes mobile knuseverk internt i prosjektet, og man skal bruke disse til å knuse noen av massene, legges data på dette inn i denne fanen. Masser mottatt fra nærliggende prosjekt kommer automatisk inn her. Det må videre spesifiseres hvor massene skal sendes etter knusing, og transport til og fra."]
[]
[null,null,null,"04. Deponi"]
[null,null,null,null,"Denne fanen omfatter både internt og eksternt deponi. For internt deponi beregnes transport, utlegging og kompresjon, mens for eksternt deponi beregnes kun transport. Både masser fra tunnelmunning og fra mobilt knuseverk kan modelleres at sendes til deponi."]
[]
[null,null,null,"05. Pukkverk",null,null,"Flytdiagram for Alternativ 02 - Ekstern behandling"]
[null,null,null,null,"Pukkverk som er tilknyttet prosjektet skal legges inn i denne fanen. Det kan modelleres at prosjektet leverer masser fra tunnelmunning til pukkverk, enten direkte eller via knusing i mobilt knuseverk, og at prosjektet henter nye masser fra pukkverk for å dekke behovet i linja."]
[]
[null,null,null,"06. Transport til annen samfunnsnyttig bruk"]
[null,null,null,null,"Dersom det er aktuelt å sende masser fra tunnelmunning eller mobilt knuseverk til andre prosjekter eller andre former for samfunnsnyttig bruk skal det legges inn her. Alternativene omfatter asfaltproduksjon, betongfabrikk, nærliggende prosjekt eller annet. Systemgrensen er satt til port på aktuell bruk. "]
[]
[null,null,null,"07. Resultater"]
[null,null,null,null,"Resultater presenteres for de to alternativene i denne fanen. Klimagassutslipp fra de ulike prosessene er listet opp, og reduksjon ved lokal behandling sammenlignet med ekstern behandling beregnes."]
[]
[null,null,null,"08. Beregningsfaktorer"]
[null,null,null,null,"Alle beregningsfaktorer ligger i denne fanen. Her er det mulighet til å overstyre innlagt data og tilpasse sitt eget prosjekt. "]
[]
[null,null,null,"09. Utslippsfaktorer"]
[null,null,null,null,"Alle utslippsfaktorer ligger i denne fanen. Her er det mulighet til å overstyre innlagt data og tilpasse sitt eget prosjekt. "]

{"sheet":"01. Prosjektbeskrivelse","index":1,"n_rows":18,"n_cols":8,"rows_kept":18,"cut":false,"hidden":false,"merged":[[39,1,51,1],[52,1,64,1],[1,0,1,2],[5,1,18,1],[18,3,18,5],[1,3,1,7],[6,7,18,7]]}
[]
[null,null,null,"01. Prosjektbeskrivelse"]
[]
[]
[]
[null,"Informasjon",null,"1.1","Analyseinformasjon",null,null,"1.4 Kartutsnitt"]
[null,null,null,"1.1.1","Utført av"]
[null,null,null,"1.1.2","Dato"]
[null,null,null,"1.1.3","Revisjon"]
[]
[null,null,null,"1.2","Prosjektinformasjon",null," "]
[null,null,null,"1.2.1","Navn på prosjekt"]
[null,null,null,"1.2.2","Startdato "]
[null,null,null,"1.2.3","Ferdigstillelsedato"]
[null,null,null,"1.2.4","Lengde på strekning (km)"]
[]
[]
[null,null,null,"1.3 ","Beskrivelse av prosjekt "]

{"sheet":"02. Inndata steinmasser","index":2,"n_rows":80,"n_cols":14,"rows_kept":80,"cut":false,"hidden":false,"merged":[[1,3,1,10],[54,1,82,1],[1,0,1,2],[9,1,27,1],[4,1,8,1],[28,1,40,1],[41,1,53,1]]}
[]
[null,null,null,"02. Inndata steinmasser"]
[]
[null,null,null,"Nr.","Prosess","Mengde/type","Enhet"]
[null,"Enhet"]
[]
[null,null,null,"2.0","Enhet for steinmasser","fm3"]
[]
[]
[null,"Massebalanse"]
[null,null,null,"2.1","Uttak og mottak av masser",null,null,null,"2.5","Massebalanse ekskludert vrakprosent"]
[null,null,null,"2.1.1","Utnyttbart masseuttak",null,{"$f":"$F$7","v":"fm3"}]
[null,null,null,"2.1.2","Vrakprosent fra tunnel",null,{"$f":"$F$7","v":"fm3"},null,null,{"$f":"\"Utnyttbare masser [\" & IF($F$7=\"fm3\",\"lm3\",$F$7) &\"]\"","v":"Utnyttbare masser [lm3]"},{"$f":"\"Restprodukt [\" & IF($F$7=\"fm3\",\"lm3\",$F$7) &\"]\"","v":"Restprodukt [lm3]"},{"$f":"\"Behov for masser [\" & IF($F$7=\"fm3\",\"lm3\",$F$7) &\"]\"","v":"Behov for masser [lm3]"},{"$f":"\"Balanse [\" & IF($F$7=\"fm3\",\"lm3\",$F$7) &\"]\"","v":"Balanse [lm3]"}]
[null,null,null,"2.1.3","Mottak av masser fra nærliggende prosjekt",null,{"$f":"IF($F$7=\"fm3\",\"lm3\",$F$7)","v":"lm3"},null,null,{"$f":"IF($F$7=\"fm3\",$F$12*('08. Beregningsfaktorer'!$G$65/'08. Beregningsfaktorer'!$G$66)+$F$14,$F$12+$F$14)","v":0},{"$f":"IF($F$7=\"fm\",'03. Mobilt knuseverk'!F22*('08. Beregningsfaktorer'!$G$65/'08. Beregningsfaktorer'!$G$66),'03. Mobilt knuseverk'!F22)","v":0},{"$f":"F20+F23+F26","v":0},{"$f":"J14-L14-K14","v":0},{"$f":"IF(M14<0,\"Behov for tilførte masser\",IF(M14>0,\"Overskudd av masser\",\"Verken overskudd eller underskudd\"))","v":"Verken overskudd eller underskudd"}]
[]
[null,null,null,"2.1.4","Sum uttak og mottak av masser",{"$f":"IF($F$7=\"fm3\",($F$12+$F$13)*('08. Beregningsfaktorer'!$G$65/'08. Beregningsfaktorer'!$G$66)+F14,SUM(F12:F14))","v":0},{"$f":"IF($F$7=\"fm3\",\"lm3\",$F$7)","v":"lm3"}]
[]
[]
[null,null,null,"2.2","Behov for masser med knusetrinn 1"]
[null,null,null,"2.2.1","Sum knusetrinn 1",null,{"$f":"IF($F$7=\"fm3\",\"lm3\",$F$7)","v":"lm3"}]
[]
[null,null,null,"2.3","Behov for masser med knusetrinn 2"]
[null,null,null,"2.3.1","Sum knusetrinn 2",null,{"$f":"IF($F$7=\"fm3\",\"lm3\",$F$7)","v":"lm3"}]
[]
[null,null,null,"2.4","Behov for masser med knusetrinn 3"]
[null,null,null,"2.4.1","Sum knusetrinn 3",null,{"$f":"IF($F$7=\"fm3\",\"lm3\",$F$7)","v":"lm3"}]
[]
[]
[null,"Massefordeling"]
[null,null,null,"2.6","Lokale masser som skal fordeles"]
[null,null,null,"2.6.1","Totale masser som skal fordeles",{"$f":"F12+F13","v":0},{"$f":"$F$7","v":"fm3"}]
[null,null,null,"2.6.2","Ufordelte masser",{"$f":"F31-F40","v":0},{"$f":"$F$7","v":"fm3"},"Ingen ufordelte masser"]
[]
[null,null,null,"2.7","Tunnelmasser som skal fordeles"]
[null,null,null,"2.7.1","Mobilt knuseverk",null,{"$f":"$F$7","v":"fm3"}]
[null,null,null,"2.7.2","Deponi",null,{"$f":"$F$7","v":"fm3"}]
[null,null,null,"2.7.3","Pukkverk",null,{"$f":"$F$7","v":"fm3"}]
[null,null,null,"2.7.4","Annen samfunnsnyttig bruk",null,{"$f":"$F$7","v":"fm3"}]
[]
[null,null,null,"2.7.5","Sum",{"$f":"SUM(F35:F38)","v":0},{"$f":"$F$7","v":"fm3"}]
[]
[null,"Fordeding av eksterne masser"]
[null,null,null,"2.10","Eksterne masser som skal fordeles"]
[null,null,null,"2.7.1","Totale masser som skal fordeles",{"$f":"IF(M14<0,M14*(-1),0)","v":0},{"$f":"$F$7","v":"fm3"}]
[null,null,null,"2.7.2","Rest som må fordeles",{"$f":"F44-F53","v":0},{"$f":"$F$7","v":"fm3"}]
[]
[null,null,null,"2.11","Fordeling av lokale masser"]
[null,null,null,"2.8.1","Mobilt knuseverk",null,{"$f":"$F$7","v":"fm3"}]
[null,null,null,"2.8.2","Deponi",null,{"$f":"$F$7","v":"fm3"}]
[null,null,null,"2.8.3","Pukkverk",null,{"$f":"$F$7","v":"fm3"}]
[null,null,null,"2.8.4","Annen samfunnsnyttig bruk",null,{"$f":"$F$7","v":"fm3"}]
[]
[null,null,null,"2.8.5","Sum",{"$f":"SUM(F48:F51)","v":0},{"$f":"$F$7","v":"fm3"}]
[]
[null,"Distanser"]
[]
[null,null,null,"2.8","Distanser fra tunnelmunning"]
[null,null,null,"2.8.1","Fra tunnelmunning til mobilt knuseverk",{"$f":"'03. Mobilt knuseverk'!F29","v":0},"km"]
[null,null,null,"2.8.2","Fra tunnelmunning til internt deponi",{"$f":"'04. Deponi'!F28","v":0},"km"]
[null,null,null,"2.8.3","Fra tunnelmunning til eksternt deponi 1",{"$f":"'04. Deponi'!F76","v":0},"km"]
[null,null,null,"2.8.4","Fra tunnelmunning til eksternt deponi 2",{"$f":"'04. Deponi'!F72","v":0},"km"]
[null,null,null,"2.8.5","Fra tunnelmunning til eksternt deponi 3",{"$f":"'04. Deponi'!F73","v":0},"km"]
[null,null,null,"2.8.6","Fra tunnelmunning til pukkverk",{"$f":"'05. Pukkverk'!F16","v":0},"km"]
[null,null,null,"2.8.7","Fra tunnelmunning til betongfabrikk",{"$f":"'06. Transport annen bruk'!F38","v":0},"km"]
[null,null,null,"2.8.8","Fra tunnelmunning til asfaltproduksjon",{"$f":"'06. Transport annen bruk'!F63","v":0},"km"]
[null,null,null,"2.8.9","Fra tunnelmunning til nærliggende prosjekt",{"$f":"'06. Transport annen bruk'!F88","v":0},"km"]
[null,null,null,"2.8.10","Fra tunnelmunning til andre",{"$f":"'06. Transport annen bruk'!F113","v":0},"km"]
[]
[null,null,null,"2.9","Distanser fra mobilt knuseverk"]
[null,null,null,"2.9.1","Fra mobilt knuseverk til pukkverk",{"$f":"'03. Mobilt knuseverk'!F31","v":0},"km"]
[null,null,null,"2.9.2","Fra mobilt knuseverk til linja",{"$f":"'03. Mobilt knuseverk'!F30","v":0},"km"]
[null,null,null,"2.9.3","Fra mobilt knuseverk til internt deponi",{"$f":"'04. Deponi'!F29","v":0},"km"]
[null,null,null,"2.9.4","Fra mobilt knuseverk til eksternt deponi",{"$f":"'04. Deponi'!F77","v":0},"km"]
[null,null,null,"2.9.5","Fra mobilt knuseverk til betongfabrikk",{"$f":"'06. Transport annen bruk'!F39","v":0},"km"]
[null,null,null,"2.9.6","Fra mobilt knuseverk til asfaltproduksjon",{"$f":"'06. Transport annen bruk'!F64","v":0},"km"]
[null,null,null,"2.9.7","Fra mobilt knuseverk til nærliggende prosjekt",{"$f":"'06. Transport annen bruk'!F89","v":0},"km"]
[null,null,null,"2.9.8","Fra mobilt knuseverk til andre",{"$f":"'06. Transport annen bruk'!F114","v":0},"km"]
[]
[null,null,null,"2.10","Distanser fra pukkverk"]
[null,null,null,"2.10.1","Fra pukkverk til linja",{"$f":"'05. Pukkverk'!F17","v":0},"km"]

{"sheet":"03. Mobilt knuseverk","index":3,"n_rows":116,"n_cols":46,"rows_kept":116,"cut":false,"hidden":false,"merged":[[105,21,105,24],[75,19,75,24],[75,26,75,31],[75,33,75,38],[59,26,59,27],[59,33,59,34],[59,40,59,41],[63,40,63,45],[65,33,65,34],[65,40,65,41],[69,40,69,45],[69,26,69,31],[72,19,72,20],[72,26,72,27],[96,1,117,1],[104,40,104,45],[75,40,75,45],[77,40,77,41],[83,26,83,27],[83,33,83,34],[101,23,101,24],[98,21,98,24],[99,26,99,27],[99,33,99,34],[84,33,84,34],[85,23,85,24],[78,19,78,20],[78,26,78,27],[76,21,76,24],[77,26,77,27],[99,40,99,41],[100,19,100,20],[100,26,100,27],[100,33,100,34],[97,19,97,24],[97,26,97,31],[97,33,97,38],[97,40,97,45],[33,26,33,27],[39,21,39,24],[43,23,43,24],[38,26,38,31],[38,33,38,38],[38,40,38,45],[40,40,40,41],[40,33,40,34],[41,33,41,34],[41,26,41,27],[40,26,40,27],[38,19,38,24],[35,23,35,24],[33,40,33,41],[51,40,51,41],[26,1,54,1],[55,1,95,1],[113,40,113,41],[111,40,111,45],[109,23,109,24],[104,19,104,24],[104,26,104,31],[106,26,106,27],[106,33,106,34],[106,40,106,41],[107,26,107,27],[107,33,107,34],[49,19,49,24],[49,26,49,31],[49,33,49,38],[104,33,104,38],[60,19,60,20],[60,26,60,27],[60,33,60,34],[61,23,61,24],[69,19,69,24],[31,40,31,45],[45,40,45,45],[47,40,47,41],[70,21,70,24],[71,26,71,27],[71,33,71,34],[1,0,1,2],[4,1,25,1],[34,19,34,20],[32,21,32,24],[31,19,31,24],[34,26,34,27],[34,33,34,34],[31,26,31,31],[31,33,31,38],[69,33,69,38],[63,19,63,24],[63,26,63,31],[63,33,63,38],[66,19,66,20],[66,26,66,27],[66,33,66,34],[64,21,64,24],[65,26,65,27],[33,33,33,34],[51,33,51,34],[52,26,52,27],[52,33,52,34],[53,23,53,24],[57,19,57,24],[57,26,57,31],[57,33,57,38],[73,23,73,24],[81,19,81,24],[81,26,81,31],[81,33,81,38],[52,19,52,20],[78,33,78,34],[58,21,58,24],[49,40,49,45],[50,21,50,24],[57,40,57,45],[51,26,51,27],[1,3,1,9],[71,40,71,41],[81,40,81,45],[83,40,83,41],[90,19,90,20],[90,26,90,27],[90,33,90,34],[87,19,87,24],[87,26,87,31],[87,33,87,38],[87,40,87,45],[88,21,88,24],[89,26,89,27],[89,33,89,34],[89,40,89,41],[84,19,84,20],[84,26,84,27],[77,33,77,34],[82,21,82,24],[72,33,72,34]]}
[]
[null,null,null,"03. Mobilt knuseverk"]
[]
[null,null,null,"Nr.","Prosess","Mengde/type","Enhet"]
[null,"Masser"]
[null,null,null,"3.1","Masser til mobilt knuseverk"]
[null,null,null,"3.1.1","Tunnelmunning",{"$f":"'02. Inndata steinmasser'!F35","v":0},{"$f":"'02. Inndata steinmasser'!$F$7","v":"fm3"}]
[null,null,null,"3.1.2","Nærliggende prosjekt",{"$f":"IF(G8=\"fm3\",'02. Inndata steinmasser'!$F$14*'08. Beregningsfaktorer'!$G$66/'08. Beregningsfaktorer'!$G$65,'02. Inndata steinmasser'!$F$14)","v":0},{"$f":"'02. Inndata steinmasser'!$F$7","v":"fm3"}]
[null,null,null,null,null,1]
[null,null,null,"3.2","Restprodukt fra mobilt knuseverk"]
[null,null,null,"3.2.1","Andel restprodukt [%]"]
[null,null,null,"3.2.2","Hvor sendes restprodukt?"]
[]
[null,null,null,"3.3","Fordeling av knuste masser ekskl. restprodukt"]
[null,null,null,"3.3.1","Linja",null,{"$f":"'02. Inndata steinmasser'!$F$7","v":"fm3"}]
[null,null,null,"3.3.2","Deponi",null,{"$f":"'02. Inndata steinmasser'!$F$7","v":"fm3"}]
[null,null,null,"3.3.3","Pukkverk",null,{"$f":"'02. Inndata steinmasser'!$F$7","v":"fm3"}]
[null,null,null,"3.3.4","Annen samfunnsnyttig bruk",null,{"$f":"'02. Inndata steinmasser'!$F$7","v":"fm3"}]
[]
[null,null,null,"3.4","Balanse"]
[null,null,null,"3.4.1","Sum til mobilt knuseverk",{"$f":"F7+F8","v":0},{"$f":"'02. Inndata steinmasser'!$F$7","v":"fm3"}]
[null,null,null,"3.4.2","Sum restprodukt",{"$f":"(F7+F8)*F11","v":0},{"$f":"'02. Inndata steinmasser'!$F$7","v":"fm3"}]
[null,null,null,"3.4.3","Sum fordeling av masser",{"$f":"SUM(F15:F18)","v":0},{"$f":"'02. Inndata steinmasser'!$F$7","v":"fm3"}]
[null,null,null,"3.4.4","Sum fordeling av masser inkl. restprodukt",{"$f":"F23+F22","v":0},{"$f":"'02. Inndata steinmasser'!$F$7","v":"fm3"}]
[null,null,null,"3.4.5","Ufordelte masser",{"$f":"F21-F24","v":0},{"$f":"'02. Inndata steinmasser'!$F$7","v":"fm3"},"Ingen ufordelte masser"]
[]
[null,"Transport"]
[null,null,null,"3.5","Veidistanser mellom mobilt knuseverk og…"]
[null,null,null,"3.5.1","Tunnelmunning",null,"km"]
[null,null,null,"3.5.3","Linja",null,"km"]
[null,null,null,"3.5.4","Pukkverk",null,"km"]
[null,null,null,null,null,null,null,null,null,null,null,null,null,null,null,null,null,null,null,{"$f":"E33&\" - Grunnlagsdata og forbruk\"","v":"Lasting til transport - Grunnlagsdata og forbruk"},null,null,null,null,null,null,{"$f":"E33&\" - Utslipp knyttet til drivstoff/elektrisitet\"","v":"Lasting til transport - Utslipp knyttet til drivstoff/elektrisitet"},null,null,null,null,null,null,{"$f":"E33&\" - Utslipp knyttet til maskin\"","v":"Lasting til transport - Utslipp knyttet til maskin"},null,null,null,null,null,null,{"$f":"E33&\" - Sum utslipp\"","v":"Lasting til transport - Sum utslipp"}]
[null,null,null,"3.6","Lasting til transport",null,null,null,null,null,null,null,null,null,null,null,null,null,null,"Kategori",null,{"$f":"IF(F34='08. Beregningsfaktorer'!$E$43,'08. Beregningsfaktorer'!$E$43,IF(F34='08. Beregningsfaktorer'!$E$44,'09. Utslippsfaktorer'!$P$20,IF(OR(F34='08. Beregningsfaktorer'!$E$45,F34='08. Beregningsfaktorer'!$E$47),'09. Utslippsfaktorer'!$P$21,IF(F34='08. Beregningsfaktorer'!$E$46,'09. Utslippsfaktorer'!$P$21,\"Mangler type lastemaskin\"))))","v":"Mangler type lastemaskin"},null,null,null,null,null,null,"CO2-ekv.","SO2-ekv.","P-ekv.","NMVOC",null,null,null,"CO2-ekv.","SO2-ekv.","P-ekv.","NMVOC",null,null,null,"CO2-ekv.","SO2-ekv.","P-ekv.","NMVOC"]
[null,null,null,"3.6.1","Type lastemaskin",null,null,null,null,null,null,null,null,null,null,null,null,null,null,"Volum stein",null,null,{"$f":"IF(F$7=0,0,IF(G$7=\"fm3\",F$7*'08. Beregningsfaktorer'!$G$65/'08. Beregningsfaktorer'!$G$66,F$7/'08. Beregningsfaktorer'!$G$66))","v":0},"lm3",null,null,{"$f":"\"Utslippsfaktor (kg/\"&W36&\"):\"&\"  \"","v":"Utslippsfaktor (kg/...):  "},null,{"$f":"IF(F34=0,0,IF(F34='08. Beregningsfaktorer'!$E$43,0,(INDEX('09. Utslippsfaktorer'!$P$7:$U$12,MATCH(X36,'09. Utslippsfaktorer'!$P$7:$P$12,0),MATCH(\"kg \"&AC33,'09. Utslippsfaktorer'!$P$7:$U$7,0),1))))","v":0},{"$f":"IF(F34=0,0,IF(F34='08. Beregningsfaktorer'!$E$43,0,(INDEX('09. Utslippsfaktorer'!$P$7:$U$12,MATCH(X36,'09. Utslippsfaktorer'!$P$7:$P$12,0),MATCH(\"kg \"&AD33,'09. Utslippsfaktorer'!$P$7:$U$7,0),1))))","v":0},{"$f":"IF(F34=0,0,IF(F34='08. Beregningsfaktorer'!$E$43,0,(INDEX('09. Utslippsfaktorer'!$P$7:$U$12,MATCH(X36,'09. Utslippsfaktorer'!$P$7:$P$12,0),MATCH(\"kg \"&AE33,'09. Utslippsfaktorer'!$P$7:$U$7,0),1))))","v":0},{"$f":"IF(F34=0,0,IF(F34='08. Beregningsfaktorer'!$E$43,0,(INDEX('09. Utslippsfaktorer'!$P$7:$U$12,MATCH(X36,'09. Utslippsfaktorer'!$P$7:$P$12,0),MATCH(\"kg \"&AF33,'09. Utslippsfaktorer'!$P$7:$U$7,0),1))))","v":0},null,"Utslippsfaktor (kg/m3):  ",null,{"$f":"IF(F34=0,0,IF(F34='08. Beregningsfaktorer'!$E$43,0,(INDEX('09. Utslippsfaktorer'!$P$7:$U$45,MATCH(V33,'09. Utslippsfaktorer'!$P$7:$P$45,0),MATCH(\"kg \"&AJ33,'09. Utslippsfaktorer'!$P$7:$U$7,0),1))))","v":0},{"$f":"IF(F34=0,0,IF(F34='08. Beregningsfaktorer'!$E$43,0,(INDEX('09. Utslippsfaktorer'!$P$7:$U$45,MATCH(V33,'09. Utslippsfaktorer'!$P$7:$P$45,0),MATCH(\"kg \"&AK33,'09. Utslippsfaktorer'!$P$7:$U$7,0),1))))","v":0},{"$f":"IF(F34=0,0,IF(F34='08. Beregningsfaktorer'!$E$43,0,(INDEX('09. Utslippsfaktorer'!$P$7:$U$45,MATCH(V33,'09. Utslippsfaktorer'!$P$7:$P$45,0),MATCH(\"kg \"&AL33,'09. Utslippsfaktorer'!$P$7:$U$7,0),1))))","v":0},{"$f":"IF(F34=0,0,IF(F34='08. Beregningsfaktorer'!$E$43,0,(INDEX('09. Utslippsfaktorer'!$P$7:$U$45,MATCH(V33,'09. Utslippsfaktorer'!$P$7:$P$45,0),MATCH(\"kg \"&AM33,'09. Utslippsfaktorer'!$P$7:$U$7,0),1))))","v":0},null,"Utslipp (kg):  ",null,{"$f":"AC35+AJ35","v":0},{"$f":"AD35+AK35","v":0},{"$f":"AE35+AL35","v":0},{"$f":"AF35+AM35","v":0}]
[null,null,null,null,null,null,null,null,null,null,null,null,null,null,null,null,null,null,null,"Forbruk per m3 stein",null,null,{"$f":"IF(F34=0,0,(INDEX('08. Beregningsfaktorer'!$E$12:$G$89,MATCH(F34,'08. Beregningsfaktorer'!$E$12:$E$89,0),3,1)))","v":0},{"$f":"W36&\"/\"&X34","v":".../lm3"},null,null,"Utslipp (kg):  ",null,{"$f":"V36*AC34","v":0},{"$f":"V36*AD34","v":0},{"$f":"V36*AE34","v":0},{"$f":"V36*AF34","v":0},null,"Utslipp (kg):  ",null,{"$f":"W34*AJ34","v":0},{"$f":"W34*AK34","v":0},{"$f":"W34*AL34","v":0},{"$f":"W34*AM34","v":0}]
[null,null,null,null,null,null,null,"OBS! Retur med nyttelast tas ikke med i totalutslipp. Utslipp kan sees i mellomregningene til høyre.",null,null,null,null,null,null,null,null,null,null,null,"Forbruk",null,{"$f":"W34*W35","v":0},{"$f":"IF(F34='08. Beregningsfaktorer'!$E$44,\"l\",IF(OR(F34='08. Beregningsfaktorer'!$E$45,F34='08. Beregningsfaktorer'!$E$47),\"l\",IF(F34='08. Beregningsfaktorer'!$E$46,\"kWh\",\"...\")))","v":"..."},{"$f":"IF(F34='08. Beregningsfaktorer'!$E$43,\"Ingen løft\",IF(F34='08. Beregningsfaktorer'!$E$44,\"Diesel\",IF(F34='08. Beregningsfaktorer'!$E$45,\"Diesel\",IF(F34='08. Beregningsfaktorer'!$E$47,\"Biodiesel\",IF(F34='08. Beregningsfaktorer'!$E$46,\"Elektrisitet\",\"Mangler type lastemaskin\")))))","v":"Mangler type lastemaskin"}]
[null,null,null,null,null,null,null,"OBS! Mengde transportert ut av prosjektet må også skrives inn for retur med tom last, for å beregne antall returer."]
[null,null,null,"3.7","Transport til mobilt knuseverk","Endre antall kjøretøy:"]
[null,null,null,"3.7.1","Type kjøretøy",null,{"$f":"F40","v":0},null,null,null,null,null,null,null,null,null,null,null,null,{"$f":"E38&\" - Grunnlagsdata og forbruk\"","v":"Transport til mobilt knuseverk - Grunnlagsdata og forbruk"},null,null,null,null,null,null,{"$f":"E38&\" - Utslipp knyttet til drivstoff/elektrisitet\"","v":"Transport til mobilt knuseverk - Utslipp knyttet til drivstoff/elektrisitet"},null,null,null,null,null,null,{"$f":"E38&\" - Utslipp knyttet til kjøretøy og infrastruktur\"","v":"Transport til mobilt knuseverk - Utslipp knyttet til kjøretøy og infrastruktur"},null,null,null,null,null,null,{"$f":"E$38&\" - Sum utslipp\"","v":"Transport til mobilt knuseverk - Sum utslipp"}]
[null,null,{"$f":"IF(F39='08. Beregningsfaktorer'!#REF!,\"J\",0)","v":{"$error":"#REF!"}},"3.7.2","Mengde stein",null,{"$f":"'02. Inndata steinmasser'!$F$7","v":"fm3"},null,null,null,null,null,null,null,null,null,null,null,null,"Kategori",null,{"$f":"IF(OR(F39='08. Beregningsfaktorer'!$B$9,F39='08. Beregningsfaktorer'!$B$10,F39='08. Beregningsfaktorer'!$B$11),'09. Utslippsfaktorer'!$P$14,IF(OR(F39='08. Beregningsfaktorer'!$B$12,F39='08. Beregningsfaktorer'!$B$13),'09. Utslippsfaktorer'!$P$15,IF(OR(F39='08. Beregningsfaktorer'!$B$14,F39='08. Beregningsfaktorer'!$B$15),'09. Utslippsfaktorer'!$P$16,IF(OR(F39='08. Beregningsfaktorer'!$B$24,F39='08. Beregningsfaktorer'!$B$25),'09. Utslippsfaktorer'!$P$18,IF(F39='08. Beregningsfaktorer'!$B$26,'09. Utslippsfaktorer'!$P$18,IF(F39='08. Beregningsfaktorer'!$B$27,'09. Utslippsfaktorer'!$P$18,IF(F39='08. Beregningsfaktorer'!$B$28,'09. Utslippsfaktorer'!$P$19,IF(F39='08. Beregningsfaktorer'!$B$29,'09. Utslippsfaktorer'!$P$19,IF(OR(F39='08. Beregningsfaktorer'!$B$17,F39='08. Beregningsfaktorer'!$B$16,F39='08. Beregningsfaktorer'!$B$18,F39='08. Beregningsfaktorer'!$B$19),'09. Utslippsfaktorer'!$P$16,IF(OR(F39='08. Beregningsfaktorer'!$B$20,F39='08. Beregningsfaktorer'!$B$21,F39='08. Beregningsfaktorer'!$B$22,F39='08. Beregningsfaktorer'!$B$23),'09. Utslippsfaktorer'!$P$14,\"Mangler type kjøretøy\"))))))))))","v":"Mangler type kjøretøy"},null,null,null,null,null,null,"CO2-ekv.","SO2-ekv.","P-ekv.","NMVOC",null,null,null,"CO2-ekv.","SO2-ekv.","P-ekv.","NMVOC",null,null,null,"CO2-ekv.","SO2-ekv.","P-ekv.","NMVOC"]
[null,null,null,"3.7.3","Hvor kommer massene fra?",null,{"$f":"IF(OR(F39='08. Beregningsfaktorer'!$B$28,F39='08. Beregningsfaktorer'!$B$29),0,IF(OR(F42='08. Beregningsfaktorer'!$E$77,F42='08. Beregningsfaktorer'!$E$80),F40*F43,0))","v":0},null,null,null,null,null,null,null,null,null,null,null,null,{"$f":"IF(F42='08. Beregningsfaktorer'!$E$78,\"km\",\"tonn km\")","v":"tonn km"},null,null,{"$f":"IF(F42='08. Beregningsfaktorer'!$E$78,IF(G40=\"tonn\",IF(OR(F39='08. Beregningsfaktorer'!$B$16,F39='08. Beregningsfaktorer'!$B$17),(F40/8.5)*F43,IF(OR(F39='08. Beregningsfaktorer'!$B$18,F39='08. Beregningsfaktorer'!$B$19),(F40/14)*F43,IF(OR(F39='08. Beregningsfaktorer'!$B$20,F39='08. Beregningsfaktorer'!$B$21),(F40/26)*F43,IF(OR(F39='08. Beregningsfaktorer'!$B$22,F39='08. Beregningsfaktorer'!$B$23),(F40/40)*F43,IF(OR(F39='08. Beregningsfaktorer'!$B$24,F39='08. Beregningsfaktorer'!$B$25),(F40/14)*F43,IF(F39='08. Beregningsfaktorer'!$B$26,(F40/14)*F43,IF(F39='08. Beregningsfaktorer'!$B$27,(F40/14)*F43))))))),IF(OR(F39='08. Beregningsfaktorer'!$B$16,F39='08. Beregningsfaktorer'!$B$17),(F40*'08. Beregningsfaktorer'!$G$65/8.5)*F43,IF(OR(F39='08. Beregningsfaktorer'!$B$18,F39='08. Beregningsfaktorer'!$B$19),(F40*'08. Beregningsfaktorer'!$G$65/14)*F43,IF(OR(F39='08. Beregningsfaktorer'!$B$20,F39='08. Beregningsfaktorer'!$B$21),(F40*'08. Beregningsfaktorer'!$G$65/26)*F43,IF(OR(F39='08. Beregningsfaktorer'!$B$22,F39='08. Beregningsfaktorer'!$B$23),(F40*'08. Beregningsfaktorer'!$G$65/40)*F43,IF(OR(F39='08. Beregningsfaktorer'!$B$24,F39='08. Beregningsfaktorer'!$B$25),(F40*'08. Beregningsfaktorer'!$G$65/14)*F43,IF(F39='08. Beregningsfaktorer'!$B$26,(F40*'08. Beregningsfaktorer'!$G$65/14)*F43,IF(F39='08. Beregningsfaktorer'!$B$27,(F40*'08. Beregningsfaktorer'!$G$65/14)*F43)))))))),IF(F40=0,0,IF(F42='08. Beregningsfaktorer'!$E$80,IF(AND(OR(F39='08. Beregningsfaktorer'!$B$28,F39='08. Beregningsfaktorer'!$B$29),G40=\"tonn\"),(F40/1900)*F43,IF(OR(F39='08. Beregningsfaktorer'!$B$28,F39='08. Beregningsfaktorer'!$B$29),(F40*'08. Beregningsfaktorer'!$G$65/1900)*F43,IF(G40=\"tonn\",F40,F40*'08. Beregningsfaktorer'!$G$65)*F43)),IF(G40=\"tonn\",F40*F43,F40*'08. Beregningsfaktorer'!$G$65)*F43)))","v":0},{"$f":"IF(OR(F42='08. Beregningsfaktorer'!$E$78,F39='08. Beregningsfaktorer'!$B$28,F39='08. Beregningsfaktorer'!$B$29),\"km\",\"tkm\")","v":"tkm"},null,null,{"$f":"\"Utslippsfaktor (kg/\"&W44&\"):\"&\"  \"","v":"Utslippsfaktor (kg/l):  "},null,{"$f":"IF(F39=0,0,(INDEX('09. Utslippsfaktorer'!$P$7:$U$13,MATCH(X44,'09. Utslippsfaktorer'!$P$7:$P$13,0),MATCH(\"kg \"&AC40,'09. Utslippsfaktorer'!$P$7:$U$7,0),1)))","v":0},{"$f":"IF(F39=0,0,(INDEX('09. Utslippsfaktorer'!$P$7:$U$13,MATCH(X44,'09. Utslippsfaktorer'!$P$7:$P$13,0),MATCH(\"kg \"&AD40,'09. Utslippsfaktorer'!$P$7:$U$7,0),1)))","v":0},{"$f":"IF(F39=0,0,(INDEX('09. Utslippsfaktorer'!$P$7:$U$13,MATCH(X44,'09. Utslippsfaktorer'!$P$7:$P$13,0),MATCH(\"kg \"&AE40,'09. Utslippsfaktorer'!$P$7:$U$7,0),1)))","v":0},{"$f":"IF(F39=0,0,(INDEX('09. Utslippsfaktorer'!$P$7:$U$13,MATCH(X44,'09. Utslippsfaktorer'!$P$7:$P$13,0),MATCH(\"kg \"&AF40,'09. Utslippsfaktorer'!$P$7:$U$7,0),1)))","v":0},null,{"$f":"\"Utslippsfaktor (kg/\"&X41&\"):\"","v":"Utslippsfaktor (kg/tkm):"},null,{"$f":"IF(F39=0,0,(INDEX('09. Utslippsfaktorer'!$P$7:$U$45,MATCH(V40,'09. Utslippsfaktorer'!$P$7:$P$45,0),MATCH(\"kg \"&AJ40,'09. Utslippsfaktorer'!$P$7:$U$7,0),1)))","v":0},{"$f":"IF(F39=0,0,(INDEX('09. Utslippsfaktorer'!$P$7:$U$45,MATCH(V40,'09. Utslippsfaktorer'!$P$7:$P$45,0),MATCH(\"kg \"&AK40,'09. Utslippsfaktorer'!$P$7:$U$7,0),1)))","v":0},{"$f":"IF(F39=0,0,(INDEX('09. Utslippsfaktorer'!$P$7:$U$45,MATCH(V40,'09. Utslippsfaktorer'!$P$7:$P$45,0),MATCH(\"kg \"&AL40,'09. Utslippsfaktorer'!$P$7:$U$7,0),1)))","v":0},{"$f":"IF(F39=0,0,(INDEX('09. Utslippsfaktorer'!$P$7:$U$45,MATCH(V40,'09. Utslippsfaktorer'!$P$7:$P$45,0),MATCH(\"kg \"&AM40,'09. Utslippsfaktorer'!$P$7:$U$7,0),1)))","v":0},null,"Utslipp (kg):  ",null,{"$f":"IF(F42='08. Beregningsfaktorer'!$E$79,0,AC42+AJ42)","v":0},{"$f":"IF(F42='08. Beregningsfaktorer'!$E$79,0,AD42+AK42)","v":0},{"$f":"IF(F42='08. Beregningsfaktorer'!$E$79,0,AE42+AL42)","v":0},{"$f":"IF(F42='08. Beregningsfaktorer'!$E$79,0,AF42+AM42)","v":0}]
[null,null,null,"3.7.4","Lastekapasitet",null,{"$f":"IF(OR(F39='08. Beregningsfaktorer'!$B$9,F39='08. Beregningsfaktorer'!$B$10,F39='08. Beregningsfaktorer'!$B$12,F39='08. Beregningsfaktorer'!$B$13,F39='08. Beregningsfaktorer'!$B$14,F39='08. Beregningsfaktorer'!$B$15,F39='08. Beregningsfaktorer'!$B$28,F39='08. Beregningsfaktorer'!$B$29),IF(F42='08. Beregningsfaktorer'!$E$80,0,1),IF(F42='08. Beregningsfaktorer'!$E$80,3,0))","v":0},null,null,null,null,null,null,null,null,null,null,null,null,"Korreksjonsfaktor",null,null,{"$f":"IF(F44=0,0,INDEX('08. Beregningsfaktorer'!$E$54:$G$55,MATCH(F44,'08. Beregningsfaktorer'!$E$54:$E$55,0),3))","v":0},null,null,null,"Utslipp (kg):  ",null,{"$f":"IFERROR(V44*AC41,\"Data mangler\")","v":0},{"$f":"IFERROR(V44*AD41,\"Data mangler\")","v":0},{"$f":"IFERROR(V44*AE41,\"Data mangler\")","v":0},{"$f":"IFERROR(V44*AF41,\"Data mangler\")","v":0},null,"Utslipp (kg):  ",null,{"$f":"IF(V40='09. Utslippsfaktorer'!$P$19,IF(G40=\"tonn\",F43*AJ41*F40,F43*AJ41*F40*'08. Beregningsfaktorer'!$G$65),IF(F42='08. Beregningsfaktorer'!$E$78,0,IFERROR(W41*AJ41,\"Data mangler\")))","v":0},{"$f":"IF(V40='09. Utslippsfaktorer'!$P$19,IF(G40=\"tonn\",F43*AK41*F40,F43*AK41*F40*'08. Beregningsfaktorer'!$G$65),IF(F42='08. Beregningsfaktorer'!$E$78,0,IFERROR(W41*AK41,\"Data mangler\")))","v":0},{"$f":"IF(V40='09. Utslippsfaktorer'!$P$19,IF(G40=\"tonn\",F43*AL41*F40,F43*AL41*F40*'08. Beregningsfaktorer'!$G$65),IF(F42='08. Beregningsfaktorer'!$E$78,0,IFERROR(W41*AL41,\"Data mangler\")))","v":0},{"$f":"IF(V40='09. Utslippsfaktorer'!$P$19,IF(G40=\"tonn\",F43*AM41*F40,F43*AM41*F40*'08. Beregningsfaktorer'!$G$65),IF(F42='08. Beregningsfaktorer'!$E$78,0,IFERROR(W41*AM41,\"Data mangler\")))","v":0}]
[null,null,null,"3.7.5","Distanse",null,"km",null,null,null,null,null,null,null,null,null,null,null,null,{"$f":"IF(F42='08. Beregningsfaktorer'!$E$78,\"Forbruk per km\",\"Forbruk per tonn km\")","v":"Forbruk per tonn km"},null,null,{"$f":"IFERROR(IF(F39=0,0,IF(F42='08. Beregningsfaktorer'!$E$78,INDEX('08. Beregningsfaktorer'!$E$30:$G$41,MATCH(F39,'08. Beregningsfaktorer'!$B$30:$B$41,0),3,1),INDEX('08. Beregningsfaktorer'!$E$9:$G$29,MATCH(F39,'08. Beregningsfaktorer'!$B$9:$B$29,0),3,1))),\"Loading..\")","v":0},{"$f":"IFERROR(W44&\"/\"&X41,\"Loading..\")","v":"l/tkm"}]
[null,null,null,"3.7.6","Transport med helning",null,null,null,null,null,null,null,null,null,null,null,null,null,null,"Forbruk",null,{"$f":"IFERROR(W41*W43*W42,\"Data mangler\")","v":0},{"$f":"IFERROR(IF(OR(F39='08. Beregningsfaktorer'!$B$26,F39='08. Beregningsfaktorer'!$B$27),\"kWh\",IF(F39='08. Beregningsfaktorer'!$B$11,\"MJ\",\"l\")),\"Loading..\")","v":"l"},{"$f":"IFERROR(IF(F39='08. Beregningsfaktorer'!$B$11,\"Biogass\",IF(OR(F39='08. Beregningsfaktorer'!$B$26,F39='08. Beregningsfaktorer'!$B$27),\"Elektrisitet\",IF(OR(F39='08. Beregningsfaktorer'!$B$10,F39='08. Beregningsfaktorer'!$B$13,F39='08. Beregningsfaktorer'!$B$15,F39='08. Beregningsfaktorer'!$B$17,F39='08. Beregningsfaktorer'!$B$17,F39='08. Beregningsfaktorer'!$B$19,F39='08. Beregningsfaktorer'!$B$21,F39='08. Beregningsfaktorer'!$B$23,F39='08. Beregningsfaktorer'!$B$25,F39='08. Beregningsfaktorer'!$B$29),\"Biodiesel\",IF(V40=\"Mangler type kjøretøy\",\"Mangler type kjøretøy\",\"Diesel\")))),\"Feil\")","v":"Mangler type kjøretøy"}]
[]
[null,null,null,null,null,null,null,null,null,null,null,null,null,null,null,null,null,null,null,null,null,null,null,null,null,null,null,null,null,null,null,null,null,null,null,null,null,null,null,null,{"$f":"E38&\" - Sum utslipp - Alle kjøretøy\"","v":"Transport til mobilt knuseverk - Sum utslipp - Alle kjøretøy"}]
[null,null,null,null,null,null,null,null,null,null,null,null,null,null,null,null,null,null,null,null,null,null,null,null,null,null,null,null,null,null,null,null,null,null,null,null,null,null,null,null,null,null,"CO2-ekv.","SO2-ekv.","P-ekv.","NMVOC"]
[null,null,null,"3.8","Balanse veitransport",{"$f":"SUMIF(E38:E45,\"Lastekapasitet\",G38:G45)","v":0},null,"Lastutnyttelse korrekt modellert",null,null,null,null,null,null,null,null,null,null,null,null,null,null,null,null,null,null,null,null,null,null,null,null,null,null,null,null,null,null,null,null,"Utslipp (kg):  ",null,{"$f":"SUMIF(D38:D45,$D41,AQ38:AQ45)","v":0},{"$f":"SUMIF(D38:D45,$D41,AR38:AR45)","v":0},{"$f":"SUMIF(D38:D45,$D41,AS38:AS45)","v":0},{"$f":"SUMIF(D38:D45,$D41,AT38:AT45)","v":0}]
[null,null,null,"3.8.1",{"$f":"\"Balanse - \"&E29","v":"Balanse - Tunnelmunning"},{"$f":"((F$7-SUMIF(F38:F45,'08. Beregningsfaktorer'!$B$28,G38:G45)-SUMIF(F38:F45,'08. Beregningsfaktorer'!$B$29,G38:G45))*F$29)-(SUMIF(F38:F45,E$7,G38:G45))","v":0},{"$f":"'02. Inndata steinmasser'!$F$7& \" km\"","v":"fm3 km"},"Transportdistanser og masser stemmer"]
[null,null,null,null,null,null,null,null,null,null,null,null,null,null,null,null,null,null,null,{"$f":"V51&\" - Grunnlagsdata og forbruk - Ikke inkludert i beregninger\"","v":"Lastebil tipp - Grunnlagsdata og forbruk - Ikke inkludert i beregninger"},null,null,null,null,null,null,{"$f":"V51&\" - Utslipp knyttet til drivstoff/elektrisitet\"","v":"Lastebil tipp - Utslipp knyttet til drivstoff/elektrisitet"},null,null,null,null,null,null,null,null,null,null,null,null,null,{"$f":"V51&\" - Sum utslipp\"","v":"Lastebil tipp - Sum utslipp"}]
[null,null,null,null,null,null,null,null,null,null,null,null,null,null,null,null,null,null,null,"Kategori",null,"Lastebil tipp",null,null,null,null,null,null,"CO2-ekv.","SO2-ekv.","P-ekv.","NMVOC",null,null,null,null,null,null,null,null,null,null,"CO2-ekv.","SO2-ekv.","P-ekv.","NMVOC"]
[null,null,null,null,null,null,null,null,null,null,null,null,null,null,null,null,null,null,null,"Volum stein",null,null,null,"m3",{"$f":"IF(F21=0,0,IF(G21=\"m3\",F21*'08. Beregningsfaktorer'!$G$65/'08. Beregningsfaktorer'!$G$66-(SUMIF(C38:C45,\"J\",F38:F45)),(F21-(SUMIF(C38:C45,\"J\",F38:F45)))/'08. Beregningsfaktorer'!$G$66))","v":0},null,{"$f":"\"Utslippsfaktor (kg/\"&W54&\"):\"&\"  \"","v":"Utslippsfaktor (kg/l):  "},null,{"$f":"IF(V51=0,0,(INDEX('09. Utslippsfaktorer'!$P$7:$U$12,MATCH(X54,'09. Utslippsfaktorer'!$P$7:$P$12,0),MATCH(\"kg \"&AC51,'09. Utslippsfaktorer'!$P$7:$U$7,0),1)))","v":3.1476000000000002},{"$f":"IF(V51=0,0,(INDEX('09. Utslippsfaktorer'!$P$7:$U$12,MATCH(X54,'09. Utslippsfaktorer'!$P$7:$P$12,0),MATCH(\"kg \"&AD51,'09. Utslippsfaktorer'!$P$7:$U$7,0),1)))","v":0},{"$f":"IF(V51=0,0,(INDEX('09. Utslippsfaktorer'!$P$7:$U$12,MATCH(X54,'09. Utslippsfaktorer'!$P$7:$P$12,0),MATCH(\"kg \"&AE51,'09. Utslippsfaktorer'!$P$7:$U$7,0),1)))","v":0},{"$f":"IF(V51=0,0,(INDEX('09. Utslippsfaktorer'!$P$7:$U$12,MATCH(X54,'09. Utslippsfaktorer'!$P$7:$P$12,0),MATCH(\"kg \"&AF51,'09. Utslippsfaktorer'!$P$7:$U$7,0),1)))","v":0},null,null,null,null,null,null,null,null,"Utslipp (kg):  ",null,{"$f":"AC53+AJ53","v":0},{"$f":"AD53+AK53","v":0},{"$f":"AE53+AL53","v":0},{"$f":"AF53+AM53","v":0}]
[null,null,null,null,null,null,null,null,null,null,null,null,null,null,null,null,null,null,null,"Forbruk per m3 stein",null,null,{"$f":"IF(V51=0,0,(INDEX('08. Beregningsfaktorer'!$E$12:$G$89,MATCH(V51,'08. Beregningsfaktorer'!$E$12:$E$89,0),3,1)))","v":0.19},{"$f":"W54&\"/\"&X52","v":"l/m3"},null,null,"Utslipp (kg):  ",null,{"$f":"$V54*AC52","v":0},{"$f":"$V54*AD52","v":0},{"$f":"$V54*AE52","v":0},{"$f":"$V54*AF52","v":0}]
[null,null,null,null,null,null,null,null,null,null,null,null,null,null,null,null,null,null,null,"Forbruk",null,{"$f":"W52*W53","v":0},{"$f":"IF(V51='08. Beregningsfaktorer'!$E$50,\"l\",IF(V51='08. Beregningsfaktorer'!$E$51,\"l\",IF(V51='08. Beregningsfaktorer'!$E$52,\"l\",\"...\")))","v":"l"},{"$f":"IF(V51='08. Beregningsfaktorer'!$E$50,\"Diesel\",IF(V51='08. Beregningsfaktorer'!$E$51,\"Diesel\",IF(V51='08. Beregningsfaktorer'!$E$52,\"Diesel\",\"Mangler type kjøretøy\")))","v":"Diesel"}]
[]
[null,"Knuseverk"]
[]
[null,null,null,null,null,null,null,null,null,null,null,null,null,null,null,null,null,null,null,{"$f":"E59&\" - Grunnlagsdata og forbruk\"","v":"Lasting til knusetrinn 1 - Grunnlagsdata og forbruk"},null,null,null,null,null,null,{"$f":"E59&\" - Utslipp knyttet til drivstoff/elektrisitet\"","v":"Lasting til knusetrinn 1 - Utslipp knyttet til drivstoff/elektrisitet"},null,null,null,null,null,null,{"$f":"E59&\" - Utslipp knyttet til maskin\"","v":"Lasting til knusetrinn 1 - Utslipp knyttet til maskin"},null,null,null,null,null,null,{"$f":"E59&\" - Sum utslipp\"","v":"Lasting til knusetrinn 1 - Sum utslipp"}]
[null,null,null,"3.9","Lasting til knusetrinn 1",null,null,null,null,null,null,null,null,null,null,null,null,null,null,"Kategori",null,null,null,null,null,null,null,null,"CO2-ekv.","SO2-ekv.","P-ekv.","NMVOC",null,null,null,"CO2-ekv.","SO2-ekv.","P-ekv.","NMVOC",null,null,null,"CO2-ekv.","SO2-ekv.","P-ekv.","NMVOC"]
[null,null,null,"3.9.1","Type lastemaskin","Inkludert i 3.10",null,null,null,null,null,null,null,null,null,null,null,null,null,"Volum stein",null,null,null,null,null,null,{"$f":"\"Utslippsfaktor (kg/\"&W62&\"):\"&\"  \"","v":"Utslippsfaktor (kg/):  "},null,null,null,null,null,null,"Utslippsfaktor (kg/m3):  ",null,null,null,null,null,null,"Utslipp (kg):  ",null,{"$f":"AC61+AJ61","v":0},{"$f":"AD61+AK61","v":0},{"$f":"AE61+AL61","v":0},{"$f":"AF61+AM61","v":0}]
[null,null,null,null,null,null,null,null,null,null,null,null,null,null,null,null,null,null,null,"Forbruk per m3 stein",null,null,null,null,null,null,"Utslipp (kg):  ",null,null,null,null,null,null,"Utslipp (kg):  "]
[null,null,null,null,null,null,null,"Legg inn knusemaskiner for de knusetrinnene som skal benyttes.",null,null,null,null,null,null,null,null,null,null,null,"Forbruk"]
[]
[null,null,null,null,null,null,null,null,null,null,null,null,null,null,null,null,null,null,null,{"$f":"E65&\" - Grunnlagsdata og forbruk\"","v":"Mobilt knuseverk knusetrinn 1 - Grunnlagsdata og forbruk"},null,null,null,null,null,null,{"$f":"E65&\" - Utslipp\"","v":"Mobilt knuseverk knusetrinn 1 - Utslipp"},null,null,null,null,null,null,null,null,null,null,null,null,null,{"$f":"E65&\" - Sum utslipp\"","v":"Mobilt knuseverk knusetrinn 1 - Sum utslipp"}]
[null,null,null,"3.10","Mobilt knuseverk knusetrinn 1",null,null,null,null,null,null,null,null,null,null,null,null,null,null,"Kategori",null,{"$f":"IF(F66='08. Beregningsfaktorer'!$E$82,'09. Utslippsfaktorer'!$P$26,IF(F66='08. Beregningsfaktorer'!$E$83,'09. Utslippsfaktorer'!$P$27,\"Mangler type knuseverk\"))","v":"Mangler type knuseverk"},null,null,null,null,null,null,"CO2-ekv.","SO2-ekv.","P-ekv.","NMVOC",null,null,null,null,null,null,null,null,null,null,"CO2-ekv.","SO2-ekv.","P-ekv.","NMVOC"]
[null,null,null,"3.10.1","Type knuseverk",null,null,null,null,null,null,null,null,null,null,null,null,null,null,"Mengde stein",null,null,{"$f":"IF(F$66=0,0,IF(G$21=\"tonn\",F$21,F$21*'08. Beregningsfaktorer'!G$65))","v":0},"tonn",null,null,{"$f":"\"Utslippsfaktor (kg/\"&X66&\"):\"&\"  \"","v":"Utslippsfaktor (kg/tonn):  "},null,{"$f":"IF($F66=0,0,(INDEX('09. Utslippsfaktorer'!$P$7:$U$45,MATCH($V65,'09. Utslippsfaktorer'!$P$7:$P$45,0),MATCH(\"kg \"&AC65,'09. Utslippsfaktorer'!$P$7:$U$7,0),1)))","v":0},{"$f":"IF($F66=0,0,(INDEX('09. Utslippsfaktorer'!$P$7:$U$45,MATCH($V65,'09. Utslippsfaktorer'!$P$7:$P$45,0),MATCH(\"kg \"&AD65,'09. Utslippsfaktorer'!$P$7:$U$7,0),1)))","v":0},{"$f":"IF($F66=0,0,(INDEX('09. Utslippsfaktorer'!$P$7:$U$45,MATCH($V65,'09. Utslippsfaktorer'!$P$7:$P$45,0),MATCH(\"kg \"&AE65,'09. Utslippsfaktorer'!$P$7:$U$7,0),1)))","v":0},{"$f":"IF($F66=0,0,(INDEX('09. Utslippsfaktorer'!$P$7:$U$45,MATCH($V65,'09. Utslippsfaktorer'!$P$7:$P$45,0),MATCH(\"kg \"&AF65,'09. Utslippsfaktorer'!$P$7:$U$7,0),1)))","v":0},null,null,null,null,null,null,null,null,"Utslipp (kg):  ",null,{"$f":"AC67","v":0},{"$f":"AD67","v":0},{"$f":"AE67","v":0},{"$f":"AF67","v":0}]
[null,null,null,null,null,null,null,null,null,null,null,null,null,null,null,null,null,null,null,"Kapasitet",null,null,{"$f":"IF(F66=0,0,IF(F66='08. Beregningsfaktorer'!$E$82,0,(INDEX('08. Beregningsfaktorer'!$E$82:$G$83,MATCH(F66,'08. Beregningsfaktorer'!$E$82:$E$83,0),3,1))))","v":0},{"$f":"X66&\"/\"&W68","v":"tonn/h"},null,null,"Utslipp (kg):  ",null,{"$f":"AC66*W66","v":0},{"$f":"AD66*W66","v":0},{"$f":"AE66*W66","v":0},{"$f":"AF66*W66","v":0}]
[null,null,null,null,null,null,null,null,null,null,null,null,null,null,null,null,null,null,null,"Forbruk",null,{"$f":"W66*W67","v":0},"h",{"$f":"IF(F66='08. Beregningsfaktorer'!$E$82,\"Standard beregning\",F66)","v":0}]
[]
[null,null,null,null,null,null,null,null,null,null,null,null,null,null,null,null,null,null,null,{"$f":"E71&\" - Grunnlagsdata og forbruk\"","v":"Lasting til knusetrinn 2 - Grunnlagsdata og forbruk"},null,null,null,null,null,null,{"$f":"E71&\" - Utslipp knyttet til drivstoff/elektrisitet\"","v":"Lasting til knusetrinn 2 - Utslipp knyttet til drivstoff/elektrisitet"},null,null,null,null,null,null,{"$f":"E71&\" - Utslipp knyttet til maskin\"","v":"Lasting til knusetrinn 2 - Utslipp knyttet til maskin"},null,null,null,null,null,null,{"$f":"E71&\" - Sum utslipp\"","v":"Lasting til knusetrinn 2 - Sum utslipp"}]
[null,null,null,"3.11","Lasting til knusetrinn 2",null,null,null,null,null,null,null,null,null,null,null,null,null,null,"Kategori",null,null,null,null,null,null,null,null,"CO2-ekv.","SO2-ekv.","P-ekv.","NMVOC",null,null,null,"CO2-ekv.","SO2-ekv.","P-ekv.","NMVOC",null,null,null,"CO2-ekv.","SO2-ekv.","P-ekv.","NMVOC"]
[null,null,null,"3.11.1","Type lastemaskin","Inkludert i 3.12",null,null,null,null,null,null,null,null,null,null,null,null,null,"Volum stein",null,null,null,null,null,null,{"$f":"\"Utslippsfaktor (kg/\"&W74&\"):\"&\"  \"","v":"Utslippsfaktor (kg/):  "},null,null,null,null,null,null,"Utslippsfaktor (kg/m3):  ",null,null,null,null,null,null,"Utslipp (kg):  ",null,{"$f":"AC73+AJ73","v":0},{"$f":"AD73+AK73","v":0},{"$f":"AE73+AL73","v":0},{"$f":"AF73+AM73","v":0}]
[null,null,null,null,null,null,null,null,null,null,null,null,null,null,null,null,null,null,null,"Forbruk per m3 stein",null,null,null,null,null,null,"Utslipp (kg):  ",null,null,null,null,null,null,"Utslipp (kg):  "]
[null,null,null,null,null,null,null,null,null,null,null,null,null,null,null,null,null,null,null,"Forbruk"]
[]
[null,null,null,null,null,null,null,null,null,null,null,null,null,null,null,null,null,null,null,{"$f":"E77&\" - Grunnlagsdata og forbruk\"","v":"Mobilt knuseverk knusetrinn 2 - Grunnlagsdata og forbruk"},null,null,null,null,null,null,{"$f":"E77&\" - Utslipp\"","v":"Mobilt knuseverk knusetrinn 2 - Utslipp"},null,null,null,null,null,null,null,null,null,null,null,null,null,{"$f":"E77&\" - Sum utslipp\"","v":"Mobilt knuseverk knusetrinn 2 - Sum utslipp"}]
[null,null,null,"3.12","Mobilt knuseverk knusetrinn 2",null,null,null,null,null,null,null,null,null,null,null,null,null,null,"Kategori",null,{"$f":"IF(F78='08. Beregningsfaktorer'!$E$85,'09. Utslippsfaktorer'!$P$28,IF(F78='08. Beregningsfaktorer'!$E$86,'09. Utslippsfaktorer'!$P$29,\"Mangler type knuseverk\"))","v":"Mangler type knuseverk"},null,null,null,null,null,null,"CO2-ekv.","SO2-ekv.","P-ekv.","NMVOC",null,null,null,null,null,null,null,null,null,null,"CO2-ekv.","SO2-ekv.","P-ekv.","NMVOC"]
[null,null,null,"3.12.1","Type knuseverk",null,null,null,null,null,null,null,null,null,null,null,null,null,null,"Mengde stein",null,null,{"$f":"IF(F$78=0,0,IF(G$21=\"tonn\",F$21,F$21*'08. Beregningsfaktorer'!G$65))","v":0},"tonn",null,null,{"$f":"\"Utslippsfaktor (kg/\"&W80&\"):\"&\"  \"","v":"Utslippsfaktor (kg/h):  "},null,{"$f":"IF($F78=0,0,(INDEX('09. Utslippsfaktorer'!$P$7:$U$45,MATCH($V77,'09. Utslippsfaktorer'!$P$7:$P$45,0),MATCH(\"kg \"&AC77,'09. Utslippsfaktorer'!$P$7:$U$7,0),1)))","v":0},{"$f":"IF($F78=0,0,(INDEX('09. Utslippsfaktorer'!$P$7:$U$45,MATCH($V77,'09. Utslippsfaktorer'!$P$7:$P$45,0),MATCH(\"kg \"&AD77,'09. Utslippsfaktorer'!$P$7:$U$7,0),1)))","v":0},{"$f":"IF($F78=0,0,(INDEX('09. Utslippsfaktorer'!$P$7:$U$45,MATCH($V77,'09. Utslippsfaktorer'!$P$7:$P$45,0),MATCH(\"kg \"&AE77,'09. Utslippsfaktorer'!$P$7:$U$7,0),1)))","v":0},{"$f":"IF($F78=0,0,(INDEX('09. Utslippsfaktorer'!$P$7:$U$45,MATCH($V77,'09. Utslippsfaktorer'!$P$7:$P$45,0),MATCH(\"kg \"&AF77,'09. Utslippsfaktorer'!$P$7:$U$7,0),1)))","v":0},null,null,null,null,null,null,null,null,"Utslipp (kg):  ",null,{"$f":"AC79","v":0},{"$f":"AD79+AK79","v":0},{"$f":"AE79+AL79","v":0},{"$f":"AF79+AM79","v":0}]
[null,null,null,null,null,null,null,null,null,null,null,null,null,null,null,null,null,null,null,"Kapasitet",null,null,{"$f":"IF(F78=0,0,IF(F78='08. Beregningsfaktorer'!E85,0,(INDEX('08. Beregningsfaktorer'!E$85:G$86,MATCH(F78,'08. Beregningsfaktorer'!E$85:E$86,0),3,1))))","v":0},{"$f":"X78&\"/\"&W80","v":"tonn/h"},null,null,"Utslipp (kg):  ",null,{"$f":"AC78*W78","v":0},{"$f":"AD78*W78","v":0},{"$f":"AE78*W78","v":0},{"$f":"AF78*W78","v":0}]
[null,null,null,null,null,null,null,null,null,null,null,null,null,null,null,null,null,null,null,"Forbruk",null,{"$f":"W78*W79","v":0},"h",{"$f":"IF(F78='08. Beregningsfaktorer'!E85,\"Standard beregning\",F78)","v":0}]
[]
[null,null,null,null,null,null,null,null,null,null,null,null,null,null,null,null,null,null,null,{"$f":"E83&\" - Grunnlagsdata og forbruk\"","v":"Lasting til knusetrinn 3 - Grunnlagsdata og forbruk"},null,null,null,null,null,null,{"$f":"E83&\" - Utslipp knyttet til drivstoff/elektrisitet\"","v":"Lasting til knusetrinn 3 - Utslipp knyttet til drivstoff/elektrisitet"},null,null,null,null,null,null,{"$f":"E83&\" - Utslipp knyttet til maskin\"","v":"Lasting til knusetrinn 3 - Utslipp knyttet til maskin"},null,null,null,null,null,null,{"$f":"E83&\" - Sum utslipp\"","v":"Lasting til knusetrinn 3 - Sum utslipp"}]
[null,null,null,"3.13","Lasting til knusetrinn 3",null,null,null,null,null,null,null,null,null,null,null,null,null,null,"Kategori",null,null,null,null,null,null,null,null,"CO2-ekv.","SO2-ekv.","P-ekv.","NMVOC",null,null,null,"CO2-ekv.","SO2-ekv.","P-ekv.","NMVOC",null,null,null,"CO2-ekv.","SO2-ekv.","P-ekv.","NMVOC"]
[null,null,null,"3.13.1","Type lastemaskin","Inkludert i 3.13",null,null,null,null,null,null,null,null,null,null,null,null,null,"Volum stein",null,null,null,null,null,null,{"$f":"\"Utslippsfaktor (kg/\"&W86&\"):\"&\"  \"","v":"Utslippsfaktor (kg/):  "},null,null,null,null,null,null,"Utslippsfaktor (kg/m3):  ",null,null,null,null,null,null,"Utslipp (kg):  ",null,{"$f":"AC85+AJ85","v":0},{"$f":"AD85+AK85","v":0},{"$f":"AE85+AL85","v":0},{"$f":"AF85+AM85","v":0}]
[null,null,null,null,null,null,null,null,null,null,null,null,null,null,null,null,null,null,null,"Forbruk per m3 stein",null,null,null,null,null,null,"Utslipp (kg):  ",null,null,null,null,null,null,"Utslipp (kg):  "]
[null,null,null,null,null,null,null,null,null,null,null,null,null,null,null,null,null,null,null,"Forbruk"]
[]
[null,null,null,null,null,null,null,null,null,null,null,null,null,null,null,null,null,null,null,{"$f":"E89&\" - Grunnlagsdata og forbruk\"","v":"Mobilt knuseverk knusetrinn 3 - Grunnlagsdata og forbruk"},null,null,null,null,null,null,{"$f":"E89&\" - Utslipp\"","v":"Mobilt knuseverk knusetrinn 3 - Utslipp"},null,null,null,null,null,null,null,null,null,null,null,null,null,{"$f":"E89&\" - Sum utslipp\"","v":"Mobilt knuseverk knusetrinn 3 - Sum utslipp"}]
[null,null,null,"3.14","Mobilt knuseverk knusetrinn 3",null,null,null,null,null,null,null,null,null,null,null,null,null,null,"Kategori",null,{"$f":"IF(F90='08. Beregningsfaktorer'!$E$88,'09. Utslippsfaktorer'!$P$30,IF(F90='08. Beregningsfaktorer'!$E$89,'09. Utslippsfaktorer'!$P$31,\"Mangler type knuseverk\"))","v":"Mangler type knuseverk"},null,null,null,null,null,null,"CO2-ekv.","SO2-ekv.","P-ekv.","NMVOC",null,null,null,null,null,null,null,null,null,null,"CO2-ekv.","SO2-ekv.","P-ekv.","NMVOC"]
[null,null,null,"3.14.1","Type knuseverk",null,null,null,null,null,null,null,null,null,null,null,null,null,null,"Mengde stein",null,null,{"$f":"IF(F$90=0,0,IF(G$21=\"tonn\",F$21,F$21*'08. Beregningsfaktorer'!G$65))","v":0},"tonn",null,null,{"$f":"\"Utslippsfaktor (kg/\"&W92&\"):\"&\"  \"","v":"Utslippsfaktor (kg/h):  "},null,{"$f":"IF($F90=0,0,(INDEX('09. Utslippsfaktorer'!$P$7:$U$45,MATCH($V89,'09. Utslippsfaktorer'!$P$7:$P$45,0),MATCH(\"kg \"&AC89,'09. Utslippsfaktorer'!$P$7:$U$7,0),1)))","v":0},{"$f":"IF($F90=0,0,(INDEX('09. Utslippsfaktorer'!$P$7:$U$45,MATCH($V89,'09. Utslippsfaktorer'!$P$7:$P$45,0),MATCH(\"kg \"&AD89,'09. Utslippsfaktorer'!$P$7:$U$7,0),1)))","v":0},{"$f":"IF($F90=0,0,(INDEX('09. Utslippsfaktorer'!$P$7:$U$45,MATCH($V89,'09. Utslippsfaktorer'!$P$7:$P$45,0),MATCH(\"kg \"&AE89,'09. Utslippsfaktorer'!$P$7:$U$7,0),1)))","v":0},{"$f":"IF($F90=0,0,(INDEX('09. Utslippsfaktorer'!$P$7:$U$45,MATCH($V89,'09. Utslippsfaktorer'!$P$7:$P$45,0),MATCH(\"kg \"&AF89,'09. Utslippsfaktorer'!$P$7:$U$7,0),1)))","v":0},null,null,null,null,null,null,null,null,"Utslipp (kg):  ",null,{"$f":"AC91","v":0},{"$f":"AD91+AK91","v":0},{"$f":"AE91+AL91","v":0},{"$f":"AF91+AM91","v":0}]
[null,null,null,null,null,null,null,null,null,null,null,null,null,null,null,null,null,null,null,"Kapasitet",null,null,{"$f":"IF(F90=0,0,IF(F90='08. Beregningsfaktorer'!E88,0,(INDEX('08. Beregningsfaktorer'!E$88:G$89,MATCH(F90,'08. Beregningsfaktorer'!E$88:E$89,0),3,1))))","v":0},{"$f":"X90&\"/\"&W92","v":"tonn/h"},null,null,"Utslipp (kg):  ",null,{"$f":"AC90*W90","v":0},{"$f":"AD90*W90","v":0},{"$f":"AE90*W90","v":0},{"$f":"AF90*W90","v":0}]
[null,null,null,null,null,null,null,null,null,null,null,null,null,null,null,null,null,null,null,"Forbruk",null,{"$f":"W90*W91","v":0},"h",{"$f":"IF(F90='08. Beregningsfaktorer'!E88,\"Standard beregning\",F90)","v":0}]
[]
[]
[]
[]
[null,"Transport"]
[null,null,null,null,null,null,null,null,null,null,null,null,null,null,null,null,null,null,null,{"$f":"E99&\" - Grunnlagsdata og forbruk\"","v":"Lasting til transport - Grunnlagsdata og forbruk"},null,null,null,null,null,null,{"$f":"E99&\" - Utslipp knyttet til drivstoff/elektrisitet\"","v":"Lasting til transport - Utslipp knyttet til drivstoff/elektrisitet"},null,null,null,null,null,null,{"$f":"E99&\" - Utslipp knyttet til maskin\"","v":"Lasting til transport - Utslipp knyttet til maskin"},null,null,null,null,null,null,{"$f":"E99&\" - Sum utslipp\"","v":"Lasting til transport - Sum utslipp"}]
[null,null,null,"3.15","Lasting til transport",null,null,null,null,null,null,null,null,null,null,null,null,null,null,"Kategori",null,{"$f":"IF(F100='08. Beregningsfaktorer'!$E$43,'08. Beregningsfaktorer'!$E$43,IF(F100='08. Beregningsfaktorer'!$E$44,'09. Utslippsfaktorer'!$P$20,IF(OR(F100='08. Beregningsfaktorer'!$E$45,F100='08. Beregningsfaktorer'!$E$47),'09. Utslippsfaktorer'!$P$21,IF(F100='08. Beregningsfaktorer'!$E$46,'09. Utslippsfaktorer'!$P$21,\"Mangler type lastemaskin\"))))","v":"Mangler type lastemaskin"},null,null,null,null,null,null,"CO2-ekv.","SO2-ekv.","P-ekv.","NMVOC",null,null,null,"CO2-ekv.","SO2-ekv.","P-ekv.","NMVOC",null,null,null,"CO2-ekv.","SO2-ekv.","P-ekv.","NMVOC"]
[null,null,null,"3.15.1","Type lastemaskin",null,null,null,null,null,null,null,null,null,null,null,null,null,null,"Volum stein",null,null,{"$f":"IF((F$15+F$17)=0,0,IF(G$15=\"fm3\",(F$15+F$17)*'08. Beregningsfaktorer'!$G$65,(F$15+F$17)/'08. Beregningsfaktorer'!$G$65))","v":0},"lm3",null,null,{"$f":"\"Utslippsfaktor (kg/\"&W102&\"):\"&\"  \"","v":"Utslippsfaktor (kg/...):  "},null,{"$f":"IF(F100=0,0,IF(F100='08. Beregningsfaktorer'!$E$43,0,(INDEX('09. Utslippsfaktorer'!$P$7:$U$12,MATCH(X102,'09. Utslippsfaktorer'!$P$7:$P$12,0),MATCH(\"kg \"&AC99,'09. Utslippsfaktorer'!$P$7:$U$7,0),1))))","v":0},{"$f":"IF(F100=0,0,IF(F100='08. Beregningsfaktorer'!$E$43,0,(INDEX('09. Utslippsfaktorer'!$P$7:$U$12,MATCH(X102,'09. Utslippsfaktorer'!$P$7:$P$12,0),MATCH(\"kg \"&AD99,'09. Utslippsfaktorer'!$P$7:$U$7,0),1))))","v":0},{"$f":"IF(F100=0,0,IF(F100='08. Beregningsfaktorer'!$E$43,0,(INDEX('09. Utslippsfaktorer'!$P$7:$U$12,MATCH(X102,'09. Utslippsfaktorer'!$P$7:$P$12,0),MATCH(\"kg \"&AE99,'09. Utslippsfaktorer'!$P$7:$U$7,0),1))))","v":0},{"$f":"IF(F100=0,0,IF(F100='08. Beregningsfaktorer'!$E$43,0,(INDEX('09. Utslippsfaktorer'!$P$7:$U$12,MATCH(X102,'09. Utslippsfaktorer'!$P$7:$P$12,0),MATCH(\"kg \"&AF99,'09. Utslippsfaktorer'!$P$7:$U$7,0),1))))","v":0},null,"Utslippsfaktor (kg/m3):  ",null,{"$f":"IF(F100=0,0,IF(F100='08. Beregningsfaktorer'!$E$43,0,(INDEX('09. Utslippsfaktorer'!$P$7:$U$45,MATCH(V99,'09. Utslippsfaktorer'!$P$7:$P$45,0),MATCH(\"kg \"&AJ99,'09. Utslippsfaktorer'!$P$7:$U$7,0),1))))","v":0},{"$f":"IF(F100=0,0,IF(F100='08. Beregningsfaktorer'!$E$43,0,(INDEX('09. Utslippsfaktorer'!$P$7:$U$45,MATCH(V99,'09. Utslippsfaktorer'!$P$7:$P$45,0),MATCH(\"kg \"&AK99,'09. Utslippsfaktorer'!$P$7:$U$7,0),1))))","v":0},{"$f":"IF(F100=0,0,IF(F100='08. Beregningsfaktorer'!$E$43,0,(INDEX('09. Utslippsfaktorer'!$P$7:$U$45,MATCH(V99,'09. Utslippsfaktorer'!$P$7:$P$45,0),MATCH(\"kg \"&AL99,'09. Utslippsfaktorer'!$P$7:$U$7,0),1))))","v":0},{"$f":"IF(F100=0,0,IF(F100='08. Beregningsfaktorer'!$E$43,0,(INDEX('09. Utslippsfaktorer'!$P$7:$U$45,MATCH(V99,'09. Utslippsfaktorer'!$P$7:$P$45,0),MATCH(\"kg \"&AM99,'09. Utslippsfaktorer'!$P$7:$U$7,0),1))))","v":0},null,"Utslipp (kg):  ",null,{"$f":"AC101+AJ101","v":0},{"$f":"AD101+AK101","v":0},{"$f":"AE101+AL101","v":0},{"$f":"AF101+AM101","v":0}]
[null,null,null,null,null,null,null,null,null,null,null,null,null,null,null,null,null,null,null,"Forbruk per m3 stein",null,null,{"$f":"IF(F100=0,0,(INDEX('08. Beregningsfaktorer'!$E$12:$G$89,MATCH(F100,'08. Beregningsfaktorer'!$E$12:$E$89,0),3,1)))","v":0},{"$f":"W102&\"/\"&X100","v":".../lm3"},null,null,"Utslipp (kg):  ",null,{"$f":"V102*AC100","v":0},{"$f":"V102*AD100","v":0},{"$f":"V102*AE100","v":0},{"$f":"V102*AF100","v":0},null,"Utslipp (kg):  ",null,{"$f":"W100*AJ100","v":0},{"$f":"W100*AK100","v":0},{"$f":"W100*AL100","v":0},{"$f":"W100*AM100","v":0}]
[null,null,null,null,null,null,null,null,null,null,null,null,null,null,null,null,null,null,null,"Forbruk",null,{"$f":"W100*W101","v":0},{"$f":"IF(F100='08. Beregningsfaktorer'!$E$44,\"l\",IF(OR(F100='08. Beregningsfaktorer'!$E$45,F100='08. Beregningsfaktorer'!$E$47),\"l\",IF(F100='08. Beregningsfaktorer'!$E$46,\"kWh\",\"...\")))","v":"..."},{"$f":"IF(F100='08. Beregningsfaktorer'!$E$43,\"Ingen løft\",IF(F100='08. Beregningsfaktorer'!$E$44,\"Diesel\",IF(F100='08. Beregningsfaktorer'!$E$45,\"Diesel\",IF(F100='08. Beregningsfaktorer'!$E$47,\"Biodiesel\",IF(F100='08. Beregningsfaktorer'!$E$46,\"Elektrisitet\",\"Mangler type lastemaskin\")))))","v":"Mangler type lastemaskin"}]
[]
[null,null,null,"3.16","Transport fra mobilt knuseverk","Endre antall kjøretøy:"]
[null,null,null,"3.16.1","Type kjøretøy",null,{"$f":"F106","v":0},null,null,null,null,null,null,null,null,null,null,null,null,{"$f":"E104&\" - Grunnlagsdata og forbruk\"","v":"Transport fra mobilt knuseverk - Grunnlagsdata og forbruk"},null,null,null,null,null,null,{"$f":"E104&\" - Utslipp knyttet til drivstoff/elektrisitet\"","v":"Transport fra mobilt knuseverk - Utslipp knyttet til drivstoff/elektrisitet"},null,null,null,null,null,null,{"$f":"E104&\" - Utslipp knyttet til kjøretøy og infrastruktur\"","v":"Transport fra mobilt knuseverk - Utslipp knyttet til kjøretøy og infrastruktur"},null,null,null,null,null,null,{"$f":"E$104&\" - Sum utslipp\"","v":"Transport fra mobilt knuseverk - Sum utslipp"}]
[null,null,{"$f":"IF(F105='08. Beregningsfaktorer'!#REF!,\"J\",0)","v":{"$error":"#REF!"}},"3.16.2","Mengde stein",null,{"$f":"'02. Inndata steinmasser'!$F$7","v":"fm3"},null,null,null,null,null,null,null,null,null,null,null,null,"Kategori",null,{"$f":"IF(OR(F105='08. Beregningsfaktorer'!$B$9,F105='08. Beregningsfaktorer'!$B$10,F105='08. Beregningsfaktorer'!$B$11),'09. Utslippsfaktorer'!$P$14,IF(OR(F105='08. Beregningsfaktorer'!$B$12,F105='08. Beregningsfaktorer'!$B$13),'09. Utslippsfaktorer'!$P$15,IF(OR(F105='08. Beregningsfaktorer'!$B$14,F105='08. Beregningsfaktorer'!$B$15),'09. Utslippsfaktorer'!$P$16,IF(OR(F105='08. Beregningsfaktorer'!$B$24,F105='08. Beregningsfaktorer'!$B$25),'09. Utslippsfaktorer'!$P$18,IF(F105='08. Beregningsfaktorer'!$B$26,'09. Utslippsfaktorer'!$P$18,IF(F105='08. Beregningsfaktorer'!$B$27,'09. Utslippsfaktorer'!$P$18,IF(F105='08. Beregningsfaktorer'!$B$28,'09. Utslippsfaktorer'!$P$19,IF(F105='08. Beregningsfaktorer'!$B$29,'09. Utslippsfaktorer'!$P$19,IF(OR(F105='08. Beregningsfaktorer'!$B$17,F105='08. Beregningsfaktorer'!$B$16,F105='08. Beregningsfaktorer'!$B$18,F105='08. Beregningsfaktorer'!$B$19),'09. Utslippsfaktorer'!$P$16,IF(OR(F105='08. Beregningsfaktorer'!$B$20,F105='08. Beregningsfaktorer'!$B$21,F105='08. Beregningsfaktorer'!$B$22,F105='08. Beregningsfaktorer'!$B$23),'09. Utslippsfaktorer'!$P$14,\"Mangler type kjøretøy\"))))))))))","v":"Mangler type kjøretøy"},null,null,null,null,null,null,"CO2-ekv.","SO2-ekv.","P-ekv.","NMVOC",null,null,null,"CO2-ekv.","SO2-ekv.","P-ekv.","NMVOC",null,null,null,"CO2-ekv.","SO2-ekv.","P-ekv.","NMVOC"]
[null,null,null,"3.16.3","Hvor skal massene?",null,{"$f":"IF(OR(F105='08. Beregningsfaktorer'!$B$28,F105='08. Beregningsfaktorer'!$B$29),0,IF(OR(F108='08. Beregningsfaktorer'!$E$77,F108='08. Beregningsfaktorer'!$E$80),F106*F109,0))","v":0},null,null,null,null,null,null,null,null,null,null,null,null,{"$f":"IF(F108='08. Beregningsfaktorer'!$E$78,\"km\",\"tonn km\")","v":"tonn km"},null,null,{"$f":"IF(F108='08. Beregningsfaktorer'!$E$78,IF(G106=\"tonn\",IF(OR(F105='08. Beregningsfaktorer'!$B$16,F105='08. Beregningsfaktorer'!$B$17),(F106/8.5)*F109,IF(OR(F105='08. Beregningsfaktorer'!$B$18,F105='08. Beregningsfaktorer'!$B$19),(F106/14)*F109,IF(OR(F105='08. Beregningsfaktorer'!$B$20,F105='08. Beregningsfaktorer'!$B$21),(F106/26)*F109,IF(OR(F105='08. Beregningsfaktorer'!$B$22,F105='08. Beregningsfaktorer'!$B$23),(F106/40)*F109,IF(OR(F105='08. Beregningsfaktorer'!$B$24,F105='08. Beregningsfaktorer'!$B$25),(F106/14)*F109,IF(F105='08. Beregningsfaktorer'!$B$26,(F106/14)*F109,IF(F105='08. Beregningsfaktorer'!$B$27,(F106/14)*F109))))))),IF(OR(F105='08. Beregningsfaktorer'!$B$16,F105='08. Beregningsfaktorer'!$B$17),(F106*'08. Beregningsfaktorer'!$G$65/8.5)*F109,IF(OR(F105='08. Beregningsfaktorer'!$B$18,F105='08. Beregningsfaktorer'!$B$19),(F106*'08. Beregningsfaktorer'!$G$65/14)*F109,IF(OR(F105='08. Beregningsfaktorer'!$B$20,F105='08. Beregningsfaktorer'!$B$21),(F106*'08. Beregningsfaktorer'!$G$65/26)*F109,IF(OR(F105='08. Beregningsfaktorer'!$B$22,F105='08. Beregningsfaktorer'!$B$23),(F106*'08. Beregningsfaktorer'!$G$65/40)*F109,IF(OR(F105='08. Beregningsfaktorer'!$B$24,F105='08. Beregningsfaktorer'!$B$25),(F106*'08. Beregningsfaktorer'!$G$65/14)*F109,IF(F105='08. Beregningsfaktorer'!$B$26,(F106*'08. Beregningsfaktorer'!$G$65/14)*F109,IF(F105='08. Beregningsfaktorer'!$B$27,(F106*'08. Beregningsfaktorer'!$G$65/14)*F109)))))))),IF(F106=0,0,IF(F108='08. Beregningsfaktorer'!$E$80,IF(AND(OR(F105='08. Beregningsfaktorer'!$B$28,F105='08. Beregningsfaktorer'!$B$29),G106=\"tonn\"),(F106/1900)*F109,IF(OR(F105='08. Beregningsfaktorer'!$B$28,F105='08. Beregningsfaktorer'!$B$29),(F106*'08. Beregningsfaktorer'!$G$65/1900)*F109,IF(G106=\"tonn\",F106,F106*'08. Beregningsfaktorer'!$G$65)*F109)),IF(G106=\"tonn\",F106*F109,F106*'08. Beregningsfaktorer'!$G$65)*F109)))","v":0},{"$f":"IF(OR(F108='08. Beregningsfaktorer'!$E$78,F105='08. Beregningsfaktorer'!$B$28,F105='08. Beregningsfaktorer'!$B$29),\"km\",\"tkm\")","v":"tkm"},null,null,{"$f":"\"Utslippsfaktor (kg/\"&W110&\"):\"&\"  \"","v":"Utslippsfaktor (kg/l):  "},null,{"$f":"IF(F105=0,0,(INDEX('09. Utslippsfaktorer'!$P$7:$U$13,MATCH(X110,'09. Utslippsfaktorer'!$P$7:$P$13,0),MATCH(\"kg \"&AC106,'09. Utslippsfaktorer'!$P$7:$U$7,0),1)))","v":0},{"$f":"IF(F105=0,0,(INDEX('09. Utslippsfaktorer'!$P$7:$U$13,MATCH(X110,'09. Utslippsfaktorer'!$P$7:$P$13,0),MATCH(\"kg \"&AD106,'09. Utslippsfaktorer'!$P$7:$U$7,0),1)))","v":0},{"$f":"IF(F105=0,0,(INDEX('09. Utslippsfaktorer'!$P$7:$U$13,MATCH(X110,'09. Utslippsfaktorer'!$P$7:$P$13,0),MATCH(\"kg \"&AE106,'09. Utslippsfaktorer'!$P$7:$U$7,0),1)))","v":0},{"$f":"IF(F105=0,0,(INDEX('09. Utslippsfaktorer'!$P$7:$U$13,MATCH(X110,'09. Utslippsfaktorer'!$P$7:$P$13,0),MATCH(\"kg \"&AF106,'09. Utslippsfaktorer'!$P$7:$U$7,0),1)))","v":0},null,{"$f":"\"Utslippsfaktor (kg/\"&X107&\"):\"","v":"Utslippsfaktor (kg/tkm):"},null,{"$f":"IF(F105=0,0,(INDEX('09. Utslippsfaktorer'!$P$7:$U$45,MATCH(V106,'09. Utslippsfaktorer'!$P$7:$P$45,0),MATCH(\"kg \"&AJ106,'09. Utslippsfaktorer'!$P$7:$U$7,0),1)))","v":0},{"$f":"IF(F105=0,0,(INDEX('09. Utslippsfaktorer'!$P$7:$U$45,MATCH(V106,'09. Utslippsfaktorer'!$P$7:$P$45,0),MATCH(\"kg \"&AK106,'09. Utslippsfaktorer'!$P$7:$U$7,0),1)))","v":0},{"$f":"IF(F105=0,0,(INDEX('09. Utslippsfaktorer'!$P$7:$U$45,MATCH(V106,'09. Utslippsfaktorer'!$P$7:$P$45,0),MATCH(\"kg \"&AL106,'09. Utslippsfaktorer'!$P$7:$U$7,0),1)))","v":0},{"$f":"IF(F105=0,0,(INDEX('09. Utslippsfaktorer'!$P$7:$U$45,MATCH(V106,'09. Utslippsfaktorer'!$P$7:$P$45,0),MATCH(\"kg \"&AM106,'09. Utslippsfaktorer'!$P$7:$U$7,0),1)))","v":0},null,"Utslipp (kg):  ",null,{"$f":"IF(F108='08. Beregningsfaktorer'!$E$79,0,AC108+AJ108)","v":0},{"$f":"IF(F108='08. Beregningsfaktorer'!$E$79,0,AD108+AK108)","v":0},{"$f":"IF(F108='08. Beregningsfaktorer'!$E$79,0,AE108+AL108)","v":0},{"$f":"IF(F108='08. Beregningsfaktorer'!$E$79,0,AF108+AM108)","v":0}]
[null,null,null,"3.16.4","Lastekapasitet",null,{"$f":"IF(OR(F105='08. Beregningsfaktorer'!$B$9,F105='08. Beregningsfaktorer'!$B$10,F105='08. Beregningsfaktorer'!$B$12,F105='08. Beregningsfaktorer'!$B$13,F105='08. Beregningsfaktorer'!$B$14,F105='08. Beregningsfaktorer'!$B$15,F105='08. Beregningsfaktorer'!$B$28,F105='08. Beregningsfaktorer'!$B$29),IF(F108='08. Beregningsfaktorer'!$E$80,0,1),IF(F108='08. Beregningsfaktorer'!$E$80,3,0))","v":0},null,null,null,null,null,null,null,null,null,null,null,null,"Korreksjonsfaktor",null,null,{"$f":"IF(F110=0,0,INDEX('08. Beregningsfaktorer'!$E$54:$G$55,MATCH(F110,'08. Beregningsfaktorer'!$E$54:$E$55,0),3))","v":0},null,null,null,"Utslipp (kg):  ",null,{"$f":"IFERROR(V110*AC107,\"Data mangler\")","v":0},{"$f":"IFERROR(V110*AD107,\"Data mangler\")","v":0},{"$f":"IFERROR(V110*AE107,\"Data mangler\")","v":0},{"$f":"IFERROR(V110*AF107,\"Data mangler\")","v":0},null,"Utslipp (kg):  ",null,{"$f":"IF(V106='09. Utslippsfaktorer'!$P$19,IF(G106=\"tonn\",F109*AJ107*F106,F109*AJ107*F106*'08. Beregningsfaktorer'!$G$65),IF(F108='08. Beregningsfaktorer'!$E$78,0,IFERROR(W107*AJ107,\"Data mangler\")))","v":0},{"$f":"IF(V106='09. Utslippsfaktorer'!$P$19,IF(G106=\"tonn\",F109*AK107*F106,F109*AK107*F106*'08. Beregningsfaktorer'!$G$65),IF(F108='08. Beregningsfaktorer'!$E$78,0,IFERROR(W107*AK107,\"Data mangler\")))","v":0},{"$f":"IF(V106='09. Utslippsfaktorer'!$P$19,IF(G106=\"tonn\",F109*AL107*F106,F109*AL107*F106*'08. Beregningsfaktorer'!$G$65),IF(F108='08. Beregningsfaktorer'!$E$78,0,IFERROR(W107*AL107,\"Data mangler\")))","v":0},{"$f":"IF(V106='09. Utslippsfaktorer'!$P$19,IF(G106=\"tonn\",F109*AM107*F106,F109*AM107*F106*'08. Beregningsfaktorer'!$G$65),IF(F108='08. Beregningsfaktorer'!$E$78,0,IFERROR(W107*AM107,\"Data mangler\")))","v":0}]
[null,null,null,"3.16.5","Distanse",null,"km",null,null,null,null,null,null,null,null,null,null,null,null,{"$f":"IF(F108='08. Beregningsfaktorer'!$E$78,\"Forbruk per km\",\"Forbruk per tonn km\")","v":"Forbruk per tonn km"},null,null,{"$f":"IFERROR(IF(F105=0,0,IF(F108='08. Beregningsfaktorer'!$E$78,INDEX('08. Beregningsfaktorer'!$E$30:$G$41,MATCH(F105,'08. Beregningsfaktorer'!$B$30:$B$41,0),3,1),INDEX('08. Beregningsfaktorer'!$E$9:$G$29,MATCH(F105,'08. Beregningsfaktorer'!$B$9:$B$29,0),3,1))),\"Loading..\")","v":0},{"$f":"IFERROR(W110&\"/\"&X107,\"Loading..\")","v":"l/tkm"}]
[null,null,null,"3.16.6","Transport med helning",null,null,null,null,null,null,null,null,null,null,null,null,null,null,"Forbruk",null,{"$f":"IFERROR(W107*W109*W108,\"Data mangler\")","v":0},{"$f":"IFERROR(IF(OR(F105='08. Beregningsfaktorer'!$B$26,F105='08. Beregningsfaktorer'!$B$27),\"kWh\",IF(F105='08. Beregningsfaktorer'!$B$11,\"MJ\",\"l\")),\"Loading..\")","v":"l"},{"$f":"IFERROR(IF(F105='08. Beregningsfaktorer'!$B$11,\"Biogass\",IF(OR(F105='08. Beregningsfaktorer'!$B$26,F105='08. Beregningsfaktorer'!$B$27),\"Elektrisitet\",IF(OR(F105='08. Beregningsfaktorer'!$B$10,F105='08. Beregningsfaktorer'!$B$13,F105='08. Beregningsfaktorer'!$B$15,F105='08. Beregningsfaktorer'!$B$17,F105='08. Beregningsfaktorer'!$B$17,F105='08. Beregningsfaktorer'!$B$19,F105='08. Beregningsfaktorer'!$B$21,F105='08. Beregningsfaktorer'!$B$23,F105='08. Beregningsfaktorer'!$B$25,F105='08. Beregningsfaktorer'!$B$29),\"Biodiesel\",IF(V106=\"Mangler type kjøretøy\",\"Mangler type kjøretøy\",\"Diesel\")))),\"Feil\")","v":"Mangler type kjøretøy"}]
[]
[null,null,null,null,null,null,null,null,null,null,null,null,null,null,null,null,null,null,null,null,null,null,null,null,null,null,null,null,null,null,null,null,null,null,null,null,null,null,null,null,{"$f":"E104&\" - Sum utslipp - Alle kjøretøy\"","v":"Transport fra mobilt knuseverk - Sum utslipp - Alle kjøretøy"}]
[null,null,null,null,null,null,null,null,null,null,null,null,null,null,null,null,null,null,null,null,null,null,null,null,null,null,null,null,null,null,null,null,null,null,null,null,null,null,null,null,null,null,"CO2-ekv.","SO2-ekv.","P-ekv.","NMVOC"]
[null,null,null,"3.17","Balanse veitransport",{"$f":"SUMIF(E104:E111,\"Lastekapasitet\",G104:G111)","v":0},null,"Lastutnyttelse korrekt modellert",null,null,null,null,null,null,null,null,null,null,null,null,null,null,null,null,null,null,null,null,null,null,null,null,null,null,null,null,null,null,null,null,"Utslipp (kg):  ",null,{"$f":"SUMIF(D104:D111,$D107,AQ104:AQ111)","v":0},{"$f":"SUMIF(D104:D111,$D107,AR104:AR111)","v":0},{"$f":"SUMIF(D104:D111,$D107,AS104:AS111)","v":0},{"$f":"SUMIF(D104:D111,$D107,AT104:AT111)","v":0}]
[null,null,null,"3.17.1",{"$f":"\"Balanse - \"&E30","v":"Balanse - Linja"},{"$f":"((F$15-SUMIF(F38:F45,'08. Beregningsfaktorer'!$B$28,G38:G45)-SUMIF(F38:F45,'08. Beregningsfaktorer'!$B$29,G38:G45))*F$30)-((SUMIF(F104:F111,E$15,G104:G111)))","v":0},{"$f":"'02. Inndata steinmasser'!$F$7& \" km\"","v":"fm3 km"},"Transportdistanser og masser stemmer"]
[null,null,null,"3.17.2",{"$f":"\"Balanse - \"&E31","v":"Balanse - Pukkverk"},{"$f":"((F$17-SUMIF(F38:F45,'08. Beregningsfaktorer'!$B$28,G38:G45)-SUMIF(F38:F45,'08. Beregningsfaktorer'!$B$29,G38:G45))*F$31)-(SUMIF(F104:F111,E$17,G104:G111))","v":0},{"$f":"'02. Inndata steinmasser'!$F$7& \" km\"","v":"fm3 km"},"Transportdistanser og masser stemmer"]

{"sheet":"04. Deponi","index":4,"n_rows":109,"n_cols":46,"rows_kept":109,"cut":false,"hidden":false,"merged":[[85,19,85,24],[85,26,85,31],[85,33,85,38],[85,41,85,45],[1,3,1,14],[54,1,67,1],[4,1,24,1],[1,0,1,2],[25,1,53,1],[43,40,43,45],[45,40,45,41],[29,19,29,24],[29,26,29,31],[29,33,29,38],[29,40,29,45],[30,21,30,24],[31,26,31,27],[31,33,31,34],[31,40,31,41],[32,19,32,20],[32,26,32,27],[32,33,32,34],[33,23,33,24],[41,23,41,24],[38,26,38,27],[38,33,38,34],[38,40,38,41],[39,26,39,27],[39,33,39,34],[36,19,36,24],[36,26,36,31],[36,33,36,38],[36,40,36,45],[37,21,37,24],[52,23,52,24],[50,26,50,27],[50,33,50,34],[50,40,50,41],[51,19,51,20],[51,26,51,27],[51,33,51,34],[48,19,48,24],[48,26,48,31],[48,33,48,38],[48,40,48,45],[49,21,49,24],[95,26,95,27],[95,33,95,34],[97,23,97,24],[92,40,92,45],[93,21,93,24],[94,26,94,27],[94,33,94,34],[94,40,94,41],[68,1,109,1],[80,19,80,24],[80,26,80,31],[80,33,80,38],[80,40,80,45],[86,21,86,24],[87,26,87,27],[87,33,87,34],[87,40,87,41],[88,19,88,20],[88,26,88,27],[88,33,88,34],[89,23,89,24],[92,19,92,24],[92,26,92,31],[92,33,92,38],[108,23,108,24],[105,21,105,24],[106,26,106,27],[106,33,106,34],[106,40,106,41],[107,19,107,20],[107,26,107,27],[107,33,107,34],[99,40,99,45],[101,40,101,41],[104,19,104,24],[104,26,104,31],[104,33,104,38],[104,40,104,45],[57,26,57,27],[57,33,57,34],[57,40,57,41],[58,19,58,20],[58,26,58,27],[58,33,58,34],[55,19,55,24],[55,26,55,31],[55,33,55,38],[55,40,55,45],[56,21,56,24],[65,23,65,24],[62,21,62,24],[63,26,63,27],[63,33,63,34],[63,40,63,41],[64,19,64,20],[64,26,64,27],[64,33,64,34],[59,23,59,24],[61,19,61,24],[61,26,61,31],[61,33,61,38],[61,40,61,45]]}
[]
[null,null,null,"04. Deponi"]
[]
[null,null,null,"Nr.","Prosess","Mengde/type","Enhet"]
[null,"Masser"]
[null,null,null,"4.1","Masser til deponi"]
[null,null,null,"4.1.1","Tunnelmunning",{"$f":"'02. Inndata steinmasser'!F36","v":0},{"$f":"'02. Inndata steinmasser'!$F$7","v":"fm3"}]
[null,null,null,"4.1.2","Mobilt knuseverk",{"$f":"'03. Mobilt knuseverk'!F16","v":0},{"$f":"'02. Inndata steinmasser'!$F$7","v":"fm3"}]
[null,null,null,"4.1.3","Restprodukt mobilt knuseverk",{"$f":"IF('03. Mobilt knuseverk'!F12=\"Deponi\",'03. Mobilt knuseverk'!F22,0)","v":0},{"$f":"'02. Inndata steinmasser'!$F$7","v":"fm3"}]
[]
[null,null,null,"4.2","Fordeling av masser til internt deponi"]
[null,null,null,"4.2.1","Tunnelmunning",null,{"$f":"'02. Inndata steinmasser'!$F$7","v":"fm3"}]
[null,null,null,"4.2.2","Mobilt knuseverk",null,{"$f":"'02. Inndata steinmasser'!$F$7","v":"fm3"}]
[null,null,null,"4.2.3","Restprodukt mobilt knuseverk",null,{"$f":"'02. Inndata steinmasser'!$F$7","v":"fm3"}]
[]
[null,null,null,"4.3","Fordeling av masser til eksternt deponi"]
[null,null,null,"4.3.1","Tunnelmunning",null,{"$f":"'02. Inndata steinmasser'!$F$7","v":"fm3"}]
[null,null,null,"4.3.2","Mobilt knuseverk",null,{"$f":"'02. Inndata steinmasser'!$F$7","v":"fm3"}]
[null,null,null,"4.3.3","Restprodukt mobilt knuseverk",null,{"$f":"'02. Inndata steinmasser'!$F$7","v":"fm3"}]
[]
[null,null,null,"4.4","Balanse"]
[null,null,null,"4.4.1","Sum til deponi",{"$f":"F7+F8+F9","v":0},{"$f":"'02. Inndata steinmasser'!$F$7","v":"fm3"}]
[null,null,null,"4.4.2","Sum fordelte masser",{"$f":"SUM(F12:F14)+SUM(F17:F19)","v":0},{"$f":"'02. Inndata steinmasser'!$F$7","v":"fm3"}]
[null,null,null,"4.4.3","Ufordelte masser",{"$f":"F22-F23","v":0},{"$f":"'02. Inndata steinmasser'!$F$7","v":"fm3"},"Ingen ufordelte masser"]
[]
[null,"Transport til internt deponi"]
[null,null,null,"4.5","Veidistanser mellom internt deponi og…"]
[null,null,null,"4.5.1","Tunnelmunning",null,"km"]
[null,null,null,"4.5.2","Mobilt knuseverk",null,"km"]
[null,null,null,null,null,null,null,null,null,null,null,null,null,null,null,null,null,null,null,{"$f":"E31&\" - Grunnlagsdata og forbruk\"","v":"Lasting til transport - Grunnlagsdata og forbruk"},null,null,null,null,null,null,{"$f":"E31&\" - Utslipp knyttet til drivstoff/elektrisitet\"","v":"Lasting til transport - Utslipp knyttet til drivstoff/elektrisitet"},null,null,null,null,null,null,{"$f":"E31&\" - Utslipp knyttet til maskin\"","v":"Lasting til transport - Utslipp knyttet til maskin"},null,null,null,null,null,null,{"$f":"E31&\" - Sum utslipp\"","v":"Lasting til transport - Sum utslipp"}]
[null,null,null,"4.6","Lasting til transport",null,null,null,null,null,null,null,null,null,null,null,null,null,null,"Kategori",null,{"$f":"IF(F32='08. Beregningsfaktorer'!$E$43,'08. Beregningsfaktorer'!$E$43,IF(F32='08. Beregningsfaktorer'!$E$44,'09. Utslippsfaktorer'!$P$20,IF(OR(F32='08. Beregningsfaktorer'!$E$45,F32='08. Beregningsfaktorer'!$E$47),'09. Utslippsfaktorer'!$P$21,IF(F32='08. Beregningsfaktorer'!$E$46,'09. Utslippsfaktorer'!$P$21,\"Mangler type lastemaskin\"))))","v":"Mangler type lastemaskin"},null,null,null,null,null,null,"CO2-ekv.","SO2-ekv.","P-ekv.","NMVOC",null,null,null,"CO2-ekv.","SO2-ekv.","P-ekv.","NMVOC",null,null,null,"CO2-ekv.","SO2-ekv.","P-ekv.","NMVOC"]
[null,null,null,"4.6.1","Type lastemaskin",null,null,null,null,null,null,null,null,null,null,null,null,null,null,"Volum stein",null,null,{"$f":"IF((F$12+F$13+F$14)=0,0,IF(G$12=\"fm3\",(F$12+F$13+F$14)*'08. Beregningsfaktorer'!$G$65,(F$12+F$13+F$14)/'08. Beregningsfaktorer'!$G$65))","v":0},"lm3",null,null,{"$f":"\"Utslippsfaktor (kg/\"&W34&\"):\"&\"  \"","v":"Utslippsfaktor (kg/...):  "},null,{"$f":"IF(F32=0,0,IF(F32='08. Beregningsfaktorer'!$E$43,0,(INDEX('09. Utslippsfaktorer'!$P$7:$U$12,MATCH(X34,'09. Utslippsfaktorer'!$P$7:$P$12,0),MATCH(\"kg \"&AC31,'09. Utslippsfaktorer'!$P$7:$U$7,0),1))))","v":0},{"$f":"IF(F32=0,0,IF(F32='08. Beregningsfaktorer'!$E$43,0,(INDEX('09. Utslippsfaktorer'!$P$7:$U$12,MATCH(X34,'09. Utslippsfaktorer'!$P$7:$P$12,0),MATCH(\"kg \"&AD31,'09. Utslippsfaktorer'!$P$7:$U$7,0),1))))","v":0},{"$f":"IF(F32=0,0,IF(F32='08. Beregningsfaktorer'!$E$43,0,(INDEX('09. Utslippsfaktorer'!$P$7:$U$12,MATCH(X34,'09. Utslippsfaktorer'!$P$7:$P$12,0),MATCH(\"kg \"&AE31,'09. Utslippsfaktorer'!$P$7:$U$7,0),1))))","v":0},{"$f":"IF(F32=0,0,IF(F32='08. Beregningsfaktorer'!$E$43,0,(INDEX('09. Utslippsfaktorer'!$P$7:$U$12,MATCH(X34,'09. Utslippsfaktorer'!$P$7:$P$12,0),MATCH(\"kg \"&AF31,'09. Utslippsfaktorer'!$P$7:$U$7,0),1))))","v":0},null,"Utslippsfaktor (kg/m3):  ",null,{"$f":"IF(F32=0,0,IF(F32='08. Beregningsfaktorer'!$E$43,0,(INDEX('09. Utslippsfaktorer'!$P$7:$U$45,MATCH(V31,'09. Utslippsfaktorer'!$P$7:$P$45,0),MATCH(\"kg \"&AJ31,'09. Utslippsfaktorer'!$P$7:$U$7,0),1))))","v":0},{"$f":"IF(F32=0,0,IF(F32='08. Beregningsfaktorer'!$E$43,0,(INDEX('09. Utslippsfaktorer'!$P$7:$U$45,MATCH(V31,'09. Utslippsfaktorer'!$P$7:$P$45,0),MATCH(\"kg \"&AK31,'09. Utslippsfaktorer'!$P$7:$U$7,0),1))))","v":0},{"$f":"IF(F32=0,0,IF(F32='08. Beregningsfaktorer'!$E$43,0,(INDEX('09. Utslippsfaktorer'!$P$7:$U$45,MATCH(V31,'09. Utslippsfaktorer'!$P$7:$P$45,0),MATCH(\"kg \"&AL31,'09. Utslippsfaktorer'!$P$7:$U$7,0),1))))","v":0},{"$f":"IF(F32=0,0,IF(F32='08. Beregningsfaktorer'!$E$43,0,(INDEX('09. Utslippsfaktorer'!$P$7:$U$45,MATCH(V31,'09. Utslippsfaktorer'!$P$7:$P$45,0),MATCH(\"kg \"&AM31,'09. Utslippsfaktorer'!$P$7:$U$7,0),1))))","v":0},null,"Utslipp (kg):  ",null,{"$f":"AC33+AJ33","v":0},{"$f":"AD33+AK33","v":0},{"$f":"AE33+AL33","v":0},{"$f":"AF33+AM33","v":0}]
[null,null,null,null,null,null,null,null,null,null,null,null,null,null,null,null,null,null,null,"Forbruk per m3 stein",null,null,{"$f":"IF(F32=0,0,(INDEX('08. Beregningsfaktorer'!$E$12:$G$89,MATCH(F32,'08. Beregningsfaktorer'!$E$12:$E$89,0),3,1)))","v":0},{"$f":"W34&\"/\"&X32","v":".../lm3"},null,null,"Utslipp (kg):  ",null,{"$f":"V34*AC32","v":0},{"$f":"V34*AD32","v":0},{"$f":"V34*AE32","v":0},{"$f":"V34*AF32","v":0},null,"Utslipp (kg):  ",null,{"$f":"W32*AJ32","v":0},{"$f":"W32*AK32","v":0},{"$f":"W32*AL32","v":0},{"$f":"W32*AM32","v":0}]
[null,null,null,null,null,null,null,"OBS! Retur med nyttelast tas ikke med i totalutslipp. Utslipp kan sees i mellomregningene til høyre.",null,null,null,null,null,null,null,null,null,null,null,"Forbruk",null,{"$f":"W32*W33","v":0},{"$f":"IF(F32='08. Beregningsfaktorer'!$E$44,\"l\",IF(OR(F32='08. Beregningsfaktorer'!$E$45,F32='08. Beregningsfaktorer'!$E$47),\"l\",IF(F32='08. Beregningsfaktorer'!$E$46,\"kWh\",\"...\")))","v":"..."},{"$f":"IF(F32='08. Beregningsfaktorer'!$E$43,\"Ingen løft\",IF(F32='08. Beregningsfaktorer'!$E$44,\"Diesel\",IF(F32='08. Beregningsfaktorer'!$E$45,\"Diesel\",IF(F32='08. Beregningsfaktorer'!$E$47,\"Biodiesel\",IF(F32='08. Beregningsfaktorer'!$E$46,\"Elektrisitet\",\"Mangler type lastemaskin\")))))","v":"Mangler type lastemaskin"}]
[null,null,null,null,null,null,null,"OBS! Mengde transportert ut av prosjektet må også skrives inn for retur med tom last, for å beregne antall returer."]
[null,null,null,"4.7","Transport til internt deponi","Endre antall kjøretøy:"]
[null,null,null,"4.7.1","Type kjøretøy",null,{"$f":"F38","v":0},null,null,null,null,null,null,null,null,null,null,null,null,{"$f":"E36&\" - Grunnlagsdata og forbruk\"","v":"Transport til internt deponi - Grunnlagsdata og forbruk"},null,null,null,null,null,null,{"$f":"E36&\" - Utslipp knyttet til drivstoff/elektrisitet\"","v":"Transport til internt deponi - Utslipp knyttet til drivstoff/elektrisitet"},null,null,null,null,null,null,{"$f":"E36&\" - Utslipp knyttet til kjøretøy og infrastruktur\"","v":"Transport til internt deponi - Utslipp knyttet til kjøretøy og infrastruktur"},null,null,null,null,null,null,{"$f":"E$36&\" - Sum utslipp\"","v":"Transport til internt deponi - Sum utslipp"}]
[null,null,{"$f":"IF(F37='08. Beregningsfaktorer'!#REF!,\"J\",0)","v":{"$error":"#REF!"}},"4.7.2","Mengde stein",null,{"$f":"'02. Inndata steinmasser'!$F$7","v":"fm3"},null,null,null,null,null,null,null,null,null,null,null,null,"Kategori",null,{"$f":"IF(OR(F37='08. Beregningsfaktorer'!$B$9,F37='08. Beregningsfaktorer'!$B$10,F37='08. Beregningsfaktorer'!$B$11),'09. Utslippsfaktorer'!$P$14,IF(OR(F37='08. Beregningsfaktorer'!$B$12,F37='08. Beregningsfaktorer'!$B$13),'09. Utslippsfaktorer'!$P$15,IF(OR(F37='08. Beregningsfaktorer'!$B$14,F37='08. Beregningsfaktorer'!$B$15),'09. Utslippsfaktorer'!$P$16,IF(OR(F37='08. Beregningsfaktorer'!$B$24,F37='08. Beregningsfaktorer'!$B$25),'09. Utslippsfaktorer'!$P$18,IF(F37='08. Beregningsfaktorer'!$B$26,'09. Utslippsfaktorer'!$P$18,IF(F37='08. Beregningsfaktorer'!$B$27,'09. Utslippsfaktorer'!$P$18,IF(F37='08. Beregningsfaktorer'!$B$28,'09. Utslippsfaktorer'!$P$19,IF(F37='08. Beregningsfaktorer'!$B$29,'09. Utslippsfaktorer'!$P$19,IF(OR(F37='08. Beregningsfaktorer'!$B$17,F37='08. Beregningsfaktorer'!$B$16,F37='08. Beregningsfaktorer'!$B$18,F37='08. Beregningsfaktorer'!$B$19),'09. Utslippsfaktorer'!$P$16,IF(OR(F37='08. Beregningsfaktorer'!$B$20,F37='08. Beregningsfaktorer'!$B$21,F37='08. Beregningsfaktorer'!$B$22,F37='08. Beregningsfaktorer'!$B$23),'09. Utslippsfaktorer'!$P$14,\"Mangler type kjøretøy\"))))))))))","v":"Mangler type kjøretøy"},null,null,null,null,null,null,"CO2-ekv.","SO2-ekv.","P-ekv.","NMVOC",null,null,null,"CO2-ekv.","SO2-ekv.","P-ekv.","NMVOC",null,null,null,"CO2-ekv.","SO2-ekv.","P-ekv.","NMVOC"]
[null,null,null,"4.7.3","Hvor kommer massene fra?",null,{"$f":"IF(OR(F37='08. Beregningsfaktorer'!$B$28,F37='08. Beregningsfaktorer'!$B$29),0,IF(OR(F40='08. Beregningsfaktorer'!$E$77,F40='08. Beregningsfaktorer'!$E$80),F38*F41,0))","v":0},null,null,null,null,null,null,null,null,null,null,null,null,{"$f":"IF(F40='08. Beregningsfaktorer'!$E$78,\"km\",\"tonn km\")","v":"tonn km"},null,null,{"$f":"IF(F40='08. Beregningsfaktorer'!$E$78,IF(G38=\"tonn\",IF(OR(F37='08. Beregningsfaktorer'!$B$16,F37='08. Beregningsfaktorer'!$B$17),(F38/8.5)*F41,IF(OR(F37='08. Beregningsfaktorer'!$B$18,F37='08. Beregningsfaktorer'!$B$19),(F38/14)*F41,IF(OR(F37='08. Beregningsfaktorer'!$B$20,F37='08. Beregningsfaktorer'!$B$21),(F38/26)*F41,IF(OR(F37='08. Beregningsfaktorer'!$B$22,F37='08. Beregningsfaktorer'!$B$23),(F38/40)*F41,IF(OR(F37='08. Beregningsfaktorer'!$B$24,F37='08. Beregningsfaktorer'!$B$25),(F38/14)*F41,IF(F37='08. Beregningsfaktorer'!$B$26,(F38/14)*F41,IF(F37='08. Beregningsfaktorer'!$B$27,(F38/14)*F41))))))),IF(OR(F37='08. Beregningsfaktorer'!$B$16,F37='08. Beregningsfaktorer'!$B$17),(F38*'08. Beregningsfaktorer'!$G$65/8.5)*F41,IF(OR(F37='08. Beregningsfaktorer'!$B$18,F37='08. Beregningsfaktorer'!$B$19),(F38*'08. Beregningsfaktorer'!$G$65/14)*F41,IF(OR(F37='08. Beregningsfaktorer'!$B$20,F37='08. Beregningsfaktorer'!$B$21),(F38*'08. Beregningsfaktorer'!$G$65/26)*F41,IF(OR(F37='08. Beregningsfaktorer'!$B$22,F37='08. Beregningsfaktorer'!$B$23),(F38*'08. Beregningsfaktorer'!$G$65/40)*F41,IF(OR(F37='08. Beregningsfaktorer'!$B$24,F37='08. Beregningsfaktorer'!$B$25),(F38*'08. Beregningsfaktorer'!$G$65/14)*F41,IF(F37='08. Beregningsfaktorer'!$B$26,(F38*'08. Beregningsfaktorer'!$G$65/14)*F41,IF(F37='08. Beregningsfaktorer'!$B$27,(F38*'08. Beregningsfaktorer'!$G$65/14)*F41)))))))),IF(F38=0,0,IF(F40='08. Beregningsfaktorer'!$E$80,IF(AND(OR(F37='08. Beregningsfaktorer'!$B$28,F37='08. Beregningsfaktorer'!$B$29),G38=\"tonn\"),(F38/1900)*F41,IF(OR(F37='08. Beregningsfaktorer'!$B$28,F37='08. Beregningsfaktorer'!$B$29),(F38*'08. Beregningsfaktorer'!$G$65/1900)*F41,IF(G38=\"tonn\",F38,F38*'08. Beregningsfaktorer'!$G$65)*F41)),IF(G38=\"tonn\",F38*F41,F38*'08. Beregningsfaktorer'!$G$65)*F41)))","v":0},{"$f":"IF(OR(F40='08. Beregningsfaktorer'!$E$78,F37='08. Beregningsfaktorer'!$B$28,F37='08. Beregningsfaktorer'!$B$29),\"km\",\"tkm\")","v":"tkm"},null,null,{"$f":"\"Utslippsfaktor (kg/\"&W42&\"):\"&\"  \"","v":"Utslippsfaktor (kg/l):  "},null,{"$f":"IF(F37=0,0,(INDEX('09. Utslippsfaktorer'!$P$7:$U$13,MATCH(X42,'09. Utslippsfaktorer'!$P$7:$P$13,0),MATCH(\"kg \"&AC38,'09. Utslippsfaktorer'!$P$7:$U$7,0),1)))","v":0},{"$f":"IF(F37=0,0,(INDEX('09. Utslippsfaktorer'!$P$7:$U$13,MATCH(X42,'09. Utslippsfaktorer'!$P$7:$P$13,0),MATCH(\"kg \"&AD38,'09. Utslippsfaktorer'!$P$7:$U$7,0),1)))","v":0},{"$f":"IF(F37=0,0,(INDEX('09. Utslippsfaktorer'!$P$7:$U$13,MATCH(X42,'09. Utslippsfaktorer'!$P$7:$P$13,0),MATCH(\"kg \"&AE38,'09. Utslippsfaktorer'!$P$7:$U$7,0),1)))","v":0},{"$f":"IF(F37=0,0,(INDEX('09. Utslippsfaktorer'!$P$7:$U$13,MATCH(X42,'09. Utslippsfaktorer'!$P$7:$P$13,0),MATCH(\"kg \"&AF38,'09. Utslippsfaktorer'!$P$7:$U$7,0),1)))","v":0},null,{"$f":"\"Utslippsfaktor (kg/\"&X39&\"):\"","v":"Utslippsfaktor (kg/tkm):"},null,{"$f":"IF(F37=0,0,(INDEX('09. Utslippsfaktorer'!$P$7:$U$45,MATCH(V38,'09. Utslippsfaktorer'!$P$7:$P$45,0),MATCH(\"kg \"&AJ38,'09. Utslippsfaktorer'!$P$7:$U$7,0),1)))","v":0},{"$f":"IF(F37=0,0,(INDEX('09. Utslippsfaktorer'!$P$7:$U$45,MATCH(V38,'09. Utslippsfaktorer'!$P$7:$P$45,0),MATCH(\"kg \"&AK38,'09. Utslippsfaktorer'!$P$7:$U$7,0),1)))","v":0},{"$f":"IF(F37=0,0,(INDEX('09. Utslippsfaktorer'!$P$7:$U$45,MATCH(V38,'09. Utslippsfaktorer'!$P$7:$P$45,0),MATCH(\"kg \"&AL38,'09. Utslippsfaktorer'!$P$7:$U$7,0),1)))","v":0},{"$f":"IF(F37=0,0,(INDEX('09. Utslippsfaktorer'!$P$7:$U$45,MATCH(V38,'09. Utslippsfaktorer'!$P$7:$P$45,0),MATCH(\"kg \"&AM38,'09. Utslippsfaktorer'!$P$7:$U$7,0),1)))","v":0},null,"Utslipp (kg):  ",null,{"$f":"IF(F40='08. Beregningsfaktorer'!$E$79,0,AC40+AJ40)","v":0},{"$f":"IF(F40='08. Beregningsfaktorer'!$E$79,0,AD40+AK40)","v":0},{"$f":"IF(F40='08. Beregningsfaktorer'!$E$79,0,AE40+AL40)","v":0},{"$f":"IF(F40='08. Beregningsfaktorer'!$E$79,0,AF40+AM40)","v":0}]
[null,null,null,"4.7.4","Lastekapasitet",null,{"$f":"IF(OR(F37='08. Beregningsfaktorer'!$B$9,F37='08. Beregningsfaktorer'!$B$10,F37='08. Beregningsfaktorer'!$B$12,F37='08. Beregningsfaktorer'!$B$13,F37='08. Beregningsfaktorer'!$B$14,F37='08. Beregningsfaktorer'!$B$15,F37='08. Beregningsfaktorer'!$B$28,F37='08. Beregningsfaktorer'!$B$29),IF(F40='08. Beregningsfaktorer'!$E$80,0,1),IF(F40='08. Beregningsfaktorer'!$E$80,3,0))","v":0},null,null,null,null,null,null,null,null,null,null,null,null,"Korreksjonsfaktor",null,null,{"$f":"IF(F42=0,0,INDEX('08. Beregningsfaktorer'!$E$54:$G$55,MATCH(F42,'08. Beregningsfaktorer'!$E$54:$E$55,0),3))","v":0},null,null,null,"Utslipp (kg):  ",null,{"$f":"IFERROR(V42*AC39,\"Data mangler\")","v":0},{"$f":"IFERROR(V42*AD39,\"Data mangler\")","v":0},{"$f":"IFERROR(V42*AE39,\"Data mangler\")","v":0},{"$f":"IFERROR(V42*AF39,\"Data mangler\")","v":0},null,"Utslipp (kg):  ",null,{"$f":"IF(V38='09. Utslippsfaktorer'!$P$19,IF(G38=\"tonn\",F41*AJ39*F38,F41*AJ39*F38*'08. Beregningsfaktorer'!$G$65),IF(F40='08. Beregningsfaktorer'!$E$78,0,IFERROR(W39*AJ39,\"Data mangler\")))","v":0},{"$f":"IF(V38='09. Utslippsfaktorer'!$P$19,IF(G38=\"tonn\",F41*AK39*F38,F41*AK39*F38*'08. Beregningsfaktorer'!$G$65),IF(F40='08. Beregningsfaktorer'!$E$78,0,IFERROR(W39*AK39,\"Data mangler\")))","v":0},{"$f":"IF(V38='09. Utslippsfaktorer'!$P$19,IF(G38=\"tonn\",F41*AL39*F38,F41*AL39*F38*'08. Beregningsfaktorer'!$G$65),IF(F40='08. Beregningsfaktorer'!$E$78,0,IFERROR(W39*AL39,\"Data mangler\")))","v":0},{"$f":"IF(V38='09. Utslippsfaktorer'!$P$19,IF(G38=\"tonn\",F41*AM39*F38,F41*AM39*F38*'08. Beregningsfaktorer'!$G$65),IF(F40='08. Beregningsfaktorer'!$E$78,0,IFERROR(W39*AM39,\"Data mangler\")))","v":0}]
[null,null,null,"4.7.5","Distanse",null,"km",null,null,null,null,null,null,null,null,null,null,null,null,{"$f":"IF(F40='08. Beregningsfaktorer'!$E$78,\"Forbruk per km\",\"Forbruk per tonn km\")","v":"Forbruk per tonn km"},null,null,{"$f":"IFERROR(IF(F37=0,0,IF(F40='08. Beregningsfaktorer'!$E$78,INDEX('08. Beregningsfaktorer'!$E$30:$G$41,MATCH(F37,'08. Beregningsfaktorer'!$B$30:$B$41,0),3,1),INDEX('08. Beregningsfaktorer'!$E$9:$G$29,MATCH(F37,'08. Beregningsfaktorer'!$B$9:$B$29,0),3,1))),\"Loading..\")","v":0},{"$f":"IFERROR(W42&\"/\"&X39,\"Loading..\")","v":"l/tkm"}]
[null,null,null,"4.7.6","Transport med helning",null,null,null,null,null,null,null,null,null,null,null,null,null,null,"Forbruk",null,{"$f":"IFERROR(W39*W41*W40,\"Data mangler\")","v":0},{"$f":"IFERROR(IF(OR(F37='08. Beregningsfaktorer'!$B$26,F37='08. Beregningsfaktorer'!$B$27),\"kWh\",IF(F37='08. Beregningsfaktorer'!$B$11,\"MJ\",\"l\")),\"Loading..\")","v":"l"},{"$f":"IFERROR(IF(F37='08. Beregningsfaktorer'!$B$11,\"Biogass\",IF(OR(F37='08. Beregningsfaktorer'!$B$26,F37='08. Beregningsfaktorer'!$B$27),\"Elektrisitet\",IF(OR(F37='08. Beregningsfaktorer'!$B$10,F37='08. Beregningsfaktorer'!$B$13,F37='08. Beregningsfaktorer'!$B$15,F37='08. Beregningsfaktorer'!$B$17,F37='08. Beregningsfaktorer'!$B$17,F37='08. Beregningsfaktorer'!$B$19,F37='08. Beregningsfaktorer'!$B$21,F37='08. Beregningsfaktorer'!$B$23,F37='08. Beregningsfaktorer'!$B$25,F37='08. Beregningsfaktorer'!$B$29),\"Biodiesel\",IF(V38=\"Mangler type kjøretøy\",\"Mangler type kjøretøy\",\"Diesel\")))),\"Feil\")","v":"Mangler type kjøretøy"}]
[]
[null,null,null,null,null,null,null,null,null,null,null,null,null,null,null,null,null,null,null,null,null,null,null,null,null,null,null,null,null,null,null,null,null,null,null,null,null,null,null,null,{"$f":"E36&\" - Sum utslipp - Alle kjøretøy\"","v":"Transport til internt deponi - Sum utslipp - Alle kjøretøy"}]
[null,null,null,null,null,null,null,null,null,null,null,null,null,null,null,null,null,null,null,null,null,null,null,null,null,null,null,null,null,null,null,null,null,null,null,null,null,null,null,null,null,null,"CO2-ekv.","SO2-ekv.","P-ekv.","NMVOC"]
[null,null,null,"4.8","Balanse veitransport",{"$f":"SUMIF(E36:E43,\"Lastekapasitet\",G36:G43)","v":0},null,"Lastutnyttelse korrekt modellert",null,null,null,null,null,null,null,null,null,null,null,null,null,null,null,null,null,null,null,null,null,null,null,null,null,null,null,null,null,null,null,null,"Utslipp (kg):  ",null,{"$f":"SUMIF(D36:D43,$D39,AQ36:AQ43)","v":0},{"$f":"SUMIF(D36:D43,$D39,AR36:AR43)","v":0},{"$f":"SUMIF(D36:D43,$D39,AS36:AS43)","v":0},{"$f":"SUMIF(D36:D43,$D39,AT36:AT43)","v":0}]
[null,null,null,"4.8.1",{"$f":"\"Balanse - \"&E12","v":"Balanse - Tunnelmunning"},{"$f":"((F$12-SUMIF(F36:F43,'08. Beregningsfaktorer'!$B$28,G36:G43)-SUMIF(F36:F43,'08. Beregningsfaktorer'!#REF!,G36:G43))*F$28)-(SUMIF(F36:F43,E$12,G36:G43))","v":0},{"$f":"'02. Inndata steinmasser'!$F$7& \" km\"","v":"fm3 km"},"Transportdistanser og masser stemmer"]
[null,null,null,"4.8.2",{"$f":"\"Balanse - \"&E13","v":"Balanse - Mobilt knuseverk"},{"$f":"((F$13-SUMIF(F36:F43,'08. Beregningsfaktorer'!$B$28,G36:G43)-SUMIF(F36:F43,'08. Beregningsfaktorer'!#REF!,G36:G43))*F$29)-(SUMIF(F36:F43,E$13,G36:G43))","v":0},{"$f":"'02. Inndata steinmasser'!$F$7& \" km\"","v":"fm3 km"},"Transportdistanser og masser stemmer"]
[null,null,null,"4.8.3",{"$f":"\"Balanse - \"&E14","v":"Balanse - Restprodukt mobilt knuseverk"},{"$f":"((F$14-SUMIF(F36:F43,'08. Beregningsfaktorer'!$B$28,G36:G43)-SUMIF(F36:F43,'08. Beregningsfaktorer'!#REF!,G36:G43))*F$29)-(SUMIF(F36:F43,E$14,G36:G43))","v":0},{"$f":"'02. Inndata steinmasser'!$F$7& \" km\"","v":"fm3 km"},"Transportdistanser og masser stemmer",null,null,null,null,null,null,null,null,null,null,null,{"$f":"V50&\" - Grunnlagsdata og forbruk - Ikke inkludert i beregninger\"","v":"Lastebil tipp - Grunnlagsdata og forbruk - Ikke inkludert i beregninger"},null,null,null,null,null,null,{"$f":"V50&\" - Utslipp knyttet til drivstoff/elektrisitet\"","v":"Lastebil tipp - Utslipp knyttet til drivstoff/elektrisitet"},null,null,null,null,null,null,null,null,null,null,null,null,null,{"$f":"V50&\" - Sum utslipp\"","v":"Lastebil tipp - Sum utslipp"}]
[null,null,null,null,null,null,null,null,null,null,null,null,null,null,null,null,null,null,null,"Kategori",null,"Lastebil tipp",null,null,null,null,null,null,"CO2-ekv.","SO2-ekv.","P-ekv.","NMVOC",null,null,null,null,null,null,null,null,null,null,"CO2-ekv.","SO2-ekv.","P-ekv.","NMVOC"]
[null,null,null,null,null,null,null,null,null,null,null,null,null,null,null,null,null,null,null,"Volum stein",null,null,null,"m3",{"$f":"IF((F12+F13+F14)=0,0,IF(G12=\"m3\",(F12+F13+F14)*'08. Beregningsfaktorer'!$G$65/'08. Beregningsfaktorer'!$G$66-(SUMIF(C37:C44,\"J\",F37:F44)),((F12+F13+F14)-(SUMIF(C37:C44,\"J\",F37:F44)))/'08. Beregningsfaktorer'!$G$66))","v":0},null,{"$f":"\"Utslippsfaktor (kg/\"&W53&\"):\"&\"  \"","v":"Utslippsfaktor (kg/l):  "},null,{"$f":"IF(V50=0,0,(INDEX('09. Utslippsfaktorer'!$P$7:$U$12,MATCH(X53,'09. Utslippsfaktorer'!$P$7:$P$12,0),MATCH(\"kg \"&AC50,'09. Utslippsfaktorer'!$P$7:$U$7,0),1)))","v":3.1476000000000002},{"$f":"IF(V50=0,0,(INDEX('09. Utslippsfaktorer'!$P$7:$U$12,MATCH(X53,'09. Utslippsfaktorer'!$P$7:$P$12,0),MATCH(\"kg \"&AD50,'09. Utslippsfaktorer'!$P$7:$U$7,0),1)))","v":0},{"$f":"IF(V50=0,0,(INDEX('09. Utslippsfaktorer'!$P$7:$U$12,MATCH(X53,'09. Utslippsfaktorer'!$P$7:$P$12,0),MATCH(\"kg \"&AE50,'09. Utslippsfaktorer'!$P$7:$U$7,0),1)))","v":0},{"$f":"IF(V50=0,0,(INDEX('09. Utslippsfaktorer'!$P$7:$U$12,MATCH(X53,'09. Utslippsfaktorer'!$P$7:$P$12,0),MATCH(\"kg \"&AF50,'09. Utslippsfaktorer'!$P$7:$U$7,0),1)))","v":0},null,null,null,null,null,null,null,null,"Utslipp (kg):  ",null,{"$f":"AC52+AJ52","v":0},{"$f":"AD52+AK52","v":0},{"$f":"AE52+AL52","v":0},{"$f":"AF52+AM52","v":0}]
[null,null,null,null,null,null,null,null,null,null,null,null,null,null,null,null,null,null,null,"Forbruk per m3 stein",null,null,{"$f":"IF(V50=0,0,(INDEX('08. Beregningsfaktorer'!$E$12:$G$89,MATCH(V50,'08. Beregningsfaktorer'!$E$12:$E$89,0),3,1)))","v":0.19},{"$f":"W53&\"/\"&X51","v":"l/m3"},null,null,"Utslipp (kg):  ",null,{"$f":"$V53*AC51","v":0},{"$f":"$V53*AD51","v":0},{"$f":"$V53*AE51","v":0},{"$f":"$V53*AF51","v":0}]
[null,null,null,null,null,null,null,null,null,null,null,null,null,null,null,null,null,null,null,"Forbruk",null,{"$f":"W51*W52","v":0},{"$f":"IF(V50='08. Beregningsfaktorer'!$E$50,\"l\",IF(V50='08. Beregningsfaktorer'!$E$51,\"l\",IF(V50='08. Beregningsfaktorer'!$E$52,\"l\",\"...\")))","v":"l"},{"$f":"IF(V50='08. Beregningsfaktorer'!$E$50,\"Diesel\",IF(V50='08. Beregningsfaktorer'!$E$51,\"Diesel\",IF(V50='08. Beregningsfaktorer'!$E$52,\"Diesel\",\"Mangler type kjøretøy\")))","v":"Diesel"}]
[]
[null,"Internt deponi"]
[null,null,null,null,null,null,null,null,null,null,null,null,null,null,null,null,null,null,null,{"$f":"E57&\" - Grunnlagsdata og forbruk\"","v":"Utlegging - Grunnlagsdata og forbruk"},null,null,null,null,null,null,{"$f":"E57&\" - Utslipp knyttet til drivstoff/elektrisitet\"","v":"Utlegging - Utslipp knyttet til drivstoff/elektrisitet"},null,null,null,null,null,null,null,null,null,null,null,null,null,{"$f":"E57&\" - Sum utslipp\"","v":"Utlegging - Sum utslipp"}]
[null,null,null,"4.9","Utlegging",null,null,null,null,null,null,null,null,null,null,null,null,null,null,"Kategori",null,{"$f":"IF(F58='08. Beregningsfaktorer'!$E$58,'08. Beregningsfaktorer'!$E$58,\"Mangler type kjøretøy\")","v":"Utleggingsmaskin steinmasser"},null,null,null,null,null,null,"CO2-ekv.","SO2-ekv.","P-ekv.","NMVOC",null,null,null,null,null,null,null,null,null,null,"CO2-ekv.","SO2-ekv.","P-ekv.","NMVOC"]
[null,null,null,"4.9.1","Type utlegging","Utleggingsmaskin steinmasser",null,null,null,null,null,null,null,null,null,null,null,null,null,"Volum stein",null,null,{"$f":"IF((F$12+F$13+F$14)=0,0,IF(G$12=\"fm3\",(F$12+F$13+F$14)*'08. Beregningsfaktorer'!$G$65/'08. Beregningsfaktorer'!$G$66,(F$12+F$13+F$14)/'08. Beregningsfaktorer'!$G$66))","v":0},"lm3",null,null,{"$f":"\"Utslippsfaktor (kg/\"&W60&\"):\"&\"  \"","v":"Utslippsfaktor (kg/l):  "},null,{"$f":"IF($F58=0,0,(INDEX('09. Utslippsfaktorer'!$P$7:$U$12,MATCH($X60,'09. Utslippsfaktorer'!$P$7:$P$12,0),MATCH(\"kg \"&AC57,'09. Utslippsfaktorer'!$P$7:$U$7,0),1)))","v":3.1476000000000002},{"$f":"IF($F58=0,0,(INDEX('09. Utslippsfaktorer'!$P$7:$U$12,MATCH($X60,'09. Utslippsfaktorer'!$P$7:$P$12,0),MATCH(\"kg \"&AD57,'09. Utslippsfaktorer'!$P$7:$U$7,0),1)))","v":0},{"$f":"IF($F58=0,0,(INDEX('09. Utslippsfaktorer'!$P$7:$U$12,MATCH($X60,'09. Utslippsfaktorer'!$P$7:$P$12,0),MATCH(\"kg \"&AE57,'09. Utslippsfaktorer'!$P$7:$U$7,0),1)))","v":0},{"$f":"IF($F58=0,0,(INDEX('09. Utslippsfaktorer'!$P$7:$U$12,MATCH($X60,'09. Utslippsfaktorer'!$P$7:$P$12,0),MATCH(\"kg \"&AF57,'09. Utslippsfaktorer'!$P$7:$U$7,0),1)))","v":0},null,null,null,null,null,null,null,null,"Utslipp (kg):  ",null,{"$f":"AC59","v":0},{"$f":"AD59+AK59","v":0},{"$f":"AE59+AL59","v":0},{"$f":"AF59+AM59","v":0}]
[null,null,null,null,null,null,null,null,null,null,null,null,null,null,null,null,null,null,null,"Forbruk per m3 stein",null,null,{"$f":"IF(F58=0,0,(INDEX('08. Beregningsfaktorer'!E$12:G$89,MATCH(F58,'08. Beregningsfaktorer'!E$12:E$89,0),3,1)))","v":1.1000000000000001},{"$f":"W60&\"/\"&X58","v":"l/lm3"},null,null,"Utslipp (kg):  ",null,{"$f":"$V60*AC58","v":0},{"$f":"$V60*AD58","v":0},{"$f":"$V60*AE58","v":0},{"$f":"$V60*AF58","v":0}]
[null,null,null,null,null,null,null,null,null,null,null,null,null,null,null,null,null,null,null,"Forbruk",null,{"$f":"W58*W59","v":0},{"$f":"IF(F58='08. Beregningsfaktorer'!E58,\"l\",\"...\")","v":"l"},{"$f":"IF(F58='08. Beregningsfaktorer'!E58,\"Diesel\",\"Mangler type kjøretøy\")","v":"Diesel"}]
[]
[null,null,null,null,null,null,null,null,null,null,null,null,null,null,null,null,null,null,null,{"$f":"E63&\" - Grunnlagsdata og forbruk\"","v":"Komprimering - Grunnlagsdata og forbruk"},null,null,null,null,null,null,{"$f":"E63&\" - Utslipp knyttet til drivstoff/elektrisitet\"","v":"Komprimering - Utslipp knyttet til drivstoff/elektrisitet"},null,null,null,null,null,null,null,null,null,null,null,null,null,{"$f":"E63&\" - Sum utslipp\"","v":"Komprimering - Sum utslipp"}]
[null,null,null,"4.10","Komprimering",null,null,null,null,null,null,null,null,null,null,null,null,null,null,"Kategori",null,{"$f":"IF(F64='08. Beregningsfaktorer'!$E$61,'08. Beregningsfaktorer'!$E$61,IF(F64='08. Beregningsfaktorer'!$E$62,'08. Beregningsfaktorer'!$E$62,\"Mangler type komprimeringsmaskin\"))","v":"Mangler type komprimeringsmaskin"},null,null,null,null,null,null,"CO2-ekv.","SO2-ekv.","P-ekv.","NMVOC",null,null,null,null,null,null,null,null,null,null,"CO2-ekv.","SO2-ekv.","P-ekv.","NMVOC"]
[null,null,null,"4.10.1","Komprimeringsmaskin",null,null,null,null,null,null,null,null,null,null,null,null,null,null,"Volum stein",null,null,{"$f":"IF((F$12+F$13+F$14)=0,0,IF(G$12=\"fm3\",(F$12+F$13+F$14)*'08. Beregningsfaktorer'!$G$65/'08. Beregningsfaktorer'!$G$66,(F$12+F$13+F$14)/'08. Beregningsfaktorer'!$G$66))","v":0},"lm3",null,null,{"$f":"\"Utslippsfaktor (kg/\"&W66&\"):\"&\"  \"","v":"Utslippsfaktor (kg/...):  "},null,{"$f":"IF($F64=0,0,IF($F64='08. Beregningsfaktorer'!$E$62,0,(INDEX('09. Utslippsfaktorer'!$P$7:$U$12,MATCH($X66,'09. Utslippsfaktorer'!$P$7:$P$12,0),MATCH(\"kg \"&AC63,'09. Utslippsfaktorer'!$P$7:$U$7,0),1))))","v":0},{"$f":"IF($F64=0,0,IF($F64='08. Beregningsfaktorer'!$E$62,0,(INDEX('09. Utslippsfaktorer'!$P$7:$U$12,MATCH($X66,'09. Utslippsfaktorer'!$P$7:$P$12,0),MATCH(\"kg \"&AD63,'09. Utslippsfaktorer'!$P$7:$U$7,0),1))))","v":0},{"$f":"IF($F64=0,0,IF($F64='08. Beregningsfaktorer'!$E$62,0,(INDEX('09. Utslippsfaktorer'!$P$7:$U$12,MATCH($X66,'09. Utslippsfaktorer'!$P$7:$P$12,0),MATCH(\"kg \"&AE63,'09. Utslippsfaktorer'!$P$7:$U$7,0),1))))","v":0},{"$f":"IF($F64=0,0,IF($F64='08. Beregningsfaktorer'!$E$62,0,(INDEX('09. Utslippsfaktorer'!$P$7:$U$12,MATCH($X66,'09. Utslippsfaktorer'!$P$7:$P$12,0),MATCH(\"kg \"&AF63,'09. Utslippsfaktorer'!$P$7:$U$7,0),1))))","v":0},null,null,null,null,null,null,null,null,"Utslipp (kg):  ",null,{"$f":"AC65+AJ65","v":0},{"$f":"AD65+AK65","v":0},{"$f":"AE65+AL65","v":0},{"$f":"AF65+AM65","v":0}]
[null,null,null,null,null,null,null,null,null,null,null,null,null,null,null,null,null,null,null,"Forbruk per m3 stein",null,null,{"$f":"IF(F64=0,0,(INDEX('08. Beregningsfaktorer'!E$12:G$89,MATCH(F64,'08. Beregningsfaktorer'!E$12:E$89,0),3,1)))","v":0},{"$f":"W66&\"/\"&X64","v":".../lm3"},null,null,"Utslipp (kg):  ",null,{"$f":"$V66*AC64","v":0},{"$f":"$V66*AD64","v":0},{"$f":"$V66*AE64","v":0},{"$f":"$V66*AF64","v":0}]
[null,null,null,null,null,null,null,null,null,null,null,null,null,null,null,null,null,null,null,"Forbruk",null,{"$f":"W64*W65","v":0},{"$f":"IF(F64='08. Beregningsfaktorer'!E61,\"l\",\"...\")","v":"..."},{"$f":"IF(F64='08. Beregningsfaktorer'!E61,\"Diesel\",IF(F64='08. Beregningsfaktorer'!E62,'08. Beregningsfaktorer'!E62,\"Mangler type komprimeringsmaskin\"))","v":"Mangler type komprimeringsmaskin"}]
[]
[]
[null,"Transport til eksternt deponi"]
[null,null,null,"4.11 ","Fordeling av masser til eksterne deponier"]
[null,null,null,"4.11.1","Eksternt deponi 1",null,{"$f":"'02. Inndata steinmasser'!$F$7","v":"fm3"}]
[null,null,null,"4.11.2","Eksternt deponi 2",null,{"$f":"'02. Inndata steinmasser'!$F$7","v":"fm3"}]
[null,null,null,"4.11.3","Eksternt deponi 3",null,{"$f":"'02. Inndata steinmasser'!$F$7","v":"fm3"}]
[]
[null,null,null,"4.12","Veidistanser mellom eksternt deponi 1 og…"]
[null,null,null,"4.12.1","Tunnelmunning",null,"km"]
[null,null,null,"4.12.2","Mobilt knuseverk",null,"km"]
[]
[null,null,null,"4.13","Veidistanser mellom eksternt deponi 2 og…"]
[null,null,null,"4.13.1","Tunnelmunning",null,"km"]
[null,null,null,"4.13.2","Mobilt knuseverk",null,"km"]
[]
[null,null,null,"4.14","Veidistanser mellom eksternt deponi 3 og…"]
[null,null,null,"4.14.1","Tunnelmunning",null,"km"]
[null,null,null,"4.14.2","Mobilt knuseverk",null,"km"]
[null,null,null,null,null,null,null,null,null,null,null,null,null,null,null,null,null,null,null,{"$f":"E87&\" - Grunnlagsdata og forbruk\"","v":"Lasting til transport - Grunnlagsdata og forbruk"},null,null,null,null,null,null,{"$f":"E87&\" - Utslipp knyttet til drivstoff/elektrisitet\"","v":"Lasting til transport - Utslipp knyttet til drivstoff/elektrisitet"},null,null,null,null,null,null,{"$f":"E87&\" - Utslipp knyttet til maskin\"","v":"Lasting til transport - Utslipp knyttet til maskin"},null,null,null,null,null,null,null,{"$f":"E87&\" - Sum utslipp\"","v":"Lasting til transport - Sum utslipp"}]
[null,null,null,"4.15","Lasting til transport",null,null,null,null,null,null,null,null,null,null,null,null,null,null,"Kategori",null,{"$f":"IF(F88='08. Beregningsfaktorer'!$E$43,'08. Beregningsfaktorer'!$E$43,IF(F88='08. Beregningsfaktorer'!$E$44,'09. Utslippsfaktorer'!$P$20,IF(OR(F88='08. Beregningsfaktorer'!$E$45,F88='08. Beregningsfaktorer'!$E$47),'09. Utslippsfaktorer'!$P$21,IF(F88='08. Beregningsfaktorer'!$E$46,'09. Utslippsfaktorer'!$P$21,\"Mangler type lastemaskin\"))))","v":"Mangler type lastemaskin"},null,null,null,null,null,null,"CO2-ekv.","SO2-ekv.","P-ekv.","NMVOC",null,null,null,"CO2-ekv.","SO2-ekv.","P-ekv.","NMVOC",null,null,null,"CO2-ekv.","SO2-ekv.","P-ekv.","NMVOC"]
[null,null,null,"4.15.1","Type lastemaskin",null,null,null,null,null,null,null,null,null,null,null,null,null,null,"Volum stein",null,null,{"$f":"IF((F$17+F$18+F$19)=0,0,IF(G$17=\"fm3\",(F$17+F$18+F$19)*'08. Beregningsfaktorer'!$G$65,(F$17+F$18+F$19)/'08. Beregningsfaktorer'!$G$65))","v":0},"lm3",null,null,{"$f":"\"Utslippsfaktor (kg/\"&W90&\"):\"&\"  \"","v":"Utslippsfaktor (kg/...):  "},null,{"$f":"IF(F88=0,0,IF(F88='08. Beregningsfaktorer'!$E$43,0,(INDEX('09. Utslippsfaktorer'!$P$7:$U$12,MATCH(X90,'09. Utslippsfaktorer'!$P$7:$P$12,0),MATCH(\"kg \"&AC87,'09. Utslippsfaktorer'!$P$7:$U$7,0),1))))","v":0},{"$f":"IF(F88=0,0,IF(F88='08. Beregningsfaktorer'!$E$43,0,(INDEX('09. Utslippsfaktorer'!$P$7:$U$12,MATCH(X90,'09. Utslippsfaktorer'!$P$7:$P$12,0),MATCH(\"kg \"&AD87,'09. Utslippsfaktorer'!$P$7:$U$7,0),1))))","v":0},{"$f":"IF(F88=0,0,IF(F88='08. Beregningsfaktorer'!$E$43,0,(INDEX('09. Utslippsfaktorer'!$P$7:$U$12,MATCH(X90,'09. Utslippsfaktorer'!$P$7:$P$12,0),MATCH(\"kg \"&AE87,'09. Utslippsfaktorer'!$P$7:$U$7,0),1))))","v":0},{"$f":"IF(F88=0,0,IF(F88='08. Beregningsfaktorer'!$E$43,0,(INDEX('09. Utslippsfaktorer'!$P$7:$U$12,MATCH(X90,'09. Utslippsfaktorer'!$P$7:$P$12,0),MATCH(\"kg \"&AF87,'09. Utslippsfaktorer'!$P$7:$U$7,0),1))))","v":0},null,"Utslippsfaktor (kg/m3):  ",null,{"$f":"IF(F88=0,0,IF(F88='08. Beregningsfaktorer'!$E$43,0,(INDEX('09. Utslippsfaktorer'!$P$7:$U$45,MATCH(V87,'09. Utslippsfaktorer'!$P$7:$P$45,0),MATCH(\"kg \"&AJ87,'09. Utslippsfaktorer'!$P$7:$U$7,0),1))))","v":0},{"$f":"IF(F88=0,0,IF(F88='08. Beregningsfaktorer'!$E$43,0,(INDEX('09. Utslippsfaktorer'!$P$7:$U$45,MATCH(V87,'09. Utslippsfaktorer'!$P$7:$P$45,0),MATCH(\"kg \"&AK87,'09. Utslippsfaktorer'!$P$7:$U$7,0),1))))","v":0},{"$f":"IF(F88=0,0,IF(F88='08. Beregningsfaktorer'!$E$43,0,(INDEX('09. Utslippsfaktorer'!$P$7:$U$45,MATCH(V87,'09. Utslippsfaktorer'!$P$7:$P$45,0),MATCH(\"kg \"&AL87,'09. Utslippsfaktorer'!$P$7:$U$7,0),1))))","v":0},{"$f":"IF(F88=0,0,IF(F88='08. Beregningsfaktorer'!$E$43,0,(INDEX('09. Utslippsfaktorer'!$P$7:$U$45,MATCH(V87,'09. Utslippsfaktorer'!$P$7:$P$45,0),MATCH(\"kg \"&AM87,'09. Utslippsfaktorer'!$P$7:$U$7,0),1))))","v":0},null,"Utslipp (kg):  ",null,{"$f":"AC89+AJ89","v":0},{"$f":"AD89+AK89","v":0},{"$f":"AE89+AL89","v":0},{"$f":"AF89+AM89","v":0}]
[null,null,null,null,null,null,null,null,null,null,null,null,null,null,null,null,null,null,null,"Forbruk per m3 stein",null,null,{"$f":"IF(F88=0,0,(INDEX('08. Beregningsfaktorer'!$E$12:$G$89,MATCH(F88,'08. Beregningsfaktorer'!$E$12:$E$89,0),3,1)))","v":0},{"$f":"W90&\"/\"&X88","v":".../lm3"},null,null,"Utslipp (kg):  ",null,{"$f":"V90*AC88","v":0},{"$f":"V90*AD88","v":0},{"$f":"V90*AE88","v":0},{"$f":"V90*AF88","v":0},null,"Utslipp (kg):  ",null,{"$f":"W88*AJ88","v":0},{"$f":"W88*AK88","v":0},{"$f":"W88*AL88","v":0},{"$f":"W88*AM88","v":0}]
[null,null,null,null,null,null,null,null,null,null,null,null,null,null,null,null,null,null,null,"Forbruk",null,{"$f":"W88*W89","v":0},{"$f":"IF(F88='08. Beregningsfaktorer'!$E$44,\"l\",IF(OR(F88='08. Beregningsfaktorer'!$E$45,F88='08. Beregningsfaktorer'!$E$47),\"l\",IF(F88='08. Beregningsfaktorer'!$E$46,\"kWh\",\"...\")))","v":"..."},{"$f":"IF(F88='08. Beregningsfaktorer'!$E$43,\"Ingen løft\",IF(F88='08. Beregningsfaktorer'!$E$44,\"Diesel\",IF(F88='08. Beregningsfaktorer'!$E$45,\"Diesel\",IF(F88='08. Beregningsfaktorer'!$E$47,\"Biodiesel\",IF(F88='08. Beregningsfaktorer'!$E$46,\"Elektrisitet\",\"Mangler type lastemaskin\")))))","v":"Mangler type lastemaskin"}]
[]
[null,null,null,"4.16","Transport til eksternt deponi","Endre antall kjøretøy:"]
[null,null,null,"4.16.1","Type kjøretøy",null,{"$f":"F94","v":0},null,null,null,null,null,null,null,null,null,null,null,null,{"$f":"E92&\" - Grunnlagsdata og forbruk\"","v":"Transport til eksternt deponi - Grunnlagsdata og forbruk"},null,null,null,null,null,null,{"$f":"E92&\" - Utslipp knyttet til drivstoff/elektrisitet\"","v":"Transport til eksternt deponi - Utslipp knyttet til drivstoff/elektrisitet"},null,null,null,null,null,null,{"$f":"E92&\" - Utslipp knyttet til kjøretøy og infrastruktur\"","v":"Transport til eksternt deponi - Utslipp knyttet til kjøretøy og infrastruktur"},null,null,null,null,null,null,{"$f":"E$92&\" - Sum utslipp\"","v":"Transport til eksternt deponi - Sum utslipp"}]
[null,null,{"$f":"IF(F93='08. Beregningsfaktorer'!#REF!,\"J\",0)","v":{"$error":"#REF!"}},"4.16.2","Mengde stein",null,{"$f":"'02. Inndata steinmasser'!$F$7","v":"fm3"},null,null,null,null,null,null,null,null,null,null,null,null,"Kategori",null,{"$f":"IF(OR(F93='08. Beregningsfaktorer'!$B$9,F93='08. Beregningsfaktorer'!$B$10,F93='08. Beregningsfaktorer'!$B$11),'09. Utslippsfaktorer'!$P$14,IF(OR(F93='08. Beregningsfaktorer'!$B$12,F93='08. Beregningsfaktorer'!$B$13),'09. Utslippsfaktorer'!$P$15,IF(OR(F93='08. Beregningsfaktorer'!$B$14,F93='08. Beregningsfaktorer'!$B$15),'09. Utslippsfaktorer'!$P$16,IF(OR(F93='08. Beregningsfaktorer'!$B$24,F93='08. Beregningsfaktorer'!$B$25),'09. Utslippsfaktorer'!$P$18,IF(F93='08. Beregningsfaktorer'!$B$26,'09. Utslippsfaktorer'!$P$18,IF(F93='08. Beregningsfaktorer'!$B$27,'09. Utslippsfaktorer'!$P$18,IF(F93='08. Beregningsfaktorer'!$B$28,'09. Utslippsfaktorer'!$P$19,IF(F93='08. Beregningsfaktorer'!$B$29,'09. Utslippsfaktorer'!$P$19,IF(OR(F93='08. Beregningsfaktorer'!$B$17,F93='08. Beregningsfaktorer'!$B$16,F93='08. Beregningsfaktorer'!$B$18,F93='08. Beregningsfaktorer'!$B$19),'09. Utslippsfaktorer'!$P$16,IF(OR(F93='08. Beregningsfaktorer'!$B$20,F93='08. Beregningsfaktorer'!$B$21,F93='08. Beregningsfaktorer'!$B$22,F93='08. Beregningsfaktorer'!$B$23),'09. Utslippsfaktorer'!$P$14,\"Mangler type kjøretøy\"))))))))))","v":"Mangler type kjøretøy"},null,null,null,null,null,null,"CO2-ekv.","SO2-ekv.","P-ekv.","NMVOC",null,null,null,"CO2-ekv.","SO2-ekv.","P-ekv.","NMVOC",null,null,null,"CO2-ekv.","SO2-ekv.","P-ekv.","NMVOC"]
[null,null,null,"4.16.3","Hvor kommer massene fra?",null,{"$f":"IF(OR(F93='08. Beregningsfaktorer'!$B$28,F93='08. Beregningsfaktorer'!$B$29),0,IF(OR(F96='08. Beregningsfaktorer'!$E$77,F96='08. Beregningsfaktorer'!$E$80),F94*F97,0))","v":0},null,null,null,null,null,null,null,null,null,null,null,null,{"$f":"IF(F96='08. Beregningsfaktorer'!$E$78,\"km\",\"tonn km\")","v":"tonn km"},null,null,{"$f":"IF(F96='08. Beregningsfaktorer'!$E$78,IF(G94=\"tonn\",IF(OR(F93='08. Beregningsfaktorer'!$B$16,F93='08. Beregningsfaktorer'!$B$17),(F94/8.5)*F97,IF(OR(F93='08. Beregningsfaktorer'!$B$18,F93='08. Beregningsfaktorer'!$B$19),(F94/14)*F97,IF(OR(F93='08. Beregningsfaktorer'!$B$20,F93='08. Beregningsfaktorer'!$B$21),(F94/26)*F97,IF(OR(F93='08. Beregningsfaktorer'!$B$22,F93='08. Beregningsfaktorer'!$B$23),(F94/40)*F97,IF(OR(F93='08. Beregningsfaktorer'!$B$24,F93='08. Beregningsfaktorer'!$B$25),(F94/14)*F97,IF(F93='08. Beregningsfaktorer'!$B$26,(F94/14)*F97,IF(F93='08. Beregningsfaktorer'!$B$27,(F94/14)*F97))))))),IF(OR(F93='08. Beregningsfaktorer'!$B$16,F93='08. Beregningsfaktorer'!$B$17),(F94*'08. Beregningsfaktorer'!$G$65/8.5)*F97,IF(OR(F93='08. Beregningsfaktorer'!$B$18,F93='08. Beregningsfaktorer'!$B$19),(F94*'08. Beregningsfaktorer'!$G$65/14)*F97,IF(OR(F93='08. Beregningsfaktorer'!$B$20,F93='08. Beregningsfaktorer'!$B$21),(F94*'08. Beregningsfaktorer'!$G$65/26)*F97,IF(OR(F93='08. Beregningsfaktorer'!$B$22,F93='08. Beregningsfaktorer'!$B$23),(F94*'08. Beregningsfaktorer'!$G$65/40)*F97,IF(OR(F93='08. Beregningsfaktorer'!$B$24,F93='08. Beregningsfaktorer'!$B$25),(F94*'08. Beregningsfaktorer'!$G$65/14)*F97,IF(F93='08. Beregningsfaktorer'!$B$26,(F94*'08. Beregningsfaktorer'!$G$65/14)*F97,IF(F93='08. Beregningsfaktorer'!$B$27,(F94*'08. Beregningsfaktorer'!$G$65/14)*F97)))))))),IF(F94=0,0,IF(F96='08. Beregningsfaktorer'!$E$80,IF(AND(OR(F93='08. Beregningsfaktorer'!$B$28,F93='08. Beregningsfaktorer'!$B$29),G94=\"tonn\"),(F94/1900)*F97,IF(OR(F93='08. Beregningsfaktorer'!$B$28,F93='08. Beregningsfaktorer'!$B$29),(F94*'08. Beregningsfaktorer'!$G$65/1900)*F97,IF(G94=\"tonn\",F94,F94*'08. Beregningsfaktorer'!$G$65)*F97)),IF(G94=\"tonn\",F94*F97,F94*'08. Beregningsfaktorer'!$G$65)*F97)))","v":0},{"$f":"IF(OR(F96='08. Beregningsfaktorer'!$E$78,F93='08. Beregningsfaktorer'!$B$28,F93='08. Beregningsfaktorer'!$B$29),\"km\",\"tkm\")","v":"tkm"},null,null,{"$f":"\"Utslippsfaktor (kg/\"&W98&\"):\"&\"  \"","v":"Utslippsfaktor (kg/l):  "},null,{"$f":"IF(F93=0,0,(INDEX('09. Utslippsfaktorer'!$P$7:$U$13,MATCH(X98,'09. Utslippsfaktorer'!$P$7:$P$13,0),MATCH(\"kg \"&AC94,'09. Utslippsfaktorer'!$P$7:$U$7,0),1)))","v":0},{"$f":"IF(F93=0,0,(INDEX('09. Utslippsfaktorer'!$P$7:$U$13,MATCH(X98,'09. Utslippsfaktorer'!$P$7:$P$13,0),MATCH(\"kg \"&AD94,'09. Utslippsfaktorer'!$P$7:$U$7,0),1)))","v":0},{"$f":"IF(F93=0,0,(INDEX('09. Utslippsfaktorer'!$P$7:$U$13,MATCH(X98,'09. Utslippsfaktorer'!$P$7:$P$13,0),MATCH(\"kg \"&AE94,'09. Utslippsfaktorer'!$P$7:$U$7,0),1)))","v":0},{"$f":"IF(F93=0,0,(INDEX('09. Utslippsfaktorer'!$P$7:$U$13,MATCH(X98,'09. Utslippsfaktorer'!$P$7:$P$13,0),MATCH(\"kg \"&AF94,'09. Utslippsfaktorer'!$P$7:$U$7,0),1)))","v":0},null,{"$f":"\"Utslippsfaktor (kg/\"&X95&\"):\"","v":"Utslippsfaktor (kg/tkm):"},null,{"$f":"IF(F93=0,0,(INDEX('09. Utslippsfaktorer'!$P$7:$U$45,MATCH(V94,'09. Utslippsfaktorer'!$P$7:$P$45,0),MATCH(\"kg \"&AJ94,'09. Utslippsfaktorer'!$P$7:$U$7,0),1)))","v":0},{"$f":"IF(F93=0,0,(INDEX('09. Utslippsfaktorer'!$P$7:$U$45,MATCH(V94,'09. Utslippsfaktorer'!$P$7:$P$45,0),MATCH(\"kg \"&AK94,'09. Utslippsfaktorer'!$P$7:$U$7,0),1)))","v":0},{"$f":"IF(F93=0,0,(INDEX('09. Utslippsfaktorer'!$P$7:$U$45,MATCH(V94,'09. Utslippsfaktorer'!$P$7:$P$45,0),MATCH(\"kg \"&AL94,'09. Utslippsfaktorer'!$P$7:$U$7,0),1)))","v":0},{"$f":"IF(F93=0,0,(INDEX('09. Utslippsfaktorer'!$P$7:$U$45,MATCH(V94,'09. Utslippsfaktorer'!$P$7:$P$45,0),MATCH(\"kg \"&AM94,'09. Utslippsfaktorer'!$P$7:$U$7,0),1)))","v":0},null,"Utslipp (kg):  ",null,{"$f":"IF(F96='08. Beregningsfaktorer'!$E$79,0,AC96+AJ96)","v":0},{"$f":"IF(F96='08. Beregningsfaktorer'!$E$79,0,AD96+AK96)","v":0},{"$f":"IF(F96='08. Beregningsfaktorer'!$E$79,0,AE96+AL96)","v":0},{"$f":"IF(F96='08. Beregningsfaktorer'!$E$79,0,AF96+AM96)","v":0}]
[null,null,null,"4.16.4","Lastekapasitet",null,{"$f":"IF(OR(F93='08. Beregningsfaktorer'!$B$9,F93='08. Beregningsfaktorer'!$B$10,F93='08. Beregningsfaktorer'!$B$12,F93='08. Beregningsfaktorer'!$B$13,F93='08. Beregningsfaktorer'!$B$14,F93='08. Beregningsfaktorer'!$B$15,F93='08. Beregningsfaktorer'!$B$28,F93='08. Beregningsfaktorer'!$B$29),IF(F96='08. Beregningsfaktorer'!$E$80,0,1),IF(F96='08. Beregningsfaktorer'!$E$80,3,0))","v":0},null,null,null,null,null,null,null,null,null,null,null,null,"Korreksjonsfaktor",null,null,{"$f":"IF(F98=0,0,INDEX('08. Beregningsfaktorer'!$E$54:$G$55,MATCH(F98,'08. Beregningsfaktorer'!$E$54:$E$55,0),3))","v":0},null,null,null,"Utslipp (kg):  ",null,{"$f":"IFERROR(V98*AC95,\"Data mangler\")","v":0},{"$f":"IFERROR(V98*AD95,\"Data mangler\")","v":0},{"$f":"IFERROR(V98*AE95,\"Data mangler\")","v":0},{"$f":"IFERROR(V98*AF95,\"Data mangler\")","v":0},null,"Utslipp (kg):  ",null,{"$f":"IF(V94='09. Utslippsfaktorer'!$P$19,IF(G94=\"tonn\",F97*AJ95*F94,F97*AJ95*F94*'08. Beregningsfaktorer'!$G$65),IF(F96='08. Beregningsfaktorer'!$E$78,0,IFERROR(W95*AJ95,\"Data mangler\")))","v":0},{"$f":"IF(V94='09. Utslippsfaktorer'!$P$19,IF(G94=\"tonn\",F97*AK95*F94,F97*AK95*F94*'08. Beregningsfaktorer'!$G$65),IF(F96='08. Beregningsfaktorer'!$E$78,0,IFERROR(W95*AK95,\"Data mangler\")))","v":0},{"$f":"IF(V94='09. Utslippsfaktorer'!$P$19,IF(G94=\"tonn\",F97*AL95*F94,F97*AL95*F94*'08. Beregningsfaktorer'!$G$65),IF(F96='08. Beregningsfaktorer'!$E$78,0,IFERROR(W95*AL95,\"Data mangler\")))","v":0},{"$f":"IF(V94='09. Utslippsfaktorer'!$P$19,IF(G94=\"tonn\",F97*AM95*F94,F97*AM95*F94*'08. Beregningsfaktorer'!$G$65),IF(F96='08. Beregningsfaktorer'!$E$78,0,IFERROR(W95*AM95,\"Data mangler\")))","v":0}]
[null,null,null,"4.16.5","Distanse",null,"km",null,null,null,null,null,null,null,null,null,null,null,null,{"$f":"IF(F96='08. Beregningsfaktorer'!$E$78,\"Forbruk per km\",\"Forbruk per tonn km\")","v":"Forbruk per tonn km"},null,null,{"$f":"IFERROR(IF(F93=0,0,IF(F96='08. Beregningsfaktorer'!$E$78,INDEX('08. Beregningsfaktorer'!$E$30:$G$41,MATCH(F93,'08. Beregningsfaktorer'!$B$30:$B$41,0),3,1),INDEX('08. Beregningsfaktorer'!$E$9:$G$29,MATCH(F93,'08. Beregningsfaktorer'!$B$9:$B$29,0),3,1))),\"Loading..\")","v":0},{"$f":"IFERROR(W98&\"/\"&X95,\"Loading..\")","v":"l/tkm"}]
[null,null,null,"4.16.6","Transport med helning",null,null,null,null,null,null,null,null,null,null,null,null,null,null,"Forbruk",null,{"$f":"IFERROR(W95*W97*W96,\"Data mangler\")","v":0},{"$f":"IFERROR(IF(OR(F93='08. Beregningsfaktorer'!$B$26,F93='08. Beregningsfaktorer'!$B$27),\"kWh\",IF(F93='08. Beregningsfaktorer'!$B$11,\"MJ\",\"l\")),\"Loading..\")","v":"l"},{"$f":"IFERROR(IF(F93='08. Beregningsfaktorer'!$B$11,\"Biogass\",IF(OR(F93='08. Beregningsfaktorer'!$B$26,F93='08. Beregningsfaktorer'!$B$27),\"Elektrisitet\",IF(OR(F93='08. Beregningsfaktorer'!$B$10,F93='08. Beregningsfaktorer'!$B$13,F93='08. Beregningsfaktorer'!$B$15,F93='08. Beregningsfaktorer'!$B$17,F93='08. Beregningsfaktorer'!$B$17,F93='08. Beregningsfaktorer'!$B$19,F93='08. Beregningsfaktorer'!$B$21,F93='08. Beregningsfaktorer'!$B$23,F93='08. Beregningsfaktorer'!$B$25,F93='08. Beregningsfaktorer'!$B$29),\"Biodiesel\",IF(V94=\"Mangler type kjøretøy\",\"Mangler type kjøretøy\",\"Diesel\")))),\"Feil\")","v":"Mangler type kjøretøy"}]
[]
[null,null,null,null,null,null,null,null,null,null,null,null,null,null,null,null,null,null,null,null,null,null,null,null,null,null,null,null,null,null,null,null,null,null,null,null,null,null,null,null,{"$f":"E92&\" - Sum utslipp - Alle kjøretøy\"","v":"Transport til eksternt deponi - Sum utslipp - Alle kjøretøy"}]
[null,null,null,"4.17","Balanse veitransport",{"$f":"SUMIF(E92:E99,\"Lastekapasitet\",G92:G99)","v":0},null,"Lastutnyttelse korrekt modellert",null,null,null,null,null,null,null,null,null,null,null,null,null,null,null,null,null,null,null,null,null,null,null,null,null,null,null,null,null,null,null,null,null,null,"CO2-ekv.","SO2-ekv.","P-ekv.","NMVOC"]
[null,null,null,"4.17.1",{"$f":"\"Balanse - \"&E17","v":"Balanse - Tunnelmunning"},{"$f":"(F$71*F$76)+(F$72*F$80)+(F$73*F$84)-(SUMIF(F92:F99,E$17,G92:G99))","v":0},{"$f":"'02. Inndata steinmasser'!$F$7& \" km\"","v":"fm3 km"},"Transportdistanser og masser stemmer",null,null,null,null,null,null,null,null,null,null,null,null,null,null,null,null,null,null,null,null,null,null,null,null,null,null,null,null,null,null,null,null,"Utslipp (kg):  ",null,{"$f":"SUMIF(D92:D99,$D95,AQ92:AQ99)","v":0},{"$f":"SUMIF(D92:D99,$D95,AR92:AR99)","v":0},{"$f":"SUMIF(D92:D99,$D95,AS92:AS99)","v":0},{"$f":"SUMIF(D92:D99,$D95,AT92:AT99)","v":0}]
[null,null,null,"4.17.2",{"$f":"\"Balanse - \"&E18","v":"Balanse - Mobilt knuseverk"},{"$f":"(F$18*(F$77+F81+F85))-(SUMIF(F92:F99,E$18,G92:G99))","v":0},{"$f":"'02. Inndata steinmasser'!$F$7& \" km\"","v":"fm3 km"},"Transportdistanser og masser stemmer"]
[null,null,null,"4.17.3",{"$f":"\"Balanse - \"&E19","v":"Balanse - Restprodukt mobilt knuseverk"},{"$f":"(F$19*(F$77+F81+F85))-(SUMIF(F92:F99,E$19,G92:G99))","v":0},{"$f":"'02. Inndata steinmasser'!$F$7& \" km\"","v":"fm3 km"},"Transportdistanser og masser stemmer"]
[null,null,null,null,null,null,null,null,null,null,null,null,null,null,null,null,null,null,null,{"$f":"V106&\" - Grunnlagsdata og forbruk - Ikke inkludert i beregninger\"","v":"Lastebil tipp - Grunnlagsdata og forbruk - Ikke inkludert i beregninger"},null,null,null,null,null,null,{"$f":"V106&\" - Utslipp knyttet til drivstoff/elektrisitet\"","v":"Lastebil tipp - Utslipp knyttet til drivstoff/elektrisitet"},null,null,null,null,null,null,null,null,null,null,null,null,null,{"$f":"V106&\" - Sum utslipp\"","v":"Lastebil tipp - Sum utslipp"}]
[null,null,null,null,null,null,null,null,null,null,null,null,null,null,null,null,null,null,null,"Kategori",null,"Lastebil tipp",null,null,null,null,null,null,"CO2-ekv.","SO2-ekv.","P-ekv.","NMVOC",null,null,null,null,null,null,null,null,null,null,"CO2-ekv.","SO2-ekv.","P-ekv.","NMVOC"]
[null,null,null,null,null,null,null,null,null,null,null,null,null,null,null,null,null,null,null,"Volum stein",null,null,null,"m3",{"$f":"IF((F17+F18+F19)=0,0,IF(G17=\"m3\",(F17+F18+F19)*'08. Beregningsfaktorer'!$G$64/'08. Beregningsfaktorer'!$G$66-(SUMIF(C93:C100,\"J\",F93:F100)),((F17+F18+F19)-(SUMIF(C93:C100,\"J\",F93:F100)))/'08. Beregningsfaktorer'!$G$66))","v":0},null,{"$f":"\"Utslippsfaktor (kg/\"&W109&\"):\"&\"  \"","v":"Utslippsfaktor (kg/l):  "},null,{"$f":"IF(V106=0,0,(INDEX('09. Utslippsfaktorer'!$P$7:$U$12,MATCH(X109,'09. Utslippsfaktorer'!$P$7:$P$12,0),MATCH(\"kg \"&AC106,'09. Utslippsfaktorer'!$P$7:$U$7,0),1)))","v":3.1476000000000002},{"$f":"IF(V106=0,0,(INDEX('09. Utslippsfaktorer'!$P$7:$U$12,MATCH(X109,'09. Utslippsfaktorer'!$P$7:$P$12,0),MATCH(\"kg \"&AD106,'09. Utslippsfaktorer'!$P$7:$U$7,0),1)))","v":0},{"$f":"IF(V106=0,0,(INDEX('09. Utslippsfaktorer'!$P$7:$U$12,MATCH(X109,'09. Utslippsfaktorer'!$P$7:$P$12,0),MATCH(\"kg \"&AE106,'09. Utslippsfaktorer'!$P$7:$U$7,0),1)))","v":0},{"$f":"IF(V106=0,0,(INDEX('09. Utslippsfaktorer'!$P$7:$U$12,MATCH(X109,'09. Utslippsfaktorer'!$P$7:$P$12,0),MATCH(\"kg \"&AF106,'09. Utslippsfaktorer'!$P$7:$U$7,0),1)))","v":0},null,null,null,null,null,null,null,null,"Utslipp (kg):  ",null,{"$f":"AC108+AJ108","v":0},{"$f":"AD108+AK108","v":0},{"$f":"AE108+AL108","v":0},{"$f":"AF108+AM108","v":0}]
[null,null,null,null,null,null,null,null,null,null,null,null,null,null,null,null,null,null,null,"Forbruk per m3 stein",null,null,{"$f":"IF(V106=0,0,(INDEX('08. Beregningsfaktorer'!$E$12:$G$89,MATCH(V106,'08. Beregningsfaktorer'!$E$12:$E$89,0),3,1)))","v":0.19},{"$f":"W109&\"/\"&X107","v":"l/m3"},null,null,"Utslipp (kg):  ",null,{"$f":"$V109*AC107","v":0},{"$f":"$V109*AD107","v":0},{"$f":"$V109*AE107","v":0},{"$f":"$V109*AF107","v":0}]
[null,null,null,null,null,null,null,null,null,null,null,null,null,null,null,null,null,null,null,"Forbruk",null,{"$f":"W107*W108","v":0},{"$f":"IF(V106='08. Beregningsfaktorer'!$E$50,\"l\",IF(V106='08. Beregningsfaktorer'!$E$51,\"l\",IF(V106='08. Beregningsfaktorer'!$E$52,\"l\",\"...\")))","v":"l"},{"$f":"IF(V106='08. Beregningsfaktorer'!$E$50,\"Diesel\",IF(V106='08. Beregningsfaktorer'!$E$51,\"Diesel\",IF(V106='08. Beregningsfaktorer'!$E$52,\"Diesel\",\"Mangler type kjøretøy\")))","v":"Diesel"}]

{"sheet":"05. Pukkverk","index":5,"n_rows":84,"n_cols":46,"rows_kept":84,"cut":false,"hidden":false,"merged":[[73,19,73,24],[73,26,73,31],[73,33,73,38],[66,33,66,38],[47,19,47,20],[52,33,52,34],[57,21,57,24],[53,19,53,20],[31,40,31,45],[33,40,33,41],[59,26,59,27],[59,33,59,34],[56,19,56,24],[56,26,56,31],[56,33,56,38],[56,40,56,45],[47,26,47,27],[47,33,47,34],[51,21,51,24],[52,26,52,27],[69,26,69,27],[69,33,69,34],[70,23,70,24],[44,19,44,24],[1,3,1,14],[42,1,64,1],[4,1,12,1],[65,1,86,1],[1,0,1,2],[13,1,41,1],[26,26,26,27],[26,33,26,34],[26,40,26,41],[27,26,27,27],[27,33,27,34],[24,19,24,24],[24,26,24,31],[24,33,24,38],[24,40,24,45],[25,21,25,24],[75,33,75,34],[75,40,75,41],[29,23,29,24],[80,40,80,45],[82,40,82,41],[17,19,17,24],[17,26,17,31],[17,33,17,38],[17,40,17,45],[18,21,18,24],[19,26,19,27],[19,33,19,34],[19,40,19,41],[20,19,20,20],[20,26,20,27],[20,33,20,34],[21,23,21,24],[76,26,76,27],[76,33,76,34],[78,23,78,24],[73,40,73,45],[74,21,74,24],[36,19,36,24],[36,26,36,31],[36,33,36,38],[75,26,75,27],[66,40,66,45],[67,21,67,24],[68,26,68,27],[68,33,68,34],[68,40,68,41],[36,40,36,45],[37,21,37,24],[38,26,38,27],[38,33,38,34],[38,40,38,41],[50,40,50,45],[52,40,52,41],[44,40,44,45],[46,40,46,41],[58,40,58,41],[44,26,44,31],[44,33,44,38],[69,19,69,20],[39,19,39,20],[39,26,39,27],[39,33,39,34],[40,23,40,24],[66,19,66,24],[66,26,66,31],[53,26,53,27],[53,33,53,34],[50,19,50,24],[50,26,50,31],[50,33,50,38],[45,21,45,24],[46,26,46,27],[46,33,46,34],[58,26,58,27],[58,33,58,34],[59,19,59,20]]}
[]
[null,null,null,"05. Pukkverk"]
[]
[null,null,null,"Nr.","Prosess","Mengde/type","Enhet"]
[null,"Masser"]
[null,null,null,"5.1","Masser til pukkverk"]
[null,null,null,"5.1.1","Tunnelmunning",{"$f":"'02. Inndata steinmasser'!F37","v":0},{"$f":"'02. Inndata steinmasser'!$F$7","v":"fm3"}]
[null,null,null,"5.1.2","Mobilt knuseverk",{"$f":"'03. Mobilt knuseverk'!F17","v":0},{"$f":"'02. Inndata steinmasser'!$F$7","v":"fm3"}]
[null,null,null,"5.1.3","Sum til pukkverk",{"$f":"F7+F8","v":0},{"$f":"'02. Inndata steinmasser'!$F$7","v":"fm3"}]
[]
[null,null,null,"5.2","Masser fra pukkverk"]
[null,null,null,"5.2.1","Linja",null,{"$f":"'02. Inndata steinmasser'!$F$7","v":"fm3"}]
[]
[null,"Transport"]
[null,null,null,"5.3","Veidistanser mellom pukkverk og…"]
[null,null,null,"5.3.1","Tunnelmunning",null,"km"]
[null,null,null,"5.3.2","Linja",null,"km"]
[null,null,null,null,null,null,null,null,null,null,null,null,null,null,null,null,null,null,null,{"$f":"E19&\" - Grunnlagsdata og forbruk\"","v":"Lasting til transport - Grunnlagsdata og forbruk"},null,null,null,null,null,null,{"$f":"E19&\" - Utslipp knyttet til drivstoff/elektrisitet\"","v":"Lasting til transport - Utslipp knyttet til drivstoff/elektrisitet"},null,null,null,null,null,null,{"$f":"E19&\" - Utslipp knyttet til maskin\"","v":"Lasting til transport - Utslipp knyttet til maskin"},null,null,null,null,null,null,{"$f":"E19&\" - Sum utslipp\"","v":"Lasting til transport - Sum utslipp"}]
[null,null,null,"5.4","Lasting til transport",null,null,null,null,null,null,null,null,null,null,null,null,null,null,"Kategori",null,{"$f":"IF(F20='08. Beregningsfaktorer'!$E$43,'08. Beregningsfaktorer'!$E$43,IF(F20='08. Beregningsfaktorer'!$E$44,'09. Utslippsfaktorer'!$P$20,IF(OR(F20='08. Beregningsfaktorer'!$E$45,F20='08. Beregningsfaktorer'!$E$47),'09. Utslippsfaktorer'!$P$21,IF(F20='08. Beregningsfaktorer'!$E$46,'09. Utslippsfaktorer'!$P$21,\"Mangler type lastemaskin\"))))","v":"Mangler type lastemaskin"},null,null,null,null,null,null,"CO2-ekv.","SO2-ekv.","P-ekv.","NMVOC",null,null,null,"CO2-ekv.","SO2-ekv.","P-ekv.","NMVOC",null,null,null,"CO2-ekv.","SO2-ekv.","P-ekv.","NMVOC"]
[null,null,null,"5.4.1","Type lastemaskin",null,null,null,null,null,null,null,null,null,null,null,null,null,null,"Volum stein",null,null,{"$f":"IF(F$9=0,0,IF(G$9=\"fm3\",F$9*'08. Beregningsfaktorer'!$G$65/'08. Beregningsfaktorer'!$G$66,F$9/'08. Beregningsfaktorer'!$G$66))","v":0},"lm3",null,null,{"$f":"\"Utslippsfaktor (kg/\"&W22&\"):\"&\"  \"","v":"Utslippsfaktor (kg/...):  "},null,{"$f":"IF(F20=0,0,IF(F20='08. Beregningsfaktorer'!$E$43,0,(INDEX('09. Utslippsfaktorer'!$P$7:$U$12,MATCH(X22,'09. Utslippsfaktorer'!$P$7:$P$12,0),MATCH(\"kg \"&AC19,'09. Utslippsfaktorer'!$P$7:$U$7,0),1))))","v":0},{"$f":"IF(F20=0,0,IF(F20='08. Beregningsfaktorer'!$E$43,0,(INDEX('09. Utslippsfaktorer'!$P$7:$U$12,MATCH(X22,'09. Utslippsfaktorer'!$P$7:$P$12,0),MATCH(\"kg \"&AD19,'09. Utslippsfaktorer'!$P$7:$U$7,0),1))))","v":0},{"$f":"IF(F20=0,0,IF(F20='08. Beregningsfaktorer'!$E$43,0,(INDEX('09. Utslippsfaktorer'!$P$7:$U$12,MATCH(X22,'09. Utslippsfaktorer'!$P$7:$P$12,0),MATCH(\"kg \"&AE19,'09. Utslippsfaktorer'!$P$7:$U$7,0),1))))","v":0},{"$f":"IF(F20=0,0,IF(F20='08. Beregningsfaktorer'!$E$43,0,(INDEX('09. Utslippsfaktorer'!$P$7:$U$12,MATCH(X22,'09. Utslippsfaktorer'!$P$7:$P$12,0),MATCH(\"kg \"&AF19,'09. Utslippsfaktorer'!$P$7:$U$7,0),1))))","v":0},null,"Utslippsfaktor (kg/m3):  ",null,{"$f":"IF(F20=0,0,IF(F20='08. Beregningsfaktorer'!$E$43,0,(INDEX('09. Utslippsfaktorer'!$P$7:$U$45,MATCH(V19,'09. Utslippsfaktorer'!$P$7:$P$45,0),MATCH(\"kg \"&AJ19,'09. Utslippsfaktorer'!$P$7:$U$7,0),1))))","v":0},{"$f":"IF(F20=0,0,IF(F20='08. Beregningsfaktorer'!$E$43,0,(INDEX('09. Utslippsfaktorer'!$P$7:$U$45,MATCH(V19,'09. Utslippsfaktorer'!$P$7:$P$45,0),MATCH(\"kg \"&AK19,'09. Utslippsfaktorer'!$P$7:$U$7,0),1))))","v":0},{"$f":"IF(F20=0,0,IF(F20='08. Beregningsfaktorer'!$E$43,0,(INDEX('09. Utslippsfaktorer'!$P$7:$U$45,MATCH(V19,'09. Utslippsfaktorer'!$P$7:$P$45,0),MATCH(\"kg \"&AL19,'09. Utslippsfaktorer'!$P$7:$U$7,0),1))))","v":0},{"$f":"IF(F20=0,0,IF(F20='08. Beregningsfaktorer'!$E$43,0,(INDEX('09. Utslippsfaktorer'!$P$7:$U$45,MATCH(V19,'09. Utslippsfaktorer'!$P$7:$P$45,0),MATCH(\"kg \"&AM19,'09. Utslippsfaktorer'!$P$7:$U$7,0),1))))","v":0},null,"Utslipp (kg):  ",null,{"$f":"AC21+AJ21","v":0},{"$f":"AD21+AK21","v":0},{"$f":"AE21+AL21","v":0},{"$f":"AF21+AM21","v":0}]
[null,null,null,null,null,null,null,null,null,null,null,null,null,null,null,null,null,null,null,"Forbruk per m3 stein",null,null,{"$f":"IF(F20=0,0,(INDEX('08. Beregningsfaktorer'!$E$12:$G$89,MATCH(F20,'08. Beregningsfaktorer'!$E$12:$E$89,0),3,1)))","v":0},{"$f":"W22&\"/\"&X20","v":".../lm3"},null,null,"Utslipp (kg):  ",null,{"$f":"V22*AC20","v":0},{"$f":"V22*AD20","v":0},{"$f":"V22*AE20","v":0},{"$f":"V22*AF20","v":0},null,"Utslipp (kg):  ",null,{"$f":"W20*AJ20","v":0},{"$f":"W20*AK20","v":0},{"$f":"W20*AL20","v":0},{"$f":"W20*AM20","v":0}]
[null,null,null,null,null,null,null,"OBS! Retur med nyttelast tas ikke med i totalutslipp. Utslipp kan sees i mellomregningene til høyre.",null,null,null,null,null,null,null,null,null,null,null,"Forbruk",null,{"$f":"W20*W21","v":0},{"$f":"IF(F20='08. Beregningsfaktorer'!$E$44,\"l\",IF(OR(F20='08. Beregningsfaktorer'!$E$45,F20='08. Beregningsfaktorer'!$E$47),\"l\",IF(F20='08. Beregningsfaktorer'!$E$46,\"kWh\",\"...\")))","v":"..."},{"$f":"IF(F20='08. Beregningsfaktorer'!$E$43,\"Ingen løft\",IF(F20='08. Beregningsfaktorer'!$E$44,\"Diesel\",IF(F20='08. Beregningsfaktorer'!$E$45,\"Diesel\",IF(F20='08. Beregningsfaktorer'!$E$47,\"Biodiesel\",IF(F20='08. Beregningsfaktorer'!$E$46,\"Elektrisitet\",\"Mangler type lastemaskin\")))))","v":"Mangler type lastemaskin"}]
[null,null,null,null,null,null,null,"OBS! Mengde transportert ut av prosjektet må også skrives inn for retur med tom last, for å beregne antall returer."]
[null,null,null,"5.5","Transport til pukkverk","Endre antall kjøretøy:"]
[null,null,null,"5.5.1","Type kjøretøy",null,{"$f":"F26","v":0},null,null,null,null,null,null,null,null,null,null,null,null,{"$f":"E24&\" - Grunnlagsdata og forbruk\"","v":"Transport til pukkverk - Grunnlagsdata og forbruk"},null,null,null,null,null,null,{"$f":"E24&\" - Utslipp knyttet til drivstoff/elektrisitet\"","v":"Transport til pukkverk - Utslipp knyttet til drivstoff/elektrisitet"},null,null,null,null,null,null,{"$f":"E24&\" - Utslipp knyttet til kjøretøy og infrastruktur\"","v":"Transport til pukkverk - Utslipp knyttet til kjøretøy og infrastruktur"},null,null,null,null,null,null,{"$f":"E24&\" - Sum utslipp\"","v":"Transport til pukkverk - Sum utslipp"}]
[null,null,{"$f":"IF(F25='08. Beregningsfaktorer'!#REF!,\"J\",0)","v":{"$error":"#REF!"}},"5.5.2","Mengde stein",null,{"$f":"'02. Inndata steinmasser'!$F$7","v":"fm3"},null,null,null,null,null,null,null,null,null,null,null,null,"Kategori",null,{"$f":"IF(OR(F25='08. Beregningsfaktorer'!$B$9,F25='08. Beregningsfaktorer'!$B$10,F25='08. Beregningsfaktorer'!$B$11),'09. Utslippsfaktorer'!$P$14,IF(OR(F25='08. Beregningsfaktorer'!$B$12,F25='08. Beregningsfaktorer'!$B$13),'09. Utslippsfaktorer'!$P$15,IF(OR(F25='08. Beregningsfaktorer'!$B$14,F25='08. Beregningsfaktorer'!$B$15),'09. Utslippsfaktorer'!$P$16,IF(OR(F25='08. Beregningsfaktorer'!$B$24,F25='08. Beregningsfaktorer'!$B$25),'09. Utslippsfaktorer'!$P$18,IF(F25='08. Beregningsfaktorer'!$B$26,'09. Utslippsfaktorer'!$P$18,IF(F25='08. Beregningsfaktorer'!$B$27,'09. Utslippsfaktorer'!$P$18,IF(F25='08. Beregningsfaktorer'!$B$28,'09. Utslippsfaktorer'!$P$19,IF(F25='08. Beregningsfaktorer'!$B$29,'09. Utslippsfaktorer'!$P$19,IF(OR(F25='08. Beregningsfaktorer'!$B$17,F25='08. Beregningsfaktorer'!$B$16,F25='08. Beregningsfaktorer'!$B$18,F25='08. Beregningsfaktorer'!$B$19),'09. Utslippsfaktorer'!$P$16,IF(OR(F25='08. Beregningsfaktorer'!$B$20,F25='08. Beregningsfaktorer'!$B$21,F25='08. Beregningsfaktorer'!$B$22,F25='08. Beregningsfaktorer'!$B$23),'09. Utslippsfaktorer'!$P$14,\"Mangler type kjøretøy\"))))))))))","v":"Mangler type kjøretøy"},null,null,null,null,null,null,"CO2-ekv.","SO2-ekv.","P-ekv.","NMVOC",null,null,null,"CO2-ekv.","SO2-ekv.","P-ekv.","NMVOC",null,null,null,"CO2-ekv.","SO2-ekv.","P-ekv.","NMVOC"]
[null,null,null,"5.5.3","Hvor kommer massene fra?",null,{"$f":"IF(OR(F25='08. Beregningsfaktorer'!$B$28,F25='08. Beregningsfaktorer'!$B$29),0,IF(OR(F28='08. Beregningsfaktorer'!$E$77,F28='08. Beregningsfaktorer'!$E$80),F26*F29,0))","v":0},null,null,null,null,null,null,null,null,null,null,null,null,{"$f":"IF(F28='08. Beregningsfaktorer'!$E$78,\"km\",\"tonn km\")","v":"tonn km"},null,null,{"$f":"IF(F28='08. Beregningsfaktorer'!$E$78,IF(G26=\"tonn\",IF(OR(F25='08. Beregningsfaktorer'!$B$16,F25='08. Beregningsfaktorer'!$B$17),(F26/8.5)*F29,IF(OR(F25='08. Beregningsfaktorer'!$B$18,F25='08. Beregningsfaktorer'!$B$19),(F26/14)*F29,IF(OR(F25='08. Beregningsfaktorer'!$B$20,F25='08. Beregningsfaktorer'!$B$21),(F26/26)*F29,IF(OR(F25='08. Beregningsfaktorer'!$B$22,F25='08. Beregningsfaktorer'!$B$23),(F26/40)*F29,IF(OR(F25='08. Beregningsfaktorer'!$B$24,F25='08. Beregningsfaktorer'!$B$25),(F26/14)*F29,IF(F25='08. Beregningsfaktorer'!$B$26,(F26/14)*F29,IF(F25='08. Beregningsfaktorer'!$B$27,(F26/14)*F29))))))),IF(OR(F25='08. Beregningsfaktorer'!$B$16,F25='08. Beregningsfaktorer'!$B$17),(F26*'08. Beregningsfaktorer'!$G$65/8.5)*F29,IF(OR(F25='08. Beregningsfaktorer'!$B$18,F25='08. Beregningsfaktorer'!$B$19),(F26*'08. Beregningsfaktorer'!$G$65/14)*F29,IF(OR(F25='08. Beregningsfaktorer'!$B$20,F25='08. Beregningsfaktorer'!$B$21),(F26*'08. Beregningsfaktorer'!$G$65/26)*F29,IF(OR(F25='08. Beregningsfaktorer'!$B$22,F25='08. Beregningsfaktorer'!$B$23),(F26*'08. Beregningsfaktorer'!$G$65/40)*F29,IF(OR(F25='08. Beregningsfaktorer'!$B$24,F25='08. Beregningsfaktorer'!$B$25),(F26*'08. Beregningsfaktorer'!$G$65/14)*F29,IF(F25='08. Beregningsfaktorer'!$B$26,(F26*'08. Beregningsfaktorer'!$G$65/14)*F29,IF(F25='08. Beregningsfaktorer'!$B$27,(F26*'08. Beregningsfaktorer'!$G$65/14)*F29)))))))),IF(F26=0,0,IF(F28='08. Beregningsfaktorer'!$E$80,IF(AND(OR(F25='08. Beregningsfaktorer'!$B$28,F25='08. Beregningsfaktorer'!$B$29),G26=\"tonn\"),(F26/1900)*F29,IF(OR(F25='08. Beregningsfaktorer'!$B$28,F25='08. Beregningsfaktorer'!$B$29),(F26*'08. Beregningsfaktorer'!$G$65/1900)*F29,IF(G26=\"tonn\",F26,F26*'08. Beregningsfaktorer'!$G$65)*F29)),IF(G26=\"tonn\",F26*F29,F26*'08. Beregningsfaktorer'!$G$65)*F29)))","v":0},{"$f":"IF(OR(F28='08. Beregningsfaktorer'!$E$78,F25='08. Beregningsfaktorer'!$B$28,F25='08. Beregningsfaktorer'!$B$29),\"km\",\"tkm\")","v":"tkm"},null,null,{"$f":"\"Utslippsfaktor (kg/\"&W30&\"):\"&\"  \"","v":"Utslippsfaktor (kg/l):  "},null,{"$f":"IF(F25=0,0,(INDEX('09. Utslippsfaktorer'!$P$7:$U$13,MATCH(X30,'09. Utslippsfaktorer'!$P$7:$P$13,0),MATCH(\"kg \"&AC26,'09. Utslippsfaktorer'!$P$7:$U$7,0),1)))","v":0},{"$f":"IF(F25=0,0,(INDEX('09. Utslippsfaktorer'!$P$7:$U$13,MATCH(X30,'09. Utslippsfaktorer'!$P$7:$P$13,0),MATCH(\"kg \"&AD26,'09. Utslippsfaktorer'!$P$7:$U$7,0),1)))","v":0},{"$f":"IF(F25=0,0,(INDEX('09. Utslippsfaktorer'!$P$7:$U$13,MATCH(X30,'09. Utslippsfaktorer'!$P$7:$P$13,0),MATCH(\"kg \"&AE26,'09. Utslippsfaktorer'!$P$7:$U$7,0),1)))","v":0},{"$f":"IF(F25=0,0,(INDEX('09. Utslippsfaktorer'!$P$7:$U$13,MATCH(X30,'09. Utslippsfaktorer'!$P$7:$P$13,0),MATCH(\"kg \"&AF26,'09. Utslippsfaktorer'!$P$7:$U$7,0),1)))","v":0},null,{"$f":"\"Utslippsfaktor (kg/\"&X27&\"):\"","v":"Utslippsfaktor (kg/tkm):"},null,{"$f":"IF(F25=0,0,(INDEX('09. Utslippsfaktorer'!$P$7:$U$45,MATCH(V26,'09. Utslippsfaktorer'!$P$7:$P$45,0),MATCH(\"kg \"&AJ26,'09. Utslippsfaktorer'!$P$7:$U$7,0),1)))","v":0},{"$f":"IF(F25=0,0,(INDEX('09. Utslippsfaktorer'!$P$7:$U$45,MATCH(V26,'09. Utslippsfaktorer'!$P$7:$P$45,0),MATCH(\"kg \"&AK26,'09. Utslippsfaktorer'!$P$7:$U$7,0),1)))","v":0},{"$f":"IF(F25=0,0,(INDEX('09. Utslippsfaktorer'!$P$7:$U$45,MATCH(V26,'09. Utslippsfaktorer'!$P$7:$P$45,0),MATCH(\"kg \"&AL26,'09. Utslippsfaktorer'!$P$7:$U$7,0),1)))","v":0},{"$f":"IF(F25=0,0,(INDEX('09. Utslippsfaktorer'!$P$7:$U$45,MATCH(V26,'09. Utslippsfaktorer'!$P$7:$P$45,0),MATCH(\"kg \"&AM26,'09. Utslippsfaktorer'!$P$7:$U$7,0),1)))","v":0},null,"Utslipp (kg):  ",null,{"$f":"IF(F28='08. Beregningsfaktorer'!$E$79,0,AC28+AJ28)","v":0},{"$f":"IF(F28='08. Beregningsfaktorer'!$E$79,0,AD28+AK28)","v":0},{"$f":"IF(F28='08. Beregningsfaktorer'!$E$79,0,AE28+AL28)","v":0},{"$f":"IF(F28='08. Beregningsfaktorer'!$E$79,0,AF28+AM28)","v":0}]
[null,null,null,"5.5.4","Lastekapasitet",null,{"$f":"IF(OR(F25='08. Beregningsfaktorer'!$B$9,F25='08. Beregningsfaktorer'!$B$10,F25='08. Beregningsfaktorer'!$B$12,F25='08. Beregningsfaktorer'!$B$13,F25='08. Beregningsfaktorer'!$B$14,F25='08. Beregningsfaktorer'!$B$15,F25='08. Beregningsfaktorer'!$B$28,F25='08. Beregningsfaktorer'!$B$29),IF(F28='08. Beregningsfaktorer'!$E$80,0,1),IF(F28='08. Beregningsfaktorer'!$E$80,3,0))","v":0},null,null,null,null,null,null,null,null,null,null,null,null,"Korreksjonsfaktor",null,null,{"$f":"IF(F30=0,0,INDEX('08. Beregningsfaktorer'!$E$54:$G$55,MATCH(F30,'08. Beregningsfaktorer'!$E$54:$E$55,0),3))","v":0},null,null,null,"Utslipp (kg):  ",null,{"$f":"IFERROR(V30*AC27,\"Data mangler\")","v":0},{"$f":"IFERROR(V30*AD27,\"Data mangler\")","v":0},{"$f":"IFERROR(V30*AE27,\"Data mangler\")","v":0},{"$f":"IFERROR(V30*AF27,\"Data mangler\")","v":0},null,"Utslipp (kg):  ",null,{"$f":"IF(V26='09. Utslippsfaktorer'!$P$19,IF(G26=\"tonn\",F29*AJ27*F26,F29*AJ27*F26*'08. Beregningsfaktorer'!$G$65),IF(F28='08. Beregningsfaktorer'!$E$78,0,IFERROR(W27*AJ27,\"Data mangler\")))","v":0},{"$f":"IF(V26='09. Utslippsfaktorer'!$P$19,IF(G26=\"tonn\",F29*AK27*F26,F29*AK27*F26*'08. Beregningsfaktorer'!$G$65),IF(F28='08. Beregningsfaktorer'!$E$78,0,IFERROR(W27*AK27,\"Data mangler\")))","v":0},{"$f":"IF(V26='09. Utslippsfaktorer'!$P$19,IF(G26=\"tonn\",F29*AL27*F26,F29*AL27*F26*'08. Beregningsfaktorer'!$G$65),IF(F28='08. Beregningsfaktorer'!$E$78,0,IFERROR(W27*AL27,\"Data mangler\")))","v":0},{"$f":"IF(V26='09. Utslippsfaktorer'!$P$19,IF(G26=\"tonn\",F29*AM27*F26,F29*AM27*F26*'08. Beregningsfaktorer'!$G$65),IF(F28='08. Beregningsfaktorer'!$E$78,0,IFERROR(W27*AM27,\"Data mangler\")))","v":0}]
[null,null,null,"5.5.5","Distanse",null,"km",null,null,null,null,null,null,null,null,null,null,null,null,{"$f":"IF(F28='08. Beregningsfaktorer'!$E$78,\"Forbruk per km\",\"Forbruk per tonn km\")","v":"Forbruk per tonn km"},null,null,{"$f":"IFERROR(IF(F25=0,0,IF(F28='08. Beregningsfaktorer'!$E$78,INDEX('08. Beregningsfaktorer'!$E$30:$G$41,MATCH(F25,'08. Beregningsfaktorer'!$B$30:$B$41,0),3,1),INDEX('08. Beregningsfaktorer'!$E$9:$G$29,MATCH(F25,'08. Beregningsfaktorer'!$B$9:$B$29,0),3,1))),\"Loading..\")","v":0},{"$f":"IFERROR(W30&\"/\"&X27,\"Loading..\")","v":"l/tkm"}]
[null,null,null,"5.5.6","Transport med helning",null,null,null,null,null,null,null,null,null,null,null,null,null,null,"Forbruk",null,{"$f":"IFERROR(W27*W29*W28,\"Data mangler\")","v":0},{"$f":"IFERROR(IF(OR(F25='08. Beregningsfaktorer'!$B$26,F25='08. Beregningsfaktorer'!$B$27),\"kWh\",IF(F25='08. Beregningsfaktorer'!$B$11,\"MJ\",\"l\")),\"Loading..\")","v":"l"},{"$f":"IFERROR(IF(F25='08. Beregningsfaktorer'!$B$11,\"Biogass\",IF(OR(F25='08. Beregningsfaktorer'!$B$26,F25='08. Beregningsfaktorer'!$B$27),\"Elektrisitet\",IF(OR(F25='08. Beregningsfaktorer'!$B$10,F25='08. Beregningsfaktorer'!$B$13,F25='08. Beregningsfaktorer'!$B$15,F25='08. Beregningsfaktorer'!$B$17,F25='08. Beregningsfaktorer'!$B$17,F25='08. Beregningsfaktorer'!$B$19,F25='08. Beregningsfaktorer'!$B$21,F25='08. Beregningsfaktorer'!$B$23,F25='08. Beregningsfaktorer'!$B$25,F25='08. Beregningsfaktorer'!$B$29),\"Biodiesel\",IF(V26=\"Mangler type kjøretøy\",\"Mangler type kjøretøy\",\"Diesel\")))),\"Feil\")","v":"Mangler type kjøretøy"}]
[]
[null,null,null,null,null,null,null,null,null,null,null,null,null,null,null,null,null,null,null,null,null,null,null,null,null,null,null,null,null,null,null,null,null,null,null,null,null,null,null,null,{"$f":"E24&\" - Sum utslipp - Alle kjøretøy\"","v":"Transport til pukkverk - Sum utslipp - Alle kjøretøy"}]
[null,null,null,null,null,null,null,null,null,null,null,null,null,null,null,null,null,null,null,null,null,null,null,null,null,null,null,null,null,null,null,null,null,null,null,null,null,null,null,null,null,null,"CO2-ekv.","SO2-ekv.","P-ekv.","NMVOC"]
[null,null,null,"5.6","Balanse veitransport",{"$f":"SUMIF(E24:E31,\"Lastekapasitet\",G24:G31)","v":0},null,"Lastutnyttelse korrekt modellert",null,null,null,null,null,null,null,null,null,null,null,null,null,null,null,null,null,null,null,null,null,null,null,null,null,null,null,null,null,null,null,null,"Utslipp (kg):  ",null,{"$f":"SUMIF(D24:D31,D27,AQ24:AQ31)","v":0},{"$f":"SUMIF(D24:D31,D27,AR24:AR31)","v":0},{"$f":"SUMIF(D24:D31,D27,AS24:AS31)","v":0},{"$f":"SUMIF(D24:D31,D27,AT24:AT31)","v":0}]
[null,null,null,"5.6.1",{"$f":"\"Balanse - \"&E16","v":"Balanse - Tunnelmunning"},{"$f":"((F$7-SUMIF(F24:F31,'08. Beregningsfaktorer'!$B$28,G24:G31)-SUMIF(F24:F31,'08. Beregningsfaktorer'!#REF!,G24:G31))*F$16)-(SUMIF(F24:F31,E$7,G24:G31))","v":0},{"$f":"'02. Inndata steinmasser'!$F$7& \" km\"","v":"fm3 km"},"Transportdistanser og masser stemmer"]
[]
[null,null,null,null,null,null,null,null,null,null,null,null,null,null,null,null,null,null,null,{"$f":"V38&\" - Grunnlagsdata og forbruk - Ikke inkludert i beregninger\"","v":"Lastebil tipp - Grunnlagsdata og forbruk - Ikke inkludert i beregninger"},null,null,null,null,null,null,{"$f":"V38&\" - Utslipp knyttet til drivstoff/elektrisitet\"","v":"Lastebil tipp - Utslipp knyttet til drivstoff/elektrisitet"},null,null,null,null,null,null,null,null,null,null,null,null,null,{"$f":"V38&\" - Sum utslipp\"","v":"Lastebil tipp - Sum utslipp"}]
[null,null,null,null,null,null,null,null,null,null,null,null,null,null,null,null,null,null,null,"Kategori",null,"Lastebil tipp",null,null,null,null,null,null,"CO2-ekv.","SO2-ekv.","P-ekv.","NMVOC",null,null,null,null,null,null,null,null,null,null,"CO2-ekv.","SO2-ekv.","P-ekv.","NMVOC"]
[null,null,null,null,null,null,null,null,null,null,null,null,null,null,null,null,null,null,null,"Volum stein",null,null,null,"m3",{"$f":"IF(F9=0,0,IF(G9=\"m3\",F9*'08. Beregningsfaktorer'!$G$65/'08. Beregningsfaktorer'!$G$66-(SUMIF(C25:C32,\"J\",F25:F32)),(F9-(SUMIF(C25:C32,\"J\",F25:F32)))/'08. Beregningsfaktorer'!$G$66))","v":0},null,{"$f":"\"Utslippsfaktor (kg/\"&W41&\"):\"&\"  \"","v":"Utslippsfaktor (kg/l):  "},null,{"$f":"IF(V38=0,0,(INDEX('09. Utslippsfaktorer'!$P$7:$U$12,MATCH(X41,'09. Utslippsfaktorer'!$P$7:$P$12,0),MATCH(\"kg \"&AC38,'09. Utslippsfaktorer'!$P$7:$U$7,0),1)))","v":3.1476000000000002},{"$f":"IF(V38=0,0,(INDEX('09. Utslippsfaktorer'!$P$7:$U$12,MATCH(X41,'09. Utslippsfaktorer'!$P$7:$P$12,0),MATCH(\"kg \"&AD38,'09. Utslippsfaktorer'!$P$7:$U$7,0),1)))","v":0},{"$f":"IF(V38=0,0,(INDEX('09. Utslippsfaktorer'!$P$7:$U$12,MATCH(X41,'09. Utslippsfaktorer'!$P$7:$P$12,0),MATCH(\"kg \"&AE38,'09. Utslippsfaktorer'!$P$7:$U$7,0),1)))","v":0},{"$f":"IF(V38=0,0,(INDEX('09. Utslippsfaktorer'!$P$7:$U$12,MATCH(X41,'09. Utslippsfaktorer'!$P$7:$P$12,0),MATCH(\"kg \"&AF38,'09. Utslippsfaktorer'!$P$7:$U$7,0),1)))","v":0},null,null,null,null,null,null,null,null,"Utslipp (kg):  ",null,{"$f":"AC40+AJ40","v":0},{"$f":"AD40+AK40","v":0},{"$f":"AE40+AL40","v":0},{"$f":"AF40+AM40","v":0}]
[null,null,null,null,null,null,null,null,null,null,null,null,null,null,null,null,null,null,null,"Forbruk per m3 stein",null,null,{"$f":"IF(V38=0,0,(INDEX('08. Beregningsfaktorer'!$E$12:$G$89,MATCH(V38,'08. Beregningsfaktorer'!$E$12:$E$89,0),3,1)))","v":0.19},{"$f":"W41&\"/\"&X39","v":"l/m3"},null,null,"Utslipp (kg):  ",null,{"$f":"$V41*AC39","v":0},{"$f":"$V41*AD39","v":0},{"$f":"$V41*AE39","v":0},{"$f":"$V41*AF39","v":0}]
[null,null,null,null,null,null,null,null,null,null,null,null,null,null,null,null,null,null,null,"Forbruk",null,{"$f":"W39*W40","v":0},{"$f":"IF(V38='08. Beregningsfaktorer'!$E$50,\"l\",IF(V38='08. Beregningsfaktorer'!$E$51,\"l\",IF(V38='08. Beregningsfaktorer'!$E$52,\"l\",\"...\")))","v":"l"},{"$f":"IF(V38='08. Beregningsfaktorer'!$E$50,\"Diesel\",IF(V38='08. Beregningsfaktorer'!$E$51,\"Diesel\",IF(V38='08. Beregningsfaktorer'!$E$52,\"Diesel\",\"Mangler type kjøretøy\")))","v":"Diesel"}]
[]
[null,"Pukkverk"]
[]
[null,null,null,null,null,null,null,null,null,null,null,null,null,null,null,null,null,null,null,{"$f":"E46&\" - Grunnlagsdata og forbruk\"","v":"Stasjonært knuseverk knusetrinn 1 - Grunnlagsdata og forbruk"},null,null,null,null,null,null,{"$f":"E46&\" - Utslipp\"","v":"Stasjonært knuseverk knusetrinn 1 - Utslipp"},null,null,null,null,null,null,null,null,null,null,null,null,null,{"$f":"E46&\" - Sum utslipp\"","v":"Stasjonært knuseverk knusetrinn 1 - Sum utslipp"}]
[null,null,null,"5.7","Stasjonært knuseverk knusetrinn 1",null,null,null,null,null,null,null,null,null,null,null,null,null,null,"Kategori",null,{"$f":"'09. Utslippsfaktorer'!$P$22","v":"Pukkverk knusetrinn 1 inkl. sprengning"},null,null,null,null,null,null,"CO2-ekv.","SO2-ekv.","P-ekv.","NMVOC",null,null,null,null,null,null,null,null,null,null,"CO2-ekv.","SO2-ekv.","P-ekv.","NMVOC"]
[null,null,null,"5.7.1","Type knusetrinn ","Knusetrinn 1",null,null,null,null,null,null,null,null,null,null,null,null,null,"Mengde stein",null,null,0,"tonn",null,null,{"$f":"\"Utslippsfaktor (kg/\"&X47&\"):\"&\"  \"","v":"Utslippsfaktor (kg/tonn):  "},null,{"$f":"IF(F47=0,0,(INDEX('09. Utslippsfaktorer'!$P$7:$U$45,MATCH(V46,'09. Utslippsfaktorer'!$P$7:$P$45,0),MATCH(\"kg \"&AC46,'09. Utslippsfaktorer'!$P$7:$U$7,0),1)))","v":2.2000000000000002},{"$f":"IF(F47=0,0,(INDEX('09. Utslippsfaktorer'!$P$7:$U$45,MATCH(V46,'09. Utslippsfaktorer'!$P$7:$P$45,0),MATCH(\"kg \"&AD46,'09. Utslippsfaktorer'!$P$7:$U$7,0),1)))","v":0},{"$f":"IF(F47=0,0,(INDEX('09. Utslippsfaktorer'!$P$7:$U$45,MATCH(V46,'09. Utslippsfaktorer'!$P$7:$P$45,0),MATCH(\"kg \"&AE46,'09. Utslippsfaktorer'!$P$7:$U$7,0),1)))","v":0},{"$f":"IF(F47=0,0,(INDEX('09. Utslippsfaktorer'!$P$7:$U$45,MATCH(V46,'09. Utslippsfaktorer'!$P$7:$P$45,0),MATCH(\"kg \"&AF46,'09. Utslippsfaktorer'!$P$7:$U$7,0),1)))","v":0},null,null,null,null,null,null,null,null,"Utslipp (kg):  ",null,{"$f":"AC48","v":0},{"$f":"AD48","v":0},{"$f":"AE48","v":0},{"$f":"AF48","v":0}]
[null,null,null,null,null,null,null,null,null,null,null,null,null,null,null,null,null,null,null,"Kapasitet",null,null,{"$f":"0","v":0},{"$f":"X47&\"/\"&W49","v":"tonn/h"},null,null,"Utslipp (kg):  ",null,{"$f":"AC47*W47","v":0},{"$f":"AD47*W47","v":0},{"$f":"AE47*W47","v":0},{"$f":"AF47*W47","v":0}]
[null,null,null,null,null,null,null,null,null,null,null,null,null,null,null,null,null,null,null,"Forbruk",null,{"$f":"W47*W48","v":0},"h",{"$f":"\"Standard beregning\"","v":"Standard beregning"}]
[]
[null,null,null,null,null,null,null,null,null,null,null,null,null,null,null,null,null,null,null,{"$f":"E52&\" - Grunnlagsdata og forbruk\"","v":"Stasjonært knuseverk knusetrinn 2 - Grunnlagsdata og forbruk"},null,null,null,null,null,null,{"$f":"E52&\" - Utslipp\"","v":"Stasjonært knuseverk knusetrinn 2 - Utslipp"},null,null,null,null,null,null,null,null,null,null,null,null,null,{"$f":"E52&\" - Sum utslipp\"","v":"Stasjonært knuseverk knusetrinn 2 - Sum utslipp"}]
[null,null,null,"5.8","Stasjonært knuseverk knusetrinn 2",null,null,null,null,null,null,null,null,null,null,null,null,null,null,"Kategori",null,{"$f":"'09. Utslippsfaktorer'!$P$23","v":"Pukkverk knusetrinn 2 inkl. sprengning"},null,null,null,null,null,null,"CO2-ekv.","SO2-ekv.","P-ekv.","NMVOC",null,null,null,null,null,null,null,null,null,null,"CO2-ekv.","SO2-ekv.","P-ekv.","NMVOC"]
[null,null,null,"5.8.1","Type knusetrinn ","Knusetrinn 2",null,null,null,null,null,null,null,null,null,null,null,null,null,"Mengde stein",null,null,0,"tonn",null,null,{"$f":"\"Utslippsfaktor (kg/\"&X53&\"):\"&\"  \"","v":"Utslippsfaktor (kg/tonn):  "},null,{"$f":"IF(F53=0,0,(INDEX('09. Utslippsfaktorer'!$P$7:$U$45,MATCH(V52,'09. Utslippsfaktorer'!$P$7:$P$45,0),MATCH(\"kg \"&AC52,'09. Utslippsfaktorer'!$P$7:$U$7,0),1)))","v":2.375},{"$f":"IF(F53=0,0,(INDEX('09. Utslippsfaktorer'!$P$7:$U$45,MATCH(V52,'09. Utslippsfaktorer'!$P$7:$P$45,0),MATCH(\"kg \"&AD52,'09. Utslippsfaktorer'!$P$7:$U$7,0),1)))","v":0},{"$f":"IF(F53=0,0,(INDEX('09. Utslippsfaktorer'!$P$7:$U$45,MATCH(V52,'09. Utslippsfaktorer'!$P$7:$P$45,0),MATCH(\"kg \"&AE52,'09. Utslippsfaktorer'!$P$7:$U$7,0),1)))","v":0},{"$f":"IF(F53=0,0,(INDEX('09. Utslippsfaktorer'!$P$7:$U$45,MATCH(V52,'09. Utslippsfaktorer'!$P$7:$P$45,0),MATCH(\"kg \"&AF52,'09. Utslippsfaktorer'!$P$7:$U$7,0),1)))","v":0},null,null,null,null,null,null,null,null,"Utslipp (kg):  ",null,{"$f":"AC54","v":0},{"$f":"AD54","v":0},{"$f":"AE54","v":0},{"$f":"AF54","v":0}]
[null,null,null,null,null,null,null,null,null,null,null,null,null,null,null,null,null,null,null,"Kapasitet",null,null,{"$f":"0","v":0},{"$f":"X53&\"/\"&W55","v":"tonn/h"},null,null,"Utslipp (kg):  ",null,{"$f":"AC53*W53","v":0},{"$f":"AD53*W53","v":0},{"$f":"AE53*W53","v":0},{"$f":"AF53*W53","v":0}]
[null,null,null,null,null,null,null,null,null,null,null,null,null,null,null,null,null,null,null,"Forbruk",null,{"$f":"W53*W54","v":0},"h",{"$f":"\"Standard beregning\"","v":"Standard beregning"}]
[]
[null,null,null,null,null,null,null,null,null,null,null,null,null,null,null,null,null,null,null,{"$f":"E58&\" - Grunnlagsdata og forbruk\"","v":"Stasjonært knuseverk knusetrinn 3 - Grunnlagsdata og forbruk"},null,null,null,null,null,null,{"$f":"E58&\" - Utslipp\"","v":"Stasjonært knuseverk knusetrinn 3 - Utslipp"},null,null,null,null,null,null,null,null,null,null,null,null,null,{"$f":"E58&\" - Sum utslipp\"","v":"Stasjonært knuseverk knusetrinn 3 - Sum utslipp"}]
[null,null,null,"5.9","Stasjonært knuseverk knusetrinn 3",null,null,null,null,null,null,null,null,null,null,null,null,null,null,"Kategori",null,{"$f":"'09. Utslippsfaktorer'!$P$24","v":"Pukkverk knusetrinn 3 inkl. sprengning"},null,null,null,null,null,null,"CO2-ekv.","SO2-ekv.","P-ekv.","NMVOC",null,null,null,null,null,null,null,null,null,null,"CO2-ekv.","SO2-ekv.","P-ekv.","NMVOC"]
[null,null,null,"5.9.1","Type knusetrinn ","Knusetrinn 3",null,null,null,null,null,null,null,null,null,null,null,null,null,"Mengde stein",null,null,{"$f":"IF(F$12=0,0,IF(G$12=\"fm3\",F$12*'08. Beregningsfaktorer'!$G$65/'08. Beregningsfaktorer'!$G$66,F$12/'08. Beregningsfaktorer'!$G$66))","v":0},"tonn",null,null,{"$f":"\"Utslippsfaktor (kg/\"&X59&\"):\"&\"  \"","v":"Utslippsfaktor (kg/tonn):  "},null,{"$f":"IF(F59=0,0,(INDEX('09. Utslippsfaktorer'!$P$7:$U$45,MATCH(V58,'09. Utslippsfaktorer'!$P$7:$P$45,0),MATCH(\"kg \"&AC58,'09. Utslippsfaktorer'!$P$7:$U$7,0),1)))","v":2.5949999999999998},{"$f":"IF(F59=0,0,(INDEX('09. Utslippsfaktorer'!$P$7:$U$45,MATCH(V58,'09. Utslippsfaktorer'!$P$7:$P$45,0),MATCH(\"kg \"&AD58,'09. Utslippsfaktorer'!$P$7:$U$7,0),1)))","v":0},{"$f":"IF(F59=0,0,(INDEX('09. Utslippsfaktorer'!$P$7:$U$45,MATCH(V58,'09. Utslippsfaktorer'!$P$7:$P$45,0),MATCH(\"kg \"&AE58,'09. Utslippsfaktorer'!$P$7:$U$7,0),1)))","v":0},{"$f":"IF(F59=0,0,(INDEX('09. Utslippsfaktorer'!$P$7:$U$45,MATCH(V58,'09. Utslippsfaktorer'!$P$7:$P$45,0),MATCH(\"kg \"&AF58,'09. Utslippsfaktorer'!$P$7:$U$7,0),1)))","v":0},null,null,null,null,null,null,null,null,"Utslipp (kg):  ",null,{"$f":"AC60","v":0},{"$f":"AD60","v":0},{"$f":"AE60","v":0},{"$f":"AF60","v":0}]
[null,null,null,null,null,null,null,null,null,null,null,null,null,null,null,null,null,null,null,"Kapasitet",null,null,{"$f":"0","v":0},{"$f":"X59&\"/\"&W61","v":"tonn/h"},null,null,"Utslipp (kg):  ",null,{"$f":"AC59*W59","v":0},{"$f":"AD59*W59","v":0},{"$f":"AE59*W59","v":0},{"$f":"AF59*W59","v":0}]
[null,null,null,null,null,null,null,null,null,null,null,null,null,null,null,null,null,null,null,"Forbruk",null,{"$f":"W59*W60","v":0},"h",{"$f":"\"Standard beregning\"","v":"Standard beregning"}]
[]
[]
[]
[]
[null,"Transport"]
[null,null,null,null,null,null,null,null,null,null,null,null,null,null,null,null,null,null,null,{"$f":"E68&\" - Grunnlagsdata og forbruk\"","v":"Lasting til transport - Grunnlagsdata og forbruk"},null,null,null,null,null,null,{"$f":"E68&\" - Utslipp knyttet til drivstoff/elektrisitet\"","v":"Lasting til transport - Utslipp knyttet til drivstoff/elektrisitet"},null,null,null,null,null,null,{"$f":"E68&\" - Utslipp knyttet til maskin\"","v":"Lasting til transport - Utslipp knyttet til maskin"},null,null,null,null,null,null,{"$f":"E68&\" - Sum utslipp\"","v":"Lasting til transport - Sum utslipp"}]
[null,null,null,"5.10","Lasting til transport",null,null,null,null,null,null,null,null,null,null,null,null,null,null,"Kategori",null,{"$f":"IF(F69='08. Beregningsfaktorer'!$E$43,'08. Beregningsfaktorer'!$E$43,IF(F69='08. Beregningsfaktorer'!$E$44,'09. Utslippsfaktorer'!$P$20,IF(OR(F69='08. Beregningsfaktorer'!$E$45,F69='08. Beregningsfaktorer'!$E$47),'09. Utslippsfaktorer'!$P$21,IF(F69='08. Beregningsfaktorer'!$E$46,'09. Utslippsfaktorer'!$P$21,\"Mangler type lastemaskin\"))))","v":"Mangler type lastemaskin"},null,null,null,null,null,null,"CO2-ekv.","SO2-ekv.","P-ekv.","NMVOC",null,null,null,"CO2-ekv.","SO2-ekv.","P-ekv.","NMVOC",null,null,null,"CO2-ekv.","SO2-ekv.","P-ekv.","NMVOC"]
[null,null,null,"5.10.1","Type lastemaskin",null,null,null,null,null,null,null,null,null,null,null,null,null,null,"Volum stein",null,null,{"$f":"IF(F$12=0,0,IF(G$12=\"fm3\",F$12*'08. Beregningsfaktorer'!$G$65/'08. Beregningsfaktorer'!$G$66,F$12/'08. Beregningsfaktorer'!$G$66))","v":0},"lm3",null,null,{"$f":"\"Utslippsfaktor (kg/\"&W71&\"):\"&\"  \"","v":"Utslippsfaktor (kg/...):  "},null,{"$f":"IF(F69=0,0,IF(F69='08. Beregningsfaktorer'!$E$43,0,(INDEX('09. Utslippsfaktorer'!$P$7:$U$12,MATCH(X71,'09. Utslippsfaktorer'!$P$7:$P$12,0),MATCH(\"kg \"&AC68,'09. Utslippsfaktorer'!$P$7:$U$7,0),1))))","v":0},{"$f":"IF(F69=0,0,IF(F69='08. Beregningsfaktorer'!$E$43,0,(INDEX('09. Utslippsfaktorer'!$P$7:$U$12,MATCH(X71,'09. Utslippsfaktorer'!$P$7:$P$12,0),MATCH(\"kg \"&AD68,'09. Utslippsfaktorer'!$P$7:$U$7,0),1))))","v":0},{"$f":"IF(F69=0,0,IF(F69='08. Beregningsfaktorer'!$E$43,0,(INDEX('09. Utslippsfaktorer'!$P$7:$U$12,MATCH(X71,'09. Utslippsfaktorer'!$P$7:$P$12,0),MATCH(\"kg \"&AE68,'09. Utslippsfaktorer'!$P$7:$U$7,0),1))))","v":0},{"$f":"IF(F69=0,0,IF(F69='08. Beregningsfaktorer'!$E$43,0,(INDEX('09. Utslippsfaktorer'!$P$7:$U$12,MATCH(X71,'09. Utslippsfaktorer'!$P$7:$P$12,0),MATCH(\"kg \"&AF68,'09. Utslippsfaktorer'!$P$7:$U$7,0),1))))","v":0},null,"Utslippsfaktor (kg/m3):  ",null,{"$f":"IF(F69=0,0,IF(F69='08. Beregningsfaktorer'!$E$43,0,(INDEX('09. Utslippsfaktorer'!$P$7:$U$45,MATCH(V68,'09. Utslippsfaktorer'!$P$7:$P$45,0),MATCH(\"kg \"&AJ68,'09. Utslippsfaktorer'!$P$7:$U$7,0),1))))","v":0},{"$f":"IF(F69=0,0,IF(F69='08. Beregningsfaktorer'!$E$43,0,(INDEX('09. Utslippsfaktorer'!$P$7:$U$45,MATCH(V68,'09. Utslippsfaktorer'!$P$7:$P$45,0),MATCH(\"kg \"&AK68,'09. Utslippsfaktorer'!$P$7:$U$7,0),1))))","v":0},{"$f":"IF(F69=0,0,IF(F69='08. Beregningsfaktorer'!$E$43,0,(INDEX('09. Utslippsfaktorer'!$P$7:$U$45,MATCH(V68,'09. Utslippsfaktorer'!$P$7:$P$45,0),MATCH(\"kg \"&AL68,'09. Utslippsfaktorer'!$P$7:$U$7,0),1))))","v":0},{"$f":"IF(F69=0,0,IF(F69='08. Beregningsfaktorer'!$E$43,0,(INDEX('09. Utslippsfaktorer'!$P$7:$U$45,MATCH(V68,'09. Utslippsfaktorer'!$P$7:$P$45,0),MATCH(\"kg \"&AM68,'09. Utslippsfaktorer'!$P$7:$U$7,0),1))))","v":0},null,"Utslipp (kg):  ",null,{"$f":"AC70+AJ70","v":0},{"$f":"AD70+AK70","v":0},{"$f":"AE70+AL70","v":0},{"$f":"AF70+AM70","v":0}]
[null,null,null,null,null,null,null,null,null,null,null,null,null,null,null,null,null,null,null,"Forbruk per m3 stein",null,null,{"$f":"IF(F69=0,0,(INDEX('08. Beregningsfaktorer'!$E$12:$G$89,MATCH(F69,'08. Beregningsfaktorer'!$E$12:$E$89,0),3,1)))","v":0},{"$f":"W71&\"/\"&X69","v":".../lm3"},null,null,"Utslipp (kg):  ",null,{"$f":"V71*AC69","v":0},{"$f":"V71*AD69","v":0},{"$f":"V71*AE69","v":0},{"$f":"V71*AF69","v":0},null,"Utslipp (kg):  ",null,{"$f":"W69*AJ69","v":0},{"$f":"W69*AK69","v":0},{"$f":"W69*AL69","v":0},{"$f":"W69*AM69","v":0}]
[null,null,null,null,null,null,null,null,null,null,null,null,null,null,null,null,null,null,null,"Forbruk",null,{"$f":"W69*W70","v":0},{"$f":"IF(F69='08. Beregningsfaktorer'!$E$44,\"l\",IF(OR(F69='08. Beregningsfaktorer'!$E$45,F69='08. Beregningsfaktorer'!$E$47),\"l\",IF(F69='08. Beregningsfaktorer'!$E$46,\"kWh\",\"...\")))","v":"..."},{"$f":"IF(F69='08. Beregningsfaktorer'!$E$43,\"Ingen løft\",IF(F69='08. Beregningsfaktorer'!$E$44,\"Diesel\",IF(F69='08. Beregningsfaktorer'!$E$45,\"Diesel\",IF(F69='08. Beregningsfaktorer'!$E$47,\"Biodiesel\",IF(F69='08. Beregningsfaktorer'!$E$46,\"Elektrisitet\",\"Mangler type lastemaskin\")))))","v":"Mangler type lastemaskin"}]
[]
[null,null,null,"5.11","Transport fra pukkverk","Endre antall kjøretøy:"]
[null,null,null,"5.11.1","Type kjøretøy",null,{"$f":"F75","v":0},null,null,null,null,null,null,null,null,null,null,null,null,{"$f":"E73&\" - Grunnlagsdata og forbruk\"","v":"Transport fra pukkverk - Grunnlagsdata og forbruk"},null,null,null,null,null,null,{"$f":"E73&\" - Utslipp knyttet til drivstoff/elektrisitet\"","v":"Transport fra pukkverk - Utslipp knyttet til drivstoff/elektrisitet"},null,null,null,null,null,null,{"$f":"E73&\" - Utslipp knyttet til kjøretøy og infrastruktur\"","v":"Transport fra pukkverk - Utslipp knyttet til kjøretøy og infrastruktur"},null,null,null,null,null,null,{"$f":"E73&\" - Sum utslipp\"","v":"Transport fra pukkverk - Sum utslipp"}]
[null,null,{"$f":"IF(F74='08. Beregningsfaktorer'!#REF!,\"J\",0)","v":{"$error":"#REF!"}},"5.11.2","Mengde stein",null,{"$f":"'02. Inndata steinmasser'!$F$7","v":"fm3"},null,null,null,null,null,null,null,null,null,null,null,null,"Kategori",null,{"$f":"IF(OR(F74='08. Beregningsfaktorer'!$B$9,F74='08. Beregningsfaktorer'!$B$10,F74='08. Beregningsfaktorer'!$B$11),'09. Utslippsfaktorer'!$P$14,IF(OR(F74='08. Beregningsfaktorer'!$B$12,F74='08. Beregningsfaktorer'!$B$13),'09. Utslippsfaktorer'!$P$15,IF(OR(F74='08. Beregningsfaktorer'!$B$14,F74='08. Beregningsfaktorer'!$B$15),'09. Utslippsfaktorer'!$P$16,IF(OR(F74='08. Beregningsfaktorer'!$B$24,F74='08. Beregningsfaktorer'!$B$25),'09. Utslippsfaktorer'!$P$18,IF(F74='08. Beregningsfaktorer'!$B$26,'09. Utslippsfaktorer'!$P$18,IF(F74='08. Beregningsfaktorer'!$B$27,'09. Utslippsfaktorer'!$P$18,IF(F74='08. Beregningsfaktorer'!$B$28,'09. Utslippsfaktorer'!$P$19,IF(F74='08. Beregningsfaktorer'!$B$29,'09. Utslippsfaktorer'!$P$19,IF(OR(F74='08. Beregningsfaktorer'!$B$17,F74='08. Beregningsfaktorer'!$B$16,F74='08. Beregningsfaktorer'!$B$18,F74='08. Beregningsfaktorer'!$B$19),'09. Utslippsfaktorer'!$P$16,IF(OR(F74='08. Beregningsfaktorer'!$B$20,F74='08. Beregningsfaktorer'!$B$21,F74='08. Beregningsfaktorer'!$B$22,F74='08. Beregningsfaktorer'!$B$23),'09. Utslippsfaktorer'!$P$14,\"Mangler type kjøretøy\"))))))))))","v":"Mangler type kjøretøy"},null,null,null,null,null,null,"CO2-ekv.","SO2-ekv.","P-ekv.","NMVOC",null,null,null,"CO2-ekv.","SO2-ekv.","P-ekv.","NMVOC",null,null,null,"CO2-ekv.","SO2-ekv.","P-ekv.","NMVOC"]
[null,null,null,"5.11.3","Hvor skal massene?",null,{"$f":"IF(OR(F74='08. Beregningsfaktorer'!$B$28,F74='08. Beregningsfaktorer'!$B$29),0,IF(OR(F77='08. Beregningsfaktorer'!$E$77,F77='08. Beregningsfaktorer'!$E$80),F75*F78,0))","v":0},null,null,null,null,null,null,null,null,null,null,null,null,{"$f":"IF(F77='08. Beregningsfaktorer'!$E$78,\"km\",\"tonn km\")","v":"tonn km"},null,null,{"$f":"IF(F77='08. Beregningsfaktorer'!$E$78,IF(G75=\"tonn\",IF(OR(F74='08. Beregningsfaktorer'!$B$16,F74='08. Beregningsfaktorer'!$B$17),(F75/8.5)*F78,IF(OR(F74='08. Beregningsfaktorer'!$B$18,F74='08. Beregningsfaktorer'!$B$19),(F75/14)*F78,IF(OR(F74='08. Beregningsfaktorer'!$B$20,F74='08. Beregningsfaktorer'!$B$21),(F75/26)*F78,IF(OR(F74='08. Beregningsfaktorer'!$B$22,F74='08. Beregningsfaktorer'!$B$23),(F75/40)*F78,IF(OR(F74='08. Beregningsfaktorer'!$B$24,F74='08. Beregningsfaktorer'!$B$25),(F75/14)*F78,IF(F74='08. Beregningsfaktorer'!$B$26,(F75/14)*F78,IF(F74='08. Beregningsfaktorer'!$B$27,(F75/14)*F78))))))),IF(OR(F74='08. Beregningsfaktorer'!$B$16,F74='08. Beregningsfaktorer'!$B$17),(F75*'08. Beregningsfaktorer'!$G$65/8.5)*F78,IF(OR(F74='08. Beregningsfaktorer'!$B$18,F74='08. Beregningsfaktorer'!$B$19),(F75*'08. Beregningsfaktorer'!$G$65/14)*F78,IF(OR(F74='08. Beregningsfaktorer'!$B$20,F74='08. Beregningsfaktorer'!$B$21),(F75*'08. Beregningsfaktorer'!$G$65/26)*F78,IF(OR(F74='08. Beregningsfaktorer'!$B$22,F74='08. Beregningsfaktorer'!$B$23),(F75*'08. Beregningsfaktorer'!$G$65/40)*F78,IF(OR(F74='08. Beregningsfaktorer'!$B$24,F74='08. Beregningsfaktorer'!$B$25),(F75*'08. Beregningsfaktorer'!$G$65/14)*F78,IF(F74='08. Beregningsfaktorer'!$B$26,(F75*'08. Beregningsfaktorer'!$G$65/14)*F78,IF(F74='08. Beregningsfaktorer'!$B$27,(F75*'08. Beregningsfaktorer'!$G$65/14)*F78)))))))),IF(F75=0,0,IF(F77='08. Beregningsfaktorer'!$E$80,IF(AND(OR(F74='08. Beregningsfaktorer'!$B$28,F74='08. Beregningsfaktorer'!$B$29),G75=\"tonn\"),(F75/1900)*F78,IF(OR(F74='08. Beregningsfaktorer'!$B$28,F74='08. Beregningsfaktorer'!$B$29),(F75*'08. Beregningsfaktorer'!$G$65/1900)*F78,IF(G75=\"tonn\",F75,F75*'08. Beregningsfaktorer'!$G$65)*F78)),IF(G75=\"tonn\",F75*F78,F75*'08. Beregningsfaktorer'!$G$65)*F78)))","v":0},{"$f":"IF(OR(F77='08. Beregningsfaktorer'!$E$78,F74='08. Beregningsfaktorer'!$B$28,F74='08. Beregningsfaktorer'!$B$29),\"km\",\"tkm\")","v":"tkm"},null,null,{"$f":"\"Utslippsfaktor (kg/\"&W79&\"):\"&\"  \"","v":"Utslippsfaktor (kg/l):  "},null,{"$f":"IF(F74=0,0,(INDEX('09. Utslippsfaktorer'!$P$7:$U$13,MATCH(X79,'09. Utslippsfaktorer'!$P$7:$P$13,0),MATCH(\"kg \"&AC75,'09. Utslippsfaktorer'!$P$7:$U$7,0),1)))","v":0},{"$f":"IF(F74=0,0,(INDEX('09. Utslippsfaktorer'!$P$7:$U$13,MATCH(X79,'09. Utslippsfaktorer'!$P$7:$P$13,0),MATCH(\"kg \"&AD75,'09. Utslippsfaktorer'!$P$7:$U$7,0),1)))","v":0},{"$f":"IF(F74=0,0,(INDEX('09. Utslippsfaktorer'!$P$7:$U$13,MATCH(X79,'09. Utslippsfaktorer'!$P$7:$P$13,0),MATCH(\"kg \"&AE75,'09. Utslippsfaktorer'!$P$7:$U$7,0),1)))","v":0},{"$f":"IF(F74=0,0,(INDEX('09. Utslippsfaktorer'!$P$7:$U$13,MATCH(X79,'09. Utslippsfaktorer'!$P$7:$P$13,0),MATCH(\"kg \"&AF75,'09. Utslippsfaktorer'!$P$7:$U$7,0),1)))","v":0},null,{"$f":"\"Utslippsfaktor (kg/\"&X76&\"):\"","v":"Utslippsfaktor (kg/tkm):"},null,{"$f":"IF(F74=0,0,(INDEX('09. Utslippsfaktorer'!$P$7:$U$45,MATCH(V75,'09. Utslippsfaktorer'!$P$7:$P$45,0),MATCH(\"kg \"&AJ75,'09. Utslippsfaktorer'!$P$7:$U$7,0),1)))","v":0},{"$f":"IF(F74=0,0,(INDEX('09. Utslippsfaktorer'!$P$7:$U$45,MATCH(V75,'09. Utslippsfaktorer'!$P$7:$P$45,0),MATCH(\"kg \"&AK75,'09. Utslippsfaktorer'!$P$7:$U$7,0),1)))","v":0},{"$f":"IF(F74=0,0,(INDEX('09. Utslippsfaktorer'!$P$7:$U$45,MATCH(V75,'09. Utslippsfaktorer'!$P$7:$P$45,0),MATCH(\"kg \"&AL75,'09. Utslippsfaktorer'!$P$7:$U$7,0),1)))","v":0},{"$f":"IF(F74=0,0,(INDEX('09. Utslippsfaktorer'!$P$7:$U$45,MATCH(V75,'09. Utslippsfaktorer'!$P$7:$P$45,0),MATCH(\"kg \"&AM75,'09. Utslippsfaktorer'!$P$7:$U$7,0),1)))","v":0},null,"Utslipp (kg):  ",null,{"$f":"IF(F77='08. Beregningsfaktorer'!$E$79,0,AC77+AJ77)","v":0},{"$f":"IF(F77='08. Beregningsfaktorer'!$E$79,0,AD77+AK77)","v":0},{"$f":"IF(F77='08. Beregningsfaktorer'!$E$79,0,AE77+AL77)","v":0},{"$f":"IF(F77='08. Beregningsfaktorer'!$E$79,0,AF77+AM77)","v":0}]
[null,null,null,"5.11.4","Lastekapasitet",null,{"$f":"IF(OR(F74='08. Beregningsfaktorer'!$B$9,F74='08. Beregningsfaktorer'!$B$10,F74='08. Beregningsfaktorer'!$B$12,F74='08. Beregningsfaktorer'!$B$13,F74='08. Beregningsfaktorer'!$B$14,F74='08. Beregningsfaktorer'!$B$15,F74='08. Beregningsfaktorer'!$B$28,F74='08. Beregningsfaktorer'!$B$29),IF(F77='08. Beregningsfaktorer'!$E$80,0,1),IF(F77='08. Beregningsfaktorer'!$E$80,3,0))","v":0},null,null,null,null,null,null,null,null,null,null,null,null,"Korreksjonsfaktor",null,null,{"$f":"IF(F79=0,0,INDEX('08. Beregningsfaktorer'!$E$54:$G$55,MATCH(F79,'08. Beregningsfaktorer'!$E$54:$E$55,0),3))","v":0},null,null,null,"Utslipp (kg):  ",null,{"$f":"IFERROR(V79*AC76,\"Data mangler\")","v":0},{"$f":"IFERROR(V79*AD76,\"Data mangler\")","v":0},{"$f":"IFERROR(V79*AE76,\"Data mangler\")","v":0},{"$f":"IFERROR(V79*AF76,\"Data mangler\")","v":0},null,"Utslipp (kg):  ",null,{"$f":"IF(V75='09. Utslippsfaktorer'!$P$19,IF(G75=\"tonn\",F78*AJ76*F75,F78*AJ76*F75*'08. Beregningsfaktorer'!$G$65),IF(F77='08. Beregningsfaktorer'!$E$78,0,IFERROR(W76*AJ76,\"Data mangler\")))","v":0},{"$f":"IF(V75='09. Utslippsfaktorer'!$P$19,IF(G75=\"tonn\",F78*AK76*F75,F78*AK76*F75*'08. Beregningsfaktorer'!$G$65),IF(F77='08. Beregningsfaktorer'!$E$78,0,IFERROR(W76*AK76,\"Data mangler\")))","v":0},{"$f":"IF(V75='09. Utslippsfaktorer'!$P$19,IF(G75=\"tonn\",F78*AL76*F75,F78*AL76*F75*'08. Beregningsfaktorer'!$G$65),IF(F77='08. Beregningsfaktorer'!$E$78,0,IFERROR(W76*AL76,\"Data mangler\")))","v":0},{"$f":"IF(V75='09. Utslippsfaktorer'!$P$19,IF(G75=\"tonn\",F78*AM76*F75,F78*AM76*F75*'08. Beregningsfaktorer'!$G$65),IF(F77='08. Beregningsfaktorer'!$E$78,0,IFERROR(W76*AM76,\"Data mangler\")))","v":0}]
[null,null,null,"5.11.5","Distanse",null,"km",null,null,null,null,null,null,null,null,null,null,null,null,{"$f":"IF(F77='08. Beregningsfaktorer'!$E$78,\"Forbruk per km\",\"Forbruk per tonn km\")","v":"Forbruk per tonn km"},null,null,{"$f":"IFERROR(IF(F74=0,0,IF(F77='08. Beregningsfaktorer'!$E$78,INDEX('08. Beregningsfaktorer'!$E$30:$G$41,MATCH(F74,'08. Beregningsfaktorer'!$B$30:$B$41,0),3,1),INDEX('08. Beregningsfaktorer'!$E$9:$G$29,MATCH(F74,'08. Beregningsfaktorer'!$B$9:$B$29,0),3,1))),\"Loading..\")","v":0},{"$f":"IFERROR(W79&\"/\"&X76,\"Loading..\")","v":"l/tkm"}]
[null,null,null,"5.11.6","Transport med helning",null,null,null,null,null,null,null,null,null,null,null,null,null,null,"Forbruk",null,{"$f":"IFERROR(W76*W78*W77,\"Data mangler\")","v":0},{"$f":"IFERROR(IF(OR(F74='08. Beregningsfaktorer'!$B$26,F74='08. Beregningsfaktorer'!$B$27),\"kWh\",IF(F74='08. Beregningsfaktorer'!$B$11,\"MJ\",\"l\")),\"Loading..\")","v":"l"},{"$f":"IFERROR(IF(F74='08. Beregningsfaktorer'!$B$11,\"Biogass\",IF(OR(F74='08. Beregningsfaktorer'!$B$26,F74='08. Beregningsfaktorer'!$B$27),\"Elektrisitet\",IF(OR(F74='08. Beregningsfaktorer'!$B$10,F74='08. Beregningsfaktorer'!$B$13,F74='08. Beregningsfaktorer'!$B$15,F74='08. Beregningsfaktorer'!$B$17,F74='08. Beregningsfaktorer'!$B$17,F74='08. Beregningsfaktorer'!$B$19,F74='08. Beregningsfaktorer'!$B$21,F74='08. Beregningsfaktorer'!$B$23,F74='08. Beregningsfaktorer'!$B$25,F74='08. Beregningsfaktorer'!$B$29),\"Biodiesel\",IF(V75=\"Mangler type kjøretøy\",\"Mangler type kjøretøy\",\"Diesel\")))),\"Feil\")","v":"Mangler type kjøretøy"}]
[]
[null,null,null,null,null,null,null,null,null,null,null,null,null,null,null,null,null,null,null,null,null,null,null,null,null,null,null,null,null,null,null,null,null,null,null,null,null,null,null,null,{"$f":"E73&\" - Sum utslipp - Alle kjøretøy\"","v":"Transport fra pukkverk - Sum utslipp - Alle kjøretøy"}]
[null,null,null,null,null,null,null,null,null,null,null,null,null,null,null,null,null,null,null,null,null,null,null,null,null,null,null,null,null,null,null,null,null,null,null,null,null,null,null,null,null,null,"CO2-ekv.","SO2-ekv.","P-ekv.","NMVOC"]
[null,null,null,"5.12","Balanse veitransport",{"$f":"SUMIF(E73:E80,\"Lastekapasitet\",G73:G80)","v":0},null,"Lastutnyttelse korrekt modellert",null,null,null,null,null,null,null,null,null,null,null,null,null,null,null,null,null,null,null,null,null,null,null,null,null,null,null,null,null,null,null,null,"Utslipp (kg):  ",null,{"$f":"SUMIF(D73:D80,D76,AQ73:AQ80)","v":0},{"$f":"SUMIF(D73:D80,D76,AR73:AR80)","v":0},{"$f":"SUMIF(D73:D80,D76,AS73:AS80)","v":0},{"$f":"SUMIF(D73:D80,D76,AT73:AT80)","v":0}]
[null,null,null,"5.12.1",{"$f":"\"Balanse - \"&E17","v":"Balanse - Linja"},{"$f":"((F$12-SUMIF(F38:F45,'08. Beregningsfaktorer'!$B$28,G38:G45)-SUMIF(F38:F45,'08. Beregningsfaktorer'!#REF!,G38:G45))*F$17)-(SUMIF(F73:F80,E$12,G73:G80))","v":0},{"$f":"'02. Inndata steinmasser'!$F$7& \" km\"","v":"fm3 km"},"Transportdistanser og masser stemmer"]

{"sheet":"06. Transport annen bruk","index":6,"n_rows":133,"n_cols":46,"rows_kept":133,"cut":false,"hidden":false,"merged":[[89,41,89,45],[114,19,114,24],[114,26,114,31],[114,33,114,38],[114,41,114,45],[39,19,39,24],[39,26,39,31],[39,33,39,38],[39,41,39,45],[64,19,64,24],[64,26,64,31],[64,33,64,38],[64,41,64,45],[46,19,46,24],[46,26,46,31],[46,33,46,38],[126,23,126,24],[86,26,86,31],[86,33,86,38],[71,19,71,24],[71,26,71,31],[71,33,71,38],[61,26,61,31],[61,33,61,38],[65,21,65,24],[66,26,66,27],[66,33,66,34],[67,19,67,20],[67,26,67,27],[67,33,67,34],[68,23,68,24],[89,19,89,24],[89,26,89,31],[89,33,89,38],[1,3,1,12],[85,1,109,1],[60,1,84,1],[35,1,59,1],[74,26,74,27],[74,33,74,34],[76,23,76,24],[71,40,71,45],[72,21,72,24],[73,26,73,27],[73,33,73,34],[73,40,73,41],[48,40,48,41],[49,26,49,27],[49,33,49,34],[91,26,91,27],[91,33,91,34],[91,40,91,41],[92,19,92,20],[92,26,92,27],[92,33,92,34],[86,19,86,24],[1,0,1,2],[48,26,48,27],[121,40,121,45],[122,21,122,24],[123,26,123,27],[123,33,123,34],[123,40,123,41],[101,23,101,24],[121,19,121,24],[121,26,121,31],[121,33,121,38],[115,21,115,24],[116,26,116,27],[116,33,116,34],[116,40,116,41],[117,19,117,20],[117,26,117,27],[117,33,117,34],[118,23,118,24],[128,40,128,45],[130,40,130,41],[36,19,36,24],[36,26,36,31],[36,33,36,38],[36,40,36,45],[40,21,40,24],[41,26,41,27],[41,33,41,34],[41,40,41,41],[42,19,42,20],[42,26,42,27],[42,33,42,34],[43,23,43,24],[61,19,61,24],[53,40,53,45],[55,40,55,41],[78,40,78,45],[80,40,80,41],[103,40,103,45],[61,40,61,45],[66,40,66,41],[124,26,124,27],[124,33,124,34],[4,1,34,1],[86,40,86,45],[90,21,90,24],[93,23,93,24],[111,19,111,24],[111,26,111,31],[111,33,111,38],[111,40,111,45],[105,40,105,41],[98,26,98,27],[98,33,98,34],[98,40,98,41],[99,26,99,27],[99,33,99,34],[96,19,96,24],[96,26,96,31],[96,33,96,38],[96,40,96,45],[97,21,97,24],[46,40,46,45],[47,21,47,24],[110,1,134,1],[48,33,48,34],[51,23,51,24]]}
[]
[null,null,null,"06. Transport til annen samfunnsnyttig bruk"]
[]
[null,null,null,"Nr.","Prosess","Mengde ","Enhet"]
[null,"Massefordeling"]
[null,null,null,"6.1","Masser til annen samfunnsnyttig bruk"]
[null,null,null,"6.1.1","Tunnelmunning",{"$f":"'02. Inndata steinmasser'!F38","v":0},{"$f":"'02. Inndata steinmasser'!$F$7","v":"fm3"}]
[null,null,null,"6.1.2","Mobilt knuseverk",{"$f":"'03. Mobilt knuseverk'!F18","v":0},{"$f":"'02. Inndata steinmasser'!$F$7","v":"fm3"}]
[null,null,null,"6.1.3","Restprodukt mobilt knuseverk",{"$f":"IF('03. Mobilt knuseverk'!F12=\"Annen samfunnsnyttig bruk\",'03. Mobilt knuseverk'!F22,0)","v":0},{"$f":"'02. Inndata steinmasser'!$F$7","v":"fm3"}]
[]
[null,null,null,"6.2","Fordeling av masser til betongfabrikk"]
[null,null,null,"6.2.1","Tunnelmunning",null,{"$f":"'02. Inndata steinmasser'!$F$7","v":"fm3"}]
[null,null,null,"6.2.2","Mobilt knuseverk",null,{"$f":"'02. Inndata steinmasser'!$F$7","v":"fm3"}]
[null,null,null,"6.2.3","Restprodukt mobilt knuseverk",null,{"$f":"'02. Inndata steinmasser'!$F$7","v":"fm3"}]
[]
[null,null,null,"6.3","Fordeling av masser til asfaltproduksjon"]
[null,null,null,"6.3.1","Tunnelmunning",null,{"$f":"'02. Inndata steinmasser'!$F$7","v":"fm3"}]
[null,null,null,"6.3.2","Mobilt knuseverk",null,{"$f":"'02. Inndata steinmasser'!$F$7","v":"fm3"}]
[null,null,null,"6.3.3","Restprodukt mobilt knuseverk",null,{"$f":"'02. Inndata steinmasser'!$F$7","v":"fm3"}]
[]
[null,null,null,"6.4","Fordeling av masser til nærliggende prosjekt"]
[null,null,null,"6.4.1","Tunnelmunning",null,{"$f":"'02. Inndata steinmasser'!$F$7","v":"fm3"}]
[null,null,null,"6.4.2","Mobilt knuseverk",null,{"$f":"'02. Inndata steinmasser'!$F$7","v":"fm3"}]
[null,null,null,"6.4.3","Restprodukt mobilt knuseverk",null,{"$f":"'02. Inndata steinmasser'!$F$7","v":"fm3"}]
[]
[null,null,null,"6.5","Fordeling av masser til andre formål"]
[null,null,null,"6.5.1","Tunnelmunning",null,{"$f":"'02. Inndata steinmasser'!$F$7","v":"fm3"}]
[null,null,null,"6.5.2","Mobilt knuseverk",null,{"$f":"'02. Inndata steinmasser'!$F$7","v":"fm3"}]
[null,null,null,"6.5.3","Restprodukt mobilt knuseverk",null,{"$f":"'02. Inndata steinmasser'!$F$7","v":"fm3"}]
[]
[null,null,null,"6.6","Balanse"]
[null,null,null,"6.6.1","Sum til annen samfunnsnyttig bruk",{"$f":"SUM(F7:F9)","v":0},{"$f":"'02. Inndata steinmasser'!$F$7","v":"fm3"}]
[null,null,null,"6.6.2","Sum fordeling av lokale masser",{"$f":"SUM(F12:F14)+SUM(F17:F19)+SUM(F22:F24)+SUM(F27:F29)","v":0},{"$f":"'02. Inndata steinmasser'!$F$7","v":"fm3"}]
[null,null,null,"6.6.3","Ufordelte masser",{"$f":"F32-F33","v":0},{"$f":"'02. Inndata steinmasser'!$F$7","v":"fm3"},"Ingen ufordelte masser"]
[]
[null,"Betongfabrikk"]
[null,null,null,"6.7","Veidistanser mellom betongfabrikk og…"]
[null,null,null,"6.7.1","Tunnelmunning",null,"km"]
[null,null,null,"6.7.2","Mobilt knuseverk",null,"km"]
[null,null,null,null,null,null,null,null,null,null,null,null,null,null,null,null,null,null,null,{"$f":"E41&\" - Grunnlagsdata og forbruk\"","v":"Lasting til transport - Grunnlagsdata og forbruk"},null,null,null,null,null,null,{"$f":"E41&\" - Utslipp knyttet til drivstoff/elektrisitet\"","v":"Lasting til transport - Utslipp knyttet til drivstoff/elektrisitet"},null,null,null,null,null,null,{"$f":"E41&\" - Utslipp knyttet til maskin\"","v":"Lasting til transport - Utslipp knyttet til maskin"},null,null,null,null,null,null,null,{"$f":"E41&\" - Sum utslipp\"","v":"Lasting til transport - Sum utslipp"}]
[null,null,null,"6.8","Lasting til transport",null,null,null,null,null,null,null,null,null,null,null,null,null,null,"Kategori",null,{"$f":"IF(F42='08. Beregningsfaktorer'!$E$43,'08. Beregningsfaktorer'!$E$43,IF(F42='08. Beregningsfaktorer'!$E$44,'09. Utslippsfaktorer'!$P$20,IF(OR(F42='08. Beregningsfaktorer'!$E$45,F42='08. Beregningsfaktorer'!$E$47),'09. Utslippsfaktorer'!$P$21,IF(F42='08. Beregningsfaktorer'!$E$46,'09. Utslippsfaktorer'!$P$21,\"Mangler type lastemaskin\"))))","v":"Mangler type lastemaskin"},null,null,null,null,null,null,"CO2-ekv.","SO2-ekv.","P-ekv.","NMVOC",null,null,null,"CO2-ekv.","SO2-ekv.","P-ekv.","NMVOC",null,null,null,"CO2-ekv.","SO2-ekv.","P-ekv.","NMVOC"]
[null,null,null,"6.8.1","Type lastemaskin",null,null,null,null,null,null,null,null,null,null,null,null,null,null,"Volum stein",null,null,{"$f":"IF((F$12+F$13+F$14)=0,0,IF(G$12=\"fm3\",(F$12+F$13+F$14)*'08. Beregningsfaktorer'!$G$65,(F$12+F$13+F$14)/'08. Beregningsfaktorer'!$G$65))","v":0},"lm3",null,null,{"$f":"\"Utslippsfaktor (kg/\"&W44&\"):\"&\"  \"","v":"Utslippsfaktor (kg/...):  "},null,{"$f":"IF(F42=0,0,IF(F42='08. Beregningsfaktorer'!$E$43,0,(INDEX('09. Utslippsfaktorer'!$P$7:$U$12,MATCH(X44,'09. Utslippsfaktorer'!$P$7:$P$12,0),MATCH(\"kg \"&AC41,'09. Utslippsfaktorer'!$P$7:$U$7,0),1))))","v":0},{"$f":"IF(F42=0,0,IF(F42='08. Beregningsfaktorer'!$E$43,0,(INDEX('09. Utslippsfaktorer'!$P$7:$U$12,MATCH(X44,'09. Utslippsfaktorer'!$P$7:$P$12,0),MATCH(\"kg \"&AD41,'09. Utslippsfaktorer'!$P$7:$U$7,0),1))))","v":0},{"$f":"IF(F42=0,0,IF(F42='08. Beregningsfaktorer'!$E$43,0,(INDEX('09. Utslippsfaktorer'!$P$7:$U$12,MATCH(X44,'09. Utslippsfaktorer'!$P$7:$P$12,0),MATCH(\"kg \"&AE41,'09. Utslippsfaktorer'!$P$7:$U$7,0),1))))","v":0},{"$f":"IF(F42=0,0,IF(F42='08. Beregningsfaktorer'!$E$43,0,(INDEX('09. Utslippsfaktorer'!$P$7:$U$12,MATCH(X44,'09. Utslippsfaktorer'!$P$7:$P$12,0),MATCH(\"kg \"&AF41,'09. Utslippsfaktorer'!$P$7:$U$7,0),1))))","v":0},null,"Utslippsfaktor (kg/m3):  ",null,{"$f":"IF(F42=0,0,IF(F42='08. Beregningsfaktorer'!$E$43,0,(INDEX('09. Utslippsfaktorer'!$P$7:$U$45,MATCH(V41,'09. Utslippsfaktorer'!$P$7:$P$45,0),MATCH(\"kg \"&AJ41,'09. Utslippsfaktorer'!$P$7:$U$7,0),1))))","v":0},{"$f":"IF(F42=0,0,IF(F42='08. Beregningsfaktorer'!$E$43,0,(INDEX('09. Utslippsfaktorer'!$P$7:$U$45,MATCH(V41,'09. Utslippsfaktorer'!$P$7:$P$45,0),MATCH(\"kg \"&AK41,'09. Utslippsfaktorer'!$P$7:$U$7,0),1))))","v":0},{"$f":"IF(F42=0,0,IF(F42='08. Beregningsfaktorer'!$E$43,0,(INDEX('09. Utslippsfaktorer'!$P$7:$U$45,MATCH(V41,'09. Utslippsfaktorer'!$P$7:$P$45,0),MATCH(\"kg \"&AL41,'09. Utslippsfaktorer'!$P$7:$U$7,0),1))))","v":0},{"$f":"IF(F42=0,0,IF(F42='08. Beregningsfaktorer'!$E$43,0,(INDEX('09. Utslippsfaktorer'!$P$7:$U$45,MATCH(V41,'09. Utslippsfaktorer'!$P$7:$P$45,0),MATCH(\"kg \"&AM41,'09. Utslippsfaktorer'!$P$7:$U$7,0),1))))","v":0},null,"Utslipp (kg):  ",null,{"$f":"AC43+AJ43","v":0},{"$f":"AD43+AK43","v":0},{"$f":"AE43+AL43","v":0},{"$f":"AF43+AM43","v":0}]
[null,null,null,null,null,null,null,null,null,null,null,null,null,null,null,null,null,null,null,"Forbruk per m3 stein",null,null,{"$f":"IF(F42=0,0,(INDEX('08. Beregningsfaktorer'!$E$12:$G$89,MATCH(F42,'08. Beregningsfaktorer'!$E$12:$E$89,0),3,1)))","v":0},{"$f":"W44&\"/\"&X42","v":".../lm3"},null,null,"Utslipp (kg):  ",null,{"$f":"V44*AC42","v":0},{"$f":"V44*AD42","v":0},{"$f":"V44*AE42","v":0},{"$f":"V44*AF42","v":0},null,"Utslipp (kg):  ",null,{"$f":"W42*AJ42","v":0},{"$f":"W42*AK42","v":0},{"$f":"W42*AL42","v":0},{"$f":"W42*AM42","v":0}]
[null,null,null,null,null,null,null,"OBS! Retur med nyttelast tas ikke med i totalutslipp. Utslipp kan sees i mellomregningene til høyre.",null,null,null,null,null,null,null,null,null,null,null,"Forbruk",null,{"$f":"W42*W43","v":0},{"$f":"IF(F42='08. Beregningsfaktorer'!$E$44,\"l\",IF(OR(F42='08. Beregningsfaktorer'!$E$45,F42='08. Beregningsfaktorer'!$E$47),\"l\",IF(F42='08. Beregningsfaktorer'!$E$46,\"kWh\",\"...\")))","v":"..."},{"$f":"IF(F42='08. Beregningsfaktorer'!$E$43,\"Ingen løft\",IF(F42='08. Beregningsfaktorer'!$E$44,\"Diesel\",IF(F42='08. Beregningsfaktorer'!$E$45,\"Diesel\",IF(F42='08. Beregningsfaktorer'!$E$47,\"Biodiesel\",IF(F42='08. Beregningsfaktorer'!$E$46,\"Elektrisitet\",\"Mangler type lastemaskin\")))))","v":"Mangler type lastemaskin"}]
[null,null,null,null,null,null,null,"OBS! Mengde transportert ut av prosjektet må også skrives inn for retur med tom last, for å beregne antall returer."]
[null,null,null,"6.9","Transport til betongfabrikk","Endre antall kjøretøy:"]
[null,null,null,"6.9.1","Type kjøretøy",null,{"$f":"F48","v":0},null,null,null,null,null,null,null,null,null,null,null,null,{"$f":"E46&\" - Grunnlagsdata og forbruk\"","v":"Transport til betongfabrikk - Grunnlagsdata og forbruk"},null,null,null,null,null,null,{"$f":"E46&\" - Utslipp knyttet til drivstoff/elektrisitet\"","v":"Transport til betongfabrikk - Utslipp knyttet til drivstoff/elektrisitet"},null,null,null,null,null,null,{"$f":"E46&\" - Utslipp knyttet til kjøretøy og infrastruktur\"","v":"Transport til betongfabrikk - Utslipp knyttet til kjøretøy og infrastruktur"},null,null,null,null,null,null,{"$f":"E46&\" - Sum utslipp\"","v":"Transport til betongfabrikk - Sum utslipp"}]
[null,null,{"$f":"IF(F47='08. Beregningsfaktorer'!#REF!,\"J\",0)","v":{"$error":"#REF!"}},"6.9.2","Mengde stein",null,{"$f":"'02. Inndata steinmasser'!$F$7","v":"fm3"},null,null,null,null,null,null,null,null,null,null,null,null,"Kategori",null,{"$f":"IF(OR(F47='08. Beregningsfaktorer'!$B$9,F47='08. Beregningsfaktorer'!$B$10,F47='08. Beregningsfaktorer'!$B$11),'09. Utslippsfaktorer'!$P$14,IF(OR(F47='08. Beregningsfaktorer'!$B$12,F47='08. Beregningsfaktorer'!$B$13),'09. Utslippsfaktorer'!$P$15,IF(OR(F47='08. Beregningsfaktorer'!$B$14,F47='08. Beregningsfaktorer'!$B$15),'09. Utslippsfaktorer'!$P$16,IF(OR(F47='08. Beregningsfaktorer'!$B$24,F47='08. Beregningsfaktorer'!$B$25),'09. Utslippsfaktorer'!$P$18,IF(F47='08. Beregningsfaktorer'!$B$26,'09. Utslippsfaktorer'!$P$18,IF(F47='08. Beregningsfaktorer'!$B$27,'09. Utslippsfaktorer'!$P$18,IF(F47='08. Beregningsfaktorer'!$B$28,'09. Utslippsfaktorer'!$P$19,IF(F47='08. Beregningsfaktorer'!$B$29,'09. Utslippsfaktorer'!$P$19,IF(OR(F47='08. Beregningsfaktorer'!$B$17,F47='08. Beregningsfaktorer'!$B$16,F47='08. Beregningsfaktorer'!$B$18,F47='08. Beregningsfaktorer'!$B$19),'09. Utslippsfaktorer'!$P$16,IF(OR(F47='08. Beregningsfaktorer'!$B$20,F47='08. Beregningsfaktorer'!$B$21,F47='08. Beregningsfaktorer'!$B$22,F47='08. Beregningsfaktorer'!$B$23),'09. Utslippsfaktorer'!$P$14,\"Mangler type kjøretøy\"))))))))))","v":"Mangler type kjøretøy"},null,null,null,null,null,null,"CO2-ekv.","SO2-ekv.","P-ekv.","NMVOC",null,null,null,"CO2-ekv.","SO2-ekv.","P-ekv.","NMVOC",null,null,null,"CO2-ekv.","SO2-ekv.","P-ekv.","NMVOC"]
[null,null,null,"6.9.3","Hvor kommer massene fra?",null,{"$f":"IF(OR(F47='08. Beregningsfaktorer'!$B$28,F47='08. Beregningsfaktorer'!$B$29),0,IF(OR(F50='08. Beregningsfaktorer'!$E$77,F50='08. Beregningsfaktorer'!$E$80),F48*F51,0))","v":0},null,null,null,null,null,null,null,null,null,null,null,null,{"$f":"IF(F50='08. Beregningsfaktorer'!$E$78,\"km\",\"tonn km\")","v":"tonn km"},null,null,{"$f":"IF(F50='08. Beregningsfaktorer'!$E$78,IF(G48=\"tonn\",IF(OR(F47='08. Beregningsfaktorer'!$B$16,F47='08. Beregningsfaktorer'!$B$17),(F48/8.5)*F51,IF(OR(F47='08. Beregningsfaktorer'!$B$18,F47='08. Beregningsfaktorer'!$B$19),(F48/14)*F51,IF(OR(F47='08. Beregningsfaktorer'!$B$20,F47='08. Beregningsfaktorer'!$B$21),(F48/26)*F51,IF(OR(F47='08. Beregningsfaktorer'!$B$22,F47='08. Beregningsfaktorer'!$B$23),(F48/40)*F51,IF(OR(F47='08. Beregningsfaktorer'!$B$24,F47='08. Beregningsfaktorer'!$B$25),(F48/14)*F51,IF(F47='08. Beregningsfaktorer'!$B$26,(F48/14)*F51,IF(F47='08. Beregningsfaktorer'!$B$27,(F48/14)*F51))))))),IF(OR(F47='08. Beregningsfaktorer'!$B$16,F47='08. Beregningsfaktorer'!$B$17),(F48*'08. Beregningsfaktorer'!$G$65/8.5)*F51,IF(OR(F47='08. Beregningsfaktorer'!$B$18,F47='08. Beregningsfaktorer'!$B$19),(F48*'08. Beregningsfaktorer'!$G$65/14)*F51,IF(OR(F47='08. Beregningsfaktorer'!$B$20,F47='08. Beregningsfaktorer'!$B$21),(F48*'08. Beregningsfaktorer'!$G$65/26)*F51,IF(OR(F47='08. Beregningsfaktorer'!$B$22,F47='08. Beregningsfaktorer'!$B$23),(F48*'08. Beregningsfaktorer'!$G$65/40)*F51,IF(OR(F47='08. Beregningsfaktorer'!$B$24,F47='08. Beregningsfaktorer'!$B$25),(F48*'08. Beregningsfaktorer'!$G$65/14)*F51,IF(F47='08. Beregningsfaktorer'!$B$26,(F48*'08. Beregningsfaktorer'!$G$65/14)*F51,IF(F47='08. Beregningsfaktorer'!$B$27,(F48*'08. Beregningsfaktorer'!$G$65/14)*F51)))))))),IF(F48=0,0,IF(F50='08. Beregningsfaktorer'!$E$80,IF(AND(OR(F47='08. Beregningsfaktorer'!$B$28,F47='08. Beregningsfaktorer'!$B$29),G48=\"tonn\"),(F48/1900)*F51,IF(OR(F47='08. Beregningsfaktorer'!$B$28,F47='08. Beregningsfaktorer'!$B$29),(F48*'08. Beregningsfaktorer'!$G$65/1900)*F51,IF(G48=\"tonn\",F48,F48*'08. Beregningsfaktorer'!$G$65)*F51)),IF(G48=\"tonn\",F48*F51,F48*'08. Beregningsfaktorer'!$G$65)*F51)))","v":0},{"$f":"IF(OR(F50='08. Beregningsfaktorer'!$E$78,F47='08. Beregningsfaktorer'!$B$28,F47='08. Beregningsfaktorer'!$B$29),\"km\",\"tkm\")","v":"tkm"},null,null,{"$f":"\"Utslippsfaktor (kg/\"&W52&\"):\"&\"  \"","v":"Utslippsfaktor (kg/l):  "},null,{"$f":"IF(F47=0,0,(INDEX('09. Utslippsfaktorer'!$P$7:$U$13,MATCH(X52,'09. Utslippsfaktorer'!$P$7:$P$13,0),MATCH(\"kg \"&AC48,'09. Utslippsfaktorer'!$P$7:$U$7,0),1)))","v":0},{"$f":"IF(F47=0,0,(INDEX('09. Utslippsfaktorer'!$P$7:$U$13,MATCH(X52,'09. Utslippsfaktorer'!$P$7:$P$13,0),MATCH(\"kg \"&AD48,'09. Utslippsfaktorer'!$P$7:$U$7,0),1)))","v":0},{"$f":"IF(F47=0,0,(INDEX('09. Utslippsfaktorer'!$P$7:$U$13,MATCH(X52,'09. Utslippsfaktorer'!$P$7:$P$13,0),MATCH(\"kg \"&AE48,'09. Utslippsfaktorer'!$P$7:$U$7,0),1)))","v":0},{"$f":"IF(F47=0,0,(INDEX('09. Utslippsfaktorer'!$P$7:$U$13,MATCH(X52,'09. Utslippsfaktorer'!$P$7:$P$13,0),MATCH(\"kg \"&AF48,'09. Utslippsfaktorer'!$P$7:$U$7,0),1)))","v":0},null,{"$f":"\"Utslippsfaktor (kg/\"&X49&\"):\"","v":"Utslippsfaktor (kg/tkm):"},null,{"$f":"IF(F47=0,0,(INDEX('09. Utslippsfaktorer'!$P$7:$U$45,MATCH(V48,'09. Utslippsfaktorer'!$P$7:$P$45,0),MATCH(\"kg \"&AJ48,'09. Utslippsfaktorer'!$P$7:$U$7,0),1)))","v":0},{"$f":"IF(F47=0,0,(INDEX('09. Utslippsfaktorer'!$P$7:$U$45,MATCH(V48,'09. Utslippsfaktorer'!$P$7:$P$45,0),MATCH(\"kg \"&AK48,'09. Utslippsfaktorer'!$P$7:$U$7,0),1)))","v":0},{"$f":"IF(F47=0,0,(INDEX('09. Utslippsfaktorer'!$P$7:$U$45,MATCH(V48,'09. Utslippsfaktorer'!$P$7:$P$45,0),MATCH(\"kg \"&AL48,'09. Utslippsfaktorer'!$P$7:$U$7,0),1)))","v":0},{"$f":"IF(F47=0,0,(INDEX('09. Utslippsfaktorer'!$P$7:$U$45,MATCH(V48,'09. Utslippsfaktorer'!$P$7:$P$45,0),MATCH(\"kg \"&AM48,'09. Utslippsfaktorer'!$P$7:$U$7,0),1)))","v":0},null,"Utslipp (kg):  ",null,{"$f":"IF(F50='08. Beregningsfaktorer'!$E$79,0,AC50+AJ50)","v":0},{"$f":"IF(F50='08. Beregningsfaktorer'!$E$79,0,AD50+AK50)","v":0},{"$f":"IF(F50='08. Beregningsfaktorer'!$E$79,0,AE50+AL50)","v":0},{"$f":"IF(F50='08. Beregningsfaktorer'!$E$79,0,AF50+AM50)","v":0}]
[null,null,null,"6.9.4","Lastekapasitet",null,{"$f":"IF(OR(F47='08. Beregningsfaktorer'!$B$9,F47='08. Beregningsfaktorer'!$B$10,F47='08. Beregningsfaktorer'!$B$12,F47='08. Beregningsfaktorer'!$B$13,F47='08. Beregningsfaktorer'!$B$14,F47='08. Beregningsfaktorer'!$B$15,F47='08. Beregningsfaktorer'!$B$28,F47='08. Beregningsfaktorer'!$B$29),IF(F50='08. Beregningsfaktorer'!$E$80,0,1),IF(F50='08. Beregningsfaktorer'!$E$80,3,0))","v":0},null,null,null,null,null,null,null,null,null,null,null,null,"Korreksjonsfaktor",null,null,{"$f":"IF(F52=0,0,INDEX('08. Beregningsfaktorer'!$E$54:$G$55,MATCH(F52,'08. Beregningsfaktorer'!$E$54:$E$55,0),3))","v":0},null,null,null,"Utslipp (kg):  ",null,{"$f":"IFERROR(V52*AC49,\"Data mangler\")","v":0},{"$f":"IFERROR(V52*AD49,\"Data mangler\")","v":0},{"$f":"IFERROR(V52*AE49,\"Data mangler\")","v":0},{"$f":"IFERROR(V52*AF49,\"Data mangler\")","v":0},null,"Utslipp (kg):  ",null,{"$f":"IF(V48='09. Utslippsfaktorer'!$P$19,IF(G48=\"tonn\",F51*AJ49*F48,F51*AJ49*F48*'08. Beregningsfaktorer'!$G$65),IF(F50='08. Beregningsfaktorer'!$E$78,0,IFERROR(W49*AJ49,\"Data mangler\")))","v":0},{"$f":"IF(V48='09. Utslippsfaktorer'!$P$19,IF(G48=\"tonn\",F51*AK49*F48,F51*AK49*F48*'08. Beregningsfaktorer'!$G$65),IF(F50='08. Beregningsfaktorer'!$E$78,0,IFERROR(W49*AK49,\"Data mangler\")))","v":0},{"$f":"IF(V48='09. Utslippsfaktorer'!$P$19,IF(G48=\"tonn\",F51*AL49*F48,F51*AL49*F48*'08. Beregningsfaktorer'!$G$65),IF(F50='08. Beregningsfaktorer'!$E$78,0,IFERROR(W49*AL49,\"Data mangler\")))","v":0},{"$f":"IF(V48='09. Utslippsfaktorer'!$P$19,IF(G48=\"tonn\",F51*AM49*F48,F51*AM49*F48*'08. Beregningsfaktorer'!$G$65),IF(F50='08. Beregningsfaktorer'!$E$78,0,IFERROR(W49*AM49,\"Data mangler\")))","v":0}]
[null,null,null,"6.9.5","Distanse til betongfabrikk",null,"km",null,null,null,null,null,null,null,null,null,null,null,null,{"$f":"IF(F50='08. Beregningsfaktorer'!$E$78,\"Forbruk per km\",\"Forbruk per tonn km\")","v":"Forbruk per tonn km"},null,null,{"$f":"IFERROR(IF(F47=0,0,IF(F50='08. Beregningsfaktorer'!$E$78,INDEX('08. Beregningsfaktorer'!$E$30:$G$41,MATCH(F47,'08. Beregningsfaktorer'!$B$30:$B$41,0),3,1),INDEX('08. Beregningsfaktorer'!$E$9:$G$29,MATCH(F47,'08. Beregningsfaktorer'!$B$9:$B$29,0),3,1))),\"Loading..\")","v":0},{"$f":"IFERROR(W52&\"/\"&X49,\"Loading..\")","v":"l/tkm"}]
[null,null,null,"6.9.6","Transport med helning",null,null,null,null,null,null,null,null,null,null,null,null,null,null,"Forbruk",null,{"$f":"IFERROR(W49*W51*W50,\"Data mangler\")","v":0},{"$f":"IFERROR(IF(OR(F47='08. Beregningsfaktorer'!$B$26,F47='08. Beregningsfaktorer'!$B$27),\"kWh\",IF(F47='08. Beregningsfaktorer'!$B$11,\"MJ\",\"l\")),\"Loading..\")","v":"l"},{"$f":"IFERROR(IF(F47='08. Beregningsfaktorer'!$B$11,\"Biogass\",IF(OR(F47='08. Beregningsfaktorer'!$B$26,F47='08. Beregningsfaktorer'!$B$27),\"Elektrisitet\",IF(OR(F47='08. Beregningsfaktorer'!$B$10,F47='08. Beregningsfaktorer'!$B$13,F47='08. Beregningsfaktorer'!$B$15,F47='08. Beregningsfaktorer'!$B$17,F47='08. Beregningsfaktorer'!$B$17,F47='08. Beregningsfaktorer'!$B$19,F47='08. Beregningsfaktorer'!$B$21,F47='08. Beregningsfaktorer'!$B$23,F47='08. Beregningsfaktorer'!$B$25,F47='08. Beregningsfaktorer'!$B$29),\"Biodiesel\",IF(V48=\"Mangler type kjøretøy\",\"Mangler type kjøretøy\",\"Diesel\")))),\"Feil\")","v":"Mangler type kjøretøy"}]
[]
[null,null,null,null,null,null,null,null,null,null,null,null,null,null,null,null,null,null,null,null,null,null,null,null,null,null,null,null,null,null,null,null,null,null,null,null,null,null,null,null,{"$f":"E46&\" - Sum utslipp - Alle kjøretøy\"","v":"Transport til betongfabrikk - Sum utslipp - Alle kjøretøy"}]
[null,null,null,"6.10","Balanse veitransport",{"$f":"SUMIF(E46:E53,\"Lastekapasitet\",G46:G53)","v":0},null,"Lastutnyttelse korrekt modellert",null,null,null,null,null,null,null,null,null,null,null,null,null,null,null,null,null,null,null,null,null,null,null,null,null,null,null,null,null,null,null,null,null,null,"CO2-ekv.","SO2-ekv.","P-ekv.","NMVOC"]
[null,null,null,"6.10.1",{"$f":"\"Balanse - \"&E12","v":"Balanse - Tunnelmunning"},{"$f":"((F$12-SUMIF(F46:F53,'08. Beregningsfaktorer'!$B$28,G46:G53)-SUMIF(F46:F53,'08. Beregningsfaktorer'!#REF!,G46:G53))*F$38)-(SUMIF(F46:F53,E$12,G46:G53))","v":0},{"$f":"'02. Inndata steinmasser'!$F$7& \" km\"","v":"fm3 km"},"Transportdistanser og masser stemmer",null,null,null,null,null,null,null,null,null,null,null,null,null,null,null,null,null,null,null,null,null,null,null,null,null,null,null,null,null,null,null,null,"Utslipp (kg):  ",null,{"$f":"SUMIF($D46:$D53,$D49,AQ46:AQ53)","v":0},{"$f":"SUMIF($D46:$D53,$D49,AR46:AR53)","v":0},{"$f":"SUMIF($D46:$D53,$D49,AS46:AS53)","v":0},{"$f":"SUMIF($D46:$D53,$D49,AT46:AT53)","v":0}]
[null,null,null,"6.10.2",{"$f":"\"Balanse - \"&E13","v":"Balanse - Mobilt knuseverk"},{"$f":"((F$13-SUMIF(F46:F53,'08. Beregningsfaktorer'!$B$28,G46:G53)-SUMIF(F46:F53,'08. Beregningsfaktorer'!#REF!,G46:G53))*F$39)-(SUMIF(F46:F53,E$13,G46:G53))","v":0},{"$f":"'02. Inndata steinmasser'!$F$7& \" km\"","v":"fm3 km"},"Transportdistanser og masser stemmer"]
[null,null,null,"6.10.3",{"$f":"\"Balanse - \"&E14","v":"Balanse - Restprodukt mobilt knuseverk"},{"$f":"((F$14-SUMIF(F46:F53,'08. Beregningsfaktorer'!$B$28,G46:G53)-SUMIF(F46:F53,'08. Beregningsfaktorer'!#REF!,G46:G53))*F$39)-(SUMIF(F46:F53,E$14,G46:G53))","v":0},{"$f":"'02. Inndata steinmasser'!$F$7& \" km\"","v":"fm3 km"},"Transportdistanser og masser stemmer"]
[]
[]
[null,"Asfaltprodukson"]
[null,null,null,"6.11","Veidistanser mellom asfaltproduksjon og…"]
[null,null,null,"6.11.1","Tunnelmunning",null,"km"]
[null,null,null,"6.11.2","Mobilt knuseverk",null,"km"]
[null,null,null,null,null,null,null,null,null,null,null,null,null,null,null,null,null,null,null,{"$f":"E66&\" - Grunnlagsdata og forbruk\"","v":"Lasting til transport - Grunnlagsdata og forbruk"},null,null,null,null,null,null,{"$f":"E66&\" - Utslipp knyttet til drivstoff/elektrisitet\"","v":"Lasting til transport - Utslipp knyttet til drivstoff/elektrisitet"},null,null,null,null,null,null,{"$f":"E66&\" - Utslipp knyttet til maskin\"","v":"Lasting til transport - Utslipp knyttet til maskin"},null,null,null,null,null,null,null,{"$f":"E66&\" - Sum utslipp\"","v":"Lasting til transport - Sum utslipp"}]
[null,null,null,"6.12","Lasting til transport",null,null,null,null,null,null,null,null,null,null,null,null,null,null,"Kategori",null,{"$f":"IF(F67='08. Beregningsfaktorer'!$E$43,'08. Beregningsfaktorer'!$E$43,IF(F67='08. Beregningsfaktorer'!$E$44,'09. Utslippsfaktorer'!$P$20,IF(OR(F67='08. Beregningsfaktorer'!$E$45,F67='08. Beregningsfaktorer'!$E$47),'09. Utslippsfaktorer'!$P$21,IF(F67='08. Beregningsfaktorer'!$E$46,'09. Utslippsfaktorer'!$P$21,\"Mangler type lastemaskin\"))))","v":"Mangler type lastemaskin"},null,null,null,null,null,null,"CO2-ekv.","SO2-ekv.","P-ekv.","NMVOC",null,null,null,"CO2-ekv.","SO2-ekv.","P-ekv.","NMVOC",null,null,null,"CO2-ekv.","SO2-ekv.","P-ekv.","NMVOC"]
[null,null,null,"6.12.1","Type lastemaskin",null,null,null,null,null,null,null,null,null,null,null,null,null,null,"Volum stein",null,null,{"$f":"IF((F$17+F$18+F$19)=0,0,IF(G$17=\"fm3\",(F$17+F$18+F$19)*'08. Beregningsfaktorer'!$G$65,(F$17+F$18+F$19)/'08. Beregningsfaktorer'!$G$65))","v":0},"lm3",null,null,{"$f":"\"Utslippsfaktor (kg/\"&W69&\"):\"&\"  \"","v":"Utslippsfaktor (kg/...):  "},null,{"$f":"IF(F67=0,0,IF(F67='08. Beregningsfaktorer'!$E$43,0,(INDEX('09. Utslippsfaktorer'!$P$7:$U$12,MATCH(X69,'09. Utslippsfaktorer'!$P$7:$P$12,0),MATCH(\"kg \"&AC66,'09. Utslippsfaktorer'!$P$7:$U$7,0),1))))","v":0},{"$f":"IF(F67=0,0,IF(F67='08. Beregningsfaktorer'!$E$43,0,(INDEX('09. Utslippsfaktorer'!$P$7:$U$12,MATCH(X69,'09. Utslippsfaktorer'!$P$7:$P$12,0),MATCH(\"kg \"&AD66,'09. Utslippsfaktorer'!$P$7:$U$7,0),1))))","v":0},{"$f":"IF(F67=0,0,IF(F67='08. Beregningsfaktorer'!$E$43,0,(INDEX('09. Utslippsfaktorer'!$P$7:$U$12,MATCH(X69,'09. Utslippsfaktorer'!$P$7:$P$12,0),MATCH(\"kg \"&AE66,'09. Utslippsfaktorer'!$P$7:$U$7,0),1))))","v":0},{"$f":"IF(F67=0,0,IF(F67='08. Beregningsfaktorer'!$E$43,0,(INDEX('09. Utslippsfaktorer'!$P$7:$U$12,MATCH(X69,'09. Utslippsfaktorer'!$P$7:$P$12,0),MATCH(\"kg \"&AF66,'09. Utslippsfaktorer'!$P$7:$U$7,0),1))))","v":0},null,"Utslippsfaktor (kg/m3):  ",null,{"$f":"IF(F67=0,0,IF(F67='08. Beregningsfaktorer'!$E$43,0,(INDEX('09. Utslippsfaktorer'!$P$7:$U$45,MATCH(V66,'09. Utslippsfaktorer'!$P$7:$P$45,0),MATCH(\"kg \"&AJ66,'09. Utslippsfaktorer'!$P$7:$U$7,0),1))))","v":0},{"$f":"IF(F67=0,0,IF(F67='08. Beregningsfaktorer'!$E$43,0,(INDEX('09. Utslippsfaktorer'!$P$7:$U$45,MATCH(V66,'09. Utslippsfaktorer'!$P$7:$P$45,0),MATCH(\"kg \"&AK66,'09. Utslippsfaktorer'!$P$7:$U$7,0),1))))","v":0},{"$f":"IF(F67=0,0,IF(F67='08. Beregningsfaktorer'!$E$43,0,(INDEX('09. Utslippsfaktorer'!$P$7:$U$45,MATCH(V66,'09. Utslippsfaktorer'!$P$7:$P$45,0),MATCH(\"kg \"&AL66,'09. Utslippsfaktorer'!$P$7:$U$7,0),1))))","v":0},{"$f":"IF(F67=0,0,IF(F67='08. Beregningsfaktorer'!$E$43,0,(INDEX('09. Utslippsfaktorer'!$P$7:$U$45,MATCH(V66,'09. Utslippsfaktorer'!$P$7:$P$45,0),MATCH(\"kg \"&AM66,'09. Utslippsfaktorer'!$P$7:$U$7,0),1))))","v":0},null,"Utslipp (kg):  ",null,{"$f":"AC68+AJ68","v":0},{"$f":"AD68+AK68","v":0},{"$f":"AE68+AL68","v":0},{"$f":"AF68+AM68","v":0}]
[null,null,null,null,null,null,null,null,null,null,null,null,null,null,null,null,null,null,null,"Forbruk per m3 stein",null,null,{"$f":"IF(F67=0,0,(INDEX('08. Beregningsfaktorer'!$E$12:$G$89,MATCH(F67,'08. Beregningsfaktorer'!$E$12:$E$89,0),3,1)))","v":0},{"$f":"W69&\"/\"&X67","v":".../lm3"},null,null,"Utslipp (kg):  ",null,{"$f":"V69*AC67","v":0},{"$f":"V69*AD67","v":0},{"$f":"V69*AE67","v":0},{"$f":"V69*AF67","v":0},null,"Utslipp (kg):  ",null,{"$f":"W67*AJ67","v":0},{"$f":"W67*AK67","v":0},{"$f":"W67*AL67","v":0},{"$f":"W67*AM67","v":0}]
[null,null,null,null,null,null,null,null,null,null,null,null,null,null,null,null,null,null,null,"Forbruk",null,{"$f":"W67*W68","v":0},{"$f":"IF(F67='08. Beregningsfaktorer'!$E$44,\"l\",IF(OR(F67='08. Beregningsfaktorer'!$E$45,F67='08. Beregningsfaktorer'!$E$47),\"l\",IF(F67='08. Beregningsfaktorer'!$E$46,\"kWh\",\"...\")))","v":"..."},{"$f":"IF(F67='08. Beregningsfaktorer'!$E$43,\"Ingen løft\",IF(F67='08. Beregningsfaktorer'!$E$44,\"Diesel\",IF(F67='08. Beregningsfaktorer'!$E$45,\"Diesel\",IF(F67='08. Beregningsfaktorer'!$E$47,\"Biodiesel\",IF(F67='08. Beregningsfaktorer'!$E$46,\"Elektrisitet\",\"Mangler type lastemaskin\")))))","v":"Mangler type lastemaskin"}]
[]
[null,null,null,"6.13","Transport til asfaltproduksjon","Endre antall kjøretøy:"]
[null,null,null,"6.13.1","Type kjøretøy",null,{"$f":"F73","v":0},null,null,null,null,null,null,null,null,null,null,null,null,{"$f":"E71&\" - Grunnlagsdata og forbruk\"","v":"Transport til asfaltproduksjon - Grunnlagsdata og forbruk"},null,null,null,null,null,null,{"$f":"E71&\" - Utslipp knyttet til drivstoff/elektrisitet\"","v":"Transport til asfaltproduksjon - Utslipp knyttet til drivstoff/elektrisitet"},null,null,null,null,null,null,{"$f":"E71&\" - Utslipp knyttet til kjøretøy og infrastruktur\"","v":"Transport til asfaltproduksjon - Utslipp knyttet til kjøretøy og infrastruktur"},null,null,null,null,null,null,{"$f":"E71&\" - Sum utslipp\"","v":"Transport til asfaltproduksjon - Sum utslipp"}]
[null,null,{"$f":"IF(F72='08. Beregningsfaktorer'!#REF!,\"J\",0)","v":{"$error":"#REF!"}},"6.13.2","Mengde stein",null,{"$f":"'02. Inndata steinmasser'!$F$7","v":"fm3"},null,null,null,null,null,null,null,null,null,null,null,null,"Kategori",null,{"$f":"IF(OR(F72='08. Beregningsfaktorer'!$B$9,F72='08. Beregningsfaktorer'!$B$10,F72='08. Beregningsfaktorer'!$B$11),'09. Utslippsfaktorer'!$P$14,IF(OR(F72='08. Beregningsfaktorer'!$B$12,F72='08. Beregningsfaktorer'!$B$13),'09. Utslippsfaktorer'!$P$15,IF(OR(F72='08. Beregningsfaktorer'!$B$14,F72='08. Beregningsfaktorer'!$B$15),'09. Utslippsfaktorer'!$P$16,IF(OR(F72='08. Beregningsfaktorer'!$B$24,F72='08. Beregningsfaktorer'!$B$25),'09. Utslippsfaktorer'!$P$18,IF(F72='08. Beregningsfaktorer'!$B$26,'09. Utslippsfaktorer'!$P$18,IF(F72='08. Beregningsfaktorer'!$B$27,'09. Utslippsfaktorer'!$P$18,IF(F72='08. Beregningsfaktorer'!$B$28,'09. Utslippsfaktorer'!$P$19,IF(F72='08. Beregningsfaktorer'!$B$29,'09. Utslippsfaktorer'!$P$19,IF(OR(F72='08. Beregningsfaktorer'!$B$17,F72='08. Beregningsfaktorer'!$B$16,F72='08. Beregningsfaktorer'!$B$18,F72='08. Beregningsfaktorer'!$B$19),'09. Utslippsfaktorer'!$P$16,IF(OR(F72='08. Beregningsfaktorer'!$B$20,F72='08. Beregningsfaktorer'!$B$21,F72='08. Beregningsfaktorer'!$B$22,F72='08. Beregningsfaktorer'!$B$23),'09. Utslippsfaktorer'!$P$14,\"Mangler type kjøretøy\"))))))))))","v":"Mangler type kjøretøy"},null,null,null,null,null,null,"CO2-ekv.","SO2-ekv.","P-ekv.","NMVOC",null,null,null,"CO2-ekv.","SO2-ekv.","P-ekv.","NMVOC",null,null,null,"CO2-ekv.","SO2-ekv.","P-ekv.","NMVOC"]
[null,null,null,"6.13.3","Hvor kommer massene fra?",null,{"$f":"IF(OR(F72='08. Beregningsfaktorer'!$B$28,F72='08. Beregningsfaktorer'!$B$29),0,IF(OR(F75='08. Beregningsfaktorer'!$E$77,F75='08. Beregningsfaktorer'!$E$80),F73*F76,0))","v":0},null,null,null,null,null,null,null,null,null,null,null,null,{"$f":"IF(F75='08. Beregningsfaktorer'!$E$78,\"km\",\"tonn km\")","v":"tonn km"},null,null,{"$f":"IF(F75='08. Beregningsfaktorer'!$E$78,IF(G73=\"tonn\",IF(OR(F72='08. Beregningsfaktorer'!$B$16,F72='08. Beregningsfaktorer'!$B$17),(F73/8.5)*F76,IF(OR(F72='08. Beregningsfaktorer'!$B$18,F72='08. Beregningsfaktorer'!$B$19),(F73/14)*F76,IF(OR(F72='08. Beregningsfaktorer'!$B$20,F72='08. Beregningsfaktorer'!$B$21),(F73/26)*F76,IF(OR(F72='08. Beregningsfaktorer'!$B$22,F72='08. Beregningsfaktorer'!$B$23),(F73/40)*F76,IF(OR(F72='08. Beregningsfaktorer'!$B$24,F72='08. Beregningsfaktorer'!$B$25),(F73/14)*F76,IF(F72='08. Beregningsfaktorer'!$B$26,(F73/14)*F76,IF(F72='08. Beregningsfaktorer'!$B$27,(F73/14)*F76))))))),IF(OR(F72='08. Beregningsfaktorer'!$B$16,F72='08. Beregningsfaktorer'!$B$17),(F73*'08. Beregningsfaktorer'!$G$65/8.5)*F76,IF(OR(F72='08. Beregningsfaktorer'!$B$18,F72='08. Beregningsfaktorer'!$B$19),(F73*'08. Beregningsfaktorer'!$G$65/14)*F76,IF(OR(F72='08. Beregningsfaktorer'!$B$20,F72='08. Beregningsfaktorer'!$B$21),(F73*'08. Beregningsfaktorer'!$G$65/26)*F76,IF(OR(F72='08. Beregningsfaktorer'!$B$22,F72='08. Beregningsfaktorer'!$B$23),(F73*'08. Beregningsfaktorer'!$G$65/40)*F76,IF(OR(F72='08. Beregningsfaktorer'!$B$24,F72='08. Beregningsfaktorer'!$B$25),(F73*'08. Beregningsfaktorer'!$G$65/14)*F76,IF(F72='08. Beregningsfaktorer'!$B$26,(F73*'08. Beregningsfaktorer'!$G$65/14)*F76,IF(F72='08. Beregningsfaktorer'!$B$27,(F73*'08. Beregningsfaktorer'!$G$65/14)*F76)))))))),IF(F73=0,0,IF(F75='08. Beregningsfaktorer'!$E$80,IF(AND(OR(F72='08. Beregningsfaktorer'!$B$28,F72='08. Beregningsfaktorer'!$B$29),G73=\"tonn\"),(F73/1900)*F76,IF(OR(F72='08. Beregningsfaktorer'!$B$28,F72='08. Beregningsfaktorer'!$B$29),(F73*'08. Beregningsfaktorer'!$G$65/1900)*F76,IF(G73=\"tonn\",F73,F73*'08. Beregningsfaktorer'!$G$65)*F76)),IF(G73=\"tonn\",F73*F76,F73*'08. Beregningsfaktorer'!$G$65)*F76)))","v":0},{"$f":"IF(OR(F75='08. Beregningsfaktorer'!$E$78,F72='08. Beregningsfaktorer'!$B$28,F72='08. Beregningsfaktorer'!$B$29),\"km\",\"tkm\")","v":"tkm"},null,null,{"$f":"\"Utslippsfaktor (kg/\"&W77&\"):\"&\"  \"","v":"Utslippsfaktor (kg/l):  "},null,{"$f":"IF(F72=0,0,(INDEX('09. Utslippsfaktorer'!$P$7:$U$13,MATCH(X77,'09. Utslippsfaktorer'!$P$7:$P$13,0),MATCH(\"kg \"&AC73,'09. Utslippsfaktorer'!$P$7:$U$7,0),1)))","v":0},{"$f":"IF(F72=0,0,(INDEX('09. Utslippsfaktorer'!$P$7:$U$13,MATCH(X77,'09. Utslippsfaktorer'!$P$7:$P$13,0),MATCH(\"kg \"&AD73,'09. Utslippsfaktorer'!$P$7:$U$7,0),1)))","v":0},{"$f":"IF(F72=0,0,(INDEX('09. Utslippsfaktorer'!$P$7:$U$13,MATCH(X77,'09. Utslippsfaktorer'!$P$7:$P$13,0),MATCH(\"kg \"&AE73,'09. Utslippsfaktorer'!$P$7:$U$7,0),1)))","v":0},{"$f":"IF(F72=0,0,(INDEX('09. Utslippsfaktorer'!$P$7:$U$13,MATCH(X77,'09. Utslippsfaktorer'!$P$7:$P$13,0),MATCH(\"kg \"&AF73,'09. Utslippsfaktorer'!$P$7:$U$7,0),1)))","v":0},null,{"$f":"\"Utslippsfaktor (kg/\"&X74&\"):\"","v":"Utslippsfaktor (kg/tkm):"},null,{"$f":"IF(F72=0,0,(INDEX('09. Utslippsfaktorer'!$P$7:$U$45,MATCH(V73,'09. Utslippsfaktorer'!$P$7:$P$45,0),MATCH(\"kg \"&AJ73,'09. Utslippsfaktorer'!$P$7:$U$7,0),1)))","v":0},{"$f":"IF(F72=0,0,(INDEX('09. Utslippsfaktorer'!$P$7:$U$45,MATCH(V73,'09. Utslippsfaktorer'!$P$7:$P$45,0),MATCH(\"kg \"&AK73,'09. Utslippsfaktorer'!$P$7:$U$7,0),1)))","v":0},{"$f":"IF(F72=0,0,(INDEX('09. Utslippsfaktorer'!$P$7:$U$45,MATCH(V73,'09. Utslippsfaktorer'!$P$7:$P$45,0),MATCH(\"kg \"&AL73,'09. Utslippsfaktorer'!$P$7:$U$7,0),1)))","v":0},{"$f":"IF(F72=0,0,(INDEX('09. Utslippsfaktorer'!$P$7:$U$45,MATCH(V73,'09. Utslippsfaktorer'!$P$7:$P$45,0),MATCH(\"kg \"&AM73,'09. Utslippsfaktorer'!$P$7:$U$7,0),1)))","v":0},null,"Utslipp (kg):  ",null,{"$f":"IF(F75='08. Beregningsfaktorer'!$E$79,0,AC75+AJ75)","v":0},{"$f":"IF(F75='08. Beregningsfaktorer'!$E$79,0,AD75+AK75)","v":0},{"$f":"IF(F75='08. Beregningsfaktorer'!$E$79,0,AE75+AL75)","v":0},{"$f":"IF(F75='08. Beregningsfaktorer'!$E$79,0,AF75+AM75)","v":0}]
[null,null,null,"6.13.4","Lastekapasitet",null,{"$f":"IF(OR(F72='08. Beregningsfaktorer'!$B$9,F72='08. Beregningsfaktorer'!$B$10,F72='08. Beregningsfaktorer'!$B$12,F72='08. Beregningsfaktorer'!$B$13,F72='08. Beregningsfaktorer'!$B$14,F72='08. Beregningsfaktorer'!$B$15,F72='08. Beregningsfaktorer'!$B$28,F72='08. Beregningsfaktorer'!$B$29),IF(F75='08. Beregningsfaktorer'!$E$80,0,1),IF(F75='08. Beregningsfaktorer'!$E$80,3,0))","v":0},null,null,null,null,null,null,null,null,null,null,null,null,"Korreksjonsfaktor",null,null,{"$f":"IF(F77=0,0,INDEX('08. Beregningsfaktorer'!$E$54:$G$55,MATCH(F77,'08. Beregningsfaktorer'!$E$54:$E$55,0),3))","v":0},null,null,null,"Utslipp (kg):  ",null,{"$f":"IFERROR(V77*AC74,\"Data mangler\")","v":0},{"$f":"IFERROR(V77*AD74,\"Data mangler\")","v":0},{"$f":"IFERROR(V77*AE74,\"Data mangler\")","v":0},{"$f":"IFERROR(V77*AF74,\"Data mangler\")","v":0},null,"Utslipp (kg):  ",null,{"$f":"IF(V73='09. Utslippsfaktorer'!$P$19,IF(G73=\"tonn\",F76*AJ74*F73,F76*AJ74*F73*'08. Beregningsfaktorer'!$G$65),IF(F75='08. Beregningsfaktorer'!$E$78,0,IFERROR(W74*AJ74,\"Data mangler\")))","v":0},{"$f":"IF(V73='09. Utslippsfaktorer'!$P$19,IF(G73=\"tonn\",F76*AK74*F73,F76*AK74*F73*'08. Beregningsfaktorer'!$G$65),IF(F75='08. Beregningsfaktorer'!$E$78,0,IFERROR(W74*AK74,\"Data mangler\")))","v":0},{"$f":"IF(V73='09. Utslippsfaktorer'!$P$19,IF(G73=\"tonn\",F76*AL74*F73,F76*AL74*F73*'08. Beregningsfaktorer'!$G$65),IF(F75='08. Beregningsfaktorer'!$E$78,0,IFERROR(W74*AL74,\"Data mangler\")))","v":0},{"$f":"IF(V73='09. Utslippsfaktorer'!$P$19,IF(G73=\"tonn\",F76*AM74*F73,F76*AM74*F73*'08. Beregningsfaktorer'!$G$65),IF(F75='08. Beregningsfaktorer'!$E$78,0,IFERROR(W74*AM74,\"Data mangler\")))","v":0}]
[null,null,null,"6.13.5","Distanse til asfaltproduksjon",null,"km",null,null,null,null,null,null,null,null,null,null,null,null,{"$f":"IF(F75='08. Beregningsfaktorer'!$E$78,\"Forbruk per km\",\"Forbruk per tonn km\")","v":"Forbruk per tonn km"},null,null,{"$f":"IFERROR(IF(F72=0,0,IF(F75='08. Beregningsfaktorer'!$E$78,INDEX('08. Beregningsfaktorer'!$E$30:$G$41,MATCH(F72,'08. Beregningsfaktorer'!$B$30:$B$41,0),3,1),INDEX('08. Beregningsfaktorer'!$E$9:$G$29,MATCH(F72,'08. Beregningsfaktorer'!$B$9:$B$29,0),3,1))),\"Loading..\")","v":0},{"$f":"IFERROR(W77&\"/\"&X74,\"Loading..\")","v":"l/tkm"}]
[null,null,null,"6.13.6","Transport med helning",null,null,null,null,null,null,null,null,null,null,null,null,null,null,"Forbruk",null,{"$f":"IFERROR(W74*W76*W75,\"Data mangler\")","v":0},{"$f":"IFERROR(IF(OR(F72='08. Beregningsfaktorer'!$B$26,F72='08. Beregningsfaktorer'!$B$27),\"kWh\",IF(F72='08. Beregningsfaktorer'!$B$11,\"MJ\",\"l\")),\"Loading..\")","v":"l"},{"$f":"IFERROR(IF(F72='08. Beregningsfaktorer'!$B$11,\"Biogass\",IF(OR(F72='08. Beregningsfaktorer'!$B$26,F72='08. Beregningsfaktorer'!$B$27),\"Elektrisitet\",IF(OR(F72='08. Beregningsfaktorer'!$B$10,F72='08. Beregningsfaktorer'!$B$13,F72='08. Beregningsfaktorer'!$B$15,F72='08. Beregningsfaktorer'!$B$17,F72='08. Beregningsfaktorer'!$B$17,F72='08. Beregningsfaktorer'!$B$19,F72='08. Beregningsfaktorer'!$B$21,F72='08. Beregningsfaktorer'!$B$23,F72='08. Beregningsfaktorer'!$B$25,F72='08. Beregningsfaktorer'!$B$29),\"Biodiesel\",IF(V73=\"Mangler type kjøretøy\",\"Mangler type kjøretøy\",\"Diesel\")))),\"Feil\")","v":"Mangler type kjøretøy"}]
[]
[null,null,null,null,null,null,null,null,null,null,null,null,null,null,null,null,null,null,null,null,null,null,null,null,null,null,null,null,null,null,null,null,null,null,null,null,null,null,null,null,{"$f":"E71&\" - Sum utslipp - Alle kjøretøy\"","v":"Transport til asfaltproduksjon - Sum utslipp - Alle kjøretøy"}]
[null,null,null,"6.14","Balanse veitransport",{"$f":"SUMIF(E71:E78,\"Lastekapasitet\",G71:G78)","v":0},null,"Lastutnyttelse korrekt modellert",null,null,null,null,null,null,null,null,null,null,null,null,null,null,null,null,null,null,null,null,null,null,null,null,null,null,null,null,null,null,null,null,null,null,"CO2-ekv.","SO2-ekv.","P-ekv.","NMVOC"]
[null,null,null,"6.14.1",{"$f":"\"Balanse - \"&E17","v":"Balanse - Tunnelmunning"},{"$f":"((F$17-SUMIF(F38:F45,'08. Beregningsfaktorer'!$B$28,G38:G45)-SUMIF(F38:F45,'08. Beregningsfaktorer'!#REF!,G38:G45))*F$63)-(SUMIF(F71:F78,E$17,G71:G78))","v":0},{"$f":"'02. Inndata steinmasser'!$F$7& \" km\"","v":"fm3 km"},"Transportdistanser og masser stemmer",null,null,null,null,null,null,null,null,null,null,null,null,null,null,null,null,null,null,null,null,null,null,null,null,null,null,null,null,null,null,null,null,"Utslipp (kg):  ",null,{"$f":"SUMIF($D71:$D78,$D74,AQ71:AQ78)","v":0},{"$f":"SUMIF($D71:$D78,$D74,AR71:AR78)","v":0},{"$f":"SUMIF($D71:$D78,$D74,AS71:AS78)","v":0},{"$f":"SUMIF($D71:$D78,$D74,AT71:AT78)","v":0}]
[null,null,null,"6.14.2",{"$f":"\"Balanse - \"&E18","v":"Balanse - Mobilt knuseverk"},{"$f":"((F$18-SUMIF(F38:F45,'08. Beregningsfaktorer'!$B$28,G38:G45)-SUMIF(F38:F45,'08. Beregningsfaktorer'!#REF!,G38:G45))*F$64)-(SUMIF(F71:F78,E$18,G71:G78))","v":0},{"$f":"'02. Inndata steinmasser'!$F$7& \" km\"","v":"fm3 km"},"Transportdistanser og masser stemmer"]
[null,null,null,"6.14.3",{"$f":"\"Balanse - \"&E19","v":"Balanse - Restprodukt mobilt knuseverk"},{"$f":"((F$19-SUMIF(F38:F45,'08. Beregningsfaktorer'!$B$28,G38:G45)-SUMIF(F38:F45,'08. Beregningsfaktorer'!#REF!,G38:G45))*F$64)-(SUMIF(F71:F78,E$19,G71:G78))","v":0},{"$f":"'02. Inndata steinmasser'!$F$7& \" km\"","v":"fm3 km"},"Transportdistanser og masser stemmer"]
[]
[]
[null,"Nærliggende prosjekt"]
[null,null,null,"6.15","Veidistanser mellom nærliggende prosjekt og…"]
[null,null,null,"6.15.1","Tunnelmunning",null,"km"]
[null,null,null,"6.15.2","Mobilt knuseverk",null,"km"]
[null,null,null,null,null,null,null,null,null,null,null,null,null,null,null,null,null,null,null,{"$f":"E91&\" - Grunnlagsdata og forbruk\"","v":"Lasting til transport - Grunnlagsdata og forbruk"},null,null,null,null,null,null,{"$f":"E91&\" - Utslipp knyttet til drivstoff/elektrisitet\"","v":"Lasting til transport - Utslipp knyttet til drivstoff/elektrisitet"},null,null,null,null,null,null,{"$f":"E91&\" - Utslipp knyttet til maskin\"","v":"Lasting til transport - Utslipp knyttet til maskin"},null,null,null,null,null,null,null,{"$f":"E91&\" - Sum utslipp\"","v":"Lasting til transport - Sum utslipp"}]
[null,null,null,"6.16","Lasting til transport",null,null,null,null,null,null,null,null,null,null,null,null,null,null,"Kategori",null,{"$f":"IF(F92='08. Beregningsfaktorer'!$E$43,'08. Beregningsfaktorer'!$E$43,IF(F92='08. Beregningsfaktorer'!$E$44,'09. Utslippsfaktorer'!$P$20,IF(OR(F92='08. Beregningsfaktorer'!$E$45,F92='08. Beregningsfaktorer'!$E$47),'09. Utslippsfaktorer'!$P$21,IF(F92='08. Beregningsfaktorer'!$E$46,'09. Utslippsfaktorer'!$P$21,\"Mangler type lastemaskin\"))))","v":"Mangler type lastemaskin"},null,null,null,null,null,null,"CO2-ekv.","SO2-ekv.","P-ekv.","NMVOC",null,null,null,"CO2-ekv.","SO2-ekv.","P-ekv.","NMVOC",null,null,null,"CO2-ekv.","SO2-ekv.","P-ekv.","NMVOC"]
[null,null,null,"6.16.1","Type lastemaskin",null,null,null,null,null,null,null,null,null,null,null,null,null,null,"Volum stein",null,null,{"$f":"IF((F$22+F$23+F$24)=0,0,IF(G$22=\"fm3\",(F$22+F$23+F$24)*'08. Beregningsfaktorer'!$G$65,(F$22+F$23+F$24)/'08. Beregningsfaktorer'!$G$65))","v":0},"lm3",null,null,{"$f":"\"Utslippsfaktor (kg/\"&W94&\"):\"&\"  \"","v":"Utslippsfaktor (kg/...):  "},null,{"$f":"IF(F92=0,0,IF(F92='08. Beregningsfaktorer'!$E$43,0,(INDEX('09. Utslippsfaktorer'!$P$7:$U$12,MATCH(X94,'09. Utslippsfaktorer'!$P$7:$P$12,0),MATCH(\"kg \"&AC91,'09. Utslippsfaktorer'!$P$7:$U$7,0),1))))","v":0},{"$f":"IF(F92=0,0,IF(F92='08. Beregningsfaktorer'!$E$43,0,(INDEX('09. Utslippsfaktorer'!$P$7:$U$12,MATCH(X94,'09. Utslippsfaktorer'!$P$7:$P$12,0),MATCH(\"kg \"&AD91,'09. Utslippsfaktorer'!$P$7:$U$7,0),1))))","v":0},{"$f":"IF(F92=0,0,IF(F92='08. Beregningsfaktorer'!$E$43,0,(INDEX('09. Utslippsfaktorer'!$P$7:$U$12,MATCH(X94,'09. Utslippsfaktorer'!$P$7:$P$12,0),MATCH(\"kg \"&AE91,'09. Utslippsfaktorer'!$P$7:$U$7,0),1))))","v":0},{"$f":"IF(F92=0,0,IF(F92='08. Beregningsfaktorer'!$E$43,0,(INDEX('09. Utslippsfaktorer'!$P$7:$U$12,MATCH(X94,'09. Utslippsfaktorer'!$P$7:$P$12,0),MATCH(\"kg \"&AF91,'09. Utslippsfaktorer'!$P$7:$U$7,0),1))))","v":0},null,"Utslippsfaktor (kg/m3):  ",null,{"$f":"IF(F92=0,0,IF(F92='08. Beregningsfaktorer'!$E$43,0,(INDEX('09. Utslippsfaktorer'!$P$7:$U$45,MATCH(V91,'09. Utslippsfaktorer'!$P$7:$P$45,0),MATCH(\"kg \"&AJ91,'09. Utslippsfaktorer'!$P$7:$U$7,0),1))))","v":0},{"$f":"IF(F92=0,0,IF(F92='08. Beregningsfaktorer'!$E$43,0,(INDEX('09. Utslippsfaktorer'!$P$7:$U$45,MATCH(V91,'09. Utslippsfaktorer'!$P$7:$P$45,0),MATCH(\"kg \"&AK91,'09. Utslippsfaktorer'!$P$7:$U$7,0),1))))","v":0},{"$f":"IF(F92=0,0,IF(F92='08. Beregningsfaktorer'!$E$43,0,(INDEX('09. Utslippsfaktorer'!$P$7:$U$45,MATCH(V91,'09. Utslippsfaktorer'!$P$7:$P$45,0),MATCH(\"kg \"&AL91,'09. Utslippsfaktorer'!$P$7:$U$7,0),1))))","v":0},{"$f":"IF(F92=0,0,IF(F92='08. Beregningsfaktorer'!$E$43,0,(INDEX('09. Utslippsfaktorer'!$P$7:$U$45,MATCH(V91,'09. Utslippsfaktorer'!$P$7:$P$45,0),MATCH(\"kg \"&AM91,'09. Utslippsfaktorer'!$P$7:$U$7,0),1))))","v":0},null,"Utslipp (kg):  ",null,{"$f":"AC93+AJ93","v":0},{"$f":"AD93+AK93","v":0},{"$f":"AE93+AL93","v":0},{"$f":"AF93+AM93","v":0}]
[null,null,null,null,null,null,null,null,null,null,null,null,null,null,null,null,null,null,null,"Forbruk per m3 stein",null,null,{"$f":"IF(F92=0,0,(INDEX('08. Beregningsfaktorer'!$E$12:$G$89,MATCH(F92,'08. Beregningsfaktorer'!$E$12:$E$89,0),3,1)))","v":0},{"$f":"W94&\"/\"&X92","v":".../lm3"},null,null,"Utslipp (kg):  ",null,{"$f":"V94*AC92","v":0},{"$f":"V94*AD92","v":0},{"$f":"V94*AE92","v":0},{"$f":"V94*AF92","v":0},null,"Utslipp (kg):  ",null,{"$f":"W92*AJ92","v":0},{"$f":"W92*AK92","v":0},{"$f":"W92*AL92","v":0},{"$f":"W92*AM92","v":0}]
[null,null,null,null,null,null,null,null,null,null,null,null,null,null,null,null,null,null,null,"Forbruk",null,{"$f":"W92*W93","v":0},{"$f":"IF(F92='08. Beregningsfaktorer'!$E$44,\"l\",IF(OR(F92='08. Beregningsfaktorer'!$E$45,F92='08. Beregningsfaktorer'!$E$47),\"l\",IF(F92='08. Beregningsfaktorer'!$E$46,\"kWh\",\"...\")))","v":"..."},{"$f":"IF(F92='08. Beregningsfaktorer'!$E$43,\"Ingen løft\",IF(F92='08. Beregningsfaktorer'!$E$44,\"Diesel\",IF(F92='08. Beregningsfaktorer'!$E$45,\"Diesel\",IF(F92='08. Beregningsfaktorer'!$E$47,\"Biodiesel\",IF(F92='08. Beregningsfaktorer'!$E$46,\"Elektrisitet\",\"Mangler type lastemaskin\")))))","v":"Mangler type lastemaskin"}]
[]
[null,null,null,"6.17","Transport til nærliggende prosjekt","Endre antall kjøretøy:"]
[null,null,null,"6.17.1","Type kjøretøy",null,{"$f":"F98","v":0},null,null,null,null,null,null,null,null,null,null,null,null,{"$f":"E96&\" - Grunnlagsdata og forbruk\"","v":"Transport til nærliggende prosjekt - Grunnlagsdata og forbruk"},null,null,null,null,null,null,{"$f":"E96&\" - Utslipp knyttet til drivstoff/elektrisitet\"","v":"Transport til nærliggende prosjekt - Utslipp knyttet til drivstoff/elektrisitet"},null,null,null,null,null,null,{"$f":"E96&\" - Utslipp knyttet til kjøretøy og infrastruktur\"","v":"Transport til nærliggende prosjekt - Utslipp knyttet til kjøretøy og infrastruktur"},null,null,null,null,null,null,{"$f":"E96&\" - Sum utslipp\"","v":"Transport til nærliggende prosjekt - Sum utslipp"}]
[null,null,{"$f":"IF(F97='08. Beregningsfaktorer'!#REF!,\"J\",0)","v":{"$error":"#REF!"}},"6.17.2","Mengde stein",null,{"$f":"'02. Inndata steinmasser'!$F$7","v":"fm3"},null,null,null,null,null,null,null,null,null,null,null,null,"Kategori",null,{"$f":"IF(OR(F97='08. Beregningsfaktorer'!$B$9,F97='08. Beregningsfaktorer'!$B$10,F97='08. Beregningsfaktorer'!$B$11),'09. Utslippsfaktorer'!$P$14,IF(OR(F97='08. Beregningsfaktorer'!$B$12,F97='08. Beregningsfaktorer'!$B$13),'09. Utslippsfaktorer'!$P$15,IF(OR(F97='08. Beregningsfaktorer'!$B$14,F97='08. Beregningsfaktorer'!$B$15),'09. Utslippsfaktorer'!$P$16,IF(OR(F97='08. Beregningsfaktorer'!$B$24,F97='08. Beregningsfaktorer'!$B$25),'09. Utslippsfaktorer'!$P$18,IF(F97='08. Beregningsfaktorer'!$B$26,'09. Utslippsfaktorer'!$P$18,IF(F97='08. Beregningsfaktorer'!$B$27,'09. Utslippsfaktorer'!$P$18,IF(F97='08. Beregningsfaktorer'!$B$28,'09. Utslippsfaktorer'!$P$19,IF(F97='08. Beregningsfaktorer'!$B$29,'09. Utslippsfaktorer'!$P$19,IF(OR(F97='08. Beregningsfaktorer'!$B$17,F97='08. Beregningsfaktorer'!$B$16,F97='08. Beregningsfaktorer'!$B$18,F97='08. Beregningsfaktorer'!$B$19),'09. Utslippsfaktorer'!$P$16,IF(OR(F97='08. Beregningsfaktorer'!$B$20,F97='08. Beregningsfaktorer'!$B$21,F97='08. Beregningsfaktorer'!$B$22,F97='08. Beregningsfaktorer'!$B$23),'09. Utslippsfaktorer'!$P$14,\"Mangler type kjøretøy\"))))))))))","v":"Mangler type kjøretøy"},null,null,null,null,null,null,"CO2-ekv.","SO2-ekv.","P-ekv.","NMVOC",null,null,null,"CO2-ekv.","SO2-ekv.","P-ekv.","NMVOC",null,null,null,"CO2-ekv.","SO2-ekv.","P-ekv.","NMVOC"]
[null,null,null,"6.17.3","Hvor kommer massene fra?",null,{"$f":"IF(OR(F97='08. Beregningsfaktorer'!$B$28,F97='08. Beregningsfaktorer'!$B$29),0,IF(OR(F100='08. Beregningsfaktorer'!$E$77,F100='08. Beregningsfaktorer'!$E$80),F98*F101,0))","v":0},null,null,null,null,null,null,null,null,null,null,null,null,{"$f":"IF(F100='08. Beregningsfaktorer'!$E$78,\"km\",\"tonn km\")","v":"tonn km"},null,null,{"$f":"IF(F100='08. Beregningsfaktorer'!$E$78,IF(G98=\"tonn\",IF(OR(F97='08. Beregningsfaktorer'!$B$16,F97='08. Beregningsfaktorer'!$B$17),(F98/8.5)*F101,IF(OR(F97='08. Beregningsfaktorer'!$B$18,F97='08. Beregningsfaktorer'!$B$19),(F98/14)*F101,IF(OR(F97='08. Beregningsfaktorer'!$B$20,F97='08. Beregningsfaktorer'!$B$21),(F98/26)*F101,IF(OR(F97='08. Beregningsfaktorer'!$B$22,F97='08. Beregningsfaktorer'!$B$23),(F98/40)*F101,IF(OR(F97='08. Beregningsfaktorer'!$B$24,F97='08. Beregningsfaktorer'!$B$25),(F98/14)*F101,IF(F97='08. Beregningsfaktorer'!$B$26,(F98/14)*F101,IF(F97='08. Beregningsfaktorer'!$B$27,(F98/14)*F101))))))),IF(OR(F97='08. Beregningsfaktorer'!$B$16,F97='08. Beregningsfaktorer'!$B$17),(F98*'08. Beregningsfaktorer'!$G$65/8.5)*F101,IF(OR(F97='08. Beregningsfaktorer'!$B$18,F97='08. Beregningsfaktorer'!$B$19),(F98*'08. Beregningsfaktorer'!$G$65/14)*F101,IF(OR(F97='08. Beregningsfaktorer'!$B$20,F97='08. Beregningsfaktorer'!$B$21),(F98*'08. Beregningsfaktorer'!$G$65/26)*F101,IF(OR(F97='08. Beregningsfaktorer'!$B$22,F97='08. Beregningsfaktorer'!$B$23),(F98*'08. Beregningsfaktorer'!$G$65/40)*F101,IF(OR(F97='08. Beregningsfaktorer'!$B$24,F97='08. Beregningsfaktorer'!$B$25),(F98*'08. Beregningsfaktorer'!$G$65/14)*F101,IF(F97='08. Beregningsfaktorer'!$B$26,(F98*'08. Beregningsfaktorer'!$G$65/14)*F101,IF(F97='08. Beregningsfaktorer'!$B$27,(F98*'08. Beregningsfaktorer'!$G$65/14)*F101)))))))),IF(F98=0,0,IF(F100='08. Beregningsfaktorer'!$E$80,IF(AND(OR(F97='08. Beregningsfaktorer'!$B$28,F97='08. Beregningsfaktorer'!$B$29),G98=\"tonn\"),(F98/1900)*F101,IF(OR(F97='08. Beregningsfaktorer'!$B$28,F97='08. Beregningsfaktorer'!$B$29),(F98*'08. Beregningsfaktorer'!$G$65/1900)*F101,IF(G98=\"tonn\",F98,F98*'08. Beregningsfaktorer'!$G$65)*F101)),IF(G98=\"tonn\",F98*F101,F98*'08. Beregningsfaktorer'!$G$65)*F101)))","v":0},{"$f":"IF(OR(F100='08. Beregningsfaktorer'!$E$78,F97='08. Beregningsfaktorer'!$B$28,F97='08. Beregningsfaktorer'!$B$29),\"km\",\"tkm\")","v":"tkm"},null,null,{"$f":"\"Utslippsfaktor (kg/\"&W102&\"):\"&\"  \"","v":"Utslippsfaktor (kg/l):  "},null,{"$f":"IF(F97=0,0,(INDEX('09. Utslippsfaktorer'!$P$7:$U$13,MATCH(X102,'09. Utslippsfaktorer'!$P$7:$P$13,0),MATCH(\"kg \"&AC98,'09. Utslippsfaktorer'!$P$7:$U$7,0),1)))","v":0},{"$f":"IF(F97=0,0,(INDEX('09. Utslippsfaktorer'!$P$7:$U$13,MATCH(X102,'09. Utslippsfaktorer'!$P$7:$P$13,0),MATCH(\"kg \"&AD98,'09. Utslippsfaktorer'!$P$7:$U$7,0),1)))","v":0},{"$f":"IF(F97=0,0,(INDEX('09. Utslippsfaktorer'!$P$7:$U$13,MATCH(X102,'09. Utslippsfaktorer'!$P$7:$P$13,0),MATCH(\"kg \"&AE98,'09. Utslippsfaktorer'!$P$7:$U$7,0),1)))","v":0},{"$f":"IF(F97=0,0,(INDEX('09. Utslippsfaktorer'!$P$7:$U$13,MATCH(X102,'09. Utslippsfaktorer'!$P$7:$P$13,0),MATCH(\"kg \"&AF98,'09. Utslippsfaktorer'!$P$7:$U$7,0),1)))","v":0},null,{"$f":"\"Utslippsfaktor (kg/\"&X99&\"):\"","v":"Utslippsfaktor (kg/tkm):"},null,{"$f":"IF(F97=0,0,(INDEX('09. Utslippsfaktorer'!$P$7:$U$45,MATCH(V98,'09. Utslippsfaktorer'!$P$7:$P$45,0),MATCH(\"kg \"&AJ98,'09. Utslippsfaktorer'!$P$7:$U$7,0),1)))","v":0},{"$f":"IF(F97=0,0,(INDEX('09. Utslippsfaktorer'!$P$7:$U$45,MATCH(V98,'09. Utslippsfaktorer'!$P$7:$P$45,0),MATCH(\"kg \"&AK98,'09. Utslippsfaktorer'!$P$7:$U$7,0),1)))","v":0},{"$f":"IF(F97=0,0,(INDEX('09. Utslippsfaktorer'!$P$7:$U$45,MATCH(V98,'09. Utslippsfaktorer'!$P$7:$P$45,0),MATCH(\"kg \"&AL98,'09. Utslippsfaktorer'!$P$7:$U$7,0),1)))","v":0},{"$f":"IF(F97=0,0,(INDEX('09. Utslippsfaktorer'!$P$7:$U$45,MATCH(V98,'09. Utslippsfaktorer'!$P$7:$P$45,0),MATCH(\"kg \"&AM98,'09. Utslippsfaktorer'!$P$7:$U$7,0),1)))","v":0},null,"Utslipp (kg):  ",null,{"$f":"IF(F100='08. Beregningsfaktorer'!$E$79,0,AC100+AJ100)","v":0},{"$f":"IF(F100='08. Beregningsfaktorer'!$E$79,0,AD100+AK100)","v":0},{"$f":"IF(F100='08. Beregningsfaktorer'!$E$79,0,AE100+AL100)","v":0},{"$f":"IF(F100='08. Beregningsfaktorer'!$E$79,0,AF100+AM100)","v":0}]
[null,null,null,"6.17.4","Lastekapasitet",null,{"$f":"IF(OR(F97='08. Beregningsfaktorer'!$B$9,F97='08. Beregningsfaktorer'!$B$10,F97='08. Beregningsfaktorer'!$B$12,F97='08. Beregningsfaktorer'!$B$13,F97='08. Beregningsfaktorer'!$B$14,F97='08. Beregningsfaktorer'!$B$15,F97='08. Beregningsfaktorer'!$B$28,F97='08. Beregningsfaktorer'!$B$29),IF(F100='08. Beregningsfaktorer'!$E$80,0,1),IF(F100='08. Beregningsfaktorer'!$E$80,3,0))","v":0},null,null,null,null,null,null,null,null,null,null,null,null,"Korreksjonsfaktor",null,null,{"$f":"IF(F102=0,0,INDEX('08. Beregningsfaktorer'!$E$54:$G$55,MATCH(F102,'08. Beregningsfaktorer'!$E$54:$E$55,0),3))","v":0},null,null,null,"Utslipp (kg):  ",null,{"$f":"IFERROR(V102*AC99,\"Data mangler\")","v":0},{"$f":"IFERROR(V102*AD99,\"Data mangler\")","v":0},{"$f":"IFERROR(V102*AE99,\"Data mangler\")","v":0},{"$f":"IFERROR(V102*AF99,\"Data mangler\")","v":0},null,"Utslipp (kg):  ",null,{"$f":"IF(V98='09. Utslippsfaktorer'!$P$19,IF(G98=\"tonn\",F101*AJ99*F98,F101*AJ99*F98*'08. Beregningsfaktorer'!$G$65),IF(F100='08. Beregningsfaktorer'!$E$78,0,IFERROR(W99*AJ99,\"Data mangler\")))","v":0},{"$f":"IF(V98='09. Utslippsfaktorer'!$P$19,IF(G98=\"tonn\",F101*AK99*F98,F101*AK99*F98*'08. Beregningsfaktorer'!$G$65),IF(F100='08. Beregningsfaktorer'!$E$78,0,IFERROR(W99*AK99,\"Data mangler\")))","v":0},{"$f":"IF(V98='09. Utslippsfaktorer'!$P$19,IF(G98=\"tonn\",F101*AL99*F98,F101*AL99*F98*'08. Beregningsfaktorer'!$G$65),IF(F100='08. Beregningsfaktorer'!$E$78,0,IFERROR(W99*AL99,\"Data mangler\")))","v":0},{"$f":"IF(V98='09. Utslippsfaktorer'!$P$19,IF(G98=\"tonn\",F101*AM99*F98,F101*AM99*F98*'08. Beregningsfaktorer'!$G$65),IF(F100='08. Beregningsfaktorer'!$E$78,0,IFERROR(W99*AM99,\"Data mangler\")))","v":0}]
[null,null,null,"6.17.5","Distanse til nærliggende prosjekt",null,"km",null,null,null,null,null,null,null,null,null,null,null,null,{"$f":"IF(F100='08. Beregningsfaktorer'!$E$78,\"Forbruk per km\",\"Forbruk per tonn km\")","v":"Forbruk per tonn km"},null,null,{"$f":"IFERROR(IF(F97=0,0,IF(F100='08. Beregningsfaktorer'!$E$78,INDEX('08. Beregningsfaktorer'!$E$30:$G$41,MATCH(F97,'08. Beregningsfaktorer'!$B$30:$B$41,0),3,1),INDEX('08. Beregningsfaktorer'!$E$9:$G$29,MATCH(F97,'08. Beregningsfaktorer'!$B$9:$B$29,0),3,1))),\"Loading..\")","v":0},{"$f":"IFERROR(W102&\"/\"&X99,\"Loading..\")","v":"l/tkm"}]
[null,null,null,"6.17.6","Transport med helning",null,null,null,null,null,null,null,null,null,null,null,null,null,null,"Forbruk",null,{"$f":"IFERROR(W99*W101*W100,\"Data mangler\")","v":0},{"$f":"IFERROR(IF(OR(F97='08. Beregningsfaktorer'!$B$26,F97='08. Beregningsfaktorer'!$B$27),\"kWh\",IF(F97='08. Beregningsfaktorer'!$B$11,\"MJ\",\"l\")),\"Loading..\")","v":"l"},{"$f":"IFERROR(IF(F97='08. Beregningsfaktorer'!$B$11,\"Biogass\",IF(OR(F97='08. Beregningsfaktorer'!$B$26,F97='08. Beregningsfaktorer'!$B$27),\"Elektrisitet\",IF(OR(F97='08. Beregningsfaktorer'!$B$10,F97='08. Beregningsfaktorer'!$B$13,F97='08. Beregningsfaktorer'!$B$15,F97='08. Beregningsfaktorer'!$B$17,F97='08. Beregningsfaktorer'!$B$17,F97='08. Beregningsfaktorer'!$B$19,F97='08. Beregningsfaktorer'!$B$21,F97='08. Beregningsfaktorer'!$B$23,F97='08. Beregningsfaktorer'!$B$25,F97='08. Beregningsfaktorer'!$B$29),\"Biodiesel\",IF(V98=\"Mangler type kjøretøy\",\"Mangler type kjøretøy\",\"Diesel\")))),\"Feil\")","v":"Mangler type kjøretøy"}]
[]
[null,null,null,null,null,null,null,null,null,null,null,null,null,null,null,null,null,null,null,null,null,null,null,null,null,null,null,null,null,null,null,null,null,null,null,null,null,null,null,null,{"$f":"E96&\" - Sum utslipp - Alle kjøretøy\"","v":"Transport til nærliggende prosjekt - Sum utslipp - Alle kjøretøy"}]
[null,null,null,"6.18","Balanse veitransport",{"$f":"SUMIF(E96:E103,\"Lastekapasitet\",G96:G103)","v":0},null,"Lastutnyttelse korrekt modellert",null,null,null,null,null,null,null,null,null,null,null,null,null,null,null,null,null,null,null,null,null,null,null,null,null,null,null,null,null,null,null,null,null,null,"CO2-ekv.","SO2-ekv.","P-ekv.","NMVOC"]
[null,null,null,"6.18.1",{"$f":"\"Balanse - \"&E22","v":"Balanse - Tunnelmunning"},{"$f":"((F$22-SUMIF(F38:F45,'08. Beregningsfaktorer'!$B$28,G38:G45)-SUMIF(F38:F45,'08. Beregningsfaktorer'!#REF!,G38:G45))*F$88)-(SUMIF(F96:F103,E$22,G96:G103))","v":0},{"$f":"'02. Inndata steinmasser'!$F$7& \" km\"","v":"fm3 km"},"Transportdistanser og masser stemmer",null,null,null,null,null,null,null,null,null,null,null,null,null,null,null,null,null,null,null,null,null,null,null,null,null,null,null,null,null,null,null,null,"Utslipp (kg):  ",null,{"$f":"SUMIF($D96:$D103,$D99,AQ96:AQ103)","v":0},{"$f":"SUMIF($D96:$D103,$D99,AR96:AR103)","v":0},{"$f":"SUMIF($D96:$D103,$D99,AS96:AS103)","v":0},{"$f":"SUMIF($D96:$D103,$D99,AT96:AT103)","v":0}]
[null,null,null,"6.18.2",{"$f":"\"Balanse - \"&E23","v":"Balanse - Mobilt knuseverk"},{"$f":"((F$23-SUMIF(F38:F45,'08. Beregningsfaktorer'!$B$28,G38:G45)-SUMIF(F38:F45,'08. Beregningsfaktorer'!#REF!,G38:G45))*F$89)-(SUMIF(F96:F103,E$23,G96:G103))","v":0},{"$f":"'02. Inndata steinmasser'!$F$7& \" km\"","v":"fm3 km"},"Transportdistanser og masser stemmer"]
[null,null,null,"6.18.3",{"$f":"\"Balanse - \"&E24","v":"Balanse - Restprodukt mobilt knuseverk"},{"$f":"((F$24-SUMIF(F38:F45,'08. Beregningsfaktorer'!$B$28,G38:G45)-SUMIF(F38:F45,'08. Beregningsfaktorer'!#REF!,G38:G45))*F$89)-(SUMIF(F96:F103,E$24,G96:G103))","v":0},{"$f":"'02. Inndata steinmasser'!$F$7& \" km\"","v":"fm3 km"},"Transportdistanser og masser stemmer"]
[]
[]
[null,"Andre"]
[null,null,null,"6.19","Veidistanser mellom andre og…"]
[null,null,null,"6.19.1","Tunnelmunning",null,"km"]
[null,null,null,"6.19.2","Mobilt knuseverk",null,"km"]
[null,null,null,null,null,null,null,null,null,null,null,null,null,null,null,null,null,null,null,{"$f":"E116&\" - Grunnlagsdata og forbruk\"","v":"Lasting til transport - Grunnlagsdata og forbruk"},null,null,null,null,null,null,{"$f":"E116&\" - Utslipp knyttet til drivstoff/elektrisitet\"","v":"Lasting til transport - Utslipp knyttet til drivstoff/elektrisitet"},null,null,null,null,null,null,{"$f":"E116&\" - Utslipp knyttet til maskin\"","v":"Lasting til transport - Utslipp knyttet til maskin"},null,null,null,null,null,null,null,{"$f":"E116&\" - Sum utslipp\"","v":"Lasting til transport - Sum utslipp"}]
[null,null,null,"6.20","Lasting til transport",null,null,null,null,null,null,null,null,null,null,null,null,null,null,"Kategori",null,{"$f":"IF(F117='08. Beregningsfaktorer'!$E$43,'08. Beregningsfaktorer'!$E$43,IF(F117='08. Beregningsfaktorer'!$E$44,'09. Utslippsfaktorer'!$P$20,IF(OR(F117='08. Beregningsfaktorer'!$E$45,F117='08. Beregningsfaktorer'!$E$47),'09. Utslippsfaktorer'!$P$21,IF(F117='08. Beregningsfaktorer'!$E$46,'09. Utslippsfaktorer'!$P$21,\"Mangler type lastemaskin\"))))","v":"Mangler type lastemaskin"},null,null,null,null,null,null,"CO2-ekv.","SO2-ekv.","P-ekv.","NMVOC",null,null,null,"CO2-ekv.","SO2-ekv.","P-ekv.","NMVOC",null,null,null,"CO2-ekv.","SO2-ekv.","P-ekv.","NMVOC"]
[null,null,null,"6.20.1","Type lastemaskin",null,null,null,null,null,null,null,null,null,null,null,null,null,null,"Volum stein",null,null,{"$f":"IF((F$27+F$28+F$29)=0,0,IF(G$27=\"fm3\",(F$27+F$28+F$29)*'08. Beregningsfaktorer'!$G$65,(F$27+F$28+F$29)/'08. Beregningsfaktorer'!$G$65))","v":0},"lm3",null,null,{"$f":"\"Utslippsfaktor (kg/\"&W119&\"):\"&\"  \"","v":"Utslippsfaktor (kg/...):  "},null,{"$f":"IF(F117=0,0,IF(F117='08. Beregningsfaktorer'!$E$43,0,(INDEX('09. Utslippsfaktorer'!$P$7:$U$12,MATCH(X119,'09. Utslippsfaktorer'!$P$7:$P$12,0),MATCH(\"kg \"&AC116,'09. Utslippsfaktorer'!$P$7:$U$7,0),1))))","v":0},{"$f":"IF(F117=0,0,IF(F117='08. Beregningsfaktorer'!$E$43,0,(INDEX('09. Utslippsfaktorer'!$P$7:$U$12,MATCH(X119,'09. Utslippsfaktorer'!$P$7:$P$12,0),MATCH(\"kg \"&AD116,'09. Utslippsfaktorer'!$P$7:$U$7,0),1))))","v":0},{"$f":"IF(F117=0,0,IF(F117='08. Beregningsfaktorer'!$E$43,0,(INDEX('09. Utslippsfaktorer'!$P$7:$U$12,MATCH(X119,'09. Utslippsfaktorer'!$P$7:$P$12,0),MATCH(\"kg \"&AE116,'09. Utslippsfaktorer'!$P$7:$U$7,0),1))))","v":0},{"$f":"IF(F117=0,0,IF(F117='08. Beregningsfaktorer'!$E$43,0,(INDEX('09. Utslippsfaktorer'!$P$7:$U$12,MATCH(X119,'09. Utslippsfaktorer'!$P$7:$P$12,0),MATCH(\"kg \"&AF116,'09. Utslippsfaktorer'!$P$7:$U$7,0),1))))","v":0},null,"Utslippsfaktor (kg/m3):  ",null,{"$f":"IF(F117=0,0,IF(F117='08. Beregningsfaktorer'!$E$43,0,(INDEX('09. Utslippsfaktorer'!$P$7:$U$45,MATCH(V116,'09. Utslippsfaktorer'!$P$7:$P$45,0),MATCH(\"kg \"&AJ116,'09. Utslippsfaktorer'!$P$7:$U$7,0),1))))","v":0},{"$f":"IF(F117=0,0,IF(F117='08. Beregningsfaktorer'!$E$43,0,(INDEX('09. Utslippsfaktorer'!$P$7:$U$45,MATCH(V116,'09. Utslippsfaktorer'!$P$7:$P$45,0),MATCH(\"kg \"&AK116,'09. Utslippsfaktorer'!$P$7:$U$7,0),1))))","v":0},{"$f":"IF(F117=0,0,IF(F117='08. Beregningsfaktorer'!$E$43,0,(INDEX('09. Utslippsfaktorer'!$P$7:$U$45,MATCH(V116,'09. Utslippsfaktorer'!$P$7:$P$45,0),MATCH(\"kg \"&AL116,'09. Utslippsfaktorer'!$P$7:$U$7,0),1))))","v":0},{"$f":"IF(F117=0,0,IF(F117='08. Beregningsfaktorer'!$E$43,0,(INDEX('09. Utslippsfaktorer'!$P$7:$U$45,MATCH(V116,'09. Utslippsfaktorer'!$P$7:$P$45,0),MATCH(\"kg \"&AM116,'09. Utslippsfaktorer'!$P$7:$U$7,0),1))))","v":0},null,"Utslipp (kg):  ",null,{"$f":"AC118+AJ118","v":0},{"$f":"AD118+AK118","v":0},{"$f":"AE118+AL118","v":0},{"$f":"AF118+AM118","v":0}]
[null,null,null,null,null,null,null,null,null,null,null,null,null,null,null,null,null,null,null,"Forbruk per m3 stein",null,null,{"$f":"IF(F117=0,0,(INDEX('08. Beregningsfaktorer'!$E$12:$G$89,MATCH(F117,'08. Beregningsfaktorer'!$E$12:$E$89,0),3,1)))","v":0},{"$f":"W119&\"/\"&X117","v":".../lm3"},null,null,"Utslipp (kg):  ",null,{"$f":"V119*AC117","v":0},{"$f":"V119*AD117","v":0},{"$f":"V119*AE117","v":0},{"$f":"V119*AF117","v":0},null,"Utslipp (kg):  ",null,{"$f":"W117*AJ117","v":0},{"$f":"W117*AK117","v":0},{"$f":"W117*AL117","v":0},{"$f":"W117*AM117","v":0}]
[null,null,null,null,null,null,null,null,null,null,null,null,null,null,null,null,null,null,null,"Forbruk",null,{"$f":"W117*W118","v":0},{"$f":"IF(F117='08. Beregningsfaktorer'!$E$44,\"l\",IF(OR(F117='08. Beregningsfaktorer'!$E$45,F117='08. Beregningsfaktorer'!$E$47),\"l\",IF(F117='08. Beregningsfaktorer'!$E$46,\"kWh\",\"...\")))","v":"..."},{"$f":"IF(F117='08. Beregningsfaktorer'!$E$43,\"Ingen løft\",IF(F117='08. Beregningsfaktorer'!$E$44,\"Diesel\",IF(F117='08. Beregningsfaktorer'!$E$45,\"Diesel\",IF(F117='08. Beregningsfaktorer'!$E$47,\"Biodiesel\",IF(F117='08. Beregningsfaktorer'!$E$46,\"Elektrisitet\",\"Mangler type lastemaskin\")))))","v":"Mangler type lastemaskin"}]
[]
[null,null,null,"6.21","Transport til andre","Endre antall kjøretøy:"]
[null,null,null,"6.21.1","Type kjøretøy",null,{"$f":"F123","v":0},null,null,null,null,null,null,null,null,null,null,null,null,{"$f":"E121&\" - Grunnlagsdata og forbruk\"","v":"Transport til andre - Grunnlagsdata og forbruk"},null,null,null,null,null,null,{"$f":"E121&\" - Utslipp knyttet til drivstoff/elektrisitet\"","v":"Transport til andre - Utslipp knyttet til drivstoff/elektrisitet"},null,null,null,null,null,null,{"$f":"E121&\" - Utslipp knyttet til kjøretøy og infrastruktur\"","v":"Transport til andre - Utslipp knyttet til kjøretøy og infrastruktur"},null,null,null,null,null,null,{"$f":"E121&\" - Sum utslipp\"","v":"Transport til andre - Sum utslipp"}]
[null,null,{"$f":"IF(F122='08. Beregningsfaktorer'!#REF!,\"J\",0)","v":{"$error":"#REF!"}},"6.21.2","Mengde stein",null,{"$f":"'02. Inndata steinmasser'!$F$7","v":"fm3"},null,null,null,null,null,null,null,null,null,null,null,null,"Kategori",null,{"$f":"IF(OR(F122='08. Beregningsfaktorer'!$B$9,F122='08. Beregningsfaktorer'!$B$10,F122='08. Beregningsfaktorer'!$B$11),'09. Utslippsfaktorer'!$P$14,IF(OR(F122='08. Beregningsfaktorer'!$B$12,F122='08. Beregningsfaktorer'!$B$13),'09. Utslippsfaktorer'!$P$15,IF(OR(F122='08. Beregningsfaktorer'!$B$14,F122='08. Beregningsfaktorer'!$B$15),'09. Utslippsfaktorer'!$P$16,IF(OR(F122='08. Beregningsfaktorer'!$B$24,F122='08. Beregningsfaktorer'!$B$25),'09. Utslippsfaktorer'!$P$18,IF(F122='08. Beregningsfaktorer'!$B$26,'09. Utslippsfaktorer'!$P$18,IF(F122='08. Beregningsfaktorer'!$B$27,'09. Utslippsfaktorer'!$P$18,IF(F122='08. Beregningsfaktorer'!$B$28,'09. Utslippsfaktorer'!$P$19,IF(F122='08. Beregningsfaktorer'!$B$29,'09. Utslippsfaktorer'!$P$19,IF(OR(F122='08. Beregningsfaktorer'!$B$17,F122='08. Beregningsfaktorer'!$B$16,F122='08. Beregningsfaktorer'!$B$18,F122='08. Beregningsfaktorer'!$B$19),'09. Utslippsfaktorer'!$P$16,IF(OR(F122='08. Beregningsfaktorer'!$B$20,F122='08. Beregningsfaktorer'!$B$21,F122='08. Beregningsfaktorer'!$B$22,F122='08. Beregningsfaktorer'!$B$23),'09. Utslippsfaktorer'!$P$14,\"Mangler type kjøretøy\"))))))))))","v":"Mangler type kjøretøy"},null,null,null,null,null,null,"CO2-ekv.","SO2-ekv.","P-ekv.","NMVOC",null,null,null,"CO2-ekv.","SO2-ekv.","P-ekv.","NMVOC",null,null,null,"CO2-ekv.","SO2-ekv.","P-ekv.","NMVOC"]
[null,null,null,"6.21.3","Hvor kommer massene fra?",null,{"$f":"IF(OR(F122='08. Beregningsfaktorer'!$B$28,F122='08. Beregningsfaktorer'!$B$29),0,IF(OR(F125='08. Beregningsfaktorer'!$E$77,F125='08. Beregningsfaktorer'!$E$80),F123*F126,0))","v":0},null,null,null,null,null,null,null,null,null,null,null,null,{"$f":"IF(F125='08. Beregningsfaktorer'!$E$78,\"km\",\"tonn km\")","v":"tonn km"},null,null,{"$f":"IF(F125='08. Beregningsfaktorer'!$E$78,IF(G123=\"tonn\",IF(OR(F122='08. Beregningsfaktorer'!$B$16,F122='08. Beregningsfaktorer'!$B$17),(F123/8.5)*F126,IF(OR(F122='08. Beregningsfaktorer'!$B$18,F122='08. Beregningsfaktorer'!$B$19),(F123/14)*F126,IF(OR(F122='08. Beregningsfaktorer'!$B$20,F122='08. Beregningsfaktorer'!$B$21),(F123/26)*F126,IF(OR(F122='08. Beregningsfaktorer'!$B$22,F122='08. Beregningsfaktorer'!$B$23),(F123/40)*F126,IF(OR(F122='08. Beregningsfaktorer'!$B$24,F122='08. Beregningsfaktorer'!$B$25),(F123/14)*F126,IF(F122='08. Beregningsfaktorer'!$B$26,(F123/14)*F126,IF(F122='08. Beregningsfaktorer'!$B$27,(F123/14)*F126))))))),IF(OR(F122='08. Beregningsfaktorer'!$B$16,F122='08. Beregningsfaktorer'!$B$17),(F123*'08. Beregningsfaktorer'!$G$65/8.5)*F126,IF(OR(F122='08. Beregningsfaktorer'!$B$18,F122='08. Beregningsfaktorer'!$B$19),(F123*'08. Beregningsfaktorer'!$G$65/14)*F126,IF(OR(F122='08. Beregningsfaktorer'!$B$20,F122='08. Beregningsfaktorer'!$B$21),(F123*'08. Beregningsfaktorer'!$G$65/26)*F126,IF(OR(F122='08. Beregningsfaktorer'!$B$22,F122='08. Beregningsfaktorer'!$B$23),(F123*'08. Beregningsfaktorer'!$G$65/40)*F126,IF(OR(F122='08. Beregningsfaktorer'!$B$24,F122='08. Beregningsfaktorer'!$B$25),(F123*'08. Beregningsfaktorer'!$G$65/14)*F126,IF(F122='08. Beregningsfaktorer'!$B$26,(F123*'08. Beregningsfaktorer'!$G$65/14)*F126,IF(F122='08. Beregningsfaktorer'!$B$27,(F123*'08. Beregningsfaktorer'!$G$65/14)*F126)))))))),IF(F123=0,0,IF(F125='08. Beregningsfaktorer'!$E$80,IF(AND(OR(F122='08. Beregningsfaktorer'!$B$28,F122='08. Beregningsfaktorer'!$B$29),G123=\"tonn\"),(F123/1900)*F126,IF(OR(F122='08. Beregningsfaktorer'!$B$28,F122='08. Beregningsfaktorer'!$B$29),(F123*'08. Beregningsfaktorer'!$G$65/1900)*F126,IF(G123=\"tonn\",F123,F123*'08. Beregningsfaktorer'!$G$65)*F126)),IF(G123=\"tonn\",F123*F126,F123*'08. Beregningsfaktorer'!$G$65)*F126)))","v":0},{"$f":"IF(OR(F125='08. Beregningsfaktorer'!$E$78,F122='08. Beregningsfaktorer'!$B$28,F122='08. Beregningsfaktorer'!$B$29),\"km\",\"tkm\")","v":"tkm"},null,null,{"$f":"\"Utslippsfaktor (kg/\"&W127&\"):\"&\"  \"","v":"Utslippsfaktor (kg/l):  "},null,{"$f":"IF(F122=0,0,(INDEX('09. Utslippsfaktorer'!$P$7:$U$13,MATCH(X127,'09. Utslippsfaktorer'!$P$7:$P$13,0),MATCH(\"kg \"&AC123,'09. Utslippsfaktorer'!$P$7:$U$7,0),1)))","v":0},{"$f":"IF(F122=0,0,(INDEX('09. Utslippsfaktorer'!$P$7:$U$13,MATCH(X127,'09. Utslippsfaktorer'!$P$7:$P$13,0),MATCH(\"kg \"&AD123,'09. Utslippsfaktorer'!$P$7:$U$7,0),1)))","v":0},{"$f":"IF(F122=0,0,(INDEX('09. Utslippsfaktorer'!$P$7:$U$13,MATCH(X127,'09. Utslippsfaktorer'!$P$7:$P$13,0),MATCH(\"kg \"&AE123,'09. Utslippsfaktorer'!$P$7:$U$7,0),1)))","v":0},{"$f":"IF(F122=0,0,(INDEX('09. Utslippsfaktorer'!$P$7:$U$13,MATCH(X127,'09. Utslippsfaktorer'!$P$7:$P$13,0),MATCH(\"kg \"&AF123,'09. Utslippsfaktorer'!$P$7:$U$7,0),1)))","v":0},null,{"$f":"\"Utslippsfaktor (kg/\"&X124&\"):\"","v":"Utslippsfaktor (kg/tkm):"},null,{"$f":"IF(F122=0,0,(INDEX('09. Utslippsfaktorer'!$P$7:$U$45,MATCH(V123,'09. Utslippsfaktorer'!$P$7:$P$45,0),MATCH(\"kg \"&AJ123,'09. Utslippsfaktorer'!$P$7:$U$7,0),1)))","v":0},{"$f":"IF(F122=0,0,(INDEX('09. Utslippsfaktorer'!$P$7:$U$45,MATCH(V123,'09. Utslippsfaktorer'!$P$7:$P$45,0),MATCH(\"kg \"&AK123,'09. Utslippsfaktorer'!$P$7:$U$7,0),1)))","v":0},{"$f":"IF(F122=0,0,(INDEX('09. Utslippsfaktorer'!$P$7:$U$45,MATCH(V123,'09. Utslippsfaktorer'!$P$7:$P$45,0),MATCH(\"kg \"&AL123,'09. Utslippsfaktorer'!$P$7:$U$7,0),1)))","v":0},{"$f":"IF(F122=0,0,(INDEX('09. Utslippsfaktorer'!$P$7:$U$45,MATCH(V123,'09. Utslippsfaktorer'!$P$7:$P$45,0),MATCH(\"kg \"&AM123,'09. Utslippsfaktorer'!$P$7:$U$7,0),1)))","v":0},null,"Utslipp (kg):  ",null,{"$f":"IF(F125='08. Beregningsfaktorer'!$E$79,0,AC125+AJ125)","v":0},{"$f":"IF(F125='08. Beregningsfaktorer'!$E$79,0,AD125+AK125)","v":0},{"$f":"IF(F125='08. Beregningsfaktorer'!$E$79,0,AE125+AL125)","v":0},{"$f":"IF(F125='08. Beregningsfaktorer'!$E$79,0,AF125+AM125)","v":0}]
[null,null,null,"6.21.4","Lastekapasitet",null,{"$f":"IF(OR(F122='08. Beregningsfaktorer'!$B$9,F122='08. Beregningsfaktorer'!$B$10,F122='08. Beregningsfaktorer'!$B$12,F122='08. Beregningsfaktorer'!$B$13,F122='08. Beregningsfaktorer'!$B$14,F122='08. Beregningsfaktorer'!$B$15,F122='08. Beregningsfaktorer'!$B$28,F122='08. Beregningsfaktorer'!$B$29),IF(F125='08. Beregningsfaktorer'!$E$80,0,1),IF(F125='08. Beregningsfaktorer'!$E$80,3,0))","v":0},null,null,null,null,null,null,null,null,null,null,null,null,"Korreksjonsfaktor",null,null,{"$f":"IF(F127=0,0,INDEX('08. Beregningsfaktorer'!$E$54:$G$55,MATCH(F127,'08. Beregningsfaktorer'!$E$54:$E$55,0),3))","v":0},null,null,null,"Utslipp (kg):  ",null,{"$f":"IFERROR(V127*AC124,\"Data mangler\")","v":0},{"$f":"IFERROR(V127*AD124,\"Data mangler\")","v":0},{"$f":"IFERROR(V127*AE124,\"Data mangler\")","v":0},{"$f":"IFERROR(V127*AF124,\"Data mangler\")","v":0},null,"Utslipp (kg):  ",null,{"$f":"IF(V123='09. Utslippsfaktorer'!$P$19,IF(G123=\"tonn\",F126*AJ124*F123,F126*AJ124*F123*'08. Beregningsfaktorer'!$G$65),IF(F125='08. Beregningsfaktorer'!$E$78,0,IFERROR(W124*AJ124,\"Data mangler\")))","v":0},{"$f":"IF(V123='09. Utslippsfaktorer'!$P$19,IF(G123=\"tonn\",F126*AK124*F123,F126*AK124*F123*'08. Beregningsfaktorer'!$G$65),IF(F125='08. Beregningsfaktorer'!$E$78,0,IFERROR(W124*AK124,\"Data mangler\")))","v":0},{"$f":"IF(V123='09. Utslippsfaktorer'!$P$19,IF(G123=\"tonn\",F126*AL124*F123,F126*AL124*F123*'08. Beregningsfaktorer'!$G$65),IF(F125='08. Beregningsfaktorer'!$E$78,0,IFERROR(W124*AL124,\"Data mangler\")))","v":0},{"$f":"IF(V123='09. Utslippsfaktorer'!$P$19,IF(G123=\"tonn\",F126*AM124*F123,F126*AM124*F123*'08. Beregningsfaktorer'!$G$65),IF(F125='08. Beregningsfaktorer'!$E$78,0,IFERROR(W124*AM124,\"Data mangler\")))","v":0}]
[null,null,null,"6.21.5","Distanse til andre",null,"km",null,null,null,null,null,null,null,null,null,null,null,null,{"$f":"IF(F125='08. Beregningsfaktorer'!$E$78,\"Forbruk per km\",\"Forbruk per tonn km\")","v":"Forbruk per tonn km"},null,null,{"$f":"IFERROR(IF(F122=0,0,IF(F125='08. Beregningsfaktorer'!$E$78,INDEX('08. Beregningsfaktorer'!$E$30:$G$41,MATCH(F122,'08. Beregningsfaktorer'!$B$30:$B$41,0),3,1),INDEX('08. Beregningsfaktorer'!$E$9:$G$29,MATCH(F122,'08. Beregningsfaktorer'!$B$9:$B$29,0),3,1))),\"Loading..\")","v":0},{"$f":"IFERROR(W127&\"/\"&X124,\"Loading..\")","v":"l/tkm"}]
[null,null,null,"6.21.6","Transport med helning",null,null,null,null,null,null,null,null,null,null,null,null,null,null,"Forbruk",null,{"$f":"IFERROR(W124*W126*W125,\"Data mangler\")","v":0},{"$f":"IFERROR(IF(OR(F122='08. Beregningsfaktorer'!$B$26,F122='08. Beregningsfaktorer'!$B$27),\"kWh\",IF(F122='08. Beregningsfaktorer'!$B$11,\"MJ\",\"l\")),\"Loading..\")","v":"l"},{"$f":"IFERROR(IF(F122='08. Beregningsfaktorer'!$B$11,\"Biogass\",IF(OR(F122='08. Beregningsfaktorer'!$B$26,F122='08. Beregningsfaktorer'!$B$27),\"Elektrisitet\",IF(OR(F122='08. Beregningsfaktorer'!$B$10,F122='08. Beregningsfaktorer'!$B$13,F122='08. Beregningsfaktorer'!$B$15,F122='08. Beregningsfaktorer'!$B$17,F122='08. Beregningsfaktorer'!$B$17,F122='08. Beregningsfaktorer'!$B$19,F122='08. Beregningsfaktorer'!$B$21,F122='08. Beregningsfaktorer'!$B$23,F122='08. Beregningsfaktorer'!$B$25,F122='08. Beregningsfaktorer'!$B$29),\"Biodiesel\",IF(V123=\"Mangler type kjøretøy\",\"Mangler type kjøretøy\",\"Diesel\")))),\"Feil\")","v":"Mangler type kjøretøy"}]
[]
[null,null,null,null,null,null,null,null,null,null,null,null,null,null,null,null,null,null,null,null,null,null,null,null,null,null,null,null,null,null,null,null,null,null,null,null,null,null,null,null,{"$f":"E121&\" - Sum utslipp - Alle kjøretøy\"","v":"Transport til andre - Sum utslipp - Alle kjøretøy"}]
[null,null,null,"6.22","Balanse veitransport",{"$f":"SUMIF(E121:E128,\"Lastekapasitet\",G121:G128)","v":0},null,"Lastutnyttelse korrekt modellert",null,null,null,null,null,null,null,null,null,null,null,null,null,null,null,null,null,null,null,null,null,null,null,null,null,null,null,null,null,null,null,null,null,null,"CO2-ekv.","SO2-ekv.","P-ekv.","NMVOC"]
[null,null,null,"6.22.1",{"$f":"\"Balanse - \"&E27","v":"Balanse - Tunnelmunning"},{"$f":"((F$27-SUMIF(F38:F45,'08. Beregningsfaktorer'!$B$28,G38:G45)-SUMIF(F38:F45,'08. Beregningsfaktorer'!#REF!,G38:G45))*F$113)-(SUMIF(F121:F128,E$27,G121:G128))","v":0},{"$f":"'02. Inndata steinmasser'!$F$7& \" km\"","v":"fm3 km"},"Transportdistanser og masser stemmer",null,null,null,null,null,null,null,null,null,null,null,null,null,null,null,null,null,null,null,null,null,null,null,null,null,null,null,null,null,null,null,null,"Utslipp (kg):  ",null,{"$f":"SUMIF($D121:$D128,$D124,AQ121:AQ128)","v":0},{"$f":"SUMIF($D121:$D128,$D124,AR121:AR128)","v":0},{"$f":"SUMIF($D121:$D128,$D124,AS121:AS128)","v":0},{"$f":"SUMIF($D121:$D128,$D124,AT121:AT128)","v":0}]
[null,null,null,"6.22.2",{"$f":"\"Balanse - \"&E28","v":"Balanse - Mobilt knuseverk"},{"$f":"((F$28-SUMIF(F38:F45,'08. Beregningsfaktorer'!$B$28,G38:G45)-SUMIF(F38:F45,'08. Beregningsfaktorer'!#REF!,G38:G45))*F$114)-(SUMIF(F121:F128,E$28,G121:G128))","v":0},{"$f":"'02. Inndata steinmasser'!$F$7& \" km\"","v":"fm3 km"},"Transportdistanser og masser stemmer"]
[null,null,null,"6.22.3",{"$f":"\"Balanse - \"&E29","v":"Balanse - Restprodukt mobilt knuseverk"},{"$f":"((F$29-SUMIF(F38:F45,'08. Beregningsfaktorer'!$B$28,G38:G45)-SUMIF(F38:F45,'08. Beregningsfaktorer'!#REF!,G38:G45))*F$114)-(SUMIF(F121:F128,E$29,G121:G128))","v":0},{"$f":"'02. Inndata steinmasser'!$F$7& \" km\"","v":"fm3 km"},"Transportdistanser og masser stemmer"]

{"sheet":"07. Resultater","index":7,"n_rows":105,"n_cols":82,"rows_kept":105,"cut":false,"hidden":false,"merged":[[29,55,29,60],[29,69,29,74],[29,76,29,81],[30,57,30,60],[1,0,1,2],[48,1,55,1],[21,1,30,1],[33,1,36,1],[39,1,45,1],[17,4,18,4],[17,3,18,3],[17,12,18,12],[17,13,18,13],[17,25,17,26],[18,25,18,26],[17,27,17,28],[18,27,18,28],[17,29,17,30],[18,29,18,30],[1,3,1,18],[17,21,17,22],[18,21,18,22],[18,23,18,24],[17,23,17,24],[37,57,37,60],[38,69,38,70],[38,76,38,77],[39,69,39,70],[33,59,33,60],[36,55,36,60],[36,69,36,74],[36,76,36,81],[31,69,31,70],[31,76,31,77],[32,55,32,56],[32,69,32,70],[63,55,63,60],[63,62,63,67],[63,69,63,74],[63,76,63,81],[51,59,51,60],[48,57,48,60],[49,76,49,77],[50,55,50,56],[41,59,41,60],[42,76,42,81],[44,76,44,77],[47,55,47,60],[47,76,47,81],[69,55,69,60],[69,62,69,67],[69,69,69,74],[69,76,69,81],[70,57,70,60],[64,57,64,60],[65,62,65,63],[65,69,65,70],[65,76,65,77],[66,55,66,56],[66,62,66,63],[66,69,66,70],[75,55,75,60],[75,62,75,67],[75,69,75,74],[75,76,75,81],[76,57,76,60],[71,62,71,63],[71,69,71,70],[71,76,71,77],[72,55,72,56],[72,62,72,63],[72,69,72,70],[88,55,88,60],[88,62,88,67],[88,69,88,74],[88,76,88,81],[89,57,89,60],[77,62,77,63],[77,69,77,70],[77,76,77,77],[78,55,78,56],[78,62,78,63],[78,69,78,70],[100,59,100,60],[102,76,102,81],[104,76,104,77],[60,55,60,60],[60,62,60,67],[60,69,60,74],[60,76,60,81],[96,57,96,60],[97,62,97,63],[97,69,97,70],[97,76,97,77],[98,62,98,63],[98,69,98,70],[92,59,92,60],[95,55,95,60],[95,62,95,67],[95,69,95,74],[95,76,95,81],[90,62,90,63],[90,69,90,70],[90,76,90,77],[91,55,91,56],[91,62,91,63],[91,69,91,70]]}
[]
[null,null,null,"07. Resultater"]
[]
[]
[]
[]
[]
[]
[]
[]
[]
[]
[]
[]
[]
[]
[null,null,null,"7.1","Alternativ 01 - Lokal behandling",null,null,null,null,null,null,null,"7.2","Alternativ 02 - Ekstern behandling",null,null,null,null,null,null,"7.3","Sammenlikning"]
[null,null,null,"Ref.","Prosess ","Klima","Forsuring","Eutrofiering","Fotokjemisk smog","Akkumulert energibruk",null,null,"Ref.","Prosess ","Klima","Forsuring","Eutrofiering","Fotokjemisk smog","Akkumulert energibruk",null,null,"Klima",null,"Forsuring",null,"Eutrofiering",null,"Fotokjemisk smog",null,"Akkumulert energibruk"]
[null,null,null,null,null,"kg CO2-ekv.","kg SO2-ekv.","kg P-ekv.","kg NMVOC","MJ",null,null,null,null,"kg CO2-ekv.","kg SO2-ekv.","kg P-ekv.","kg NMVOC","MJ",null,null,"tonn CO2-ekv.",null,"kg SO2-ekv.",null,"kg P-ekv.",null,"kg NMVOC",null,"MJ"]
[]
[null,null,null,"03","Mobilt knuseverk",{"$f":"SUM(F22:F31)","v":0},{"$f":"SUM(G22:G31)","v":0},{"$f":"SUM(H22:H31)","v":0},{"$f":"SUM(I22:I31)","v":0},{"$f":"SUM(J22:J31)","v":0},null,null,"03","Mobilt knuseverk",{"$f":"SUM(O22:O31)","v":0},{"$f":"SUM(P22:P31)","v":500},{"$f":"SUM(Q22:Q31)","v":1000},{"$f":"SUM(R22:R31)","v":1000},{"$f":"SUM(S22:S31)","v":1000},null,null,"Alternativ 1","Alternativ 2","Atlernativ 1","Alternativ 2","Atlernativ 1","Alternativ 2","Atlernativ 1","Alternativ 2","Atlernativ 1","Alternativ 2"]
[null,"Mobilt knuseverlk",null,{"$f":"'03. Mobilt knuseverk'!D33","v":"3.6"},{"$f":"'03. Mobilt knuseverk'!E33","v":"Lasting til transport"},{"$f":"'03. Mobilt knuseverk'!AQ34","v":0},{"$f":"'03. Mobilt knuseverk'!AR34","v":0},{"$f":"'03. Mobilt knuseverk'!AS34","v":0},{"$f":"'03. Mobilt knuseverk'!AT34","v":0},{"$f":"'03. Mobilt knuseverk'!AU32","v":0},null,null,{"$f":"D22","v":"3.6"},{"$f":"E22","v":"Lasting til transport"},0,500,1000,1000,1000,null,null,{"$f":"F59/1000","v":0},{"$f":"O59/1000","v":0},{"$f":"G59","v":0},{"$f":"P59","v":1050},{"$f":"H59","v":0},{"$f":"Q59","v":1311},{"$f":"I59","v":0},{"$f":"R59","v":1511},{"$f":"J59","v":0},{"$f":"S59","v":1500}]
[null,null,null,{"$f":"'03. Mobilt knuseverk'!D38","v":"3.7"},{"$f":"'03. Mobilt knuseverk'!E38","v":"Transport til mobilt knuseverk"},{"$f":"'03. Mobilt knuseverk'!AQ48+'03. Mobilt knuseverk'!AQ52","v":0},{"$f":"'03. Mobilt knuseverk'!AR48","v":0},{"$f":"'03. Mobilt knuseverk'!AS48","v":0},{"$f":"'03. Mobilt knuseverk'!AT48","v":0},{"$f":"'03. Mobilt knuseverk'!AU48","v":0},null,null,{"$f":"D23","v":"3.7"},"Transport til mobilt knuseverk"]
[null,null,null,{"$f":"'03. Mobilt knuseverk'!D59","v":"3.9"},{"$f":"'03. Mobilt knuseverk'!E59","v":"Lasting til knusetrinn 1"},{"$f":"'03. Mobilt knuseverk'!AQ60","v":0},{"$f":"'03. Mobilt knuseverk'!AR60","v":0},{"$f":"'03. Mobilt knuseverk'!AS60","v":0},{"$f":"'03. Mobilt knuseverk'!AT60","v":0},{"$f":"'03. Mobilt knuseverk'!AU60","v":0},null,null,"3.9","Lasting til knusetrinn 1"]
[null,null,null,{"$f":"'03. Mobilt knuseverk'!D65","v":"3.10"},{"$f":"'03. Mobilt knuseverk'!E65","v":"Mobilt knuseverk knusetrinn 1"},{"$f":"'03. Mobilt knuseverk'!AQ66","v":0},{"$f":"'03. Mobilt knuseverk'!AR66","v":0},{"$f":"'03. Mobilt knuseverk'!AS66","v":0},{"$f":"'03. Mobilt knuseverk'!AT66","v":0},{"$f":"'03. Mobilt knuseverk'!AU66","v":0},null,null,"3.10","Mobilt knuseverk knusetrinn 1"]
[null,null,null,{"$f":"'03. Mobilt knuseverk'!D71","v":"3.11"},{"$f":"'03. Mobilt knuseverk'!E71","v":"Lasting til knusetrinn 2"},{"$f":"'03. Mobilt knuseverk'!AQ72","v":0},{"$f":"'03. Mobilt knuseverk'!AR72","v":0},{"$f":"'03. Mobilt knuseverk'!AS72","v":0},{"$f":"'03. Mobilt knuseverk'!AT72","v":0},{"$f":"'03. Mobilt knuseverk'!AU72","v":0},null,null,"3.11","Lasting til knusetrinn 2",null,null,null,null,null,null,null,"Diagram av de ulike alternativene"]
[null,null,null,{"$f":"'03. Mobilt knuseverk'!D77","v":"3.12"},{"$f":"'03. Mobilt knuseverk'!E77","v":"Mobilt knuseverk knusetrinn 2"},{"$f":"'03. Mobilt knuseverk'!AQ78","v":0},{"$f":"'03. Mobilt knuseverk'!AR78","v":0},{"$f":"'03. Mobilt knuseverk'!AS78","v":0},{"$f":"'03. Mobilt knuseverk'!AT78","v":0},{"$f":"'03. Mobilt knuseverk'!AU78","v":0},null,null,"3.12","Mobilt knuseverk knusetrinn 2"]
[null,null,null,{"$f":"'03. Mobilt knuseverk'!D83","v":"3.13"},{"$f":"'03. Mobilt knuseverk'!E83","v":"Lasting til knusetrinn 3"},{"$f":"'03. Mobilt knuseverk'!AQ84","v":0},{"$f":"'03. Mobilt knuseverk'!AR84","v":0},{"$f":"'03. Mobilt knuseverk'!AS84","v":0},{"$f":"'03. Mobilt knuseverk'!AT84","v":0},{"$f":"'03. Mobilt knuseverk'!AU84","v":0},null,null,"3.13","Lasting til knusetrinn 3"]
[null,null,null,{"$f":"'03. Mobilt knuseverk'!D89","v":"3.14"},{"$f":"'03. Mobilt knuseverk'!E89","v":"Mobilt knuseverk knusetrinn 3"},{"$f":"'03. Mobilt knuseverk'!AQ90","v":0},{"$f":"'03. Mobilt knuseverk'!AR90","v":0},{"$f":"'03. Mobilt knuseverk'!AS90","v":0},{"$f":"'03. Mobilt knuseverk'!AT90","v":0},{"$f":"'03. Mobilt knuseverk'!AU90","v":0},null,null,"3.14","Mobilt knuseverk knusetrinn 3",null,null,null,null,null,null,null,null,null,null,null,null,null,null,null,null,null,null,null,null,null,null,null,null,null,null,null,null,{"$f":"'02. Inndata steinmasser'!F12+'02. Inndata steinmasser'!F13","v":0},{"$f":"'02. Inndata steinmasser'!F7","v":"fm3"}]
[null,null,null,{"$f":"'03. Mobilt knuseverk'!D99","v":"3.15"},{"$f":"'03. Mobilt knuseverk'!E99","v":"Lasting til transport"},{"$f":"'03. Mobilt knuseverk'!AQ100","v":0},{"$f":"'03. Mobilt knuseverk'!AR100","v":0},{"$f":"'03. Mobilt knuseverk'!AS100","v":0},{"$f":"'03. Mobilt knuseverk'!AT100","v":0},{"$f":"'03. Mobilt knuseverk'!AU100","v":0},null,null,"3.15","Lasting til transport",null,null,null,null,null,null,null,null,null,null,null,null,null,null,null,null,null,null,null,null,null,null,null,null,null,null,null,null,null,null,null,null,null,null,null,null,null,null,null,null,null,{"$f":"AO31&\" - Utslipp - Diverse grunnlagsdata\"","v":"Lasting til transport - Utslipp - Diverse grunnlagsdata"},null,null,null,null,null,null,{"$f":"AO31&\" - Utslipp fra forbruk\"","v":"Lasting til transport - Utslipp fra forbruk"},null,null,null,null,null,null,{"$f":"AO31&\" - Utslipp fra slitasje\"","v":"Lasting til transport - Utslipp fra slitasje"},null,null,null,null,null,null,{"$f":"AO31&\" - Sum utslipp\"","v":"Lasting til transport - Sum utslipp"}]
[null,null,null,{"$f":"'03. Mobilt knuseverk'!D104","v":"3.16"},{"$f":"'03. Mobilt knuseverk'!E104","v":"Transport fra mobilt knuseverk"},{"$f":"'03. Mobilt knuseverk'!AQ114","v":0},{"$f":"'03. Mobilt knuseverk'!AR114","v":0},{"$f":"'03. Mobilt knuseverk'!AS114","v":0},{"$f":"'03. Mobilt knuseverk'!AT114","v":0},{"$f":"'03. Mobilt knuseverk'!AU114","v":0},null,null,"3.16","Transport fra mobilt knuseverk",null,null,null,null,null,null,null,null,null,null,null,null,null,null,null,null,null,null,null,null,null,null,null,null,null,"4.10","Lasting til transport",null,null,null,null,null,null,null,null,null,null,null,null,null,null,"Kategori",null,{"$f":"IF(AP32='08. Beregningsfaktorer'!$E$43,'08. Beregningsfaktorer'!$E$43,IF(AP32='08. Beregningsfaktorer'!$E$44,'09. Utslippsfaktorer'!$P$20,IF(AP32='08. Beregningsfaktorer'!$E$45,'09. Utslippsfaktorer'!$P$21,IF(AP32='08. Beregningsfaktorer'!$E$46,'09. Utslippsfaktorer'!$P$21,\"Mangler type kjøretøy\"))))","v":"Gravemaskin hydraulisk uten drivstoff"},null,null,null,null,null,null,"CO2-ekv.","SO2-ekv.","P-ekv.","NMVOC",null,null,null,"CO2-ekv.","SO2-ekv.","P-ekv.","NMVOC",null,null,null,"CO2-ekv.","SO2-ekv.","P-ekv.","NMVOC"]
[null,null,null,null,null,null,null,null,null,null,null,null,null,null,null,null,null,null,null,null,null,null,null,null,null,null,null,null,null,null,null,null,null,null,null,null,null,null,null,"4.3.1","Type lastemaskin","Gravemaskin diesel ",null,null,null,null,null,null,null,null,null,null,null,null,null,"Volum stein",null,null,{"$f":"IF(AQ$29=0,0,IF(AR$29=\"fm3\",AQ$29*'08. Beregningsfaktorer'!$G$65/'08. Beregningsfaktorer'!$G$66,AQ$29/'08. Beregningsfaktorer'!$G$66))","v":0},"lm3",null,null,{"$f":"\"Utslippsfaktor (kg/\"&BG34&\"):\"&\"  \"","v":"Utslippsfaktor (kg/l):  "},null,{"$f":"IF(AP32=0,0,IF(AP32='08. Beregningsfaktorer'!$E$43,0,(INDEX('09. Utslippsfaktorer'!$P$7:$U$12,MATCH(BH34,'09. Utslippsfaktorer'!$P$7:$P$12,0),MATCH(\"kg \"&BM31,'09. Utslippsfaktorer'!$P$7:$U$7,0),1))))","v":3.1476000000000002},{"$f":"IF(AP32=0,0,IF(AP32='08. Beregningsfaktorer'!$E$43,0,(INDEX('09. Utslippsfaktorer'!$P$7:$U$12,MATCH(BH34,'09. Utslippsfaktorer'!$P$7:$P$12,0),MATCH(\"kg \"&BN31,'09. Utslippsfaktorer'!$P$7:$U$7,0),1))))","v":0},{"$f":"IF(AP32=0,0,IF(AP32='08. Beregningsfaktorer'!$E$43,0,(INDEX('09. Utslippsfaktorer'!$P$7:$U$12,MATCH(BH34,'09. Utslippsfaktorer'!$P$7:$P$12,0),MATCH(\"kg \"&BO31,'09. Utslippsfaktorer'!$P$7:$U$7,0),1))))","v":0},{"$f":"IF(AP32=0,0,IF(AP32='08. Beregningsfaktorer'!$E$43,0,(INDEX('09. Utslippsfaktorer'!$P$7:$U$12,MATCH(BH34,'09. Utslippsfaktorer'!$P$7:$P$12,0),MATCH(\"kg \"&BP31,'09. Utslippsfaktorer'!$P$7:$U$7,0),1))))","v":0},null,"Utslippsfaktor (kg/m3):  ",null,{"$f":"IF(AP32=0,0,IF(AP32='08. Beregningsfaktorer'!$E$43,0,(INDEX('09. Utslippsfaktorer'!$P$7:$U$45,MATCH(BF31,'09. Utslippsfaktorer'!$P$7:$P$45,0),MATCH(\"kg \"&BT31,'09. Utslippsfaktorer'!$P$7:$U$7,0),1))))","v":5.2999999999999999E-2},{"$f":"IF(AP32=0,0,IF(AP32='08. Beregningsfaktorer'!$E$43,0,(INDEX('09. Utslippsfaktorer'!$P$7:$U$45,MATCH(BF31,'09. Utslippsfaktorer'!$P$7:$P$45,0),MATCH(\"kg \"&BU31,'09. Utslippsfaktorer'!$P$7:$U$7,0),1))))","v":0},{"$f":"IF(AP32=0,0,IF(AP32='08. Beregningsfaktorer'!$E$43,0,(INDEX('09. Utslippsfaktorer'!$P$7:$U$45,MATCH(BF31,'09. Utslippsfaktorer'!$P$7:$P$45,0),MATCH(\"kg \"&BV31,'09. Utslippsfaktorer'!$P$7:$U$7,0),1))))","v":0},{"$f":"IF(AP32=0,0,IF(AP32='08. Beregningsfaktorer'!$E$43,0,(INDEX('09. Utslippsfaktorer'!$P$7:$U$45,MATCH(BF31,'09. Utslippsfaktorer'!$P$7:$P$45,0),MATCH(\"kg \"&BW31,'09. Utslippsfaktorer'!$P$7:$U$7,0),1))))","v":0},null,"Utslipp (kg):  ",null,{"$f":"BM33+BT33","v":0},{"$f":"BN33+BU33","v":0},{"$f":"BO33+BV33","v":0},{"$f":"BP33+BW33","v":0}]
[null,null,null,"04","Deponi",{"$f":"SUM(F34:F37)","v":0},{"$f":"SUM(G34:G37)","v":0},{"$f":"SUM(H34:H37)","v":0},{"$f":"SUM(I34:I37)","v":0},{"$f":"SUM(J34:J37)","v":0},null,null,"04","Deponi",{"$f":"SUM(O34:O37)","v":0},{"$f":"SUM(P34:P37)","v":50},{"$f":"SUM(Q34:Q37)","v":11},{"$f":"SUM(R34:R37)","v":111},{"$f":"SUM(S34:S37)","v":200},null,null,null,null,null,null,null,null,null,null,null,null,null,null,null,null,null,null,null,null,null,null,null,null,null,null,null,null,null,null,null,null,null,null,null,null,"Forbruk per m3 stein",null,null,{"$f":"IF(AP32=0,0,(INDEX('08. Beregningsfaktorer'!$E$12:$G$89,MATCH(AP32,'08. Beregningsfaktorer'!$E$12:$E$89,0),3,1)))","v":0.15411764705882355},{"$f":"BG34&\"/\"&BH32","v":"l/lm3"},null,null,"Utslipp (kg):  ",null,{"$f":"BF34*BM32","v":0},{"$f":"BF34*BN32","v":0},{"$f":"BF34*BO32","v":0},{"$f":"BF34*BP32","v":0},null,"Utslipp (kg):  ",null,{"$f":"BG32*BT32","v":0},{"$f":"BG32*BU32","v":0},{"$f":"BG32*BV32","v":0},{"$f":"BG32*BW32","v":0}]
[null,"Dep-oni",null,{"$f":"'04. Deponi'!D31","v":"4.6"},{"$f":"'04. Deponi'!E31","v":"Lasting til transport"},{"$f":"'04. Deponi'!AQ32+'04. Deponi'!AQ88","v":0},{"$f":"'04. Deponi'!AR32","v":0},{"$f":"'04. Deponi'!AS32","v":0},{"$f":"'04. Deponi'!AT32","v":0},{"$f":"'04. Deponi'!AU32","v":0},null,null,{"$f":"D34","v":"4.6"},"Lasting til transport",{"$f":"CA32","v":0},50,11,111,200,null,null,null,null,null,null,null,null,null,null,null,null,null,null,null,null,null,null,null,null,null,null,null,null,null,null,null,null,null,null,null,null,null,null,null,null,"Forbruk",null,{"$f":"BG32*BG33","v":0},{"$f":"IF(AP32='08. Beregningsfaktorer'!$E$44,\"l\",IF(AP32='08. Beregningsfaktorer'!$E$45,\"l\",IF(AP32='08. Beregningsfaktorer'!$E$46,\"kWh\",\"...\")))","v":"l"},{"$f":"IF(AP32='08. Beregningsfaktorer'!$E$43,\"Ingen løft\",IF(AP32='08. Beregningsfaktorer'!$E$44,\"Diesel\",IF(AP32='08. Beregningsfaktorer'!$E$45,\"Diesel\",IF(AP32='08. Beregningsfaktorer'!$E$46,\"Elektrisitet - kWh\",\"Mangler type kjøretøy\"))))","v":"Diesel"}]
[null,null,null,{"$f":"'04. Deponi'!D36","v":"4.7"},"Transport til deponi",{"$f":"'04. Deponi'!AQ46+'04. Deponi'!AQ51+'04. Deponi'!AQ102+'04. Deponi'!AQ107","v":0},{"$f":"'04. Deponi'!AR46","v":0},{"$f":"'04. Deponi'!AS46","v":0},{"$f":"'04. Deponi'!AT46","v":0},{"$f":"'04. Deponi'!AU46","v":0},null,null,"4.7","Transport til deponi",{"$f":"CA39+CA50","v":0}]
[null,null,null,{"$f":"'04. Deponi'!D57","v":"4.9"},{"$f":"'04. Deponi'!E57","v":"Utlegging"},{"$f":"'04. Deponi'!AQ58","v":0},{"$f":"'04. Deponi'!AR58","v":0},{"$f":"'04. Deponi'!AS58","v":0},{"$f":"'04. Deponi'!AT58","v":0},{"$f":"'04. Deponi'!AU58","v":0},null,null,"4.9","Utlegging",null,null,null,null,null,null,null,null,null,null,null,null,null,null,null,null,null,null,null,null,null,null,null,null,null,"4.11","Transport til ekstern deponi","Endre antall kjøretøy:"]
[null,null,null,{"$f":"'04. Deponi'!D63","v":"4.10"},{"$f":"'04. Deponi'!E63","v":"Komprimering"},{"$f":"'04. Deponi'!AQ64","v":0},{"$f":"'04. Deponi'!AR64","v":0},{"$f":"'04. Deponi'!AS64","v":0},{"$f":"'04. Deponi'!AT64","v":0},{"$f":"'04. Deponi'!AU64","v":0},null,null,"4.10","Komprimering",null,null,null,null,null,null,null,null,null,null,null,null,null,null,null,null,null,null,null,null,null,null,null,null,null,"4.4.1","Type kjøretøy","Lastebil, totalvekt 16-32 t, euro 5, diesel, tur-retur",null,null,null,null,null,null,null,null,null,null,null,null,null,{"$f":"AO$36&\" - Utslipp - Diverse grunnlagsdata\"","v":"Transport til ekstern deponi - Utslipp - Diverse grunnlagsdata"},null,null,null,null,null,null,{"$f":"AO$36&\" - Utslipp fra forbruk\"","v":"Transport til ekstern deponi - Utslipp fra forbruk"},null,null,null,null,null,null,{"$f":"AO$36&\" - Utslipp fra slitasje/bruk\"","v":"Transport til ekstern deponi - Utslipp fra slitasje/bruk"},null,null,null,null,null,null,{"$f":"AO$28&\" - Sum utslipp\"","v":" - Sum utslipp"}]
[null,null,null,null,null,null,null,null,null,null,null,null,null,null,null,null,null,null,null,null,null,null,null,null,null,null,null,null,null,null,null,null,null,null,null,null,null,null,{"$f":"IF(AP37='08. Beregningsfaktorer'!#REF!,\"J\",0)","v":{"$error":"#REF!"}},"4.4.2","Mengde stein",{"$f":"AQ29","v":0},{"$f":"'02. Inndata steinmasser'!$F$7","v":"fm3"},null,null,null,null,null,null,null,null,null,null,null,null,"Kategori",null,{"$f":"IF(OR(AP37='08. Beregningsfaktorer'!$B$9,AP37='08. Beregningsfaktorer'!$B$10),'09. Utslippsfaktorer'!$P$14,IF(OR(AP37='08. Beregningsfaktorer'!$B$12,AP37='08. Beregningsfaktorer'!$B$13),'09. Utslippsfaktorer'!$P$15,IF(OR(AP37='08. Beregningsfaktorer'!$B$14,AP37='08. Beregningsfaktorer'!$B$15),'09. Utslippsfaktorer'!$P$16,IF(OR(AP37='08. Beregningsfaktorer'!$B$24,AP37='08. Beregningsfaktorer'!$B$25),'09. Utslippsfaktorer'!$P$18,IF(AP37='08. Beregningsfaktorer'!$B$26,'09. Utslippsfaktorer'!$P$18,IF(AP37='08. Beregningsfaktorer'!$B$27,'09. Utslippsfaktorer'!$P$18,IF(AP37='08. Beregningsfaktorer'!$B$28,'09. Utslippsfaktorer'!$P$19,IF(AP37='08. Beregningsfaktorer'!$B$29,'09. Utslippsfaktorer'!$P$19,IF(OR(AP37='08. Beregningsfaktorer'!$B$17,AP37='08. Beregningsfaktorer'!$B$16,AP37='08. Beregningsfaktorer'!$B$18,AP37='08. Beregningsfaktorer'!$B$19),'09. Utslippsfaktorer'!$P$16,IF(OR(AP37='08. Beregningsfaktorer'!$B$20,AP37='08. Beregningsfaktorer'!$B$21,AP37='08. Beregningsfaktorer'!$B$22,AP37='08. Beregningsfaktorer'!$B$23),'09. Utslippsfaktorer'!$P$14,\"Mangler type kjøretøy\"))))))))))","v":"Lastebil 16-32 tonn, euro 5"},null,null,null,null,null,null,"CO2-ekv.","SO2-ekv.","P-ekv.","NMVOC",null,null,null,"CO2-ekv.","SO2-ekv.","P-ekv.","NMVOC",null,null,null,"CO2-ekv.","SO2-ekv.","P-ekv.","NMVOC"]
[null,null,null,"05","Pukkverk",{"$f":"SUM(F40:F46)","v":0},{"$f":"SUM(G40:G46)","v":0},{"$f":"SUM(H40:H46)","v":0},{"$f":"SUM(I40:I46)","v":0},{"$f":"SUM(J40:J46)","v":0},null,null,"05","Pukkverk",{"$f":"SUM(O40:O46)","v":0},{"$f":"SUM(P40:P46)","v":300},{"$f":"SUM(Q40:Q46)","v":100},{"$f":"SUM(R40:R46)","v":200},{"$f":"SUM(S40:S46)","v":200},null,null,null,null,null,null,null,null,null,null,null,null,null,null,null,null,null,null,null,null,"4.4.3","Hvor kommer massene fra?","Tunellmunning",null,null,null,null,null,null,null,null,null,null,null,null,null,{"$f":"IF(AP40='08. Beregningsfaktorer'!$E$78,\"km\",\"tonn km\")","v":"tonn km"},null,null,{"$f":"IF(AP40='08. Beregningsfaktorer'!$E$78,IF(AQ38=\"tonn\",IF(OR(AP37='08. Beregningsfaktorer'!$B$16,AP37='08. Beregningsfaktorer'!$B$17),(AP38/8.5)*AP41,IF(OR(AP37='08. Beregningsfaktorer'!$B$18,AP37='08. Beregningsfaktorer'!$B$19),(AP38/14)*AP41,IF(OR(AP37='08. Beregningsfaktorer'!$B$20,AP37='08. Beregningsfaktorer'!$B$21),(AP38/26)*AP41,IF(OR(AP37='08. Beregningsfaktorer'!$B$22,AP37='08. Beregningsfaktorer'!$B$23),(AP38/40)*AP41,IF(OR(AP37='08. Beregningsfaktorer'!$B$24,AP37='08. Beregningsfaktorer'!$B$25),(AP38/14)*AP41,IF(AP37='08. Beregningsfaktorer'!$B$26,(AP38/14)*AP41,IF(AP37='08. Beregningsfaktorer'!$B$27,(AP38/14)*AP41))))))),IF(OR(AP37='08. Beregningsfaktorer'!$B$16,AP37='08. Beregningsfaktorer'!$B$17),(AP38*'08. Beregningsfaktorer'!$G$65/8.5)*AP41,IF(OR(AP37='08. Beregningsfaktorer'!$B$18,AP37='08. Beregningsfaktorer'!$B$19),(AP38*'08. Beregningsfaktorer'!$G$65/14)*AP41,IF(OR(AP37='08. Beregningsfaktorer'!$B$20,AP37='08. Beregningsfaktorer'!$B$21),(AP38*'08. Beregningsfaktorer'!$G$65/26)*AP41,IF(OR(AP37='08. Beregningsfaktorer'!$B$22,AP37='08. Beregningsfaktorer'!$B$23),(AP38*'08. Beregningsfaktorer'!$G$65/40)*AP41,IF(OR(AP37='08. Beregningsfaktorer'!$B$24,AP37='08. Beregningsfaktorer'!$B$25),(AP38*'08. Beregningsfaktorer'!$G$65/14)*AP41,IF(AP37='08. Beregningsfaktorer'!$B$26,(AP38*'08. Beregningsfaktorer'!$G$65/14)*AP41,IF(AP37='08. Beregningsfaktorer'!$B$27,(AP38*'08. Beregningsfaktorer'!$G$65/14)*AP41)))))))),IF(AP38=0,0,IF(AP40='08. Beregningsfaktorer'!$E$80,IF(AND(OR(AP37='08. Beregningsfaktorer'!$B$28,AP37='08. Beregningsfaktorer'!$B$29),AQ38=\"tonn\"),(AP38/1900)*AP41,IF(OR(AP37='08. Beregningsfaktorer'!$B$28,AP37='08. Beregningsfaktorer'!$B$29),(AP38*'08. Beregningsfaktorer'!$G$65/1900)*AP41,IF(AQ38=\"tonn\",AP38*AP41,AP38*'08. Beregningsfaktorer'!$G$65)*AP41)),IF(AQ38=\"tonn\",AP38*AP41,AP38*'08. Beregningsfaktorer'!$G$65)*AP41)))","v":0},{"$f":"IF(OR(AP40='08. Beregningsfaktorer'!$E$78,AP37='08. Beregningsfaktorer'!$B$28,AP37='08. Beregningsfaktorer'!$B$29),\"km\",\"tkm\")","v":"tkm"},null,null,{"$f":"\"Utslippsfaktor (kg/\"&BG42&\"):\"&\"  \"","v":"Utslippsfaktor (kg/l):  "},null,{"$f":"IF(AP37=0,0,IF(AP37='08. Beregningsfaktorer'!$B$27,0,(INDEX('09. Utslippsfaktorer'!$P$7:$U$12,MATCH(BH42,'09. Utslippsfaktorer'!$P$7:$P$12,0),MATCH(\"kg \"&BM38,'09. Utslippsfaktorer'!$P$7:$U$7,0),1))))","v":3.1476000000000002},{"$f":"IF(AP37=0,0,IF(AP37='08. Beregningsfaktorer'!$B$27,0,(INDEX('09. Utslippsfaktorer'!$P$7:$U$12,MATCH(BH42,'09. Utslippsfaktorer'!$P$7:$P$12,0),MATCH(\"kg \"&BN38,'09. Utslippsfaktorer'!$P$7:$U$7,0),1))))","v":0},{"$f":"IF(AP37=0,0,IF(AP37='08. Beregningsfaktorer'!$B$27,0,(INDEX('09. Utslippsfaktorer'!$P$7:$U$12,MATCH(BH42,'09. Utslippsfaktorer'!$P$7:$P$12,0),MATCH(\"kg \"&BO38,'09. Utslippsfaktorer'!$P$7:$U$7,0),1))))","v":0},{"$f":"IF(AP37=0,0,IF(AP37='08. Beregningsfaktorer'!$B$27,0,(INDEX('09. Utslippsfaktorer'!$P$7:$U$12,MATCH(BH42,'09. Utslippsfaktorer'!$P$7:$P$12,0),MATCH(\"kg \"&BP38,'09. Utslippsfaktorer'!$P$7:$U$7,0),1))))","v":0},null,{"$f":"\"Utslippsfaktor (kg/\"&BH39&\"):\"","v":"Utslippsfaktor (kg/tkm):"},null,{"$f":"IF(AP37=0,0,(INDEX('09. Utslippsfaktorer'!$P$7:$U$45,MATCH(BF38,'09. Utslippsfaktorer'!$P$7:$P$45,0),MATCH(\"kg \"&BT38,'09. Utslippsfaktorer'!$P$7:$U$7,0),1)))","v":2.5700000000000001E-2},{"$f":"IF(AP37=0,0,(INDEX('09. Utslippsfaktorer'!$P$7:$U$45,MATCH(BF38,'09. Utslippsfaktorer'!$P$7:$P$45,0),MATCH(\"kg \"&BU38,'09. Utslippsfaktorer'!$P$7:$U$7,0),1)))","v":1.1900000000000001E-4},{"$f":"IF(AP37=0,0,(INDEX('09. Utslippsfaktorer'!$P$7:$U$45,MATCH(BF38,'09. Utslippsfaktorer'!$P$7:$P$45,0),MATCH(\"kg \"&BV38,'09. Utslippsfaktorer'!$P$7:$U$7,0),1)))","v":1.0499999999999999E-5},{"$f":"IF(AP37=0,0,(INDEX('09. Utslippsfaktorer'!$P$7:$U$45,MATCH(BF38,'09. Utslippsfaktorer'!$P$7:$P$45,0),MATCH(\"kg \"&BW38,'09. Utslippsfaktorer'!$P$7:$U$7,0),1)))","v":0},null,"Utslipp (kg):  ",null,{"$f":"BM40+BT40","v":0},{"$f":"BN40+BU40","v":0},{"$f":"BO40+BV40","v":0},{"$f":"BP40+BW40","v":0}]
[null,"Pukkverk",null,{"$f":"'05. Pukkverk'!D19","v":"5.4"},{"$f":"'05. Pukkverk'!E19","v":"Lasting til transport"},{"$f":"'05. Pukkverk'!AQ20","v":0},{"$f":"'05. Pukkverk'!AR20","v":0},{"$f":"'05. Pukkverk'!AS20","v":0},{"$f":"'05. Pukkverk'!AT20","v":0},{"$f":"'05. Pukkverk'!AU20","v":0},null,null,{"$f":"D40","v":"5.4"},{"$f":"E40","v":"Lasting til transport"},null,300,100,200,200,null,null,null,null,null,null,null,null,null,null,null,null,null,null,null,null,null,null,null,null,"4.4.4","Lastekapasitet","Tur-retur gjennomsnittlig",null,null,null,null,null,null,null,null,null,null,null,null,null,"Korreksjonsfaktor",null,null,{"$f":"IF(AP42=0,0,INDEX('08. Beregningsfaktorer'!$E$54:$G$55,MATCH(AP42,'08. Beregningsfaktorer'!$E$54:$E$55,0),3))","v":1},null,null,null,"Utslipp (kg):  ",null,{"$f":"IFERROR(BF42*BM39,\"Loading…\")","v":0},{"$f":"IFERROR(BF42*BN39,\"Loading…\")","v":0},{"$f":"IFERROR(BF42*BO39,\"Loading…\")","v":0},{"$f":"IFERROR(BF42*BP39,\"Loading…\")","v":0},null,"Utslipp (kg):  ",null,{"$f":"IFERROR(BG39*BT39,\"Loading…\")","v":0},{"$f":"IFERROR(BG39*BU39,\"Loading…\")","v":0},{"$f":"IFERROR(BG39*BV39,\"Loading…\")","v":0},{"$f":"IFERROR(BG39*BW39,\"Loading…\")","v":0}]
[null,null,null,{"$f":"'05. Pukkverk'!D24","v":"5.5"},{"$f":"'05. Pukkverk'!E24","v":"Transport til pukkverk"},{"$f":"'05. Pukkverk'!AQ34+'05. Pukkverk'!AQ39","v":0},{"$f":"'05. Pukkverk'!AR34","v":0},{"$f":"'05. Pukkverk'!AS34","v":0},{"$f":"'05. Pukkverk'!AT34","v":0},{"$f":"'05. Pukkverk'!AU34","v":0},null,null,{"$f":"D41","v":"5.5"},"Transport til pukkverk",null,null,null,null,null,null,null,null,null,null,null,null,null,null,null,null,null,null,null,null,null,null,null,null,null,"4.4.5","Distanse til deponi",{"$f":"IF('04. Deponi'!F76=0,10,'04. Deponi'!F76)","v":10},"km",null,null,null,null,null,null,null,null,null,null,null,null,{"$f":"IF(AP40='08. Beregningsfaktorer'!$E$78,\"Forbruk per km\",\"Forbruk per tonn km\")","v":"Forbruk per tonn km"},null,null,{"$f":"IFERROR(IF(AP37=0,0,IF(AP40='08. Beregningsfaktorer'!$E$78,INDEX('08. Beregningsfaktorer'!$E$30:$G$41,MATCH(AP37,'08. Beregningsfaktorer'!$B$30:$B$41,0),3,1),INDEX('08. Beregningsfaktorer'!$E$9:$G$29,MATCH(AP37,'08. Beregningsfaktorer'!$B$9:$B$29,0),3,1))),\"Loading..\")","v":4.4080887058823529E-2},{"$f":"IFERROR(BG42&\"/\"&BH39,\"Loading..\")","v":"l/tkm"}]
[null,null,null,{"$f":"'05. Pukkverk'!D46","v":"5.7"},{"$f":"'05. Pukkverk'!E46","v":"Stasjonært knuseverk knusetrinn 1"},{"$f":"'05. Pukkverk'!AQ47","v":0},{"$f":"'05. Pukkverk'!AR47","v":0},{"$f":"'05. Pukkverk'!AS47","v":0},{"$f":"'05. Pukkverk'!AT47","v":0},{"$f":"'05. Pukkverk'!AU47","v":0},null,null,"5.7","Stasjonært knuseverk knusetrinn 1",{"$f":"CA66","v":0},null,null,null,null,null,null,null,null,null,null,null,null,null,null,null,null,null,null,null,null,null,null,null,null,"4.4.6","Transport med helning","Flatt terreng",null,null,null,null,null,null,null,null,null,null,null,null,null,"Forbruk",null,{"$f":"IFERROR(BG39*BG41*BG40,\"Data mangler\")","v":0},{"$f":"IFERROR(IF(OR(AP37='08. Beregningsfaktorer'!$B$26,AP37='08. Beregningsfaktorer'!$B$27),\"kWh\",\"l\"),\"Loading..\")","v":"l"},{"$f":"IFERROR(IF(OR(AP37='08. Beregningsfaktorer'!$B$26,AP37='08. Beregningsfaktorer'!$B$27),\"Elektrisitet\",IF(OR(AP37='08. Beregningsfaktorer'!AL8,AP37='08. Beregningsfaktorer'!AL10,AP37='08. Beregningsfaktorer'!AL13,AP37='08. Beregningsfaktorer'!AL15,AP37='08. Beregningsfaktorer'!AL15,AP37='08. Beregningsfaktorer'!AL17,AP37='08. Beregningsfaktorer'!AL19,AP37='08. Beregningsfaktorer'!AL21,AP37='08. Beregningsfaktorer'!AL23,AP37='08. Beregningsfaktorer'!AL27),\"Biodiesel\",IF(BF38=\"Mangler type kjøretøy\",\"Mangler type kjøretøy\",\"Diesel\"))),\"Feil\")","v":"Diesel"}]
[null,null,null,{"$f":"'05. Pukkverk'!D52","v":"5.8"},{"$f":"'05. Pukkverk'!E52","v":"Stasjonært knuseverk knusetrinn 2"},{"$f":"'05. Pukkverk'!AQ53","v":0},{"$f":"'05. Pukkverk'!AR53","v":0},{"$f":"'05. Pukkverk'!AS53","v":0},{"$f":"'05. Pukkverk'!AT53","v":0},{"$f":"'05. Pukkverk'!AU53","v":0},null,null,"5.8","Stasjonært knuseverk knusetrinn 2",{"$f":"CA72","v":0},null,null,null,null,null,null,null,null,null,null,null,null,null,null,null,null,null,null,null,null,null,null,null,null,null,null,null,null,null,null,null,null,null,null,null,null,null,null,null,null,null,null,null,null,null,null,null,null,null,null,null,null,null,null,null,null,null,null,null,null,null,{"$f":"AO36&\" - Sum utslipp - Alle kjøretøy\"","v":"Transport til ekstern deponi - Sum utslipp - Alle kjøretøy"}]
[null,null,null,{"$f":"'05. Pukkverk'!D58","v":"5.9"},{"$f":"'05. Pukkverk'!E58","v":"Stasjonært knuseverk knusetrinn 3"},{"$f":"'05. Pukkverk'!AQ59","v":0},{"$f":"'05. Pukkverk'!AR59","v":0},{"$f":"'05. Pukkverk'!AS59","v":0},{"$f":"'05. Pukkverk'!AT59","v":0},{"$f":"'05. Pukkverk'!AU59","v":0},null,null,"5.9","Stasjonært knuseverk knusetrinn 3",{"$f":"CA78","v":0},null,null,null,null,null,null,null,null,null,null,null,null,null,null,null,null,null,null,null,null,null,null,null,null,null,null,null,null,null,null,null,null,null,null,null,null,null,null,null,null,null,null,null,null,null,null,null,null,null,null,null,null,null,null,null,null,null,null,null,null,null,null,null,"CO2-ekv.","SO2-ekv.","P-ekv.","NMVOC"]
[null,null,null,{"$f":"'05. Pukkverk'!D68","v":"5.10"},{"$f":"'05. Pukkverk'!E68","v":"Lasting til transport"},{"$f":"'05. Pukkverk'!AQ69","v":0},{"$f":"'05. Pukkverk'!AR69","v":0},{"$f":"'05. Pukkverk'!AS69","v":0},{"$f":"'05. Pukkverk'!AT69","v":0},{"$f":"'05. Pukkverk'!AU69","v":0},null,null,"5.10","Lasting til transport",{"$f":"CA91","v":0},null,null,null,null,null,null,null,null,null,null,null,null,null,null,null,null,null,null,null,null,null,null,null,null,null,null,null,null,null,null,null,null,null,null,null,null,null,null,null,null,null,null,null,null,null,null,null,null,null,null,null,null,null,null,null,null,null,null,null,null,null,"Utslipp (kg):  ",null,{"$f":"SUMIF(AN36:AN42,\"4.4.3\",CA36:CA44)","v":0},{"$f":"SUMIF(AN36:AN42,\"4.4.3\",CB36:CB44)","v":0},{"$f":"SUMIF(AN36:AN42,\"4.4.3\",CC36:CC44)","v":0},{"$f":"SUMIF(AN36:AN42,\"4.4.3\",CD36:CD44)","v":0}]
[null,null,null,{"$f":"'05. Pukkverk'!D73","v":"5.11"},{"$f":"'05. Pukkverk'!E73","v":"Transport fra pukkverk"},{"$f":"'05. Pukkverk'!AQ83","v":0},{"$f":"'05. Pukkverk'!AR83","v":0},{"$f":"'05. Pukkverk'!AS83","v":0},{"$f":"'05. Pukkverk'!AT83","v":0},{"$f":"'05. Pukkverk'!AU83","v":0},null,null,"5.11","Transport fra pukkverk",{"$f":"CA98","v":0}]
[null,null,null,null,null,null,null,null,null,null,null,null,null,null,null,null,null,null,null,null,null,"Reduksjon fra Alternativ 02 [tonn CO2-ekv.]",{"$f":"W22-V22","v":0}]
[null,null,null,"06","Transport til annen samfunnsnyttig bruk",{"$f":"SUM(F49:F56)","v":0},{"$f":"SUM(G49:G56)","v":0},{"$f":"SUM(H49:H56)","v":0},{"$f":"SUM(I49:I56)","v":0},{"$f":"SUM(J49:J56)","v":0},null,null,"06","Transport til annen samfunnsnyttig bruk",{"$f":"SUM(O49:O56)","v":0},{"$f":"SUM(P49:P56)","v":200},{"$f":"SUM(Q49:Q56)","v":200},{"$f":"SUM(R49:R56)","v":200},{"$f":"SUM(S49:S56)","v":100},null,null,"Reduksjon fra Alternativ 02 [%]",{"$f":"(W22-V22)/W22","v":{"$error":"#DIV/0!"}},null,null,null,null,null,null,null,null,null,null,null,null,null,null,null,null,null,null,null,null,null,null,null,null,null,null,null,null,null,null,null,null,{"$f":"BF49&\" - Utslipp - Diverse grunnlagsdata\"","v":"Lastebil tipp - Utslipp - Diverse grunnlagsdata"},null,null,null,null,null,null,{"$f":"BF49&\" - Utslipp fra forbruk\"","v":"Lastebil tipp - Utslipp fra forbruk"},null,null,null,null,null,null,null,null,null,null,null,null,null,{"$f":"AO48&\" - Sum utslipp\"","v":" - Sum utslipp"}]
[null,"Transport annen bruk",null,{"$f":"'06. Transport annen bruk'!D41","v":"6.8"},{"$f":"'06. Transport annen bruk'!E41","v":"Lasting til transport"},{"$f":"'06. Transport annen bruk'!AQ42","v":0},{"$f":"'06. Transport annen bruk'!AR42","v":0},{"$f":"'06. Transport annen bruk'!AS42","v":0},{"$f":"'06. Transport annen bruk'!AT42","v":0},{"$f":"'06. Transport annen bruk'!AU42","v":0},null,null,{"$f":"D49","v":"6.8"},{"$f":"E49","v":"Lasting til transport"},null,200,200,200,100,null,null,null,null,null,null,null,null,null,null,null,null,null,null,null,null,null,null,null,null,null,null,null,null,null,null,null,null,null,null,null,null,null,null,null,null,"Kategori",null,"Lastebil tipp",null,null,null,null,null,null,"CO2-ekv.","SO2-ekv.","P-ekv.","NMVOC",null,null,null,null,null,null,null,null,null,null,"CO2-ekv.","SO2-ekv.","P-ekv.","NMVOC"]
[null,null,null,{"$f":"'06. Transport annen bruk'!D46","v":"6.9"},{"$f":"'06. Transport annen bruk'!E46","v":"Transport til betongfabrikk"},{"$f":"'06. Transport annen bruk'!AQ56","v":0},{"$f":"'06. Transport annen bruk'!AR56","v":0},{"$f":"'06. Transport annen bruk'!AS56","v":0},{"$f":"'06. Transport annen bruk'!AT56","v":0},{"$f":"'06. Transport annen bruk'!AU56","v":0},null,null,{"$f":"D50","v":"6.9"},"Transport til betongfabrikk",null,null,null,null,null,null,null,null,null,null,null,null,null,null,null,null,null,null,null,null,null,null,null,null,null,null,null,null,null,null,null,null,null,null,null,null,null,null,null,null,null,"Volum stein",null,null,null,"m3",null,null,{"$f":"\"Utslippsfaktor (kg/\"&BG52&\"):\"&\"  \"","v":"Utslippsfaktor (kg/l):  "},null,{"$f":"IF(BF49=0,0,(INDEX('09. Utslippsfaktorer'!$P$7:$U$12,MATCH(BH52,'09. Utslippsfaktorer'!$P$7:$P$12,0),MATCH(\"kg \"&BM49,'09. Utslippsfaktorer'!$P$7:$U$7,0),1)))","v":3.1476000000000002},{"$f":"IF(BF49=0,0,(INDEX('09. Utslippsfaktorer'!$P$7:$U$12,MATCH(BH52,'09. Utslippsfaktorer'!$P$7:$P$12,0),MATCH(\"kg \"&BN49,'09. Utslippsfaktorer'!$P$7:$U$7,0),1)))","v":0},{"$f":"IF(BF49=0,0,(INDEX('09. Utslippsfaktorer'!$P$7:$U$12,MATCH(BH52,'09. Utslippsfaktorer'!$P$7:$P$12,0),MATCH(\"kg \"&BO49,'09. Utslippsfaktorer'!$P$7:$U$7,0),1)))","v":0},{"$f":"IF(BF49=0,0,(INDEX('09. Utslippsfaktorer'!$P$7:$U$12,MATCH(BH52,'09. Utslippsfaktorer'!$P$7:$P$12,0),MATCH(\"kg \"&BP49,'09. Utslippsfaktorer'!$P$7:$U$7,0),1)))","v":0},null,null,null,null,null,null,null,null,"Utslipp (kg):  ",null,{"$f":"BM51","v":0},{"$f":"BN51","v":0},{"$f":"BO51","v":0},{"$f":"BP51","v":0}]
[null,null,null,{"$f":"'06. Transport annen bruk'!D66","v":"6.12"},{"$f":"'06. Transport annen bruk'!E66","v":"Lasting til transport"},{"$f":"'06. Transport annen bruk'!AQ67","v":0},{"$f":"'06. Transport annen bruk'!AR67","v":0},{"$f":"'06. Transport annen bruk'!AS67","v":0},{"$f":"'06. Transport annen bruk'!AT67","v":0},{"$f":"'06. Transport annen bruk'!AU67","v":0},null,null,"6.12","Lasting til transport",null,null,null,null,null,null,null,null,null,null,null,null,null,null,null,null,null,null,null,null,null,null,null,null,null,null,null,null,null,null,null,null,null,null,null,null,null,null,null,null,null,"Forbruk per m3 stein",null,null,{"$f":"IF(BF49=0,0,(INDEX('08. Beregningsfaktorer'!$E$12:$G$89,MATCH(BF49,'08. Beregningsfaktorer'!$E$12:$E$89,0),3,1)))","v":0.19},{"$f":"BG52&\"/\"&BH50","v":"l/m3"},null,null,"Utslipp (kg):  ",null,{"$f":"$V52*BM50","v":0},{"$f":"$V52*BN50","v":0},{"$f":"$V52*BO50","v":0},{"$f":"$V52*BP50","v":0}]
[null,null,null,{"$f":"'06. Transport annen bruk'!D71","v":"6.13"},{"$f":"'06. Transport annen bruk'!E71","v":"Transport til asfaltproduksjon"},{"$f":"'06. Transport annen bruk'!AQ81","v":0},{"$f":"'06. Transport annen bruk'!AR81","v":0},{"$f":"'06. Transport annen bruk'!AS81","v":0},{"$f":"'06. Transport annen bruk'!AT81","v":0},{"$f":"'06. Transport annen bruk'!AU81","v":0},null,null,"6.13","Transport til asfaltproduksjon",null,null,null,null,null,null,null,null,null,null,null,null,null,null,null,null,null,null,null,null,null,null,null,null,null,null,null,null,null,null,null,null,null,null,null,null,null,null,null,null,null,"Forbruk",null,{"$f":"BG50*BG51","v":0},{"$f":"IF(BF49='08. Beregningsfaktorer'!$E$50,\"l\",IF(BF49='08. Beregningsfaktorer'!$E$51,\"l\",IF(BF49='08. Beregningsfaktorer'!$E$52,\"l\",\"...\")))","v":"l"},{"$f":"IF(BF49='08. Beregningsfaktorer'!$E$50,\"Diesel\",IF(BF49='08. Beregningsfaktorer'!$E$51,\"Diesel\",IF(BF49='08. Beregningsfaktorer'!$E$52,\"Diesel\",\"Mangler type kjøretøy\")))","v":"Diesel"}]
[null,null,null,{"$f":"'06. Transport annen bruk'!D91","v":"6.16"},{"$f":"'06. Transport annen bruk'!E91","v":"Lasting til transport"},{"$f":"'06. Transport annen bruk'!AQ92","v":0},{"$f":"'06. Transport annen bruk'!AR92","v":0},{"$f":"'06. Transport annen bruk'!AS92","v":0},{"$f":"'06. Transport annen bruk'!AT92","v":0},{"$f":"'06. Transport annen bruk'!AU92","v":0},null,null,"6.16","Lasting til transport"]
[null,null,null,{"$f":"'06. Transport annen bruk'!D96","v":"6.17"},{"$f":"'06. Transport annen bruk'!E96","v":"Transport til nærliggende prosjekt"},{"$f":"'06. Transport annen bruk'!AQ106","v":0},{"$f":"'06. Transport annen bruk'!AR106","v":0},{"$f":"'06. Transport annen bruk'!AS106","v":0},{"$f":"'06. Transport annen bruk'!AT106","v":0},{"$f":"'06. Transport annen bruk'!AU106","v":0},null,null,"6.17","Transport til nærliggende prosjekt"]
[null,null,null,{"$f":"'06. Transport annen bruk'!D116","v":"6.20"},{"$f":"'06. Transport annen bruk'!E116","v":"Lasting til transport"},{"$f":"'06. Transport annen bruk'!AQ117","v":0},{"$f":"'06. Transport annen bruk'!AR117","v":0},{"$f":"'06. Transport annen bruk'!AS117","v":0},{"$f":"'06. Transport annen bruk'!AT117","v":0},{"$f":"'06. Transport annen bruk'!AU117","v":0},null,null,"6.20","Lasting til transport"]
[null,null,null,{"$f":"'06. Transport annen bruk'!D121","v":"6.21"},{"$f":"'06. Transport annen bruk'!E121","v":"Transport til andre"},{"$f":"'06. Transport annen bruk'!AQ131","v":0},{"$f":"'06. Transport annen bruk'!AR131","v":0},{"$f":"'06. Transport annen bruk'!AS131","v":0},{"$f":"'06. Transport annen bruk'!AT131","v":0},{"$f":"'06. Transport annen bruk'!AU131","v":0},null,null,"6.21","Transport til andre"]
[]
[]
[null,null,null,"7.1","Alternativ 01 - Totalt utslipp [kg CO2-ekv.]",{"$f":"F48+F39+F33+F21","v":0},{"$f":"G48+G39+G33+G21","v":0},{"$f":"H48+H39+H33+H21","v":0},{"$f":"I48+I39+I33+I21","v":0},{"$f":"J48+J39+J33+J21","v":0},null,null,"7.2","Alternativ 02 - Totalt utslipp [kg CO2-ekv.]",{"$f":"O48+O39+O33+O21","v":0},{"$f":"P48+P39+P33+P21","v":1050},{"$f":"Q48+Q39+Q33+Q21","v":1311},{"$f":"R48+R39+R33+R21","v":1511},{"$f":"S48+S39+S33+S21","v":1500}]
[null,null,null,null,null,null,null,null,null,null,null,null,null,null,null,null,null,null,null,null,null,null,null,null,null,null,null,null,null,null,null,null,null,null,null,null,null,null,null,null,null,null,{"$f":"'02. Inndata steinmasser'!L14","v":0},{"$f":"'02. Inndata steinmasser'!F7","v":"fm3"}]
[]
[]
[]
[null,null,null,null,null,null,null,null,null,null,null,null,null,null,null,null,null,null,null,null,null,null,null,null,null,null,null,null,null,null,null,null,null,null,null,null,null,null,null,null,null,null,null,null,null,null,null,null,null,null,null,null,null,null,null,{"$f":"AO65&\" - Utslipp - Diverse grunnlagsdata\"","v":"Stasjonært knuseverk knusetrinn 1 - Utslipp - Diverse grunnlagsdata"},null,null,null,null,null,null,{"$f":"AO65&\" - Utslipp fra forbruk og slitasje\"","v":"Stasjonært knuseverk knusetrinn 1 - Utslipp fra forbruk og slitasje"},null,null,null,null,null,null,null,null,null,null,null,null,null,{"$f":"AO65&\" - Sum utslipp\"","v":"Stasjonært knuseverk knusetrinn 1 - Sum utslipp"}]
[null,null,null,null,null,null,null,null,null,null,null,null,null,null,null,null,null,null,null,null,null,null,null,null,null,null,null,null,null,null,null,null,null,null,null,null,null,null,null,"5.9","Stasjonært knuseverk knusetrinn 1",null,null,null,null,null,null,null,null,null,null,null,null,null,null,"Kategori",null,{"$f":"'09. Utslippsfaktorer'!$P$22","v":"Pukkverk knusetrinn 1 inkl. sprengning"},null,null,null,null,null,null,"CO2-ekv.","SO2-ekv.","P-ekv.","NMVOC",null,null,null,null,null,null,null,null,null,null,"CO2-ekv.","SO2-ekv.","P-ekv.","NMVOC"]
[null,null,null,null,null,null,null,null,null,null,null,null,null,null,null,null,null,null,null,null,null,null,null,null,null,null,null,null,null,null,null,null,null,null,null,null,null,null,null,"5.9.2","Type knusetrinn ","Knusetrinn 1",null,null,null,null,null,null,null,null,null,null,null,null,null,"Mengde stein",null,null,0,"tonn",null,null,{"$f":"\"Utslippsfaktor (kg/\"&BH66&\"):\"&\"  \"","v":"Utslippsfaktor (kg/tonn):  "},null,{"$f":"IF(AP66=0,0,(INDEX('09. Utslippsfaktorer'!$P$7:$U$45,MATCH(BF65,'09. Utslippsfaktorer'!$P$7:$P$45,0),MATCH(\"kg \"&BM65,'09. Utslippsfaktorer'!$P$7:$U$7,0),1)))","v":2.2000000000000002},{"$f":"IF(AP66=0,0,(INDEX('09. Utslippsfaktorer'!$P$7:$U$45,MATCH(BF65,'09. Utslippsfaktorer'!$P$7:$P$45,0),MATCH(\"kg \"&BN65,'09. Utslippsfaktorer'!$P$7:$U$7,0),1)))","v":0},{"$f":"IF(AP66=0,0,(INDEX('09. Utslippsfaktorer'!$P$7:$U$45,MATCH(BF65,'09. Utslippsfaktorer'!$P$7:$P$45,0),MATCH(\"kg \"&BO65,'09. Utslippsfaktorer'!$P$7:$U$7,0),1)))","v":0},{"$f":"IF(AP66=0,0,(INDEX('09. Utslippsfaktorer'!$P$7:$U$45,MATCH(BF65,'09. Utslippsfaktorer'!$P$7:$P$45,0),MATCH(\"kg \"&BP65,'09. Utslippsfaktorer'!$P$7:$U$7,0),1)))","v":0},null,null,null,null,null,null,null,null,"Utslipp (kg):  ",null,{"$f":"BM67","v":0},{"$f":"BN67","v":0},{"$f":"BO67","v":0},{"$f":"BP67","v":0}]
[null,null,null,null,null,null,null,null,null,null,null,null,null,null,null,null,null,null,null,null,null,null,null,null,null,null,null,null,null,null,null,null,null,null,null,null,null,null,null,null,null,null,null,null,null,null,null,null,null,null,null,null,null,null,null,"Kapasitet",null,null,{"$f":"0","v":0},{"$f":"BH66&\"/\"&BG68","v":"tonn/h"},null,null,"Utslipp (kg):  ",null,{"$f":"BM66*BG66","v":0},{"$f":"BN66*BG66","v":0},{"$f":"BO66*BG66","v":0},{"$f":"BP66*BG66","v":0}]
[null,null,null,null,null,null,null,null,null,null,null,null,null,null,null,null,null,null,null,null,null,null,null,null,null,null,null,null,null,null,null,null,null,null,null,null,null,null,null,null,null,null,null,null,null,null,null,null,null,null,null,null,null,null,null,"Forbruk",null,{"$f":"BG66*BG67","v":0},"h",{"$f":"\"Standard beregning\"","v":"Standard beregning"}]
[]
[null,null,null,null,null,null,null,null,null,null,null,null,null,null,null,null,null,null,null,null,null,null,null,null,null,null,null,null,null,null,null,null,null,null,null,null,null,null,null,null,null,null,null,null,null,null,null,null,null,null,null,null,null,null,null,{"$f":"AO71&\" - Utslipp - Diverse grunnlagsdata\"","v":"Stasjonært knuseverk knusetrinn 2 - Utslipp - Diverse grunnlagsdata"},null,null,null,null,null,null,{"$f":"AO71&\" - Utslipp fra forbruk og slitasje\"","v":"Stasjonært knuseverk knusetrinn 2 - Utslipp fra forbruk og slitasje"},null,null,null,null,null,null,null,null,null,null,null,null,null,{"$f":"AO71&\" - Sum utslipp\"","v":"Stasjonært knuseverk knusetrinn 2 - Sum utslipp"}]
[null,null,null,null,null,null,null,null,null,null,null,null,null,null,null,null,null,null,null,null,null,null,null,null,null,null,null,null,null,null,null,null,null,null,null,null,null,null,null,"5.11","Stasjonært knuseverk knusetrinn 2",null,null,null,null,null,null,null,null,null,null,null,null,null,null,"Kategori",null,{"$f":"'09. Utslippsfaktorer'!$P$23","v":"Pukkverk knusetrinn 2 inkl. sprengning"},null,null,null,null,null,null,"CO2-ekv.","SO2-ekv.","P-ekv.","NMVOC",null,null,null,null,null,null,null,null,null,null,"CO2-ekv.","SO2-ekv.","P-ekv.","NMVOC"]
[null,null,null,null,null,null,null,null,null,null,null,null,null,null,null,null,null,null,null,null,null,null,null,null,null,null,null,null,null,null,null,null,null,null,null,null,null,null,null,"5.11.4","Type knusetrinn ","Knusetrinn 2",null,null,null,null,null,null,null,null,null,null,null,null,null,"Mengde stein",null,null,0,"tonn",null,null,{"$f":"\"Utslippsfaktor (kg/\"&BH72&\"):\"&\"  \"","v":"Utslippsfaktor (kg/tonn):  "},null,{"$f":"IF(AP72=0,0,(INDEX('09. Utslippsfaktorer'!$P$7:$U$45,MATCH(BF71,'09. Utslippsfaktorer'!$P$7:$P$45,0),MATCH(\"kg \"&BM71,'09. Utslippsfaktorer'!$P$7:$U$7,0),1)))","v":2.375},{"$f":"IF(AP72=0,0,(INDEX('09. Utslippsfaktorer'!$P$7:$U$45,MATCH(BF71,'09. Utslippsfaktorer'!$P$7:$P$45,0),MATCH(\"kg \"&BN71,'09. Utslippsfaktorer'!$P$7:$U$7,0),1)))","v":0},{"$f":"IF(AP72=0,0,(INDEX('09. Utslippsfaktorer'!$P$7:$U$45,MATCH(BF71,'09. Utslippsfaktorer'!$P$7:$P$45,0),MATCH(\"kg \"&BO71,'09. Utslippsfaktorer'!$P$7:$U$7,0),1)))","v":0},{"$f":"IF(AP72=0,0,(INDEX('09. Utslippsfaktorer'!$P$7:$U$45,MATCH(BF71,'09. Utslippsfaktorer'!$P$7:$P$45,0),MATCH(\"kg \"&BP71,'09. Utslippsfaktorer'!$P$7:$U$7,0),1)))","v":0},null,null,null,null,null,null,null,null,"Utslipp (kg):  ",null,{"$f":"BM73","v":0},{"$f":"BN73","v":0},{"$f":"BO73","v":0},{"$f":"BP73","v":0}]
[null,null,null,null,null,null,null,null,null,null,null,null,null,null,null,null,null,null,null,null,null,null,null,null,null,null,null,null,null,null,null,null,null,null,null,null,null,null,null,null,null,null,null,null,null,null,null,null,null,null,null,null,null,null,null,"Kapasitet",null,null,{"$f":"0","v":0},{"$f":"BH72&\"/\"&BG74","v":"tonn/h"},null,null,"Utslipp (kg):  ",null,{"$f":"BM72*BG72","v":0},{"$f":"BN72*BG72","v":0},{"$f":"BO72*BG72","v":0},{"$f":"BP72*BG72","v":0}]
[null,null,null,null,null,null,null,null,null,null,null,null,null,null,null,null,null,null,null,null,null,null,null,null,null,null,null,null,null,null,null,null,null,null,null,null,null,null,null,null,null,null,null,null,null,null,null,null,null,null,null,null,null,null,null,"Forbruk",null,{"$f":"BG72*BG73","v":0},"h",{"$f":"\"Standard beregning\"","v":"Standard beregning"}]
[]
[null,null,null,null,null,null,null,null,null,null,null,null,null,null,null,null,null,null,null,null,null,null,null,null,null,null,null,null,null,null,null,null,null,null,null,null,null,null,null,null,null,null,null,null,null,null,null,null,null,null,null,null,null,null,null,{"$f":"AO77&\" - Utslipp - Diverse grunnlagsdata\"","v":"Stasjonært knuseverk knusetrinn 3 - Utslipp - Diverse grunnlagsdata"},null,null,null,null,null,null,{"$f":"AO77&\" - Utslipp fra forbruk og slitasje\"","v":"Stasjonært knuseverk knusetrinn 3 - Utslipp fra forbruk og slitasje"},null,null,null,null,null,null,null,null,null,null,null,null,null,{"$f":"AO77&\" - Sum utslipp\"","v":"Stasjonært knuseverk knusetrinn 3 - Sum utslipp"}]
[null,null,null,null,null,null,null,null,null,null,null,null,null,null,null,null,null,null,null,null,null,null,null,null,null,null,null,null,null,null,null,null,null,null,null,null,null,null,null,"5.13","Stasjonært knuseverk knusetrinn 3",null,null,null,null,null,null,null,null,null,null,null,null,null,null,"Kategori",null,{"$f":"'09. Utslippsfaktorer'!$P$24","v":"Pukkverk knusetrinn 3 inkl. sprengning"},null,null,null,null,null,null,"CO2-ekv.","SO2-ekv.","P-ekv.","NMVOC",null,null,null,null,null,null,null,null,null,null,"CO2-ekv.","SO2-ekv.","P-ekv.","NMVOC"]
[null,null,null,null,null,null,null,null,null,null,null,null,null,null,null,null,null,null,null,null,null,null,null,null,null,null,null,null,null,null,null,null,null,null,null,null,null,null,null,"5.13.6","Type knusetrinn ","Knusetrinn 3",null,null,null,null,null,null,null,null,null,null,null,null,null,"Mengde stein",null,null,{"$f":"IF(AQ60=0,0,IF(AR60=\"fm3\",AQ60*'08. Beregningsfaktorer'!$G$65/'08. Beregningsfaktorer'!$G$66,AQ60/'08. Beregningsfaktorer'!$G$66))","v":0},"tonn",null,null,{"$f":"\"Utslippsfaktor (kg/\"&BH78&\"):\"&\"  \"","v":"Utslippsfaktor (kg/tonn):  "},null,{"$f":"IF(AP78=0,0,(INDEX('09. Utslippsfaktorer'!$P$7:$U$45,MATCH(BF77,'09. Utslippsfaktorer'!$P$7:$P$45,0),MATCH(\"kg \"&BM77,'09. Utslippsfaktorer'!$P$7:$U$7,0),1)))","v":2.5949999999999998},{"$f":"IF(AP78=0,0,(INDEX('09. Utslippsfaktorer'!$P$7:$U$45,MATCH(BF77,'09. Utslippsfaktorer'!$P$7:$P$45,0),MATCH(\"kg \"&BN77,'09. Utslippsfaktorer'!$P$7:$U$7,0),1)))","v":0},{"$f":"IF(AP78=0,0,(INDEX('09. Utslippsfaktorer'!$P$7:$U$45,MATCH(BF77,'09. Utslippsfaktorer'!$P$7:$P$45,0),MATCH(\"kg \"&BO77,'09. Utslippsfaktorer'!$P$7:$U$7,0),1)))","v":0},{"$f":"IF(AP78=0,0,(INDEX('09. Utslippsfaktorer'!$P$7:$U$45,MATCH(BF77,'09. Utslippsfaktorer'!$P$7:$P$45,0),MATCH(\"kg \"&BP77,'09. Utslippsfaktorer'!$P$7:$U$7,0),1)))","v":0},null,null,null,null,null,null,null,null,"Utslipp (kg):  ",null,{"$f":"BM79","v":0},{"$f":"BN79","v":0},{"$f":"BO79","v":0},{"$f":"BP79","v":0}]
[null,null,null,null,null,null,null,null,null,null,null,null,null,null,null,null,null,null,null,null,null,null,null,null,null,null,null,null,null,null,null,null,null,null,null,null,null,null,null,null,null,null,null,null,null,null,null,null,null,null,null,null,null,null,null,"Kapasitet",null,null,{"$f":"0","v":0},{"$f":"BH78&\"/\"&BG80","v":"tonn/h"},null,null,"Utslipp (kg):  ",null,{"$f":"BM78*BG78","v":0},{"$f":"BN78*BG78","v":0},{"$f":"BO78*BG78","v":0},{"$f":"BP78*BG78","v":0}]
[null,null,null,null,null,null,null,null,null,null,null,null,null,null,null,null,null,null,null,null,null,null,null,null,null,null,null,null,null,null,null,null,null,null,null,null,null,null,null,null,null,null,null,null,null,null,null,null,null,null,null,null,null,null,null,"Forbruk",null,{"$f":"BG78*BG79","v":0},"h",{"$f":"\"Standard beregning\"","v":"Standard beregning"}]
[]
[]
[]
[]
[]
[]
[]
[]
[null,null,null,null,null,null,null,null,null,null,null,null,null,null,null,null,null,null,null,null,null,null,null,null,null,null,null,null,null,null,null,null,null,null,null,null,null,null,null,null,null,null,null,null,null,null,null,null,null,null,null,null,null,null,null,{"$f":"AO90&\" - Utslipp - Diverse grunnlagsdata\"","v":"Lasting til transport - Utslipp - Diverse grunnlagsdata"},null,null,null,null,null,null,{"$f":"AO90&\" - Utslipp fra forbruk\"","v":"Lasting til transport - Utslipp fra forbruk"},null,null,null,null,null,null,{"$f":"AO90&\" - Utslipp fra slitasje\"","v":"Lasting til transport - Utslipp fra slitasje"},null,null,null,null,null,null,{"$f":"AO90&\" - Sum utslipp\"","v":"Lasting til transport - Sum utslipp"}]
[null,null,null,null,null,null,null,null,null,null,null,null,null,null,null,null,null,null,null,null,null,null,null,null,null,null,null,null,null,null,null,null,null,null,null,null,null,null,null,"5.15","Lasting til transport",null,null,null,null,null,null,null,null,null,null,null,null,null,null,"Kategori",null,{"$f":"IF(AP91='08. Beregningsfaktorer'!$E$43,'08. Beregningsfaktorer'!$E$43,IF(AP91='08. Beregningsfaktorer'!$E$44,'09. Utslippsfaktorer'!$P$20,IF(AP91='08. Beregningsfaktorer'!$E$45,'09. Utslippsfaktorer'!$P$21,IF(AP91='08. Beregningsfaktorer'!$E$46,'09. Utslippsfaktorer'!$P$21,\"Mangler type lastemaskin\"))))","v":"Gravemaskin hydraulisk uten drivstoff"},null,null,null,null,null,null,"CO2-ekv.","SO2-ekv.","P-ekv.","NMVOC",null,null,null,"CO2-ekv.","SO2-ekv.","P-ekv.","NMVOC",null,null,null,"CO2-ekv.","SO2-ekv.","P-ekv.","NMVOC"]
[null,null,null,null,null,null,null,null,null,null,null,null,null,null,null,null,null,null,null,null,null,null,null,null,null,null,null,null,null,null,null,null,null,null,null,null,null,null,null,"5.15.1","Type lastemaskin","Gravemaskin diesel ",null,null,null,null,null,null,null,null,null,null,null,null,null,"Volum stein",null,null,{"$f":"IF(AQ$60=0,0,IF(AR$60=\"fm3\",AQ$60*'08. Beregningsfaktorer'!$G$65/'08. Beregningsfaktorer'!$G$66,AQ$60/'08. Beregningsfaktorer'!$G$66))","v":0},"lm3",null,null,{"$f":"\"Utslippsfaktor (kg/\"&BG93&\"):\"&\"  \"","v":"Utslippsfaktor (kg/l):  "},null,{"$f":"IF(AP91=0,0,IF(AP91='08. Beregningsfaktorer'!$E$43,0,(INDEX('09. Utslippsfaktorer'!$P$7:$U$12,MATCH(BH93,'09. Utslippsfaktorer'!$P$7:$P$12,0),MATCH(\"kg \"&BM90,'09. Utslippsfaktorer'!$P$7:$U$7,0),1))))","v":3.1476000000000002},{"$f":"IF(AP91=0,0,IF(AP91='08. Beregningsfaktorer'!$E$43,0,(INDEX('09. Utslippsfaktorer'!$P$7:$U$12,MATCH(BH93,'09. Utslippsfaktorer'!$P$7:$P$12,0),MATCH(\"kg \"&BN90,'09. Utslippsfaktorer'!$P$7:$U$7,0),1))))","v":0},{"$f":"IF(AP91=0,0,IF(AP91='08. Beregningsfaktorer'!$E$43,0,(INDEX('09. Utslippsfaktorer'!$P$7:$U$12,MATCH(BH93,'09. Utslippsfaktorer'!$P$7:$P$12,0),MATCH(\"kg \"&BO90,'09. Utslippsfaktorer'!$P$7:$U$7,0),1))))","v":0},{"$f":"IF(AP91=0,0,IF(AP91='08. Beregningsfaktorer'!$E$43,0,(INDEX('09. Utslippsfaktorer'!$P$7:$U$12,MATCH(BH93,'09. Utslippsfaktorer'!$P$7:$P$12,0),MATCH(\"kg \"&BP90,'09. Utslippsfaktorer'!$P$7:$U$7,0),1))))","v":0},null,"Utslippsfaktor (kg/m3):  ",null,{"$f":"IF(AP91=0,0,IF(AP91='08. Beregningsfaktorer'!$E$43,0,(INDEX('09. Utslippsfaktorer'!$P$7:$U$45,MATCH(BF90,'09. Utslippsfaktorer'!$P$7:$P$45,0),MATCH(\"kg \"&BT90,'09. Utslippsfaktorer'!$P$7:$U$7,0),1))))","v":5.2999999999999999E-2},{"$f":"IF(AP91=0,0,IF(AP91='08. Beregningsfaktorer'!$E$43,0,(INDEX('09. Utslippsfaktorer'!$P$7:$U$45,MATCH(BF90,'09. Utslippsfaktorer'!$P$7:$P$45,0),MATCH(\"kg \"&BU90,'09. Utslippsfaktorer'!$P$7:$U$7,0),1))))","v":0},{"$f":"IF(AP91=0,0,IF(AP91='08. Beregningsfaktorer'!$E$43,0,(INDEX('09. Utslippsfaktorer'!$P$7:$U$45,MATCH(BF90,'09. Utslippsfaktorer'!$P$7:$P$45,0),MATCH(\"kg \"&BV90,'09. Utslippsfaktorer'!$P$7:$U$7,0),1))))","v":0},{"$f":"IF(AP91=0,0,IF(AP91='08. Beregningsfaktorer'!$E$43,0,(INDEX('09. Utslippsfaktorer'!$P$7:$U$45,MATCH(BF90,'09. Utslippsfaktorer'!$P$7:$P$45,0),MATCH(\"kg \"&BW90,'09. Utslippsfaktorer'!$P$7:$U$7,0),1))))","v":0},null,"Utslipp (kg):  ",null,{"$f":"BM92+BT92","v":0},{"$f":"BN92+BU92","v":0},{"$f":"BO92+BV92","v":0},{"$f":"BP92+BW92","v":0}]
[null,null,null,null,null,null,null,null,null,null,null,null,null,null,null,null,null,null,null,null,null,null,null,null,null,null,null,null,null,null,null,null,null,null,null,null,null,null,null,null,null,null,null,null,null,null,null,null,null,null,null,null,null,null,null,"Forbruk per m3 stein",null,null,{"$f":"IF(AP91=0,0,(INDEX('08. Beregningsfaktorer'!$E$12:$G$89,MATCH(AP91,'08. Beregningsfaktorer'!$E$12:$E$89,0),3,1)))","v":0.15411764705882355},{"$f":"BG93&\"/\"&BH91","v":"l/lm3"},null,null,"Utslipp (kg):  ",null,{"$f":"BF93*BM91","v":0},{"$f":"BF93*BN91","v":0},{"$f":"BF93*BO91","v":0},{"$f":"BF93*BP91","v":0},null,"Utslipp (kg):  ",null,{"$f":"BG91*BT91","v":0},{"$f":"BG91*BU91","v":0},{"$f":"BG91*BV91","v":0},{"$f":"BG91*BW91","v":0}]
[null,null,null,null,null,null,null,null,null,null,null,null,null,null,null,null,null,null,null,null,null,null,null,null,null,null,null,null,null,null,null,null,null,null,null,null,null,null,null,null,null,null,null,"OBS! Retur med nyttelast tas ikke med i totalutslipp. Utslipp kan sees i mellomregningene til høyre.",null,null,null,null,null,null,null,null,null,null,null,"Forbruk",null,{"$f":"BG91*BG92","v":0},{"$f":"IF(AP91='08. Beregningsfaktorer'!$E$44,\"l\",IF(AP91='08. Beregningsfaktorer'!$E$45,\"l\",IF(AP91='08. Beregningsfaktorer'!$E$46,\"kWh\",\"...\")))","v":"l"},{"$f":"IF(AP91='08. Beregningsfaktorer'!$E$43,\"Ingen løft\",IF(AP91='08. Beregningsfaktorer'!$E$44,\"Diesel\",IF(AP91='08. Beregningsfaktorer'!$E$45,\"Diesel\",IF(AP91='08. Beregningsfaktorer'!$E$46,\"Elektrisitet\",\"Mangler type lastemaskin\"))))","v":"Diesel"}]
[]
[null,null,null,null,null,null,null,null,null,null,null,null,null,null,null,null,null,null,null,null,null,null,null,null,null,null,null,null,null,null,null,null,null,null,null,null,null,null,null,"5.16","Transport fra pukkverk","Endre antall kjøretøy:"]
[null,null,null,null,null,null,null,null,null,null,null,null,null,null,null,null,null,null,null,null,null,null,null,null,null,null,null,null,null,null,null,null,null,null,null,null,null,null,null,"5.16.1","Type kjøretøy","Lastebil, totalvekt 16-32 t, euro 5, diesel, tur-retur",null,null,null,null,null,null,null,null,null,null,null,null,null,{"$f":"AO$95&\" - Utslipp - Diverse grunnlagsdata\"","v":"Transport fra pukkverk - Utslipp - Diverse grunnlagsdata"},null,null,null,null,null,null,{"$f":"AO$95&\" - Utslipp fra forbruk\"","v":"Transport fra pukkverk - Utslipp fra forbruk"},null,null,null,null,null,null,{"$f":"AO$95&\" - Utslipp fra slitasje/bruk\"","v":"Transport fra pukkverk - Utslipp fra slitasje/bruk"},null,null,null,null,null,null,{"$f":"AO95&\" - Sum utslipp\"","v":"Transport fra pukkverk - Sum utslipp"}]
[null,null,null,null,null,null,null,null,null,null,null,null,null,null,null,null,null,null,null,null,null,null,null,null,null,null,null,null,null,null,null,null,null,null,null,null,null,null,{"$f":"IF(AP96='08. Beregningsfaktorer'!#REF!,\"J\",0)","v":{"$error":"#REF!"}},"5.16.2","Mengde stein",{"$f":"AQ60","v":0},{"$f":"'02. Inndata steinmasser'!$F$7","v":"fm3"},null,null,null,null,null,null,null,null,null,null,null,null,"Kategori",null,{"$f":"IF(OR(AP96='08. Beregningsfaktorer'!$B$9,AP96='08. Beregningsfaktorer'!$B$10),'09. Utslippsfaktorer'!$P$14,IF(OR(AP96='08. Beregningsfaktorer'!$B$12,AP96='08. Beregningsfaktorer'!$B$13),'09. Utslippsfaktorer'!$P$15,IF(OR(AP96='08. Beregningsfaktorer'!$B$14,AP96='08. Beregningsfaktorer'!$B$15),'09. Utslippsfaktorer'!$P$16,IF(OR(AP96='08. Beregningsfaktorer'!$B$24,AP96='08. Beregningsfaktorer'!$B$25),'09. Utslippsfaktorer'!$P$18,IF(AP96='08. Beregningsfaktorer'!$B$26,'09. Utslippsfaktorer'!$P$18,IF(AP96='08. Beregningsfaktorer'!$B$27,'09. Utslippsfaktorer'!$P$18,IF(AP96='08. Beregningsfaktorer'!$B$28,'09. Utslippsfaktorer'!$P$19,IF(AP96='08. Beregningsfaktorer'!$B$29,'09. Utslippsfaktorer'!$P$19,IF(OR(AP96='08. Beregningsfaktorer'!$B$17,AP96='08. Beregningsfaktorer'!$B$16,AP96='08. Beregningsfaktorer'!$B$18,AP96='08. Beregningsfaktorer'!$B$19),'09. Utslippsfaktorer'!$P$16,IF(OR(AP96='08. Beregningsfaktorer'!$B$20,AP96='08. Beregningsfaktorer'!$B$21,AP96='08. Beregningsfaktorer'!$B$22,AP96='08. Beregningsfaktorer'!$B$23),'09. Utslippsfaktorer'!$P$14,\"Mangler type kjøretøy\"))))))))))","v":"Lastebil 16-32 tonn, euro 5"},null,null,null,null,null,null,"CO2-ekv.","SO2-ekv.","P-ekv.","NMVOC",null,null,null,"CO2-ekv.","SO2-ekv.","P-ekv.","NMVOC",null,null,null,"CO2-ekv.","SO2-ekv.","P-ekv.","NMVOC"]
[null,null,null,null,null,null,null,null,null,null,null,null,null,null,null,null,null,null,null,null,null,null,null,null,null,null,null,null,null,null,null,null,null,null,null,null,null,null,null,"5.16.3","Hvor kommer massene fra?","Tunellmunning",null,null,null,null,null,null,null,null,null,null,null,null,null,{"$f":"IF(AP99='08. Beregningsfaktorer'!$E$78,\"km\",\"tonn km\")","v":"tonn km"},null,null,{"$f":"IF(AP99='08. Beregningsfaktorer'!$E$78,IF(AQ97=\"tonn\",IF(OR(AP96='08. Beregningsfaktorer'!$B$16,AP96='08. Beregningsfaktorer'!$B$17),(AP97/8.5)*AP100,IF(OR(AP96='08. Beregningsfaktorer'!$B$18,AP96='08. Beregningsfaktorer'!$B$19),(AP97/14)*AP100,IF(OR(AP96='08. Beregningsfaktorer'!$B$20,AP96='08. Beregningsfaktorer'!$B$21),(AP97/26)*AP100,IF(OR(AP96='08. Beregningsfaktorer'!$B$22,AP96='08. Beregningsfaktorer'!$B$23),(AP97/40)*AP100,IF(OR(AP96='08. Beregningsfaktorer'!$B$24,AP96='08. Beregningsfaktorer'!$B$25),(AP97/14)*AP100,IF(AP96='08. Beregningsfaktorer'!$B$26,(AP97/14)*AP100,IF(AP96='08. Beregningsfaktorer'!$B$27,(AP97/14)*AP100))))))),IF(OR(AP96='08. Beregningsfaktorer'!$B$16,AP96='08. Beregningsfaktorer'!$B$17),(AP97*'08. Beregningsfaktorer'!$G$65/8.5)*AP100,IF(OR(AP96='08. Beregningsfaktorer'!$B$18,AP96='08. Beregningsfaktorer'!$B$19),(AP97*'08. Beregningsfaktorer'!$G$65/14)*AP100,IF(OR(AP96='08. Beregningsfaktorer'!$B$20,AP96='08. Beregningsfaktorer'!$B$21),(AP97*'08. Beregningsfaktorer'!$G$65/26)*AP100,IF(OR(AP96='08. Beregningsfaktorer'!$B$22,AP96='08. Beregningsfaktorer'!$B$23),(AP97*'08. Beregningsfaktorer'!$G$65/40)*AP100,IF(OR(AP96='08. Beregningsfaktorer'!$B$24,AP96='08. Beregningsfaktorer'!$B$25),(AP97*'08. Beregningsfaktorer'!$G$65/14)*AP100,IF(AP96='08. Beregningsfaktorer'!$B$26,(AP97*'08. Beregningsfaktorer'!$G$65/14)*AP100,IF(AP96='08. Beregningsfaktorer'!$B$27,(AP97*'08. Beregningsfaktorer'!$G$65/14)*AP100)))))))),IF(AP97=0,0,IF(AP99='08. Beregningsfaktorer'!$E$80,IF(AND(OR(AP96='08. Beregningsfaktorer'!$B$28,AP96='08. Beregningsfaktorer'!$B$29),AQ97=\"tonn\"),(AP97/1900)*AP100,IF(OR(AP96='08. Beregningsfaktorer'!$B$28,AP96='08. Beregningsfaktorer'!$B$29),(AP97*'08. Beregningsfaktorer'!$G$65/1900)*AP100,IF(AQ97=\"tonn\",AP97*AP100,AP97*'08. Beregningsfaktorer'!$G$65)*AP100)),IF(AQ97=\"tonn\",AP97*AP100,AP97*'08. Beregningsfaktorer'!$G$65)*AP100)))","v":0},{"$f":"IF(OR(AP99='08. Beregningsfaktorer'!$E$78,AP96='08. Beregningsfaktorer'!$B$28,AP96='08. Beregningsfaktorer'!$B$29),\"km\",\"tkm\")","v":"tkm"},null,null,{"$f":"\"Utslippsfaktor (kg/\"&BG101&\"):\"&\"  \"","v":"Utslippsfaktor (kg/l):  "},null,{"$f":"IF(AP96=0,0,IF(AP96='08. Beregningsfaktorer'!$B$27,0,(INDEX('09. Utslippsfaktorer'!$P$7:$U$12,MATCH(BH101,'09. Utslippsfaktorer'!$P$7:$P$12,0),MATCH(\"kg \"&BM97,'09. Utslippsfaktorer'!$P$7:$U$7,0),1))))","v":3.1476000000000002},{"$f":"IF(AP96=0,0,IF(AP96='08. Beregningsfaktorer'!$B$27,0,(INDEX('09. Utslippsfaktorer'!$P$7:$U$12,MATCH(BH101,'09. Utslippsfaktorer'!$P$7:$P$12,0),MATCH(\"kg \"&BN97,'09. Utslippsfaktorer'!$P$7:$U$7,0),1))))","v":0},{"$f":"IF(AP96=0,0,IF(AP96='08. Beregningsfaktorer'!$B$27,0,(INDEX('09. Utslippsfaktorer'!$P$7:$U$12,MATCH(BH101,'09. Utslippsfaktorer'!$P$7:$P$12,0),MATCH(\"kg \"&BO97,'09. Utslippsfaktorer'!$P$7:$U$7,0),1))))","v":0},{"$f":"IF(AP96=0,0,IF(AP96='08. Beregningsfaktorer'!$B$27,0,(INDEX('09. Utslippsfaktorer'!$P$7:$U$12,MATCH(BH101,'09. Utslippsfaktorer'!$P$7:$P$12,0),MATCH(\"kg \"&BP97,'09. Utslippsfaktorer'!$P$7:$U$7,0),1))))","v":0},null,{"$f":"\"Utslippsfaktor (kg/\"&BH98&\"):\"","v":"Utslippsfaktor (kg/tkm):"},null,{"$f":"IF(AP96=0,0,(INDEX('09. Utslippsfaktorer'!$P$7:$U$45,MATCH(BF97,'09. Utslippsfaktorer'!$P$7:$P$45,0),MATCH(\"kg \"&BT97,'09. Utslippsfaktorer'!$P$7:$U$7,0),1)))","v":2.5700000000000001E-2},{"$f":"IF(AP96=0,0,(INDEX('09. Utslippsfaktorer'!$P$7:$U$45,MATCH(BF97,'09. Utslippsfaktorer'!$P$7:$P$45,0),MATCH(\"kg \"&BU97,'09. Utslippsfaktorer'!$P$7:$U$7,0),1)))","v":1.1900000000000001E-4},{"$f":"IF(AP96=0,0,(INDEX('09. Utslippsfaktorer'!$P$7:$U$45,MATCH(BF97,'09. Utslippsfaktorer'!$P$7:$P$45,0),MATCH(\"kg \"&BV97,'09. Utslippsfaktorer'!$P$7:$U$7,0),1)))","v":1.0499999999999999E-5},{"$f":"IF(AP96=0,0,(INDEX('09. Utslippsfaktorer'!$P$7:$U$45,MATCH(BF97,'09. Utslippsfaktorer'!$P$7:$P$45,0),MATCH(\"kg \"&BW97,'09. Utslippsfaktorer'!$P$7:$U$7,0),1)))","v":0},null,"Utslipp (kg):  ",null,{"$f":"IF(AP99='08. Beregningsfaktorer'!$E$79,0,BM99+BT99)","v":0},{"$f":"IF(AP99='08. Beregningsfaktorer'!$E$79,0,BN99+BU99)","v":0},{"$f":"IF(AP99='08. Beregningsfaktorer'!$E$79,0,BO99+BV99)","v":0},{"$f":"IF(AP99='08. Beregningsfaktorer'!$E$79,0,BP99+BW99)","v":0}]
[null,null,null,null,null,null,null,null,null,null,null,null,null,null,null,null,null,null,null,null,null,null,null,null,null,null,null,null,null,null,null,null,null,null,null,null,null,null,null,"5.16.4","Lastekapasitet","Tur-retur gjennomsnittlig",null,null,null,null,null,null,null,null,null,null,null,null,null,"Korreksjonsfaktor",null,null,{"$f":"IF(AP101=0,0,INDEX('08. Beregningsfaktorer'!$E$54:$G$55,MATCH(AP101,'08. Beregningsfaktorer'!$E$54:$E$55,0),3))","v":1},null,null,null,"Utslipp (kg):  ",null,{"$f":"IFERROR(BF101*BM98,\"Loading…\")","v":0},{"$f":"IFERROR(BF101*BN98,\"Loading…\")","v":0},{"$f":"IFERROR(BF101*BO98,\"Loading…\")","v":0},{"$f":"IFERROR(BF101*BP98,\"Loading…\")","v":0},null,"Utslipp (kg):  ",null,{"$f":"IFERROR(BG98*BT98,\"Loading…\")","v":0},{"$f":"IFERROR(BG98*BU98,\"Loading…\")","v":0},{"$f":"IFERROR(BG98*BV98,\"Loading…\")","v":0},{"$f":"IFERROR(BG98*BW98,\"Loading…\")","v":0}]
[null,null,null,null,null,null,null,null,null,null,null,null,null,null,null,null,null,null,null,null,null,null,null,null,null,null,null,null,null,null,null,null,null,null,null,null,null,null,null,"5.16.5","Distanse til linja",{"$f":"IF('05. Pukkverk'!F17=0,10,'05. Pukkverk'!F17)","v":10},"Km",null,null,null,null,null,null,null,null,null,null,null,null,{"$f":"IF(AP99='08. Beregningsfaktorer'!$E$78,\"Forbruk per km\",\"Forbruk per tonn km\")","v":"Forbruk per tonn km"},null,null,{"$f":"IFERROR(IF(AP96=0,0,IF(AP99='08. Beregningsfaktorer'!$E$78,INDEX('08. Beregningsfaktorer'!$E$30:$G$41,MATCH(AP96,'08. Beregningsfaktorer'!$B$30:$B$41,0),3,1),INDEX('08. Beregningsfaktorer'!$E$9:$G$29,MATCH(AP96,'08. Beregningsfaktorer'!$B$9:$B$29,0),3,1))),\"Loading..\")","v":4.4080887058823529E-2},{"$f":"IFERROR(BG101&\"/\"&BH98,\"Loading..\")","v":"l/tkm"}]
[null,null,null,null,null,null,null,null,null,null,null,null,null,null,null,null,null,null,null,null,null,null,null,null,null,null,null,null,null,null,null,null,null,null,null,null,null,null,null,"5.16.6","Transport med helning","Flatt terreng",null,null,null,null,null,null,null,null,null,null,null,null,null,"Forbruk",null,{"$f":"IFERROR(BG98*BG100*BG99,\"Data mangler\")","v":0},{"$f":"IFERROR(IF(OR(AP96='08. Beregningsfaktorer'!$B$26,AP96='08. Beregningsfaktorer'!$B$27),\"kWh\",\"l\"),\"Loading..\")","v":"l"},{"$f":"IFERROR(IF(OR(AP96='08. Beregningsfaktorer'!$B$26,AP96='08. Beregningsfaktorer'!$B$27),\"Elektrisitet\",IF(OR(AP96='08. Beregningsfaktorer'!AL68,AP96='08. Beregningsfaktorer'!AL71,AP96='08. Beregningsfaktorer'!AL73,AP96='08. Beregningsfaktorer'!AL75,AP96='08. Beregningsfaktorer'!AL75,AP96='08. Beregningsfaktorer'!AL77,AP96='08. Beregningsfaktorer'!AL79,AP96='08. Beregningsfaktorer'!AL81,AP96='08. Beregningsfaktorer'!AL83,AP96='08. Beregningsfaktorer'!AL87),\"Biodiesel\",IF(BF97=\"Mangler type kjøretøy\",\"Mangler type kjøretøy\",\"Diesel\"))),\"Feil\")","v":"Diesel"}]
[]
[null,null,null,null,null,null,null,null,null,null,null,null,null,null,null,null,null,null,null,null,null,null,null,null,null,null,null,null,null,null,null,null,null,null,null,null,null,null,null,null,null,null,null,null,null,null,null,null,null,null,null,null,null,null,null,null,null,null,null,null,null,null,null,null,null,null,null,null,null,null,null,null,null,null,null,null,{"$f":"AO95&\" - Sum utslipp - Alle kjøretøy\"","v":"Transport fra pukkverk - Sum utslipp - Alle kjøretøy"}]
[null,null,null,null,null,null,null,null,null,null,null,null,null,null,null,null,null,null,null,null,null,null,null,null,null,null,null,null,null,null,null,null,null,null,null,null,null,null,null,null,null,null,null,null,null,null,null,null,null,null,null,null,null,null,null,null,null,null,null,null,null,null,null,null,null,null,null,null,null,null,null,null,null,null,null,null,null,null,"CO2-ekv.","SO2-ekv.","P-ekv.","NMVOC"]
[null,null,null,null,null,null,null,null,null,null,null,null,null,null,null,null,null,null,null,null,null,null,null,null,null,null,null,null,null,null,null,null,null,null,null,null,null,null,null,null,null,null,null,null,null,null,null,null,null,null,null,null,null,null,null,null,null,null,null,null,null,null,null,null,null,null,null,null,null,null,null,null,null,null,null,null,"Utslipp (kg):  ",null,{"$f":"SUMIF(AN95:AN102,AN98,CA95:CA102)","v":0},{"$f":"SUMIF(AN95:AN102,AN98,CB95:CB102)","v":0},{"$f":"SUMIF(AN95:AN102,AN98,CC95:CC102)","v":0},{"$f":"SUMIF(AN95:AN102,AN98,CD95:CD102)","v":0}]

{"sheet":"08. Beregningsfaktorer","index":8,"n_rows":89,"n_cols":13,"rows_kept":89,"cut":false,"hidden":false,"merged":[[5,16,6,16],[5,41,6,41],[7,4,7,8],[41,4,41,8],[5,31,6,31],[5,8,6,8],[5,7,6,7],[5,15,6,15],[5,23,6,23],[5,24,6,24],[55,4,55,8],[59,4,59,8],[62,4,62,8],[1,0,1,2],[5,3,6,3],[48,4,48,8],[52,4,52,8],[1,3,1,39],[5,33,6,33],[5,34,6,34],[5,6,6,6],[5,5,6,5],[5,4,6,4],[5,10,6,10],[5,12,6,12],[5,14,6,14]]}
[]
[null,null,null,"08. Beregningsfaktorer"]
[]
[]
[]
[null,null,null,"Nr.","Type","Enhet","Brukt i beregninger ","Standard","Egendefinerte verdier",null,"Forutsetninger og grunnlag for standard beregningsfaktorer",null,"Forutsetninger og grunnlag for egendefinerte beregningsfaktorer"]
[]
[null,null,null,"8.1","Transporttyper"]
[null,"Lastebil, totalvekt >32 t, euro 6, diesel, tur-retur",null,"8.1.1","Lastebil med totalvekt >32 tonn, euro 6, diesel","l/tkm",{"$f":"IF(I9>0,I9,H9)","v":2.2580428729882356E-2},{"$f":"0.0191933644204*H68","v":2.2580428729882356E-2},null,null,"Dieselforbruk i kg/tkm hentet fra Ecoinvent 3.6: Transport, freight, lorry >32 metric ton, EURO6 {RER} | transport, freight, lorry >32 metric ton, EURO6 | Cut-off, U. Omregnet til l/tkm vha. omregningsfaktor."]
[null,"Lastebil, totalvekt >32 t, euro 6, biodiesel, tur-retur",null,"8.1.2","Lastebil med totalvekt >32 tonn, euro 6, biodiesel","l/tkm",2.2580428729882356E-2,{"$f":"H9","v":2.2580428729882356E-2},null,null,"Biodieselforbruk er tilnærmet som likt dieselforbruk."]
[null,"Lastebil med totalvekt >32 tonn, biogass, tur-retur",null,"8.1.3","Lastebil med totalvekt >32 tonn, biogass","MJ/tkm",0.92607983328430021,{"$f":"H9*H70","v":0.92607983328430021},null,null,"Biogassforbruk er beregnet basert på dieselforbruk og omregningsfaktor for biogass (beregningsfaktor 8.7.7)."]
[null,"Lastebil, totalvekt 16-32 t, euro 5, diesel, tur-retur",null,"8.1.4","Lastebil med totalvekt 16-32 tonn, euro 5, diesel","l/tkm",4.4080887058823529E-2,{"$f":"0.037468754*H68","v":4.4080887058823529E-2},null,null,"Dieselforbruk i kg/tkm hentet fra Ecoinvent 3.6: Transport, freight, lorry 16-32 metric ton, EURO5 {RER} | transport, freight, lorry 16-32 metric ton, EURO5 | Cut-off, U. Omregnet til l/tkm vha. omregningsfaktor."]
[null,"Lastebil, totalvekt 16-32 t, euro 5, biodiesel, tur-retur",null,"8.1.5","Lastebil med totalvekt 16-32 tonn, euro 5, biodiesel","l/tkm",4.4080887058823529E-2,{"$f":"H12","v":4.4080887058823529E-2},null,null,"Biodieselforbruk er tilnærmet som likt dieselforbruk."]
[null,"Lastebil, totalvekt 16-32 t, euro 6, diesel, tur-retur",null,"8.1.6","Lastebil med totalvekt 16-32 tonn, euro 6, diesel","l/tkm",4.3113004705882349E-2,{"$f":"0.036646054*H68","v":4.3113004705882349E-2},null,null,"Dieselforbruk i kg/tkm hentet fra Ecoinvent 3.6: Transport, freight, lorry 16-32 metric ton, EURO6 {RER} | transport, freight, lorry 16-32 metric ton, EURO6 | Cut-off, U. Omregnet til l/tkm vha. omregningsfaktor."]
[null,"Lastebil, totalvekt 16-32 t, euro 6, biodiesel, tur-retur",null,"8.1.7","Lastebil med totalvekt 16-32 tonn, euro 6, biodiesel","l/tkm",4.3113004705882349E-2,{"$f":"H14","v":4.3113004705882349E-2},null,null,"Biodieselforbruk er tilnærmet som likt dieselforbruk."]
[null,"Lastebil, lastekapasitet 8,5 t, diesel, én vei",null,"8.1.8","Lastebil med lastekapasitet 8,5 tonn, diesel - full last","l/tkm",3.2352941176470584E-2,3.2352941176470584E-2,null,null,"Gjennomsnittlig drivstofforbruk for \"Truck, distribution traffic\" hentet fra Tabell 3 i Emissions from Volvo's trucks. Omregnet fra km til tkm basert på lastekapasitet."]
[null,"Lastebil, lastekapasitet 8,5 t, biodiesel, én vei",null,"8.1.9","Lastebil med lastekapasitet 8,5 tonn, biodiesel - full last","l/tkm",3.2352941176470584E-2,{"$f":"H16","v":3.2352941176470584E-2},null,null,"Biodieselforbruk er tilnærmet som likt dieselforbruk."]
[null,"Lastebil, lastekapasitet 14 t, diesel, én vei",null,"8.1.10","Lastebil med lastekapasitet 14 tonn, diesel - full last","l/tkm",2.5000000000000001E-2,2.5000000000000001E-2,null,null,"Gjennomsnittlig drivstofforbruk for \"Truck, regional traffic\" hentet fra Tabell 3 i Emissions from Volvo's trucks. Omregnet fra km til tkm basert på lastekapasitet."]
[null,"Lastebil, lastekapasitet 14 t, biodiesel, én vei",null,"8.1.11","Lastebil med lastekapasitet 14 tonn, biodiesel - full last","l/tkm",2.5000000000000001E-2,{"$f":"H18","v":2.5000000000000001E-2},null,null,"Biodieselforbruk er tilnærmet som likt dieselforbruk."]
[null,"Lastebil, lastekapasitet 26 t, diesel, én vei",null,"8.1.12","Lastebil med lastekapasitet 26 tonn, diesel - full last","l/tkm",1.2307692307692308E-2,1.2307692307692308E-2,null,null,"Gjennomsnittlig drivstofforbruk for \"Tractor and semi-trailer, long-haul traffic\" hentet fra Tabell 3 i Emissions from Volvo's trucks. Omregnet fra km til tkm basert på lastekapasitet."]
[null,"Lastebil, lastekapasitet 26 t, biodiesel, én vei",null,"8.1.13","Lastebil med lastekapasitet 26 tonn, biodiesel - full last","l/tkm",1.2307692307692308E-2,{"$f":"H20","v":1.2307692307692308E-2},null,null,"Biodieselforbruk er tilnærmet som likt dieselforbruk."]
[null,"Lastebil, lastekapasitet 40 t, diesel, én vei",null,"8.1.14","Lastebil med lastekapasitet 40 tonn, diesel - full last","l/tkm",1.2E-2,1.2E-2,null,null,"Gjennomsnittlig drivstofforbruk for \"Truck with trailer, long-haul traffic\" hentet fra Tabell 3 i Emissions from Volvo's trucks. Omregnet fra km til tkm basert på lastekapasitet."]
[null,"Lastebil, lastekapasitet 40 t, biodiesel, én vei",null,"8.1.15","Lastebil med lastekapasitet 40 tonn, biodiesel - full last","l/tkm",1.2E-2,{"$f":"H22","v":1.2E-2},null,null,"Biodieselforbruk er tilnærmet som likt dieselforbruk."]
[null,"Plug-in hybridlastebil som kjører på diesel, én vei",null,"8.1.16","Plug-in hybridlastebil som kjører på diesel - full last","l/tkm",{"$f":"H24","v":2.5000000000000001E-2},{"$f":"H18","v":2.5000000000000001E-2},null,null,"Beregningsfaktoren skal benyttes for å modellere en plug-in hybridlastebil når den kjører på diesel. Tilnærmet som lik drivstofforbruk for lastebil med lastekapasitet 14 tonn."]
[null,"Plug-in hybridlastebil som kjører på biodiesel, én vei",null,"8.1.17","Plug-in hybridlastebil som kjører på biodiesel - full last","l/tkm",{"$f":"H25","v":2.5000000000000001E-2},{"$f":"H24","v":2.5000000000000001E-2},null,null,"Beregningsfaktoren skal benyttes for å modellere en plug-in hybridlastebil når den kjører på biodiesel. Biodieselforbruk er antatt likt dieselforbruk."]
[null,"Plug-in hybridlastebil som kjører på elektrisitet, én vei",null,"8.1.18","Plug-in hybridlastebil som kjører på elektrisitet - full last","kWh/tkm",{"$f":"H26","v":6.5000000000000002E-2},{"$f":"H27","v":6.5000000000000002E-2},null,null,"Beregningsfaktoren skal benyttes for å modellere en plug-in hybridlastebil når den kjører på elektrisitet. Tilnærmet som lik elektrisitetsforbruk for elektrisk lastebil."]
[null,"Elektrisk lastebil, én vei",null,"8.1.19","Elektrisk lastebil - full last","kWh/tkm",6.5000000000000002E-2,6.5000000000000002E-2,null,null,"Basert på https://www.tesla.com/no_NO/semi, https://www.mtlogistikk.no/elektrisk-vogntog-erling-saether-erling-saether-spalte/fakta-om-nikola-tre-og-tesla-semi/162062, \"Analysis of long haul battery electric trucks in EU\", https://innovationorigins.com/electric-trucks-economically-and-environmentally-desirable-but-misunderstood/. Fullastet veier lastebilen 36 t, uten last 16 t, basert på https://www.tcsfuel.com/blog/truck-weight-classification/. Elektrisitetsforbruk per km fordelt på 20 t last (fullastet)."]
[null,"Lekter 1900 t, diesel, tur-retur",null,"8.1.20","Lekter 1900 t på diesel","l/km",21.598272138228943,21.598272138228943,null,null,"Erfaringstall fra Kragerø Sjøtjenester. Lekter med lastekapasitet på 1900 t. Innenfor 5 nautiske mil. Basert på gjennomsnittlig dieselforbruk per time tur-retur med full last og en hastighet på 5 knop. Inkluderer tur med full last og retur med tom last."]
[null,"Lekter 1900 t, biodiesel, tur-retur",null,"8.1.21","Lekter 1900 t på biodiesel","l/km",21.598272138228943,{"$f":"H28","v":21.598272138228943},null,null,"Biodieselforbruk er tilnærmet som likt dieselforbruk."]
[null,"Lastebil, lastekapasitet 8,5 t, diesel, én vei",null,"8.1.22","Lastebil med lastekapasitet 8,5 tonn, diesel - tom last","l/km",{"$f":"IF(I30>0,I30,H30)","v":0.22500000000000001},0.22500000000000001,null,null,"Gjennomsnittlig drivstofforbruk for \"Truck, distribution traffic\" hentet fra Tabell 3 i Emissions from Volvo's trucks. "]
[null,"Lastebil, lastekapasitet 8,5 t, biodiesel, én vei",null,"8.1.23","Lastebil med lastekapasitet 8,5 tonn, biodiesel - tom last","l/km",0.22500000000000001,{"$f":"H30","v":0.22500000000000001},null,null,"Biodieselforbruk er tilnærmet som likt dieselforbruk."]
[null,"Lastebil, lastekapasitet 14 t, diesel, én vei",null,"8.1.24","Lastebil med lastekapasitet 14 tonn, diesel - tom last","l/km",0.27500000000000002,0.27500000000000002,null,null,"Gjennomsnittlig drivstofforbruk for \"Truck, regional traffic\" hentet fra Tabell 3 i Emissions from Volvo's trucks. "]
[null,"Lastebil, lastekapasitet 14 t, biodiesel, én vei",null,"8.1.25","Lastebil med lastekapasitet 14 tonn, biodiesel - tom last","l/km",0.27500000000000002,{"$f":"H32","v":0.27500000000000002},null,null,"Biodieselforbruk er tilnærmet som likt dieselforbruk."]
[null,"Lastebil, lastekapasitet 26 t, diesel, én vei",null,"8.1.26","Lastebil med lastekapasitet 26 tonn, diesel - tom last","l/km",0.23499999999999999,0.23499999999999999,null,null,"Gjennomsnittlig drivstofforbruk for \"Tractor and semi-trailer, long-haul traffic\" hentet fra Tabell 3 i Emissions from Volvo's trucks. "]
[null,"Lastebil, lastekapasitet 26 t, biodiesel, én vei",null,"8.1.27","Lastebil med lastekapasitet 26 tonn, biodiesel - tom last","l/km",0.23499999999999999,{"$f":"H34","v":0.23499999999999999},null,null,"Biodieselforbruk er tilnærmet som likt dieselforbruk."]
[null,"Lastebil, lastekapasitet 40 t, diesel, én vei",null,"8.1.28","Lastebil med lastekapasitet 40 tonn, diesel - tom last","l/km",0.29500000000000004,0.29500000000000004,null,null,"Gjennomsnittlig drivstofforbruk for \"Truck with trailer, long-haul traffic\" hentet fra Tabell 3 i Emissions from Volvo's trucks. "]
[null,"Lastebil, lastekapasitet 40 t, biodiesel, én vei",null,"8.1.29","Lastebil med lastekapasitet 40 tonn, biodiesel - tom last","l/km",0.29500000000000004,{"$f":"H36","v":0.29500000000000004},null,null,"Biodieselforbruk er tilnærmet som likt dieselforbruk."]
[null,"Hybridlastebil, diesel, én vei",null,"8.1.30","Plug-in hybridlastebil som kjører på diesel - tom last","l/km",{"$f":"IF(I38>0,I38,H38)","v":0.27500000000000002},{"$f":"H32","v":0.27500000000000002},null,null,"Beregningsfaktoren skal benyttes for å modellere en plug-in hybridlastebil når den kjører på diesel. Tilnærmet som lik drivstofforbruk for lastebil med lastekapasitet 14 tonn."]
[null,"Hybridlastebil, biodiesel, én vei",null,"8.1.31","Plug-in hybridlastebil som kjører på biodiesel - tom last","l/km",0.27500000000000002,{"$f":"H38","v":0.27500000000000002},null,null,"Beregningsfaktoren skal benyttes for å modellere en plug-in hybridlastebil når den kjører på biodiesel. Biodieselforbruk er antatt likt dieselforbruk."]
[null,"Hybridlastebil, elektrisitet, én vei",null,"8.1.32","Plug-in hybridlastebil som kjører på elektrisitet - tom last","kWh/km",{"$f":"IF(I40>0,I40,H40)","v":0.57330000000000003},{"$f":"H41","v":0.57330000000000003},null,null,"Beregningsfaktoren skal benyttes for å modellere en plug-in hybridlastebil når den kjører på elektrisitet. Tilnærmet som lik elektrisitetsforbruk for elektrisk lastebil."]
[null,"Elektrisk lastebil, én vei",null,"8.1.33","Elektrisk lastebil - tom last","kWh/km",{"$f":"IF(I41>0,I41,H41)","v":0.57330000000000003},0.57330000000000003,null,null,"Beregnet basert på faktor for full last, fordelt på lastebilens totalvekt (GVW, antatt 36 tonn) og skalert for lastebilens egenvekt (antatt 16 tonn)."]
[null,null,null,"8.2","Løftemaskiner"]
[null,null,null,"8.2.1","Ingen løft","l/lm3 stein",{"$f":"IF(I43>0,I43,H43)","v":0},0,null,null,"Ingen utslipp"]
[null,null,null,"8.2.2","Hjullaster","l/lm3 stein",{"$f":"IF(I44>0,I44,H44)","v":8.267195767195766E-2},{"$f":"(3/3.6)/10.08","v":8.267195767195766E-2},null,null,"Stripple 2001. \"Wheel loader, energy use in loading, per loaded unit (loaded m3).\" Omregnet fra MJ til liter diesel basert på https://www.miljodirektoratet.no/myndigheter/klimaarbeid/kutte-utslipp-av-klimagasser/klima-og-energiplanlegging/tabeller-for-omregning-fra-energivarer-til-kwh/."]
[null,null,null,"8.2.3","Gravemaskin diesel ","l/lm3 stein",0.15411764705882355,{"$f":"0.131*H68","v":0.15411764705882355},null,null,"Dieselforbruk i kg/m3 for gravemaskin hentet fra Ecoinvent 3.6: Excavation, hydraulic digger {RER} | processing | Cut-off, U. Omregnet til l/m3 vha. omregningsfaktor."]
[null,null,null,"8.2.4","Gravemaskin elektrisk","kWh/lm3 stein",0.40334373606776641,{"$f":"(0.65+0.44)/(2*2243/(H66*1000))","v":0.40334373606776641},null,null,"Gjennomsnitt av verdi for 8 m3 og 15 m3 skuffe. Beregnet for long-term. Basert på tetthet mergel: 2243 kg/m3 og tetthet sprengstein. Kilde: Table 4, https://www.academia.edu/12209783/Specific_Digging_and_Loading_Energy_of_Electric_Mining_Shovels-_A_case_study"]
[null,null,null,"8.2.5","Gravemaskin biodiesel ","l/lm3 stein",0.15411764705882355,{"$f":"H45","v":0.15411764705882355},null,null,"Antatt lik som for gravemaskin på diesel."]
[null,null,null,"8.2.6","Egendefinert","l/lm3 stein",0]
[null,null,null,"8.3","Tippemaskiner"]
[null,null,null,"8.3.1","Hjullaster tipp","l/lm3 stein",{"$f":"IF(I50>0,I50,H50)","v":8.267195767195766E-2},{"$f":"H44","v":8.267195767195766E-2},null,null,"Stripple 2001. \"Wheel loader, energy use in loading, per loaded unit (loaded m3).\" Omregnet fra MJ til liter diesel basert på https://www.miljodirektoratet.no/myndigheter/klimaarbeid/kutte-utslipp-av-klimagasser/klima-og-energiplanlegging/tabeller-for-omregning-fra-energivarer-til-kwh/. Benyttes ikke i nåværende versjon."]
[null,null,null,"8.3.2","Lastebil tipp","l/lm3 stein",{"$f":"IF(I51>0,I51,H51)","v":0.19},0.19,null,null,"Stripple 2001 via VegLCA v4.10 av Asplan Viak AS. Benyttes ikke i nåværende versjon."]
[null,null,null,"8.3.3","Egendefinert","l/lm3 stein",{"$f":"IF(I52>0,I52,H52)","v":0}]
[null,null,null,"8.4","Stigning under transport"]
[null,null,null,"8.4.1","Flatt terreng","Prosent",{"$f":"IF(I54>0,I54,H54)","v":1},1]
[null,null,null,"8.4.2","Over 5% stigning","Prosent",{"$f":"IF(I55>0,I55,H55)","v":4.25},4.25,null,null,"Artemis via VegLCA v4.10 av Asplan Viak AS. "]
[null,null,null,"8.5","Utleggningsmaskin"]
[null,null,null,"8.5.1","Utleggingsmaskin fine masser","l/lm3",{"$f":"IF(I57>0,I57,H57)","v":1},1,null,null,"Effekt 6.6 (2014) via VegLCA v4.10 av Asplan Viak AS."]
[null,null,null,"8.5.2","Utleggingsmaskin steinmasser","l/lm3",{"$f":"IF(I58>0,I58,H58)","v":1.1000000000000001},1.1000000000000001,null,null,"Effekt 6.6 (2014) via VegLCA v4.10 av Asplan Viak AS."]
[null,null,null,"8.5.3","Egendefinert","l/lm3 stein",{"$f":"IF(I59>0,I59,H59)","v":0}]
[null,null,null,"8.6","Komprimeringsmaskiner"]
[null,null,null,"8.6.1","Komprimering med vals","l/lm3 stein",{"$f":"IF(I61>0,I61,H61)","v":1.8},1.8,null,null,"Drivstofforbruk på 0,0169 l/m2 er hentet fra Stripple 2001 via VegLCA v4.10 av Asplan Viak AS. Her er det antatt omtrent 10 cm tykkelse av steinlaget som komprimeres."]
[null,null,null,"8.6.2","Ingen komprimering","l/lm3 stein",{"$f":"IF(I62>0,I62,H62)","v":0},null,null,null,"Ingen utslipp"]
[null,null,null,"8.7","Omregningsfaktorer"]
[null,null,null,"8.7.1","Jord og leire","Tonn/lm3",{"$f":"IF(I64>0,I64,H64)","v":1.6},1.6,null,null,"VegLCA v4.10 av Asplan Viak AS. "]
[null,null,null,"8.7.2","Sprengstein faste masser","Tonn/fm3",2.65,2.65,null,null,"Metode for beregning av energiforbruk og klimagassutslipp for vegprosjekter, Hammervold (2009) s. 32."]
[null,null,null,"8.7.3","Sprengstein løsmasser","Tonn/lm3",{"$f":"IF(I66>0,I66,H66)","v":1.66},1.66,null,null,"VegLCA v4.10 av Asplan Viak AS. "]
[null,null,null,"8.7.4","Grus","Tonn/lm3",{"$f":"IF(I67>0,I67,H67)","v":1.5},1.5,null,null,"VegLCA v4.10 av Asplan Viak AS. "]
[null,null,null,"8.7.5","Fossil diesel kg til liter","l/kg",1.1764705882352942,{"$f":"1/0.85","v":1.1764705882352942},null,null,"Gitt densitet diesel 850 kg/m3 (https://snl.no/diesel)"]
[null,null,null,"8.7.6","Biodiesel kg til liter","l/kg",1.1363636363636362,{"$f":"10.2/8.976","v":1.1363636363636362},null,null,"https://www.miljodirektoratet.no/myndigheter/klimaarbeid/kutte-utslipp-av-klimagasser/klima-og-energiplanlegging/tabeller-for-omregning-fra-energivarer-til-kwh/"]
[null,null,null,"8.7.7","Diesel til biogass","MJ biogass/l diesel",41.012500000000003,{"$f":"38.6*0.34/0.32","v":41.012500000000003},null,null,"Beregnet basert på energiinnhold i diesel og virkningsgrad for dieselmotor fra VegLCA v5.10b, fane \"Anlegg\", og virkningsgrad for gassmotor fra \"Tilpasning av tyngre kjøretøy og anleggsmaskiner for drift med biogass\", Norsus (2019)."]
[null,null,null,"8.10","Mobile knuseverk"]
[null,null,null,"8.10.1","Dieseldrevet",null,{"$f":"IF(I72>0,I72,H72)","v":0},null,null,null,"Totalt utslipp lagt i utslippsfaktorer"]
[null,null,null,"8.10.2","Biodiseldrevet",null,{"$f":"IF(I73>0,I73,H73)","v":0}]
[null,null,null,"8.10.3","Elektrisk drevet",null,{"$f":"IF(I74>0,I74,H74)","v":0}]
[null,null,null,"8.10.4","Egendefinert",null,{"$f":"IF(I75>0,I75,H75)","v":0}]
[null,null,null,"8.11","Lastekapasitet"]
[null,null,null,"8.11.0","Tur - Full last"]
[null,null,null,"8.11.1","Retur - Tom last"]
[null,null,null,"8.11.2","Retur - Full last"]
[null,null,null,"8.11.3","Tur-retur gjennomsnittlig"]
[null,null,null,"8.12","Mobile knuseverk knusetrinn 1"]
[null,null,null,"8.12.0","Dieseldrevet grovknuser","n/a","n/a",null,null,null,"Totalt utslipp lagt i utslippsfaktorer"]
[null,null,null,"8.12.1","Elektrisk grovknuser","n/a",{"$f":"IF(I83>0,I83,H83)","v":0},null,null,null,"Totalt utslipp lagt i utslippsfaktorer"]
[null,null,null,"8.13","Mobile knuseverk knusetrinn 2"]
[null,null,null,"8.13.0","Dieseldrevet spindelknuser","n/a","n/a",null,null,null,"Totalt utslipp lagt i utslippsfaktorer"]
[null,null,null,"8.13.1","Elektrisk spindelknuser","n/a",{"$f":"IF(I86>0,I86,H86)","v":0},null,null,null,"Totalt utslipp lagt i utslippsfaktorer"]
[null,null,null,"8.14","Mobile knuseverk knusetrinn 3"]
[null,null,null,"8.14.0","Dieseldrevet finknuser","n/a","n/a",null,null,null,"Totalt utslipp lagt i utslippsfaktorer"]
[null,null,null,"8.14.1","Elektrisk finknuser","n/a",{"$f":"IF(I89>0,I89,H89)","v":0},null,null,null,"Totalt utslipp lagt i utslippsfaktorer"]

{"sheet":"09. Utslippsfaktorer","index":9,"n_rows":44,"n_cols":42,"rows_kept":44,"cut":false,"hidden":false,"merged":[[1,0,1,2],[1,3,1,39],[5,3,6,3],[5,4,6,4],[5,5,6,5],[5,6,6,6],[5,7,6,7],[5,8,6,8],[5,10,6,10],[5,12,6,12],[5,33,6,33],[5,34,6,34],[25,4,25,8],[34,4,34,8],[5,41,6,41],[7,4,7,8],[17,4,17,8],[5,24,6,24],[5,31,6,31],[21,4,21,8],[5,14,6,14],[5,15,6,15],[5,16,6,16],[5,23,6,23]]}
[]
[null,null,null,"09. Utslippsfaktorer"]
[]
[]
[]
[null,null,null,null,null,null,null,null,null,null,null,null,null,null,"Nr.","Type","Enhet","Brukt i beregninger ","Forsuring","Eutrofiering","Fotokjemisk smog","Akkumulert energibruk",null,"Standard","Enhet","Standard","Forsuring","Eutrofiering","Fotokjemisk smog","Akkumulert energibruk",null,"Forutsetninger og grunnlag for standard utslippsfaktorer",null,"Egendefinert","Enhet","Egendefinerte verdier","Forsuring","Eutrofiering","Fotokjemisk smog","Akkumulert energibruk",null,"Forutsetninger og grunnlag for egenefinerte  utslippsfaktorer"]
[null,null,null,null,null,null,null,null,null,null,null,null,null,null,null,null,null,"kg CO2-ekv.","kg SO2-ekv.","kg P-ekv.","kg NMVOC","MJ",null,null,null,"kg CO2-ekv.","kg SO2-ekv.","kg P-ekv.","kg NMVOC","MJ",null,null,null,null,null,"kg CO2-eq","kg SO2-eq","kg P-eq","kg NMVOC","MJ"]
[]
[null,null,null,null,null,null,null,null,null,null,null,null,null,null,"8.15.1",{"$f":"IF(X9=0,\"\",X9)","v":"Elektrisitet"},"kWh",{"$f":"IF(AJ9>0,AJ9,Z9)","v":2.5999999999999999E-2},{"$f":"IF(AK9>0,AK9,AA9)","v":4.4160296399999997E-4},{"$f":"IF(AL9>0,AL9,AB9)","v":8.6010253200000014E-5},{"$f":"IF(AM9>0,AM9,AC9)","v":2.318361588E-4},{"$f":"IF(AN9>0,AN9,AD9)","v":7.3287201599999996},null,"Elektrisitet","kWh",2.5999999999999999E-2,4.4160296399999997E-4,8.6010253200000014E-5,2.318361588E-4,7.3287201599999996,null,"VegLCA v4.10 av Asplan Viak AS. Norsk miks per i dag. Basert på NS3720:2018.",null,{"$f":"IF(X9=0,\"\",X9)","v":"Elektrisitet"},"kWh"]
[null,null,null,null,null,null,null,null,null,null,null,null,null,null,"8.15.2","Elektrisitet - MJ","MJ",{"$f":"IF(AJ10>0,AJ10,Z10)","v":9.3600000000000003E-2},1.5897706704E-3,3.0963691152000007E-4,8.3461017168000003E-4,{"$f":"IF(AN10>0,AN10,AD10)","v":26.383392575999999},null,"Elektrisitet - MJ","MJ",{"$f":"Z9*3.6","v":9.3600000000000003E-2},{"$f":"AA9*3.6","v":1.5897706704E-3},3.0963691152000007E-4,8.3461017168000003E-4,26.383392575999999,null,"VegLCA v4.10 av Asplan Viak AS. Norsk miks per i dag. Basert på NS3720:2018. Konvertert fra kWh.",null,"Elektrisitet - MJ","MJ"]
[null,null,null,null,null,null,null,null,null,null,null,null,null,null,"8.15.3","Diesel","l",3.1476000000000002,0,0,0,0,null,"Diesel","l",3.1476000000000002,null,null,null,null,null,"Typisk norsk diesel med 93 % fossil diesel og 7 % biodiesel. Beregnet basert på utslippsfaktorer for diesel og biodiesel hentet fra EN 16258 Tabell A.1 via NV-GHG 2.3.",null,"Diesel","l"]
[null,null,null,null,null,null,null,null,null,null,null,null,null,null,"8.15.4","Biodiesel","l",1.92,0,0,0,0,null,"Biodiesel","l",1.92,null,null,null,null,null,"NS-EN 16258:2012, Tabell A.1 Biodiesel \"well to tank\" via NV-GHG 2.3. Direkte utslipp er ikke inkludert.",null,"Biodiesel","l"]
[null,null,null,null,null,null,null,null,null,null,null,null,null,null,"8.15.5","Biogass",{"$f":"IF(Y13=0,\"\",Y13)","v":"MJ"},{"$f":"IF(AJ13>0,AJ13,Z13)","v":0.04},{"$f":"IF(AK13>0,AK13,AA13)","v":0},{"$f":"IF(AL13>0,AL13,AB13)","v":0},{"$f":"IF(AM13>0,AM13,AC13)","v":0},{"$f":"IF(AN13>0,AN13,AD13)","v":0},null,"Biogass","MJ",0.04,null,null,null,null,null,"Anslått basert på verdier oppgitt i \"Well-to-wheel analysis of bio-methane via gasification, in heavy duty engines within the transport sector of the European Union,\" Alamiaa, A., et al., Applied Energy (2016), \"Biogassproduksjon fra matavfall og møkk fra ku, gris og fjørfe. Status 2016 (fase IV) for miljønytte for den norske biogassmodellen BioValueChain,\" Modahl, Ingunn S., et al., Østfoldforskning (2016), SimaPro v9.4.0.2 (4) med databasen Ecoinvent v3.8 og metoden ReCiPe 2016 Midpoint (H) v1.07.",null,"Biogass","MJ"]
[null,null,null,null,null,null,null,null,null,null,null,null,null,null,"8.15.6","Lastebil >32 tonn, euro 6","tkm",1.7600000000000001E-2,{"$f":"IF(AK14>0,AK14,AA14)","v":8.2399999999999997E-5},{"$f":"IF(AL14>0,AL14,AB14)","v":5.5500000000000002E-6},null,null,null,"Lastebil >32 tonn, euro 6","tkm",1.7600000000000001E-2,8.2399999999999997E-5,5.5500000000000002E-6,null,null,null,"Ecoinvent 3.6: Transport, freight, lorry >32 metric ton, EURO6 {RER} | transport, freight, lorry >32 metric ton, EURO6 | Cut-off, U. Inkluderer produksjon av kjøretøy, vedlikehold av kjøretøy, bygging av vei og vedlikehold av vei. Inkluderer ikke produksjon og forbrenning av drivstoff.",null,"Lastebil >32 tonn, euro 6","tkm"]
[null,"Euro 5 16-32 t",null,null,null,null,null,null,null,null,null,null,null,null,"8.15.7","Lastebil 16-32 tonn, euro 5","tkm",2.5700000000000001E-2,1.1900000000000001E-4,1.0499999999999999E-5,0,0,null,"Lastebil 16-32 tonn, euro 5","tkm",2.5700000000000001E-2,1.1900000000000001E-4,1.0499999999999999E-5,null,null,null,"Ecoinvent 3.6: Transport, freight, lorry 16-32 metric ton, EURO5 {RER} | transport, freight, lorry 16-32 metric ton, EURO5 | Cut-off, U. Inkluderer produksjon av kjøretøy, vedlikehold av kjøretøy, bygging av vei og vedlikehold av vei. Inkluderer ikke produksjon og forbrenning av drivstoff.",null,"Lastebil 16-32 tonn, euro 5","tkm"]
[null,"Euro 6 16-32 t",null,null,null,null,null,null,null,null,null,null,null,null,"8.15.8","Lastebil 16-32 tonn, euro 6","tkm",2.5700000000000001E-2,1.1900000000000001E-4,1.0499999999999999E-5,0,0,null,"Lastebil 16-32 tonn, euro 6","tkm",2.5700000000000001E-2,1.1900000000000001E-4,1.0499999999999999E-5,null,null,null,"Ecoinvent 3.6: Transport, freight, lorry 16-32 metric ton, EURO6 {RER} | transport, freight, lorry 16-32 metric ton, EURO6 | Cut-off, U. Inkluderer produksjon av kjøretøy, vedlikehold av kjøretøy, bygging av vei og vedlikehold av vei. Inkluderer ikke produksjon og forbrenning av drivstoff.",null,"Lastebil 16-32 tonn, euro 6","tkm"]
[null,"Elektrisk lastebil",null,null,null,null,null,null,null,null,null,null,null,null,"8.15.9",{"$f":"IF(X17=0,\"\",X17)","v":"Plug-in hybridlastebil uten drivstoff"},{"$f":"IF(Y17=0,\"\",Y17)","v":"tkm"},{"$f":"IF(AJ17>0,AJ17,Z17)","v":3.2708000000000001E-2},{"$f":"IF(AK17>0,AK17,AA17)","v":0},{"$f":"IF(AL17>0,AL17,AB17)","v":0},{"$f":"IF(AM17>0,AM17,AC17)","v":0},{"$f":"IF(AN17>0,AN17,AD17)","v":0},null,"Plug-in hybridlastebil uten drivstoff","tkm",3.2708000000000001E-2,null,null,null,null,null,"Tilnærmet lik utslippsfaktor for elektrisk lastebil uten drivstoff. I virkeligheten er sannsynligvis produksjonsutslipp for en hybridlastebil høyere enn for en elektrisk lastebil.",null,"Plug-in hybridlastebil uten drivstoff","tkm"]
[null,"Lastebil 28 t",null,null,null,null,null,null,null,null,null,null,null,null,"8.15.10","Elektrisk lastebil uten drivstoff","tkm",3.2708000000000001E-2,0,0,0,0,null,"Elektrisk lastebil uten drivstoff","tkm",3.2708000000000001E-2,null,null,null,null,null,"Basert på produksjon av Volvo FE Electric beregnet på https://www.volvotrucks.com/en-en/trucks/alternative-fuels/environmental-footprint/environment-footprint-calculator.html og Ecoinvent 3.6: Transport, freight, lorry 16-32 metric ton, EURO6 {RER} | transport, freight, lorry 16-32 metric ton, EURO6 | Cut-off, U. I Ecoinvent-prosessen er vedlikehold av kjøretøy, bygging av vei og vedlikehold av vei inkludert. Produksjonsutslipp basert på Volvo sine beregninger er lagt til utslippsfaktoren vha. samme faktor for andel kjøretøy per tkm som i Ecoinvent-prosessen.",null,"Elektrisk lastebil uten drivstoff","tkm"]
[null,"Lekter 1900 t",null,null,null,null,null,null,null,null,null,null,null,null,"8.15.11","Lekter","tkm",5.2300000000000003E-3,0,0,0,0,null,"Lekter","tkm",5.2300000000000003E-3,null,null,null,null,null,"Ecoinvent 3.6: Transport, freight, inland waterways, barge {RER}| processing | Alloc Rec, U. Inkluderer produksjon og vedlikehold av 1000 t-lekter og konstruksjon av havn. Konstruksjon av kanal og dieselforbruk er fjernet fra prosessen.  ",null,"Lekter","tkm"]
[null,null,null,null,null,null,null,null,null,null,null,null,null,null,"8.15.12","Hjullaster","lm3",0,0,0,0,0,null,"Hjullaster","lm3",null,null,null,null,null,null,"Ikke data.",null,"Hjullaster","lm3"]
[null,null,null,null,null,null,null,null,null,null,null,null,null,null,"8.15.13","Gravemaskin hydraulisk uten drivstoff","lm3",5.2999999999999999E-2,0,0,0,0,null,"Gravemaskin hydraulisk uten drivstoff","lm3",5.2999999999999999E-2,null,null,null,null,null,"Ecoinvent 3.6: Excavation, hydraulic digger {RER}| processing | Cut-Off, U.  Produksjon, drift og avfall for hydraulisk gravemaskin. Forbrenning og produksjon av diesel er fjernet fra prosessen. Benyttes både for dieseldrevet og elektrisk gravemaskin som en tilnærming.",null,"Gravemaskin hydraulisk uten drivstoff","lm3"]
[null,null,null,null,null,null,null,null,null,null,null,null,null,null,"8.15.14","Pukkverk knusetrinn 1 inkl. sprengning","tonn",2.2000000000000002,0,0,0,0,null,"Pukkverk knusetrinn 1 inkl. sprengning","tonn",{"$f":"AVERAGE(2.06,2.34)","v":2.2000000000000002},null,null,null,null,null,"Foreløpig verdi basert på gjennomsnitt EPDer for feiring bruk: NEPD-1601-631-NO og NEPD-1602-632-NO. Inkluderer sprengning, transport m.m.",null,"Pukkverk knusetrinn 1 inkl. sprengning","tonn"]
[null,null,null,null,null,null,null,null,null,null,null,null,null,null,"8.15.15",{"$f":"IF(X23=0,\"\",X23)","v":"Pukkverk knusetrinn 2 inkl. sprengning"},"tonn",2.375,0,0,0,0,null,"Pukkverk knusetrinn 2 inkl. sprengning","tonn",{"$f":"AVERAGE(2.2,2.55)","v":2.375},null,null,null,null,null,"Foreløpig verdi basert på gjennomsnitt EPDer for feiring bruk: NEPD-1601-631-NO og NEPD-1602-632-NO. Inkluderer sprengning, transport m.m",null,"Pukkverk knusetrinn 2 inkl. sprengning","tonn"]
[null,null,null,null,null,null,null,null,null,null,null,null,null,null,"8.15.16","Pukkverk knusetrinn 3 inkl. sprengning","tonn",2.5949999999999998,0,0,0,0,null,"Pukkverk knusetrinn 3 inkl. sprengning","tonn",{"$f":"AVERAGE(2.44,2.75)","v":2.5949999999999998},null,null,null,null,null,"Foreløpig verdi basert på gjennomsnitt EPDer for feiring bruk: NEPD-1601-631-NO og NEPD-1602-632-NO. Inkluderer sprengning, transport m.m",null,"Pukkverk knusetrinn 3 inkl. sprengning","tonn"]
[null,null,null,null,null,null,null,null,null,null,null,null,null,null,"8.15.17",{"$f":"IF(X25=0,\"\",X25)","v":"Pukkverk knusetrinn 0 inkl. sprengning"},"tonn",2.13,0,0,0,0,null,"Pukkverk knusetrinn 0 inkl. sprengning","tonn",{"$f":"AVERAGE(2.04,2.22)","v":2.13},null,null,null,null,null,"Foreløpig verdi basert på gjennomsnitt EPDer for feiring bruk: NEPD-1601-631-NO og NEPD-1602-632-NO. Inkluderer sprengning, transport m.m",null,{"$f":"IF(X25=0,\"\",X25)","v":"Pukkverk knusetrinn 0 inkl. sprengning"},"tonn"]
[null,null,null,null,null,null,null,null,null,null,null,null,null,null,"8.15.18","Mobilt knuseverk: dieseldrevet grovknuser, knusetrinn 1","tonn",1.03,0,0,0,0,null,"Mobilt knuseverk: dieseldrevet grovknuser, knusetrinn 1","tonn",1.03,null,null,null,null,null,"Gjennomsnitt av 6 ulike dieseldrevne grovknusere fra Gunnar Holth Grusforretning. Utslippsfaktoren inkluderer lasting til knuser med dieseldrevet gravemaskin, transport av diesel til knuser og maskiner, forbruk av diesel, lasting med dieseldrevet hjullaster fra knuser og behandling av avfall produsert. Sprenging og transport av masser til og fra knuser er ikke inkludert. Utslippsfaktorene er beregnet med EPD-generatoren på LCA.no og mottatt fra Gunnar Holth Grusforretning 15.01.21. ",null,"Mobilt knuseverk: dieseldrevet grovknuser, knusetrinn 1","tonn"]
[null,null,null,null,null,null,null,null,null,null,null,null,null,null,"8.15.19","Mobilt knuseverk: elektrisk grovknuser, knusetrinn 1","tonn",0.72699999999999998,null,null,null,null,null,"Mobilt knuseverk: elektrisk grovknuser, knusetrinn 1","tonn",0.72699999999999998,null,null,null,null,null,"Gjennomsnitt for knusetrinn 1 med elektrisk grovknuser fra Gunnar Holth Grusforretning. Utslippsfaktoren inkluderer lasting til knusing med dieseldrevet gravemaskin, transport av diesel til maskiner, forbruk av elektrisitet, lasting med dieseldrevet hjullaster fra knuser og behandling av avfall produsert. Sprenging og transport av masser til og fra knuser er ikke inkludert. Utslippsfaktorene er beregnet med EPD-generatoren på LCA.no og mottatt fra Gunnar Holth Grusforretning 19.01.21.",null,"Mobilt knuseverk: elektrisk grovknuser, knusetrinn 1","tonn"]
[null,null,null,null,null,null,null,null,null,null,null,null,null,null,"8.15.20","Mobilt knuseverk: dieseldrevet spindelknuser, knusetrinn 2","tonn",0.59699999999999998,0,0,0,0,null,"Mobilt knuseverk: dieseldrevet spindelknuser, knusetrinn 2","tonn",0.59699999999999998,null,null,null,null,null,"Gjennomsnitt for knusetrinn 2 med dieseldrevet spindelknuser fra Gunnar Holth Grusforretning. Utslippsfaktoren inkluderer lasting til knuser med dieseldrevet gravemaskin, transport av diesel til knuser og maskiner, forbruk av diesel, lasting med dieseldrevet hjullaster fra knuser og behandling av avfall produsert. Sprenging og transport av masser til og fra knuser er ikke inkludert. Utslippsfaktorene er beregnet med EPD-generatoren på LCA.no og mottatt fra Gunnar Holth Grusforretning 15.01.21. ",null,"Mobilt knuseverk: dieseldrevet spindelknuser, knusetrinn 2","tonn"]
[null,null,null,null,null,null,null,null,null,null,null,null,null,null,"8.15.21","Mobilt knuseverk: elektrisk spindelknuser, knusetrinn 2","tonn",0.23899999999999999,null,null,null,null,null,"Mobilt knuseverk: elektrisk spindelknuser, knusetrinn 2","tonn",0.23899999999999999,null,null,null,null,null,"Verdi for knusetrinn 2 med elektrisk spindelknuser fra Gunnar Holth Grusforretning. Utslippsfaktoren inkluderer lasting til knusing med dieseldrevet gravemaskin, transport av diesel til maskiner, forbruk av elektrisitet, lasting med dieseldrevet hjullaster fra knuser og behandling av avfall produsert. Sprenging og transport av masser til og fra knuser er ikke inkludert. Utslippsfaktorene er beregnet med EPD-generatoren på LCA.no og mottatt fra Gunnar Holth Grusforretning 20.01.21.",null,"Mobilt knuseverk: elektrisk spindelknuser, knusetrinn 2","tonn"]
[null,null,null,null,null,null,null,null,null,null,null,null,null,null,"8.15.22","Mobilt knuseverk: dieseldrevet finknuser, knusetrinn 3","tonn",0.89,0,0,0,0,null,"Mobilt knuseverk: dieseldrevet finknuser, knusetrinn 3","tonn",0.89,null,null,null,null,null,"Gjennomsnitt av 7 ulike dieseldrevne finknusere fra Gunnar Holth Grusforretning. Utslippsfaktoren inkluderer lasting til knuser med dieseldrevet gravemaskin, transport av diesel til knuser og maskiner, forbruk av diesel, lasting med dieseldrevet hjullaster fra knuser og behandling av avfall produsert. Sprenging og transport av masser til og fra knuser er ikke inkludert. Utslippsfaktorene er beregnet med EPD-generatoren på LCA.no og mottatt fra Gunnar Holth Grusforretning 15.01.21. ",null,"Mobilt knuseverk: dieseldrevet finknuser, knusetrinn 3","tonn"]
[null,null,null,null,null,null,null,null,null,null,null,null,null,null,"8.15.23","Mobilt knuseverk: elektrisk finknuser, knusetrinn 3","tonn",0.66800000000000004,null,null,null,null,null,"Mobilt knuseverk: elektrisk finknuser, knusetrinn 3","tonn",0.66800000000000004,null,null,null,null,null,"Gjennomsnitt for knusetrinn 3 med elektrisk finknuser fra Gunnar Holth Grusforretning. Utslippsfaktoren inkluderer lasting til knusing med dieseldrevet gravemaskin, transport av diesel til maskiner, forbruk av elektrisitet, lasting med dieseldrevet hjullaster fra knuser og behandling av avfall produsert. Sprenging og transport av masser til og fra knuser er ikke inkludert. Utslippsfaktorene er beregnet med EPD-generatoren på LCA.no og mottatt fra Gunnar Holth Grusforretning 20.01.21.",null,"Mobilt knuseverk: elektrisk finknuser, knusetrinn 3","tonn"]
[null,null,null,null,null,null,null,null,null,null,null,null,null,null,"8.15.24","Pukkverk knusetrinn 1 ekskl. sprengning","tonn",8.77E-2,0,0,0,0,null,"Pukkverk knusetrinn 1 ekskl. sprengning","tonn",8.77E-2,null,null,null,null,null,"Basert på EPD generert av Feiring Bruk spesielt til dette formålet. Sprengning og relaterte prosesser er ekskludert, slik at kun utslippene til knusing er inkludert. Benyttes ikke i nåværende versjon.",null,"Pukkverk knusetrinn 1 ekskl. sprengning","tonn"]
[null,null,null,null,null,null,null,null,null,null,null,null,null,null,"8.15.25","Pukkverk knusetrinn 2 ekskl. sprengning","tonn",0.20899999999999999,0,0,0,0,null,"Pukkverk knusetrinn 2 ekskl. sprengning","tonn",0.20899999999999999,null,null,null,null,null,"Basert på EPD generert av Feiring Bruk spesielt til dette formålet. Sprengning og relaterte prosesser er ekskludert, slik at kun utslippene til knusing er inkludert. Benyttes ikke i nåværende versjon.",null,"Pukkverk knusetrinn 2 ekskl. sprengning","tonn"]
[null,null,null,null,null,null,null,null,null,null,null,null,null,null,"8.15.26","Pukkverk knusetrinn 3 ekskl. sprengning","tonn",0.41399999999999998,0,0,0,0,null,"Pukkverk knusetrinn 3 ekskl. sprengning","tonn",0.41399999999999998,null,null,null,null,null,"Basert på EPD generert av Feiring Bruk spesielt til dette formålet. Sprengning og relaterte prosesser er ekskludert, slik at kun utslippene til knusing er inkludert. Benyttes ikke i nåværende versjon.",null,"Pukkverk knusetrinn 3 ekskl. sprengning","tonn"]
[null,null,null,null,null,null,null,null,null,null,null,null,null,null,"8.15.27","","",0,0,0,0,0,null,null,null,null,null,null,null,null,null,null,null,"",""]
[null,null,null,null,null,null,null,null,null,null,null,null,null,null,"8.15.28","","",0,0,0,0,0,null,null,null,null,null,null,null,null,null,null,null,"",""]
[null,null,null,null,null,null,null,null,null,null,null,null,null,null,"8.15.29","","",0,0,0,0,0,null,null,null,null,null,null,null,null,null,null,null,"",""]
[null,null,null,null,null,null,null,null,null,null,null,null,null,null,"8.15.30","","",0,0,0,0,0,null,null,null,null,null,null,null,null,null,null,null,"",""]
[null,null,null,null,null,null,null,null,null,null,null,null,null,null,"8.15.31","","",0,0,0,0,0,null,null,null,null,null,null,null,null,null,null,null,"",""]
[null,null,null,null,null,null,null,null,null,null,null,null,null,null,"8.15.32","","",0,0,0,0,0,null,null,null,null,null,null,null,null,null,null,null,"",""]
[null,null,null,null,null,null,null,null,null,null,null,null,null,null,"8.15.33","","",0,0,0,0,0,null,null,null,null,null,null,null,null,null,null,null,{"$f":"IF(X41=0,\"\",X41)","v":""},""]
[null,null,null,null,null,null,null,null,null,null,null,null,null,null,"8.15.34","","",0,0,0,0,0,null,null,null,null,null,null,null,null,null,null,null,"",""]
[null,null,null,null,null,null,null,null,null,null,null,null,null,null,"8.15.35","","",0,0,0,0,0,null,null,null,null,null,null,null,null,null,null,null,"",""]
[null,null,null,null,null,null,null,null,null,null,null,null,null,null,"8.15.36","","",0,0,0,0,0,null,null,null,null,null,null,null,null,null,null,null,"",""]

{"sheet":"Revisjonslogg","index":10,"n_rows":6,"n_cols":5,"rows_kept":6,"cut":false,"hidden":false,"merged":[]}
[]
[]
[null,"Versjon","Dato","Kontaktperson","Endring fra forrige versjon"]
[null,"2.0","2021-03-21","Julie Sandnes Galaaen, julie.galaaen@multiconsult.no"]
[null,"2.1","2023-02-03","Julie Sandnes Galaaen, julie.galaaen@multiconsult.no","Lagt til biogasslastebil."]
[null,"2.2","2023-11-16","Julie Sandnes Galaaen, julie.galaaen@multiconsult.no","Rettet formler for beregning av lasting og transport."]